Workbook

Sheet REFERENCES - 10
B1: DAI_10
B2: VERSION | D2: 2
B5: DUREE PERIODE BENEFICE | D5: 10 ANS
B7: RAISON SOCIALE:
B9: PROMOTEUR
H10: 1
B12: PARAMÉTRAGE DES TAUX APPLIQUÉS:
D13: Taux | E13: Plafond (en F.CFA)
B14: Taux ITS nationaux | D14: 0.012 | E14: Aucun
B15: Taux ITS non nationaux | D15: 0.104 | E15: Aucun
B16: Taux FDFP | D16: 0.016 | E16: Aucun
B17: Taux de Charges Sociales | E17: Aucun
B18: Accident de travail | D18: 2% à 5% | E18: 70 000/mois/agent
B19: Prestation Familiale | D19: 0.0575 | E19: 70 000/mois/agent
B20: Retraite | D20: 0.077 | E20: 1 647 315/mois/agent
B21: Taux TSE | D21: 0.001 | E21: Aucun
B22: Taux BIC | D22: 0.25 | E22: Aucun
B25: PARAMÉTRAGE DUREE D'AMORTISSEMENTS (en année)
B26: Frais d'établissement | D26: 2 | E26: ans
B27: Logiciel | D27: 3 | E27: ans
B28: Autres Immob. Incorporelles | D28: 2 | E28: ans
B29: Terrains | D29: 0 | E29: ans
B30: Constructions et Bâtiments | D30: 20 | E30: ans
B31: Installations et Agencements | D31: 10 | E31: ans
B32: Matériels et Outillages | D32: 5 | E32: ans
B33: Matériels de Transport | D33: 3 | E33: ans
B34: Mat. et Mobil.de Bureau | D34: 10 | E34: ans
B35: Matériel Informatique | D35: 2 | E35: ans

Sheet STRUCTURE DU CA - 10
C1: ='REFERENCES - 10'!D7 -> 0 | G1: ='REFERENCES - 10'!D9 -> 0
B2: STRUCTURE DU CHIFFRE D'AFFAIRES (HORS TAXE)
M3: (En milliers de F. Cfa)
B4: FAMILLE ou CATEGORIES de PRODUITS | C4: Unité de Mesure | D4: PREMIERE ANNEE DE PRODUCTION | I4: CINQUIEME ANNEE DE PRODUCTION
D5: QUANTITE | E5: VENTE LOCALE HT (en valeur) | F5: VENTE EXPORT UEMOA (en valeur) | G5: VENTE EXPORT HORS UEMOA (en valeur) | H5: TOTAL VENTE HT (en valeur) | I5: QUANTITE | J5: VENTE LOCALE HT (en valeur) | K5: VENTE EXPORT UEMOA (en valeur) | L5: VENTE EXPORT HORS UEMOA (en valeur) | M5: TOTAL VENTE HT (en valeur)
E6: En milliers de F. Cfa | J6: En milliers de F. Cfa
A7: 1 | H7: =SUM(E7:G7) -> 0 | M7: =SUM(J7:L7) -> 0
A8: 2 | H8: =SUM(E8:G8) -> 0 | M8: =SUM(J8:L8) -> 0
A9: 3 | H9: 0 | M9: 0
A10: 4 | H10: 0 | M10: 0
A11: 5 | H11: 0 | M11: 0
A12: 6 | H12: 0 | M12: 0
A13: 7 | H13: 0 | M13: 0
A14: 8 | H14: 0 | M14: 0
A15: 9 | H15: 0 | M15: 0
A16: 10 | H16: 0 | M16: 0
A17: 11 | H17: 0 | M17: 0
A18: 12 | H18: 0 | M18: 0
B19: NON VENTILE | H19: 0 | M19: =SUM(J19:L19) -> 0
B20: TOTAL | E20: =SUM(E7:E19) -> 0 | F20: =SUM(F7:F19) -> 0 | G20: =SUM(G7:G19) -> 0 | H20: =SUM(H7:H19) -> 0 | J20: =SUM(J7:J19) -> 0 | K20: =SUM(K7:K19) -> 0 | L20: =SUM(L7:L19) -> 0 | M20: =SUM(M7:M19) -> 0

Sheet EVOLUTION DU CA - 10
C1: ='REFERENCES - 10'!D7 -> 0 | F1: ='REFERENCES - 10'!D9 -> 0 | J1: =C1 -> 0 | L1: =F1 -> 0
A3: EVOLUTION DU CHIFFRE D'AFFAIRES | J3: (En milliers de F. Cfa)
B5: AN 1 | C5: AN 2 | D5: AN 3 | E5: AN 4 | F5: AN 5 (1) | G5: AN 6 | H5: AN 7 | I5: AN 8 | J5: AN 9 | K5: AN 10
A7: VENTE LOCALE | B7: ='STRUCTURE DU CA - 10'!$E$20 -> 0 | F7: ='STRUCTURE DU CA - 10'!$J$20 -> 0
A8: VENTE EXPORT UEMOA | B8: ='STRUCTURE DU CA - 10'!$F$20 -> 0 | F8: ='STRUCTURE DU CA - 10'!$K$20 -> 0
A9: VENTE EXPORT HORS UEMOA | B9: ='STRUCTURE DU CA - 10'!$G$20 -> 0 | F9: ='STRUCTURE DU CA - 10'!$L$20 -> 0
A10: TOTAL (2) | B10: =SUM(B7:B9) -> 0 | C10: =SUM(C7:C9) -> 0 | D10: 0 | E10: 0 | F10: 0 | G10: 0 | H10: 0 | I10: 0 | J10: 0 | K10: 0
A11: Variation N par rapport à N-1 | C11: =IF(B10=0,0,(C10-B10)/B10) -> 0 | D11: 0 | E11: 0 | F11: 0 | G11: 0 | H11: 0 | I11: 0 | J11: =IF(I10=0,0,(J10-I10)/I10) -> 0 | K11: 0
A14: (1) La cinquième année d'exploitation est supposée correspondre à l'année de croisière.
A15: (2) Ce total est à reporter sur la ligne Chiffre d'affaires du tableau "COMPTE de RESULTAT". Les totaux des années 1 et 5 du tableau "STRUCTURE DU CA" sont cohérents avec ceux de ce tableau.

Sheet SOURCING - 10
C1: ='REFERENCES - 10'!D7 -> 0 | G1: ='REFERENCES - 10'!D9 -> 0
A3: MATIERES PREMIERES, MARCHANDISES & FOURNITURES
L4: (En milliers de F. Cfa)
A5: DESIGNATION DE L'INTRANT | B5: Unité de Mesure | C5: PREMIERE ANNEE DE PRODUCTION | H5: CINQUIEME ANNEE DE PRODUCTION
C6: ORIGINE DE LA MATIERE (1) | D6: POIDS DANS LES ACHATS (2) | G6: LOCALISATION DU PRINCIPAL FOURNISSEUR (3) | H6: ORIGINE DE LA MATIERE (1) | I6: POIDS DANS LES ACHATS (2) | L6: LOCALISATION DU PRINCIPAL FOURNISSEUR (3)
D7: Quantité | E7: Valeur HT | F7: % | I7: Quantité | J7: Valeur HT | K7: %
E8: (En milliers F. Cfa) | J8: (En milliers F. Cfa)
F9: =IF($E$27=0,0,E9/$E$27) -> 0 | K9: =IF($J$27=0,0,J9/$J$27) -> 0
F10: =IF($E$27=0,0,E10/$E$27) -> 0 | K10: =IF($J$27=0,0,J10/$J$27) -> 0
F11: =IF($E$27=0,0,E11/$E$27) -> 0 | K11: =IF($J$27=0,0,J11/$J$27) -> 0
F12: =IF($E$27=0,0,E12/$E$27) -> 0 | K12: =IF($J$27=0,0,J12/$J$27) -> 0
F13: 0 | K13: 0
F14: =IF($E$27=0,0,E14/$E$27) -> 0 | K14: =IF($J$27=0,0,J14/$J$27) -> 0
F15: =IF($E$27=0,0,E15/$E$27) -> 0 | K15: =IF($J$27=0,0,J15/$J$27) -> 0
F16: =IF($E$27=0,0,E16/$E$27) -> 0 | K16: =IF($J$27=0,0,J16/$J$27) -> 0
F17: 0 | K17: 0
F18: 0 | K18: 0
F19: =IF($E$27=0,0,E19/$E$27) -> 0 | K19: =IF($J$27=0,0,J19/$J$27) -> 0
F20: =IF($E$27=0,0,E20/$E$27) -> 0 | K20: =IF($J$27=0,0,J20/$J$27) -> 0
F21: =IF($E$27=0,0,E21/$E$27) -> 0 | K21: =IF($J$27=0,0,J21/$J$27) -> 0
A22: SOUS TOTAL | E22: =SUM(E9:E21) -> 0 | F22: =IF($E$27=0,0,E22/$E$27) -> 0 | J22: =SUM(J9:J21) -> 0 | K22: =IF($J$27=0,0,J22/$J$27) -> 0
A24: Eau & Electricité | F24: =IF($E$27=0,0,E24/$E$27) -> 0 | K24: =IF($J$27=0,0,J24/$J$27) -> 0
A25: Autres Mat. Pre., Marchandises & Fournitures | F25: =IF($E$27=0,0,E25/$E$27) -> 0 | K25: =IF($J$27=0,0,J25/$J$27) -> 0
A27: TOTAL ACHAT MAT. PRE., MARCH & FOURNITURES (4) | E27: =E25+E24+E22 -> 0 | F27: =IF($E$27=0,0,E27/$E$27) -> 0 | J27: =J25+J24+J22 -> 0 | K27: =IF($J$27=0,0,J27/$J$27) -> 0
A29: (1) | B29: Il s'agit du pays de production de la matière 1ère, marchandises ou fournitures et non du pays de provenance
A30: (2) | B30: Les achats s'entendent ceux de la classe 60 du plan comptable SYSCOHADA;
A31: (3) | B31: Précisez s'il s'agit d'un fournisseur local ou d'un fournisseur étranger
A32: (4) | B32: Ce total alimente la ligne "Achat Mat. Prem., Marchandises & Fournitures" du tableau "COMPTE DE RESULTAT" pour les années 1 et 4.

Sheet STRUCT.EMPLOI&MASS SALARIALE-10
C1: ='REFERENCES - 10'!D7 -> 0 | G1: ='REFERENCES - 10'!D9 -> 0
A3: STRUCTURE DES EMPLOIS & MASSE SALARIALE | J3: (En milliers de F. Cfa)
A5: CATEGORIES PROFESSIONNELLES | B5: PREMIERE ANNEE DE PRODUCTION | G5: CINQUIEME ANNEE DE PRODUCTION (1)
B6: Effectif | C6: Salaires Annuels Totaux | D6: ITS (2) | E6: Charges Sociales | F6: Coût Total | G6: Effectif | H6: Salaires Annuels Totaux | I6: ITS (2) | J6: Charges Sociales | K6: Coût Total
A8: Nationaux
A9: Cadres supérieurs (DG & directeurs) | D9: =C9*'REFERENCES - 10'!$D$14 -> 0 | F9: =D9+E9+C9 -> 0 | I9: =H9*'REFERENCES - 10'!$D$14 -> 0 | K9: =I9+J9+H9 -> 0
A10: Cadres moyens | D10: =C10*'REFERENCES - 10'!$D$14 -> 0 | F10: =D10+E10+C10 -> 0 | I10: =H10*'REFERENCES - 10'!$D$14 -> 0 | K10: =I10+J10+H10 -> 0
A11: Agents Maîtrise | D11: =C11*'REFERENCES - 10'!$D$14 -> 0 | F11: =D11+E11+C11 -> 0 | I11: =H11*'REFERENCES - 10'!$D$14 -> 0 | K11: =I11+J11+H11 -> 0
A12: Employés & Ouvriers | D12: =C12*'REFERENCES - 10'!$D$14 -> 0 | F12: =D12+E12+C12 -> 0 | I12: =H12*'REFERENCES - 10'!$D$14 -> 0 | K12: =I12+J12+H12 -> 0
A13: Total Nationaux | B13: =SUM(B9:B12) -> 0 | C13: 0 | D13: 0 | E13: 0 | F13: 0 | G13: 0 | H13: 0 | I13: 0 | J13: 0 | K13: 0
A14: Dont Permanents | D14: =C14*'REFERENCES - 10'!$D$14 -> 0 | F14: =D14+E14+C14 -> 0 | I14: =H14*'REFERENCES - 10'!$D$14 -> 0 | K14: =I14+J14+H14 -> 0
A15: Dont Occasionnels(3) | D15: =C15*'REFERENCES - 10'!$D$14 -> 0 | F15: =D15+E15+C15 -> 0 | I15: =H15*'REFERENCES - 10'!$D$14 -> 0 | K15: =I15+J15+H15 -> 0
A17: Autres Africains
A18: Cadres supérieurs (DG & directeurs) | D18: =C18*'REFERENCES - 10'!$D$15 -> 0 | F18: =D18+E18+C18 -> 0 | I18: =H18*'REFERENCES - 10'!$D$15 -> 0 | K18: =I18+J18+H18 -> 0
A19: Cadres moyens | D19: =C19*'REFERENCES - 10'!$D$15 -> 0 | F19: =D19+E19+C19 -> 0 | I19: =H19*'REFERENCES - 10'!$D$15 -> 0 | K19: =I19+J19+H19 -> 0
A20: Agents Maîtrise | D20: =C20*'REFERENCES - 10'!$D$15 -> 0 | F20: =D20+E20+C20 -> 0 | I20: =H20*'REFERENCES - 10'!$D$15 -> 0 | K20: =I20+J20+H20 -> 0
A21: Employés & Ouvriers | D21: =C21*'REFERENCES - 10'!$D$15 -> 0 | F21: =D21+E21+C21 -> 0 | I21: =H21*'REFERENCES - 10'!$D$15 -> 0 | K21: =I21+J21+H21 -> 0
A22: Total autres Africains | B22: =SUM(B18:B21) -> 0 | C22: 0 | D22: 0 | E22: 0 | F22: 0 | G22: 0 | H22: 0 | I22: 0 | J22: 0 | K22: =SUM(K18:K21) -> 0
A23: Dont Permanents | D23: =C23*'REFERENCES - 10'!$D$15 -> 0 | F23: =D23+E23+C23 -> 0 | I23: =H23*'REFERENCES - 10'!$D$15 -> 0 | K23: =I23+J23+H23 -> 0
A24: Dont Occasionnels(3) | D24: =C24*'REFERENCES - 10'!$D$15 -> 0 | F24: =D24+E24+C24 -> 0 | I24: =H24*'REFERENCES - 10'!$D$15 -> 0 | K24: =I24+J24+H24 -> 0
A26: Non Africains
A27: Cadres supérieurs (DG & directeurs) | D27: =C27*'REFERENCES - 10'!$D$15 -> 0 | F27: =D27+E27+C27 -> 0 | I27: =H27*'REFERENCES - 10'!$D$15 -> 0 | K27: =I27+J27+H27 -> 0
A28: Cadres moyens | D28: =C28*'REFERENCES - 10'!$D$15 -> 0 | F28: =D28+E28+C28 -> 0 | I28: =H28*'REFERENCES - 10'!$D$15 -> 0 | K28: =I28+J28+H28 -> 0
A29: Agents Maîtrise | D29: =C29*'REFERENCES - 10'!$D$15 -> 0 | F29: =D29+E29+C29 -> 0 | I29: =H29*'REFERENCES - 10'!$D$15 -> 0 | K29: =I29+J29+H29 -> 0
A30: Employés & Ouvriers | D30: =C30*'REFERENCES - 10'!$D$15 -> 0 | F30: =D30+E30+C30 -> 0 | I30: =H30*'REFERENCES - 10'!$D$15 -> 0 | K30: =I30+J30+H30 -> 0
A31: Total Non Africains | B31: =SUM(B27:B30) -> 0 | C31: 0 | D31: 0 | E31: 0 | F31: =SUM(F27:F30) -> 0 | G31: 0 | H31: 0 | I31: 0 | J31: 0 | K31: =SUM(K27:K30) -> 0
A32: Dont Permanents | D32: =C32*'REFERENCES - 10'!$D$15 -> 0 | F32: =D32+E32+C32 -> 0 | I32: =H32*'REFERENCES - 10'!$D$15 -> 0 | K32: =I32+J32+H32 -> 0
A33: Dont Occasionnels(3) | D33: =C33*'REFERENCES - 10'!$D$15 -> 0 | F33: =D33+E33+C33 -> 0 | I33: =H33*'REFERENCES - 10'!$D$15 -> 0 | K33: =I33+J33+H33 -> 0
A35: Autres Charges de Personnel(5)
A37: Emplois existants | B37: =B38+B39 -> 0 | C37: 0 | D37: 0 | E37: 0 | F37: 0 | G37: 0 | H37: 0 | I37: 0 | J37: 0 | K37: 0
A38: Dont Permanents | F38: =C38+D38+E38 -> 0
A39: Dont Occasionnels(3) | F39: =C39+D39+E39 -> 0
A40: TOTAL (4) | B40: =B13+B22+B31+B37 -> 0 | C40: =C13+C22+C31+C37 -> 0 | D40: =D13+D22+D31+D37 -> 0 | E40: =E13+E22+E31+E37 -> 0 | F40: =F13+F22+F31+F35+F37 -> 0 | G40: =G13+G22+G31+G37 -> 0 | H40: =H13+H22+H31+H37 -> 0 | I40: =I13+I22+I31+I37 -> 0 | J40: =J13+J22+J31+J37 -> 0 | K40: =K13+K22+K31+K35+K37 -> 0
A41: Dont Permanents | D41: =D14+D23+D32 -> 0 | F41: =D41+E41+C41 -> 0 | I41: =I14+I23+I32 -> 0 | K41: =I41+J41+H41 -> 0
A42: Dont Occasionnels(3) | D42: =D15+D24+D33 -> 0 | F42: =D42+E42+C42 -> 0 | I42: =I15+I24+I33 -> 0 | K42: =I42+J42+H42 -> 0
A45: (1) La cinquième année d'exploitation est supposée correspondre à l'année de croisière.
A46: (2) ITS Nationaux= 2,8%salaires totaux des ivoiriens / ITS Non Nationaux= 12%salaires totaux des Non Nationaux.
A47: (3) En équivalent temps plein.
A48: (4) Les totaux des colonnes "Salaires Totaux" + Totaux "Charges sociales" correspondent à la masse salariale et sont à reportés dans les "Masse Salariales (Hors ITS)" de la feuille "EVOL EFFECTIF & MASS SALARIAL" pour les années 1 et 5.
A49: (5) Les Autres Charges de Personnel s'entend toutes les autres charges de personnel en dehors des salaires bruts et des charges de personnel intérimaire.

Sheet EVOL EFFECTIF&MASS SALARIAL-10
C1: ='REFERENCES - 10'!D7 -> 0 | G1: ='REFERENCES - 10'!D9 -> 0 | M1: =+C1 -> 0 | Q1: =+G1 -> 0 | AA1: =M1 -> 0
B2: EVOLUTION DES EFFECTIFS(1) & DE LA MASSE SALARIALE(2) | K2: (En milliers F. Cfa) | L2: EVOLUTION DES EFFECTIFS(1) & DE LA MASSE SALARIALE(2) | U2: (En milliers F. Cfa)
A4: CATEGORIES PROFESSIONNELLES | B4: ANNEE 1 | D4: ANNEE 2 | F4: ANNEE 3 | H4: ANNEE 4 | J4: ANNEE 5 (3) | L4: ANNEE 6 | N4: ANNEE 7 | P4: ANNEE 8 | R4: ANNEE 9 | T4: ANNEE 10
B5: Effectif | C5: Salaires Annuels Totaux | D5: Effectif | E5: Salaires Annuels Totaux | F5: Effectif | G5: Salaires Annuels Totaux | H5: Effectif | I5: Salaires Annuels Totaux | J5: Effectif | K5: Salaires Annuels Totaux | L5: Effectif | M5: Salaires Annuels Totaux | N5: Effectif | O5: Salaires Annuels Totaux | P5: Effectif | Q5: Salaires Annuels Totaux | R5: Effectif | S5: Salaires Annuels Totaux | T5: Effectif | U5: Salaires Annuels Totaux
A7: Nationaux
A9: Cadres supérieurs (DG & directeurs) | B9: =+'STRUCT.EMPLOI&MASS SALARIALE-10'!B9 -> 0 | C9: =+'STRUCT.EMPLOI&MASS SALARIALE-10'!C9 -> 0 | J9: =+'STRUCT.EMPLOI&MASS SALARIALE-10'!G9 -> 0 | K9: =+'STRUCT.EMPLOI&MASS SALARIALE-10'!H9 -> 0
A10: Cadres moyens | B10: =+'STRUCT.EMPLOI&MASS SALARIALE-10'!B10 -> 0 | C10: =+'STRUCT.EMPLOI&MASS SALARIALE-10'!C10 -> 0 | J10: =+'STRUCT.EMPLOI&MASS SALARIALE-10'!G10 -> 0 | K10: =+'STRUCT.EMPLOI&MASS SALARIALE-10'!H10 -> 0
A11: Agents Maîtrise | B11: =+'STRUCT.EMPLOI&MASS SALARIALE-10'!B11 -> 0 | C11: =+'STRUCT.EMPLOI&MASS SALARIALE-10'!C11 -> 0 | J11: =+'STRUCT.EMPLOI&MASS SALARIALE-10'!G11 -> 0 | K11: =+'STRUCT.EMPLOI&MASS SALARIALE-10'!H11 -> 0
A12: Employés & Ouvriers | B12: =+'STRUCT.EMPLOI&MASS SALARIALE-10'!B12 -> 0 | C12: =+'STRUCT.EMPLOI&MASS SALARIALE-10'!C12 -> 0 | J12: =+'STRUCT.EMPLOI&MASS SALARIALE-10'!G12 -> 0 | K12: =+'STRUCT.EMPLOI&MASS SALARIALE-10'!H12 -> 0
A13: Total Nationaux | B13: =B9+B10+B11+B12 -> 0 | C13: =C9+C10+C11+C12 -> 0 | D13: 0 | E13: 0 | F13: 0 | G13: 0 | H13: 0 | I13: 0 | J13: =J9+J10+J11+J12 -> 0 | K13: 0 | L13: 0 | M13: 0 | N13: 0 | O13: 0 | P13: 0 | Q13: 0 | R13: 0 | S13: 0 | T13: 0 | U13: 0
A14: Dont Permanents | B14: =+'STRUCT.EMPLOI&MASS SALARIALE-10'!B14 -> 0 | C14: =+'STRUCT.EMPLOI&MASS SALARIALE-10'!C14+'STRUCT.EMPLOI&MASS SALARIALE-10'!E14 -> 0 | J14: =+'STRUCT.EMPLOI&MASS SALARIALE-10'!G14 -> 0 | K14: =+'STRUCT.EMPLOI&MASS SALARIALE-10'!H14 -> 0
A15: Dont Occasionnels(4) | B15: =+'STRUCT.EMPLOI&MASS SALARIALE-10'!B15 -> 0 | C15: =+'STRUCT.EMPLOI&MASS SALARIALE-10'!C15+'STRUCT.EMPLOI&MASS SALARIALE-10'!E15 -> 0 | J15: =+'STRUCT.EMPLOI&MASS SALARIALE-10'!G15 -> 0 | K15: =+'STRUCT.EMPLOI&MASS SALARIALE-10'!H15 -> 0
A17: Autres Africains
A19: Cadres supérieurs (DG & directeurs) | B19: =+'STRUCT.EMPLOI&MASS SALARIALE-10'!B18 -> 0 | C19: =+'STRUCT.EMPLOI&MASS SALARIALE-10'!C18 -> 0 | J19: =+'STRUCT.EMPLOI&MASS SALARIALE-10'!G18 -> 0 | K19: =+'STRUCT.EMPLOI&MASS SALARIALE-10'!H18 -> 0
A20: Cadres moyens | B20: =+'STRUCT.EMPLOI&MASS SALARIALE-10'!B19 -> 0 | C20: =+'STRUCT.EMPLOI&MASS SALARIALE-10'!C19 -> 0 | J20: =+'STRUCT.EMPLOI&MASS SALARIALE-10'!G19 -> 0 | K20: =+'STRUCT.EMPLOI&MASS SALARIALE-10'!H19 -> 0
A21: Agents Maîtrise | B21: =+'STRUCT.EMPLOI&MASS SALARIALE-10'!B20 -> 0 | C21: =+'STRUCT.EMPLOI&MASS SALARIALE-10'!C20 -> 0 | J21: =+'STRUCT.EMPLOI&MASS SALARIALE-10'!G20 -> 0 | K21: =+'STRUCT.EMPLOI&MASS SALARIALE-10'!H20 -> 0
A22: Employés & Ouvriers | B22: =+'STRUCT.EMPLOI&MASS SALARIALE-10'!B21 -> 0 | C22: =+'STRUCT.EMPLOI&MASS SALARIALE-10'!C21 -> 0 | J22: =+'STRUCT.EMPLOI&MASS SALARIALE-10'!G21 -> 0 | K22: =+'STRUCT.EMPLOI&MASS SALARIALE-10'!H21 -> 0
A23: Total autres Africains | B23: =B19+B20+B21+B22 -> 0 | C23: 0 | D23: 0 | E23: 0 | F23: 0 | G23: 0 | H23: 0 | I23: 0 | J23: 0 | K23: 0 | L23: 0 | M23: 0 | N23: 0 | O23: 0 | P23: 0 | Q23: 0 | R23: 0 | S23: 0 | T23: 0 | U23: 0
A24: Dont Permanents | B24: =+'STRUCT.EMPLOI&MASS SALARIALE-10'!B23 -> 0 | C24: =+'STRUCT.EMPLOI&MASS SALARIALE-10'!C23 -> 0 | J24: =+'STRUCT.EMPLOI&MASS SALARIALE-10'!G23 -> 0 | K24: =+'STRUCT.EMPLOI&MASS SALARIALE-10'!H23 -> 0
A25: Dont Occasionnels(4) | B25: =+'STRUCT.EMPLOI&MASS SALARIALE-10'!B24 -> 0 | C25: =+'STRUCT.EMPLOI&MASS SALARIALE-10'!C24 -> 0 | J25: =+'STRUCT.EMPLOI&MASS SALARIALE-10'!G24 -> 0 | K25: =+'STRUCT.EMPLOI&MASS SALARIALE-10'!H24 -> 0
A27: Non Africains
A29: Cadres supérieurs (DG & directeurs) | B29: =+'STRUCT.EMPLOI&MASS SALARIALE-10'!B27 -> 0 | C29: =+'STRUCT.EMPLOI&MASS SALARIALE-10'!C27 -> 0 | J29: =+'STRUCT.EMPLOI&MASS SALARIALE-10'!G27 -> 0 | K29: =+'STRUCT.EMPLOI&MASS SALARIALE-10'!H27 -> 0
A30: Cadres moyens | B30: =+'STRUCT.EMPLOI&MASS SALARIALE-10'!B28 -> 0 | C30: =+'STRUCT.EMPLOI&MASS SALARIALE-10'!C28 -> 0 | J30: =+'STRUCT.EMPLOI&MASS SALARIALE-10'!G28 -> 0 | K30: =+'STRUCT.EMPLOI&MASS SALARIALE-10'!H28 -> 0
A31: Agents Maîtrise | B31: =+'STRUCT.EMPLOI&MASS SALARIALE-10'!B29 -> 0 | C31: =+'STRUCT.EMPLOI&MASS SALARIALE-10'!C29 -> 0 | J31: =+'STRUCT.EMPLOI&MASS SALARIALE-10'!G29 -> 0 | K31: =+'STRUCT.EMPLOI&MASS SALARIALE-10'!H29 -> 0
A32: Employés & Ouvriers | B32: =+'STRUCT.EMPLOI&MASS SALARIALE-10'!B30 -> 0 | C32: =+'STRUCT.EMPLOI&MASS SALARIALE-10'!C30 -> 0 | J32: =+'STRUCT.EMPLOI&MASS SALARIALE-10'!G30 -> 0 | K32: =+'STRUCT.EMPLOI&MASS SALARIALE-10'!H30 -> 0
A33: Total Non Africains | B33: =B29+B30+B31+B32 -> 0 | C33: =C29+C30+C31+C32 -> 0 | D33: 0 | E33: 0 | F33: 0 | G33: 0 | H33: 0 | I33: 0 | J33: 0 | K33: 0 | L33: =L29+L30+L31+L32 -> 0 | M33: 0 | N33: 0 | O33: 0 | P33: 0 | Q33: 0 | R33: 0 | S33: 0 | T33: 0 | U33: 0
A34: Dont Permanents | B34: =+'STRUCT.EMPLOI&MASS SALARIALE-10'!B32 -> 0 | C34: =+'STRUCT.EMPLOI&MASS SALARIALE-10'!C32 -> 0 | J34: =+'STRUCT.EMPLOI&MASS SALARIALE-10'!G32 -> 0 | K34: =+'STRUCT.EMPLOI&MASS SALARIALE-10'!H32 -> 0
A35: Dont Occasionnels(4) | B35: =+'STRUCT.EMPLOI&MASS SALARIALE-10'!B33 -> 0 | C35: =+'STRUCT.EMPLOI&MASS SALARIALE-10'!C33 -> 0 | J35: =+'STRUCT.EMPLOI&MASS SALARIALE-10'!G33 -> 0 | K35: =+'STRUCT.EMPLOI&MASS SALARIALE-10'!H33 -> 0
A37: Charges Sociales | C37: ='STRUCT.EMPLOI&MASS SALARIALE-10'!E40 -> 0 | K37: ='STRUCT.EMPLOI&MASS SALARIALE-10'!J40 -> 0
A39: Autres Charges de Personnel(5) | C39: ='STRUCT.EMPLOI&MASS SALARIALE-10'!F35 -> 0 | K39: ='STRUCT.EMPLOI&MASS SALARIALE-10'!K35 -> 0
A41: Emplois existants | B41: ='STRUCT.EMPLOI&MASS SALARIALE-10'!B37 -> 0 | C41: ='STRUCT.EMPLOI&MASS SALARIALE-10'!C37 -> 0 | D41: =D42+D43 -> 0 | E41: 0 | F41: 0 | G41: 0 | H41: 0 | I41: 0 | J41: ='STRUCT.EMPLOI&MASS SALARIALE-10'!G37 -> 0 | K41: ='STRUCT.EMPLOI&MASS SALARIALE-10'!H37 -> 0 | L41: ='STRUCT.EMPLOI&MASS SALARIALE-10'!I37 -> 0 | M41: ='STRUCT.EMPLOI&MASS SALARIALE-10'!K37 -> 0 | N41: ='STRUCT.EMPLOI&MASS SALARIALE-10'!L37 -> 0 | O41: ='STRUCT.EMPLOI&MASS SALARIALE-10'!N37 -> 0 | P41: ='STRUCT.EMPLOI&MASS SALARIALE-10'!O37 -> 0 | Q41: ='STRUCT.EMPLOI&MASS SALARIALE-10'!Q37 -> 0 | R41: ='STRUCT.EMPLOI&MASS SALARIALE-10'!R37 -> 0 | S41: ='STRUCT.EMPLOI&MASS SALARIALE-10'!T37 -> 0 | T41: ='STRUCT.EMPLOI&MASS SALARIALE-10'!U37 -> 0 | U41: ='STRUCT.EMPLOI&MASS SALARIALE-10'!W37 -> 0
A42: Dont Permanents | B42: ='STRUCT.EMPLOI&MASS SALARIALE-10'!B38 -> 0 | C42: ='STRUCT.EMPLOI&MASS SALARIALE-10'!C38 -> 0 | J42: ='STRUCT.EMPLOI&MASS SALARIALE-10'!G38 -> 0 | K42: ='STRUCT.EMPLOI&MASS SALARIALE-10'!H38 -> 0
A43: Dont Occasionnels(3) | B43: ='STRUCT.EMPLOI&MASS SALARIALE-10'!B39 -> 0 | C43: ='STRUCT.EMPLOI&MASS SALARIALE-10'!C39 -> 0 | J43: ='STRUCT.EMPLOI&MASS SALARIALE-10'!G39 -> 0 | K43: ='STRUCT.EMPLOI&MASS SALARIALE-10'!H39 -> 0
A45: TOTAL | B45: =B39+B33+B23+B13 -> 0 | C45: =C39+C33+C23+C13+C37+C41 -> 0 | D45: 0 | E45: =E39+E33+E23+E13+E37+E41 -> 0 | F45: 0 | G45: =G39+G33+G23+G13+G37+G41 -> 0 | H45: 0 | I45: =I39+I33+I23+I13+I37+I41 -> 0 | J45: =J39+J33+J23+J13 -> 0 | K45: =K39+K33+K23+K13+K37+K41 -> 0 | L45: 0 | M45: =M39+M33+M23+M13+M37+M41 -> 0 | N45: 0 | O45: =O39+O33+O23+O13+O37+O41 -> 0 | P45: 0 | Q45: =Q39+Q33+Q23+Q13+Q37+Q41 -> 0 | R45: 0 | S45: =S39+S33+S23+S13+S37+S41 -> 0 | T45: 0 | U45: =U39+U33+U23+U13+U37+U41 -> 0
A46: Dont Permanents | B46: ='STRUCT.EMPLOI&MASS SALARIALE-10'!B41 -> 0 | C46: ='STRUCT.EMPLOI&MASS SALARIALE-10'!C41 -> 0 | J46: ='STRUCT.EMPLOI&MASS SALARIALE-10'!G41 -> 0 | K46: ='STRUCT.EMPLOI&MASS SALARIALE-10'!H41 -> 0
A47: Dont Occasionnels(4) | B47: ='STRUCT.EMPLOI&MASS SALARIALE-10'!B42 -> 0 | C47: ='STRUCT.EMPLOI&MASS SALARIALE-10'!C42 -> 0 | J47: ='STRUCT.EMPLOI&MASS SALARIALE-10'!G42 -> 0 | K47: ='STRUCT.EMPLOI&MASS SALARIALE-10'!H42 -> 0
B49: (1) Les effectifs comprennent le personnel en contrat direct avec l'entreprise y compris le personnel détaché, le personnel temporaire et ceux sous contrat précaire; ils décomptés en ETP (Equivalent Temps Plein). Les effectifs sous intérim ne sont pas intégrés ici ( ils le sont dans l'onglet suivant "INTERIM & LOCATION MO").
B50: (2) La masse salariale s'entend les salaires bruts. Ne sont pas pris en compte les cotisations sociales et les ITS (pour mémoire, selon SYSCOHADA les ITS sont classifiés dans le compte de charge des impôts).
B51: (3) La cinquième année d'exploitation est supposée correspondre à l'année de croisière.
B52: (4) En équivalent temps plein.
B53: (5) Les Autres Charges de Personnel s'entend toutes les autres charges de personnel en dehors des salaires bruts et des charges de personnel intérimaire.

Sheet INTERIM & LOCATION MO-10
C1: ='REFERENCES - 10'!D7 -> 0 | G1: ='REFERENCES - 10'!D9 -> 0 | M1: =+C1 -> 0 | Q1: =+G1 -> 0 | AA1: =M1 -> 0
B2: EVOLUTION DES EFFECTIFS PERSONNEL INTERIMAIRE (1) | K2: (En milliers F. Cfa) | L2: EVOLUTION DES EFFECTIFS PERSONNEL INTERIMAIRE (1) | U2: (En milliers F. Cfa)
A4: CATEGORIES PROFESSIONNELLES | B4: ANNEE 1 | D4: ANNEE 2 | F4: ANNEE 3 | H4: ANNEE 4 | J4: ANNEE 5 (2) | L4: ANNEE 6 | N4: ANNEE 7 | P4: ANNEE 8 | R4: ANNEE 9 | T4: ANNEE 10
B5: Effectif | C5: Facturation HT à l'entreprise | D5: Effectif | E5: Facturation HT à l'entreprise | F5: Effectif | G5: Facturation HT à l'entreprise | H5: Effectif | I5: Facturation HT à l'entreprise | J5: Effectif | K5: Facturation HT à l'entreprise | L5: Effectif | M5: Facturation HT à l'entreprise | N5: Effectif | O5: Facturation HT à l'entreprise | P5: Effectif | Q5: Facturation HT à l'entreprise | R5: Effectif | S5: Facturation HT à l'entreprise | T5: Effectif | U5: Facturation HT à l'entreprise
A7: Nationaux
A9: Cadres supérieurs (DG & directeurs)
A10: Cadres moyens
A11: Agents Maîtrise
A12: Employés & Ouvriers
A13: Total Nationaux | B13: =B9+B10+B11+B12 -> 0 | C13: =C9+C10+C11+C12 -> 0 | D13: 0 | E13: 0 | F13: 0 | G13: 0 | H13: 0 | I13: 0 | J13: 0 | K13: 0 | L13: 0 | M13: 0 | N13: 0 | O13: 0 | P13: 0 | Q13: 0 | R13: 0 | S13: 0 | T13: 0 | U13: 0
A15: Autres Africains
A17: Cadres supérieurs (DG & directeurs)
A18: Cadres moyens
A19: Agents Maîtrise
A20: Employés & Ouvriers
A21: Total autres Africains | B21: =B17+B18+B19+B20 -> 0 | C21: =C17+C18+C19+C20 -> 0 | D21: 0 | E21: 0 | F21: 0 | G21: 0 | H21: 0 | I21: 0 | J21: 0 | K21: 0 | L21: 0 | M21: 0 | N21: 0 | O21: 0 | P21: 0 | Q21: 0 | R21: 0 | S21: 0 | T21: 0 | U21: 0
A23: Non Africains
A25: Cadres supérieurs (DG & directeurs)
A26: Cadres moyens
A27: Agents Maîtrise
A28: Employés & Ouvriers
A29: Total Non Africains | B29: =B25+B26+B27+B28 -> 0 | C29: =C25+C26+C27+C28 -> 0 | D29: 0 | E29: 0 | F29: 0 | G29: 0 | H29: 0 | I29: 0 | J29: 0 | K29: 0 | L29: 0 | M29: 0 | N29: 0 | O29: 0 | P29: 0 | Q29: 0 | R29: 0 | S29: 0 | T29: 0 | U29: 0
A31: TOTAL | B31: =B29+B21+B13 -> 0 | C31: 0 | D31: 0 | E31: 0 | F31: 0 | G31: 0 | H31: 0 | I31: 0 | J31: 0 | K31: 0 | L31: 0 | M31: 0 | N31: 0 | O31: 0 | P31: 0 | Q31: 0 | R31: 0 | S31: 0 | T31: 0 | U31: 0
B33: (1) Le personnel intérimaire est mis à la disposition de l'entreprise par une société tiers moyennant facturation. La société tiers étant au plan juridique l'employeur du personnel intérimaire, l'entreprise n'est donc pas soumise aux ITS ( le personnel occasionnel et temporaire sous contrat direct avec l'entreprise sont pris en compte dan l'onglet précédent "EVOL EFFECTIF&MASS SALARIAL") . Les effectifs de personnel intérimaire sont décomptés en ETP (Equivalent Temps Plein).
B34: (2) La cinquième année d'exploitation est supposée correspondre à l'année de croisière.

Sheet INVENT.Logiciels Importés - 10
C1: ='REFERENCES - 10'!D7 -> 0 | F1: ='REFERENCES - 10'!D9 -> 0
B2: INVENTAIRE DES MATERIELS EQUIPEMENTS IMPORTES
H3: (En F. Cfa)
B4: DESIGNATIONS DOUANIERES | C4: N° NOMENCLATURE DOUANIERE | D4: SPECIFICATIONS COMMERCIALES (1) | E4: UNITE DE MESURE | F4: QUAN. | G4: VALEUR UNITAIRE | H4: COÛT CAF
B6: Logiciels | F6: =SUM(F7:F36) -> 0 | H6: =SUM(H7:H36) -> 0
A7: 1 | H7: =G7*F7 -> 0
A8: =+A7+1 -> 2 | H8: 0
A9: =+A8+1 -> 3 | H9: 0
A10: 4 | H10: 0
A11: 5 | H11: 0
A12: 6 | H12: 0
A13: 7 | H13: 0
A14: 8 | H14: 0
A15: 9 | H15: 0
A16: 10 | H16: 0
A17: 11 | H17: =G17*F17 -> 0
A18: 12 | H18: 0
A19: 13 | H19: 0
A20: 14 | H20: 0
A21: 15 | H21: 0
A22: 16 | H22: 0
A23: 17 | H23: 0
A24: 18 | H24: 0
A25: 19 | H25: 0
A26: 20 | H26: 0
A27: 21 | H27: 0
A28: 22 | H28: 0
A29: 23 | H29: 0
A30: 24 | H30: 0
A31: 25 | H31: =G31*F31 -> 0
A32: 26 | H32: 0
A33: 27 | H33: 0
A34: 28 | H34: 0
A35: 29 | H35: 0
A36: 30 | H36: 0

Sheet INVENT.Autre Im Inco Importé-10
C1: ='REFERENCES - 10'!D7 -> 0 | F1: ='REFERENCES - 10'!D9 -> 0
B2: INVENTAIRE DES MATERIELS EQUIPEMENTS IMPORTES
H3: (En F. Cfa)
B4: DESIGNATIONS DOUANIERES | C4: N° NOMENCLATURE DOUANIERE | D4: SPECIFICATIONS COMMERCIALES (1) | E4: UNITE DE MESURE | F4: QUAN. | G4: VALEUR UNITAIRE | H4: COÛT CAF
B6: Autres Immobilisations Incorporelles | F6: =SUM(F7:F36) -> 0 | H6: =SUM(H7:H36) -> 0
A7: 1 | H7: =G7*F7 -> 0
A8: =+A7+1 -> 2 | H8: =G8*F8 -> 0
A9: =+A8+1 -> 3 | H9: =G9*F9 -> 0
A10: 4 | H10: =G10*F10 -> 0
A11: 5 | H11: =G11*F11 -> 0
A12: 6 | H12: =G12*F12 -> 0
A13: 7 | H13: 0
A14: 8 | H14: 0
A15: 9 | H15: 0
A16: 10 | H16: 0
A17: 11 | H17: 0
A18: 12 | H18: 0
A19: 13 | H19: 0
A20: 14 | H20: 0
A21: 15 | H21: 0
A22: 16 | H22: 0
A23: 17 | H23: 0
A24: 18 | H24: 0
A25: 19 | H25: 0
A26: 20 | H26: 0
A27: 21 | H27: 0
A28: 22 | H28: 0
A29: 23 | H29: 0
A30: 24 | H30: 0
A31: 25 | H31: 0
A32: 26 | H32: 0
A33: 27 | H33: 0
A34: 28 | H34: 0
A35: 29 | H35: =G35*F35 -> 0
A36: 30 | H36: =G36*F36 -> 0

Sheet INVENT.Construc&Bat Importé -10
C1: ='REFERENCES - 10'!D7 -> 0 | F1: ='REFERENCES - 10'!D9 -> 0
B2: INVENTAIRE DES MATERIELS EQUIPEMENTS IMPORTES
H3: (En F. Cfa)
B4: DESIGNATIONS DOUANIERES | C4: N° NOMENCLATURE DOUANIERE | D4: SPECIFICATIONS COMMERCIALES (1) | E4: UNITE DE MESURE | F4: QUAN. | G4: VALEUR UNITAIRE | H4: COÛT CAF
B6: Constructions & Bâtiments | F6: =SUM(F7:F306) -> 0 | H6: =SUM(H7:H306) -> 0
A7: 1 | H7: =G7*F7 -> 0
A8: =+A7+1 -> 2 | H8: =G8*F8 -> 0
A9: =+A8+1 -> 3 | H9: =G9*F9 -> 0
A10: 4 | H10: =G10*F10 -> 0
A11: 5 | H11: =G11*F11 -> 0
A12: 6 | H12: =G12*F12 -> 0
A13: 7 | H13: 0
A14: 8 | H14: 0
A15: 9 | H15: 0
A16: 10 | H16: 0
A17: 11 | H17: 0
A18: 12 | H18: 0
A19: 13 | H19: 0
A20: 14 | H20: 0
A21: 15 | H21: 0
A22: 16 | H22: 0
A23: 17 | H23: 0
A24: 18 | H24: 0
A25: 19 | H25: 0
A26: 20 | H26: 0
A27: 21 | H27: 0
A28: 22 | H28: 0
A29: 23 | H29: 0
A30: 24 | H30: 0
A31: 25 | H31: 0
A32: 26 | H32: 0
A33: 27 | H33: 0
A34: 28 | H34: 0
A35: 29 | H35: =G35*F35 -> 0
A36: 30 | H36: 0
A37: 31 | H37: 0
A38: 32 | H38: 0
A39: 33 | H39: 0
A40: 34 | H40: 0
A41: 35 | H41: 0
A42: 36 | H42: 0
A43: 37 | H43: 0
A44: 38 | H44: 0
A45: 39 | H45: 0
A46: 40 | H46: 0
A47: 41 | H47: 0
A48: 42 | H48: 0
A49: 43 | H49: 0
A50: 44 | H50: 0
A51: 45 | H51: 0
A52: 46 | H52: 0
A53: 47 | H53: 0
A54: 48 | H54: 0
A55: 49 | H55: 0
A56: 50 | H56: 0
A57: 51 | H57: 0
A58: 52 | H58: 0
A59: 53 | H59: 0
A60: 54 | H60: 0
A61: 55 | H61: 0
A62: 56 | H62: 0
A63: 57 | H63: 0
A64: 58 | H64: 0
A65: 59 | H65: 0
A66: 60 | H66: =G66*F66 -> 0
A67: 61 | H67: 0
A68: 62 | H68: 0
A69: 63 | H69: 0
A70: 64 | H70: 0
A71: 65 | H71: 0
A72: 66 | H72: 0
A73: 67 | H73: 0
A74: 68 | H74: 0
A75: 69 | H75: 0
A76: 70 | H76: 0
A77: 71 | H77: 0
A78: 72 | H78: 0
A79: 73 | H79: 0
A80: 74 | H80: 0
A81: 75 | H81: 0
A82: 76 | H82: 0
A83: 77 | H83: 0
A84: 78 | H84: 0
A85: 79 | H85: 0
A86: 80 | H86: 0
A87: 81 | H87: 0
A88: 82 | H88: 0
A89: 83 | H89: 0
A90: 84 | H90: 0
A91: 85 | H91: 0
A92: 86 | H92: 0
A93: 87 | H93: 0
A94: 88 | H94: 0
A95: 89 | H95: 0
A96: 90 | H96: 0
A97: 91 | H97: =G97*F97 -> 0
A98: 92 | H98: 0
A99: 93 | H99: 0
A100: 94 | H100: 0
A101: 95 | H101: 0
A102: 96 | H102: 0
A103: 97 | H103: 0
A104: 98 | H104: =G104*F104 -> 0
A105: 99 | H105: 0
A106: 100 | H106: 0
A107: 101 | H107: 0
A108: =+A107+1 -> 102 | H108: 0
A109: 103 | H109: 0
A110: 104 | H110: 0
A111: 105 | H111: 0
A112: 106 | H112: 0
A113: 107 | H113: 0
A114: 108 | H114: 0
A115: 109 | H115: 0
A116: 110 | H116: 0
A117: 111 | H117: 0
A118: 112 | H118: 0
A119: 113 | H119: 0
A120: 114 | H120: 0
A121: 115 | H121: 0
A122: 116 | H122: 0
A123: 117 | H123: 0
A124: 118 | H124: 0
A125: 119 | H125: 0
A126: 120 | H126: 0
A127: 121 | H127: 0
A128: 122 | H128: 0
A129: 123 | H129: 0
A130: 124 | H130: 0
A131: 125 | H131: 0
A132: 126 | H132: 0
A133: 127 | H133: 0
A134: 128 | H134: 0
A135: 129 | H135: 0
A136: 130 | H136: 0
A137: 131 | H137: 0
A138: 132 | H138: 0
A139: 133 | H139: 0
A140: 134 | H140: 0
A141: 135 | H141: 0
A142: 136 | H142: 0
A143: 137 | H143: 0
A144: 138 | H144: 0
A145: 139 | H145: 0
A146: 140 | H146: 0
A147: 141 | H147: 0
A148: 142 | H148: 0
A149: 143 | H149: 0
A150: 144 | H150: 0
A151: 145 | H151: 0
A152: 146 | H152: 0
A153: 147 | H153: 0
A154: 148 | H154: 0
A155: 149 | H155: 0
A156: 150 | H156: 0
A157: 151 | H157: 0
A158: 152 | H158: 0
A159: 153 | H159: 0
A160: 154 | H160: 0
A161: 155 | H161: 0
A162: 156 | H162: 0
A163: 157 | H163: 0
A164: 158 | H164: 0
A165: 159 | H165: 0
A166: 160 | H166: 0
A167: 161 | H167: 0
A168: 162 | H168: =G168*F168 -> 0
A169: 163 | H169: 0
A170: 164 | H170: 0
A171: 165 | H171: 0
A172: =+A171+1 -> 166 | H172: 0
A173: 167 | H173: 0
A174: 168 | H174: 0
A175: 169 | H175: 0
A176: 170 | H176: 0
A177: 171 | H177: 0
A178: 172 | H178: 0
A179: 173 | H179: 0
A180: 174 | H180: 0
A181: 175 | H181: 0
A182: 176 | H182: 0
A183: 177 | H183: 0
A184: 178 | H184: 0
A185: 179 | H185: 0
A186: 180 | H186: 0
A187: 181 | H187: 0
A188: 182 | H188: 0
A189: 183 | H189: 0
A190: 184 | H190: 0
A191: 185 | H191: 0
A192: 186 | H192: 0
A193: 187 | H193: 0
A194: 188 | H194: 0
A195: 189 | H195: 0
A196: 190 | H196: 0
A197: 191 | H197: 0
A198: 192 | H198: 0
A199: 193 | H199: 0
A200: 194 | H200: 0
A201: 195 | H201: 0
... 805 more rows

Sheet INVENT.Inst&Agen Importés -10
C1: ='REFERENCES - 10'!D7 -> 0 | F1: ='REFERENCES - 10'!D9 -> 0
B2: INVENTAIRE DES MATERIELS EQUIPEMENTS IMPORTES
H3: (En F. Cfa)
B4: DESIGNATIONS DOUANIERES | C4: N° NOMENCLATURE DOUANIERE | D4: SPECIFICATIONS COMMERCIALES (1) | E4: UNITE DE MESURE | F4: QUAN. | G4: VALEUR UNITAIRE | H4: COÛT CAF
B6: Installations, Agencements & Aménagements | F6: =SUM(F7:F306) -> 0 | H6: =SUM(H7:H306) -> 0
A7: 1 | H7: =G7*F7 -> 0
A8: =+A7+1 -> 2 | H8: 0
A9: =+A8+1 -> 3 | H9: 0
A10: 4 | H10: 0
A11: 5 | H11: 0
A12: 6 | H12: =G12*F12 -> 0
A13: 7 | H13: 0
A14: 8 | H14: 0
A15: 9 | H15: 0
A16: 10 | H16: 0
A17: 11 | H17: 0
A18: 12 | H18: 0
A19: 13 | H19: 0
A20: 14 | H20: 0
A21: 15 | H21: 0
A22: 16 | H22: 0
A23: 17 | H23: 0
A24: 18 | H24: 0
A25: 19 | H25: 0
A26: 20 | H26: 0
A27: 21 | H27: 0
A28: 22 | H28: 0
A29: 23 | H29: 0
A30: 24 | H30: 0
A31: 25 | H31: 0
A32: 26 | H32: 0
A33: 27 | H33: 0
A34: 28 | H34: 0
A35: 29 | H35: 0
A36: 30 | H36: 0
A37: 31 | H37: 0
A38: 32 | H38: 0
A39: 33 | H39: 0
A40: 34 | H40: 0
A41: 35 | H41: 0
A42: 36 | H42: 0
A43: 37 | H43: 0
A44: 38 | H44: 0
A45: 39 | H45: 0
A46: 40 | H46: 0
A47: 41 | H47: 0
A48: 42 | H48: 0
A49: 43 | H49: 0
A50: 44 | H50: 0
A51: 45 | H51: 0
A52: 46 | H52: 0
A53: 47 | H53: 0
A54: 48 | H54: 0
A55: 49 | H55: 0
A56: 50 | H56: 0
A57: 51 | H57: 0
A58: 52 | H58: 0
A59: 53 | H59: 0
A60: 54 | H60: 0
A61: 55 | H61: 0
A62: 56 | H62: 0
A63: 57 | H63: 0
A64: 58 | H64: 0
A65: 59 | H65: 0
A66: 60 | H66: 0
A67: 61 | H67: 0
A68: 62 | H68: 0
A69: 63 | H69: 0
A70: 64 | H70: 0
A71: 65 | H71: =G71*F71 -> 0
A72: 66 | H72: 0
A73: =+A72+1 -> 67 | H73: 0
A74: 68 | H74: 0
A75: 69 | H75: 0
A76: 70 | H76: 0
A77: 71 | H77: 0
A78: 72 | H78: 0
A79: 73 | H79: 0
A80: 74 | H80: 0
A81: 75 | H81: 0
A82: 76 | H82: 0
A83: 77 | H83: 0
A84: 78 | H84: 0
A85: 79 | H85: 0
A86: 80 | H86: 0
A87: 81 | H87: 0
A88: 82 | H88: 0
A89: 83 | H89: 0
A90: 84 | H90: 0
A91: 85 | H91: 0
A92: 86 | H92: 0
A93: 87 | H93: 0
A94: 88 | H94: 0
A95: 89 | H95: 0
A96: 90 | H96: 0
A97: 91 | H97: 0
A98: 92 | H98: 0
A99: 93 | H99: 0
A100: 94 | H100: 0
A101: 95 | H101: 0
A102: 96 | H102: 0
A103: 97 | H103: 0
A104: 98 | H104: 0
A105: 99 | H105: 0
A106: 100 | H106: 0
A107: 101 | H107: 0
A108: 102 | H108: 0
A109: 103 | H109: 0
A110: 104 | H110: 0
A111: 105 | H111: 0
A112: 106 | H112: 0
A113: 107 | H113: 0
A114: 108 | H114: 0
A115: 109 | H115: 0
A116: 110 | H116: 0
A117: 111 | H117: 0
A118: 112 | H118: 0
A119: 113 | H119: 0
A120: 114 | H120: 0
A121: 115 | H121: 0
A122: 116 | H122: 0
A123: 117 | H123: 0
A124: 118 | H124: 0
A125: 119 | H125: 0
A126: 120 | H126: 0
A127: 121 | H127: 0
A128: 122 | H128: 0
A129: 123 | H129: 0
A130: 124 | H130: 0
A131: 125 | H131: 0
A132: 126 | H132: 0
A133: 127 | H133: 0
A134: 128 | H134: 0
A135: 129 | H135: =G135*F135 -> 0
A136: 130 | H136: 0
A137: =+A136+1 -> 131 | H137: 0
A138: 132 | H138: 0
A139: 133 | H139: 0
A140: 134 | H140: 0
A141: 135 | H141: 0
A142: 136 | H142: 0
A143: 137 | H143: 0
A144: 138 | H144: 0
A145: 139 | H145: 0
A146: 140 | H146: 0
A147: 141 | H147: 0
A148: 142 | H148: 0
A149: 143 | H149: 0
A150: 144 | H150: 0
A151: 145 | H151: 0
A152: 146 | H152: 0
A153: 147 | H153: 0
A154: 148 | H154: 0
A155: 149 | H155: 0
A156: 150 | H156: 0
A157: 151 | H157: 0
A158: 152 | H158: 0
A159: 153 | H159: 0
A160: 154 | H160: 0
A161: 155 | H161: 0
A162: 156 | H162: 0
A163: 157 | H163: 0
A164: 158 | H164: 0
A165: 159 | H165: 0
A166: 160 | H166: 0
A167: 161 | H167: 0
A168: 162 | H168: 0
A169: 163 | H169: 0
A170: 164 | H170: 0
A171: 165 | H171: 0
A172: 166 | H172: 0
A173: 167 | H173: 0
A174: 168 | H174: 0
A175: 169 | H175: 0
A176: 170 | H176: 0
A177: 171 | H177: 0
A178: 172 | H178: 0
A179: 173 | H179: 0
A180: 174 | H180: 0
A181: 175 | H181: 0
A182: 176 | H182: 0
A183: 177 | H183: 0
A184: 178 | H184: 0
A185: 179 | H185: 0
A186: 180 | H186: 0
A187: 181 | H187: 0
A188: 182 | H188: 0
A189: 183 | H189: 0
A190: 184 | H190: 0
A191: 185 | H191: 0
A192: 186 | H192: 0
A193: 187 | H193: 0
A194: 188 | H194: 0
A195: 189 | H195: 0
A196: 190 | H196: 0
A197: 191 | H197: 0
A198: 192 | H198: 0
A199: 193 | H199: =G199*F199 -> 0
A200: 194 | H200: 0
A201: =+A200+1 -> 195 | H201: 0
... 805 more rows

Sheet INVENT.Mat&Outillag Importé -10
C1: ='REFERENCES - 10'!D7 -> 0 | F1: ='REFERENCES - 10'!D9 -> 0
B2: INVENTAIRE DES MATERIELS EQUIPEMENTS IMPORTES
H3: (En F. Cfa)
B4: DESIGNATIONS DOUANIERES | C4: N° NOMENCLATURE DOUANIERE | D4: SPECIFICATIONS COMMERCIALES (1) | E4: UNITE DE MESURE | F4: QUAN. | G4: VALEUR UNITAIRE | H4: COÛT CAF
B6: Matériels & Outillages | F6: =SUM(F7:F306) -> 0 | H6: =SUM(H7:H306) -> 0
A7: 1 | H7: =G7*F7 -> 0
A8: =+A7+1 -> 2 | H8: 0
A9: =+A8+1 -> 3 | H9: 0
A10: 4 | H10: 0
A11: 5 | H11: 0
A12: 6 | H12: =G12*F12 -> 0
A13: 7 | H13: 0
A14: 8 | H14: 0
A15: 9 | H15: 0
A16: 10 | H16: 0
A17: 11 | H17: 0
A18: 12 | H18: 0
A19: 13 | H19: 0
A20: 14 | H20: 0
A21: 15 | H21: 0
A22: 16 | H22: 0
A23: 17 | H23: 0
A24: 18 | H24: 0
A25: 19 | H25: 0
A26: 20 | H26: 0
A27: 21 | H27: 0
A28: 22 | H28: 0
A29: 23 | H29: 0
A30: 24 | H30: 0
A31: 25 | H31: 0
A32: 26 | H32: 0
A33: 27 | H33: 0
A34: 28 | H34: 0
A35: 29 | H35: 0
A36: 30 | H36: 0
A37: 31 | H37: 0
A38: 32 | H38: 0
A39: 33 | H39: 0
A40: 34 | H40: 0
A41: 35 | H41: 0
A42: 36 | H42: 0
A43: 37 | H43: 0
A44: 38 | H44: 0
A45: 39 | H45: 0
A46: 40 | H46: 0
A47: 41 | H47: 0
A48: 42 | H48: 0
A49: 43 | H49: 0
A50: 44 | H50: 0
A51: 45 | H51: 0
A52: 46 | H52: 0
A53: 47 | H53: 0
A54: 48 | H54: 0
A55: 49 | H55: 0
A56: 50 | H56: 0
A57: 51 | H57: 0
A58: 52 | H58: 0
A59: 53 | H59: 0
A60: 54 | H60: 0
A61: 55 | H61: 0
A62: 56 | H62: 0
A63: 57 | H63: 0
A64: 58 | H64: 0
A65: 59 | H65: 0
A66: 60 | H66: 0
A67: 61 | H67: 0
A68: 62 | H68: 0
A69: 63 | H69: 0
A70: 64 | H70: 0
A71: 65 | H71: =G71*F71 -> 0
A72: 66 | H72: 0
A73: =+A72+1 -> 67 | H73: 0
A74: 68 | H74: 0
A75: 69 | H75: 0
A76: 70 | H76: 0
A77: 71 | H77: 0
A78: 72 | H78: 0
A79: 73 | H79: 0
A80: 74 | H80: 0
A81: 75 | H81: 0
A82: 76 | H82: 0
A83: 77 | H83: 0
A84: 78 | H84: 0
A85: 79 | H85: 0
A86: 80 | H86: 0
A87: 81 | H87: 0
A88: 82 | H88: 0
A89: 83 | H89: 0
A90: 84 | H90: 0
A91: 85 | H91: 0
A92: 86 | H92: 0
A93: 87 | H93: 0
A94: 88 | H94: 0
A95: 89 | H95: 0
A96: 90 | H96: 0
A97: 91 | H97: 0
A98: 92 | H98: 0
A99: 93 | H99: 0
A100: 94 | H100: 0
A101: 95 | H101: 0
A102: 96 | H102: 0
A103: 97 | H103: 0
A104: 98 | H104: 0
A105: 99 | H105: 0
A106: 100 | H106: =G106*F106 -> 0
A107: 101 | H107: 0
A108: 102 | H108: 0
A109: 103 | H109: 0
A110: 104 | H110: 0
A111: 105 | H111: 0
A112: 106 | H112: 0
A113: 107 | H113: 0
A114: 108 | H114: 0
A115: 109 | H115: 0
A116: 110 | H116: 0
A117: 111 | H117: 0
A118: 112 | H118: 0
A119: 113 | H119: 0
A120: 114 | H120: 0
A121: 115 | H121: 0
A122: 116 | H122: 0
A123: 117 | H123: 0
A124: 118 | H124: 0
A125: 119 | H125: 0
A126: 120 | H126: 0
A127: 121 | H127: 0
A128: 122 | H128: 0
A129: 123 | H129: 0
A130: 124 | H130: 0
A131: 125 | H131: 0
A132: 126 | H132: 0
A133: 127 | H133: 0
A134: 128 | H134: 0
A135: 129 | H135: 0
A136: 130 | H136: 0
A137: =+A136+1 -> 131 | H137: 0
A138: 132 | H138: 0
A139: 133 | H139: 0
A140: 134 | H140: 0
A141: 135 | H141: 0
A142: 136 | H142: 0
A143: 137 | H143: 0
A144: 138 | H144: 0
A145: 139 | H145: 0
A146: 140 | H146: 0
A147: 141 | H147: 0
A148: 142 | H148: 0
A149: 143 | H149: 0
A150: 144 | H150: 0
A151: 145 | H151: 0
A152: 146 | H152: 0
A153: 147 | H153: 0
A154: 148 | H154: 0
A155: 149 | H155: 0
A156: 150 | H156: 0
A157: 151 | H157: 0
A158: 152 | H158: 0
A159: 153 | H159: 0
A160: 154 | H160: 0
A161: 155 | H161: 0
A162: 156 | H162: 0
A163: 157 | H163: 0
A164: 158 | H164: 0
A165: 159 | H165: 0
A166: 160 | H166: 0
A167: 161 | H167: 0
A168: 162 | H168: 0
A169: 163 | H169: 0
A170: 164 | H170: =G170*F170 -> 0
A171: 165 | H171: 0
A172: 166 | H172: 0
A173: 167 | H173: 0
A174: 168 | H174: 0
A175: 169 | H175: 0
A176: 170 | H176: 0
A177: 171 | H177: 0
A178: 172 | H178: 0
A179: 173 | H179: 0
A180: 174 | H180: 0
A181: 175 | H181: 0
A182: 176 | H182: 0
A183: 177 | H183: 0
A184: 178 | H184: 0
A185: 179 | H185: 0
A186: 180 | H186: 0
A187: 181 | H187: 0
A188: 182 | H188: 0
A189: 183 | H189: 0
A190: 184 | H190: 0
A191: 185 | H191: 0
A192: 186 | H192: 0
A193: 187 | H193: 0
A194: 188 | H194: 0
A195: 189 | H195: 0
A196: 190 | H196: 0
A197: 191 | H197: 0
A198: 192 | H198: 0
A199: 193 | H199: 0
A200: 194 | H200: 0
A201: =+A200+1 -> 195 | H201: 0
... 805 more rows

Sheet INVENT.Mat Transp importés - 10
C1: ='REFERENCES - 10'!D7 -> 0 | F1: ='REFERENCES - 10'!D9 -> 0
B2: INVENTAIRE DES MATERIELS EQUIPEMENTS IMPORTES
H3: (En F. Cfa)
B4: DESIGNATIONS DOUANIERES | C4: N° NOMENCLATURE DOUANIERE | D4: SPECIFICATIONS COMMERCIALES (1) | E4: UNITE DE MESURE | F4: QUAN. | G4: VALEUR UNITAIRE | H4: COÛT CAF
B6: Matériels de Transport | F6: =SUM(F7:F36) -> 0 | H6: =SUM(H7:H36) -> 0
A7: 1 | H7: =G7*F7 -> 0
A8: =+A7+1 -> 2 | H8: =G8*F8 -> 0
A9: =+A8+1 -> 3 | H9: =G9*F9 -> 0
A10: 4 | H10: =G10*F10 -> 0
A11: 5 | H11: =G11*F11 -> 0
A12: 6 | H12: =G12*F12 -> 0
A13: 7 | H13: 0
A14: 8 | H14: 0
A15: 9 | H15: 0
A16: 10 | H16: 0
A17: 11 | H17: 0
A18: 12 | H18: 0
A19: 13 | H19: 0
A20: 14 | H20: 0
A21: 15 | H21: 0
A22: 16 | H22: 0
A23: 17 | H23: 0
A24: 18 | H24: 0
A25: 19 | H25: 0
A26: 20 | H26: 0
A27: 21 | H27: 0
A28: 22 | H28: 0
A29: 23 | H29: 0
A30: 24 | H30: 0
A31: 25 | H31: 0
A32: 26 | H32: 0
A33: 27 | H33: 0
A34: 28 | H34: 0
A35: 29 | H35: 0
A36: 30 | H36: =G36*F36 -> 0
A37: 31 | H37: =G37*F37 -> 0
A38: 32 | H38: 0
A39: 33 | H39: 0
A40: 34 | H40: 0
A41: 35 | H41: 0
A42: 36 | H42: 0
A43: 37 | H43: 0
A44: 38 | H44: 0
A45: 39 | H45: 0
A46: 40 | H46: 0
A47: 41 | H47: 0
A48: 42 | H48: 0
A49: 43 | H49: 0
A50: 44 | H50: 0
A51: 45 | H51: 0
A52: 46 | H52: 0
A53: 47 | H53: 0
A54: 48 | H54: 0
A55: 49 | H55: 0
A56: 50 | H56: 0
A57: 51 | H57: 0
A58: 52 | H58: 0
A59: 53 | H59: 0
A60: 54 | H60: 0
A61: 55 | H61: 0
A62: 56 | H62: 0
A63: 57 | H63: 0
A64: 58 | H64: 0
A65: 59 | H65: 0
A66: 60 | H66: 0
A67: 61 | H67: 0
A68: 62 | H68: 0
A69: 63 | H69: 0
A70: 64 | H70: 0
A71: 65 | H71: 0
A72: 66 | H72: 0
A73: =+A72+1 -> 67 | H73: 0
A74: 68 | H74: 0
A75: 69 | H75: 0
A76: 70 | H76: 0
A77: 71 | H77: 0
A78: 72 | H78: 0
A79: 73 | H79: 0
A80: 74 | H80: 0
A81: 75 | H81: 0
A82: 76 | H82: 0
A83: 77 | H83: 0
A84: 78 | H84: 0
A85: 79 | H85: 0
A86: 80 | H86: 0
A87: 81 | H87: 0
A88: 82 | H88: 0
A89: 83 | H89: 0
A90: 84 | H90: 0
A91: 85 | H91: 0
A92: 86 | H92: 0
A93: 87 | H93: 0
A94: 88 | H94: 0
A95: 89 | H95: 0
A96: 90 | H96: 0
A97: 91 | H97: 0
A98: 92 | H98: 0
A99: 93 | H99: 0
A100: 94 | H100: 0
A101: 95 | H101: =G101*F101 -> 0
A102: 96 | H102: 0
A103: 97 | H103: 0
A104: 98 | H104: 0
A105: 99 | H105: 0
A106: 100 | H106: 0
A107: 101 | H107: 0
A108: 102 | H108: 0
A109: 103 | H109: 0
A110: 104 | H110: 0
A111: 105 | H111: 0
A112: 106 | H112: 0
A113: 107 | H113: 0
A114: 108 | H114: 0
A115: 109 | H115: 0
A116: 110 | H116: 0
A117: 111 | H117: 0
A118: 112 | H118: 0
A119: 113 | H119: 0
A120: 114 | H120: 0
A121: 115 | H121: 0
A122: 116 | H122: 0
A123: 117 | H123: 0
A124: 118 | H124: 0
A125: 119 | H125: 0
A126: 120 | H126: 0
A127: 121 | H127: 0
A128: 122 | H128: 0
A129: 123 | H129: 0
A130: 124 | H130: 0
A131: 125 | H131: 0
A132: 126 | H132: 0
A133: 127 | H133: 0
A134: 128 | H134: 0
A135: 129 | H135: 0
A136: 130 | H136: 0
A137: =+A136+1 -> 131 | H137: 0
A138: 132 | H138: 0
A139: 133 | H139: 0
A140: 134 | H140: 0
A141: 135 | H141: 0
A142: 136 | H142: 0
A143: 137 | H143: 0
A144: 138 | H144: 0
A145: 139 | H145: 0
A146: 140 | H146: 0
A147: 141 | H147: 0
A148: 142 | H148: 0
A149: 143 | H149: 0
A150: 144 | H150: 0
A151: 145 | H151: 0
A152: 146 | H152: 0
A153: 147 | H153: 0
A154: 148 | H154: 0
A155: 149 | H155: 0
A156: 150 | H156: 0
A157: 151 | H157: 0
A158: 152 | H158: 0
A159: 153 | H159: 0
A160: 154 | H160: 0
A161: 155 | H161: 0
A162: 156 | H162: 0
A163: 157 | H163: 0
A164: 158 | H164: 0
A165: 159 | H165: =G165*F165 -> 0
A166: 160 | H166: 0
A167: 161 | H167: 0
A168: 162 | H168: 0
A169: 163 | H169: 0
A170: 164 | H170: 0
A171: 165 | H171: 0
A172: 166 | H172: 0
A173: 167 | H173: 0
A174: 168 | H174: 0
A175: 169 | H175: 0
A176: 170 | H176: 0
A177: 171 | H177: 0
A178: 172 | H178: 0
A179: 173 | H179: 0
A180: 174 | H180: 0
A181: 175 | H181: 0
A182: 176 | H182: 0
A183: 177 | H183: 0
A184: 178 | H184: 0
A185: 179 | H185: 0
A186: 180 | H186: 0
A187: 181 | H187: 0
A188: 182 | H188: 0
A189: 183 | H189: 0
A190: 184 | H190: 0
A191: 185 | H191: 0
A192: 186 | H192: 0
A193: 187 | H193: 0
A194: 188 | H194: 0
A195: 189 | H195: 0
A196: 190 | H196: 0
A197: 191 | H197: 0
A198: 192 | H198: 0
A199: 193 | H199: 0
A200: 194 | H200: 0
A201: =+A200+1 -> 195 | H201: 0
... 805 more rows

Sheet INVENT.Mob&Mat Bur Importé - 10
C1: ='REFERENCES - 10'!D7 -> 0 | F1: ='REFERENCES - 10'!D9 -> 0
B2: INVENTAIRE DES MATERIELS EQUIPEMENTS IMPORTES
H3: (En F. Cfa)
B4: DESIGNATIONS DOUANIERES | C4: N° NOMENCLATURE DOUANIERE | D4: SPECIFICATIONS COMMERCIALES (1) | E4: UNITE DE MESURE | F4: QUAN. | G4: VALEUR UNITAIRE | H4: COÛT CAF
B6: Mobiliers & Matériels de Bureau | F6: =SUM(F7:F36) -> 0 | H6: =SUM(H7:H36) -> 0
A7: 1 | H7: =G7*F7 -> 0
A8: =+A7+1 -> 2 | H8: =G8*F8 -> 0
A9: =+A8+1 -> 3 | H9: =G9*F9 -> 0
A10: 4 | H10: =G10*F10 -> 0
A11: 5 | H11: =G11*F11 -> 0
A12: 6 | H12: =G12*F12 -> 0
A13: 7 | H13: 0
A14: 8 | H14: 0
A15: 9 | H15: 0
A16: 10 | H16: 0
A17: 11 | H17: 0
A18: 12 | H18: 0
A19: 13 | H19: 0
A20: 14 | H20: 0
A21: 15 | H21: 0
A22: 16 | H22: 0
A23: 17 | H23: 0
A24: 18 | H24: 0
A25: 19 | H25: 0
A26: 20 | H26: 0
A27: 21 | H27: 0
A28: 22 | H28: 0
A29: 23 | H29: 0
A30: 24 | H30: 0
A31: 25 | H31: 0
A32: 26 | H32: 0
A33: 27 | H33: 0
A34: 28 | H34: 0
A35: 29 | H35: =G35*F35 -> 0
A36: =+A35+1 -> 30 | H36: =G36*F36 -> 0
A37: =+A36+1 -> 31 | H37: =G37*F37 -> 0
A38: 32 | H38: 0
A39: 33 | H39: 0
A40: 34 | H40: 0
A41: 35 | H41: 0
A42: 36 | H42: 0
A43: 37 | H43: 0
A44: 38 | H44: 0
A45: 39 | H45: 0
A46: 40 | H46: 0
A47: 41 | H47: 0
A48: 42 | H48: 0
A49: 43 | H49: 0
A50: 44 | H50: 0
A51: 45 | H51: 0
A52: 46 | H52: 0
A53: 47 | H53: 0
A54: 48 | H54: 0
A55: 49 | H55: 0
A56: 50 | H56: 0
A57: 51 | H57: 0
A58: 52 | H58: 0
A59: 53 | H59: 0
A60: 54 | H60: 0
A61: 55 | H61: 0
A62: 56 | H62: 0
A63: 57 | H63: 0
A64: 58 | H64: 0
A65: 59 | H65: 0
A66: 60 | H66: 0
A67: 61 | H67: 0
A68: 62 | H68: 0
A69: 63 | H69: 0
A70: 64 | H70: 0
A71: 65 | H71: 0
A72: 66 | H72: 0
A73: 67 | H73: 0
A74: 68 | H74: 0
A75: 69 | H75: 0
A76: 70 | H76: 0
A77: 71 | H77: 0
A78: 72 | H78: 0
A79: 73 | H79: 0
A80: 74 | H80: 0
A81: 75 | H81: 0
A82: 76 | H82: 0
A83: 77 | H83: 0
A84: 78 | H84: 0
A85: 79 | H85: 0
A86: 80 | H86: 0
A87: 81 | H87: 0
A88: 82 | H88: 0
A89: 83 | H89: 0
A90: 84 | H90: 0
A91: 85 | H91: 0
A92: 86 | H92: 0
A93: 87 | H93: 0
A94: 88 | H94: 0
A95: 89 | H95: 0
A96: 90 | H96: 0
A97: 91 | H97: 0
A98: 92 | H98: 0
A99: 93 | H99: 0
A100: 94 | H100: 0
A101: =+A100+1 -> 95 | H101: =G101*F101 -> 0
A102: 96 | H102: 0
A103: 97 | H103: 0
A104: 98 | H104: 0
A105: 99 | H105: 0
A106: 100 | H106: 0
A107: 101 | H107: 0
A108: 102 | H108: 0
A109: 103 | H109: 0
A110: 104 | H110: 0
A111: 105 | H111: 0
A112: 106 | H112: 0
A113: 107 | H113: 0
A114: 108 | H114: 0
A115: 109 | H115: 0
A116: 110 | H116: 0
A117: 111 | H117: 0
A118: 112 | H118: 0
A119: 113 | H119: 0
A120: 114 | H120: 0
A121: 115 | H121: 0
A122: 116 | H122: 0
A123: 117 | H123: 0
A124: 118 | H124: 0
A125: 119 | H125: 0
A126: 120 | H126: 0
A127: 121 | H127: 0
A128: 122 | H128: 0
A129: 123 | H129: 0
A130: 124 | H130: 0
A131: 125 | H131: 0
A132: 126 | H132: 0
A133: 127 | H133: 0
A134: 128 | H134: 0
A135: 129 | H135: 0
A136: 130 | H136: 0
A137: 131 | H137: 0
A138: 132 | H138: 0
A139: 133 | H139: 0
A140: 134 | H140: 0
A141: 135 | H141: 0
A142: 136 | H142: 0
A143: 137 | H143: 0
A144: 138 | H144: 0
A145: 139 | H145: 0
A146: 140 | H146: 0
A147: 141 | H147: 0
A148: 142 | H148: 0
A149: 143 | H149: 0
A150: 144 | H150: 0
A151: 145 | H151: 0
A152: 146 | H152: 0
A153: 147 | H153: 0
A154: 148 | H154: 0
A155: 149 | H155: 0
A156: 150 | H156: 0
A157: 151 | H157: 0
A158: 152 | H158: 0
A159: 153 | H159: 0
A160: 154 | H160: 0
A161: 155 | H161: 0
A162: 156 | H162: 0
A163: 157 | H163: 0
A164: 158 | H164: 0
A165: =+A164+1 -> 159 | H165: =G165*F165 -> 0
A166: 160 | H166: 0
A167: 161 | H167: 0
A168: 162 | H168: 0
A169: 163 | H169: 0
A170: 164 | H170: 0
A171: 165 | H171: 0
A172: 166 | H172: 0
A173: 167 | H173: 0
A174: 168 | H174: 0
A175: 169 | H175: 0
A176: 170 | H176: 0
A177: 171 | H177: 0
A178: 172 | H178: 0
A179: 173 | H179: 0
A180: 174 | H180: 0
A181: 175 | H181: 0
A182: 176 | H182: 0
A183: 177 | H183: 0
A184: 178 | H184: 0
A185: 179 | H185: 0
A186: 180 | H186: 0
A187: 181 | H187: 0
A188: 182 | H188: 0
A189: 183 | H189: 0
A190: 184 | H190: 0
A191: 185 | H191: 0
A192: 186 | H192: 0
A193: 187 | H193: 0
A194: 188 | H194: 0
A195: 189 | H195: 0
A196: 190 | H196: 0
A197: 191 | H197: 0
A198: 192 | H198: 0
A199: 193 | H199: 0
A200: 194 | H200: 0
A201: 195 | H201: 0
... 805 more rows

Sheet INVENT.Ma Informatiq Importé-10
C1: ='REFERENCES - 10'!D7 -> 0 | F1: ='REFERENCES - 10'!D9 -> 0
B2: INVENTAIRE DES MATERIELS EQUIPEMENTS IMPORTES
H3: (En F. Cfa)
B4: DESIGNATIONS DOUANIERES | C4: N° NOMENCLATURE DOUANIERE | D4: SPECIFICATIONS COMMERCIALES (1) | E4: UNITE DE MESURE | F4: QUAN. | G4: VALEUR UNITAIRE | H4: COÛT CAF
B6: Matériels Informatiques | F6: =SUM(F7:F36) -> 0 | H6: =SUM(H7:H36) -> 0
A7: 1 | H7: =G7*F7 -> 0
A8: =+A7+1 -> 2 | H8: =G8*F8 -> 0
A9: =+A8+1 -> 3 | H9: =G9*F9 -> 0
A10: 4 | H10: =G10*F10 -> 0
A11: 5 | H11: =G11*F11 -> 0
A12: 6 | H12: =G12*F12 -> 0
A13: 7 | H13: 0
A14: 8 | H14: 0
A15: 9 | H15: 0
A16: 10 | H16: 0
A17: 11 | H17: 0
A18: 12 | H18: 0
A19: 13 | H19: 0
A20: 14 | H20: 0
A21: 15 | H21: 0
A22: 16 | H22: 0
A23: 17 | H23: 0
A24: 18 | H24: 0
A25: 19 | H25: 0
A26: 20 | H26: 0
A27: 21 | H27: 0
A28: 22 | H28: 0
A29: 23 | H29: 0
A30: 24 | H30: 0
A31: 25 | H31: 0
A32: 26 | H32: 0
A33: 27 | H33: 0
A34: 28 | H34: 0
A35: 29 | H35: 0
A36: 30 | H36: =G36*F36 -> 0
A37: 31 | H37: =G37*F37 -> 0
A38: 32 | H38: 0
A39: 33 | H39: 0
A40: 34 | H40: 0
A41: 35 | H41: 0
A42: 36 | H42: 0
A43: 37 | H43: 0
A44: 38 | H44: 0
A45: 39 | H45: 0
A46: 40 | H46: 0
A47: 41 | H47: 0
A48: 42 | H48: 0
A49: 43 | H49: 0
A50: 44 | H50: 0
A51: 45 | H51: 0
A52: 46 | H52: 0
A53: 47 | H53: 0
A54: 48 | H54: 0
A55: 49 | H55: 0
A56: 50 | H56: 0
A57: 51 | H57: 0
A58: 52 | H58: 0
A59: 53 | H59: 0
A60: 54 | H60: 0
A61: 55 | H61: 0
A62: 56 | H62: 0
A63: 57 | H63: 0
A64: 58 | H64: 0
A65: 59 | H65: 0
A66: 60 | H66: 0
A67: 61 | H67: 0
A68: 62 | H68: 0
A69: 63 | H69: 0
A70: 64 | H70: 0
A71: 65 | H71: 0
A72: 66 | H72: 0
A73: =+A72+1 -> 67 | H73: 0
A74: 68 | H74: 0
A75: 69 | H75: 0
A76: 70 | H76: 0
A77: 71 | H77: 0
A78: 72 | H78: 0
A79: 73 | H79: 0
A80: 74 | H80: 0
A81: 75 | H81: 0
A82: 76 | H82: 0
A83: 77 | H83: 0
A84: 78 | H84: 0
A85: 79 | H85: 0
A86: 80 | H86: 0
A87: 81 | H87: 0
A88: 82 | H88: 0
A89: 83 | H89: 0
A90: 84 | H90: 0
A91: 85 | H91: 0
A92: 86 | H92: 0
A93: 87 | H93: 0
A94: 88 | H94: 0
A95: 89 | H95: 0
A96: 90 | H96: 0
A97: 91 | H97: 0
A98: 92 | H98: 0
A99: 93 | H99: 0
A100: 94 | H100: 0
A101: 95 | H101: =G101*F101 -> 0
A102: 96 | H102: 0
A103: 97 | H103: 0
A104: 98 | H104: 0
A105: 99 | H105: 0
A106: 100 | H106: 0
A107: 101 | H107: 0
A108: 102 | H108: 0
A109: 103 | H109: 0
A110: 104 | H110: 0
A111: 105 | H111: 0
A112: 106 | H112: 0
A113: 107 | H113: 0
A114: 108 | H114: 0
A115: 109 | H115: 0
A116: 110 | H116: 0
A117: 111 | H117: 0
A118: 112 | H118: 0
A119: 113 | H119: 0
A120: 114 | H120: 0
A121: 115 | H121: 0
A122: 116 | H122: 0
A123: 117 | H123: 0
A124: 118 | H124: 0
A125: 119 | H125: 0
A126: 120 | H126: 0
A127: 121 | H127: 0
A128: 122 | H128: 0
A129: 123 | H129: 0
A130: 124 | H130: 0
A131: 125 | H131: 0
A132: 126 | H132: 0
A133: 127 | H133: 0
A134: 128 | H134: 0
A135: 129 | H135: 0
A136: 130 | H136: 0
A137: =+A136+1 -> 131 | H137: 0
A138: 132 | H138: 0
A139: 133 | H139: 0
A140: 134 | H140: 0
A141: 135 | H141: 0
A142: 136 | H142: 0
A143: 137 | H143: 0
A144: 138 | H144: 0
A145: 139 | H145: 0
A146: 140 | H146: 0
A147: 141 | H147: 0
A148: 142 | H148: 0
A149: 143 | H149: 0
A150: 144 | H150: 0
A151: 145 | H151: 0
A152: 146 | H152: 0
A153: 147 | H153: 0
A154: 148 | H154: 0
A155: 149 | H155: 0
A156: 150 | H156: 0
A157: 151 | H157: 0
A158: 152 | H158: 0
A159: 153 | H159: 0
A160: 154 | H160: 0
A161: 155 | H161: 0
A162: 156 | H162: 0
A163: 157 | H163: 0
A164: 158 | H164: 0
A165: 159 | H165: =G165*F165 -> 0
A166: 160 | H166: 0
A167: 161 | H167: 0
A168: 162 | H168: 0
A169: 163 | H169: 0
A170: 164 | H170: 0
A171: 165 | H171: 0
A172: 166 | H172: 0
A173: 167 | H173: 0
A174: 168 | H174: 0
A175: 169 | H175: 0
A176: 170 | H176: 0
A177: 171 | H177: 0
A178: 172 | H178: 0
A179: 173 | H179: 0
A180: 174 | H180: 0
A181: 175 | H181: 0
A182: 176 | H182: 0
A183: 177 | H183: 0
A184: 178 | H184: 0
A185: 179 | H185: 0
A186: 180 | H186: 0
A187: 181 | H187: 0
A188: 182 | H188: 0
A189: 183 | H189: 0
A190: 184 | H190: 0
A191: 185 | H191: 0
A192: 186 | H192: 0
A193: 187 | H193: 0
A194: 188 | H194: 0
A195: 189 | H195: 0
A196: 190 | H196: 0
A197: 191 | H197: 0
A198: 192 | H198: 0
A199: 193 | H199: 0
A200: 194 | H200: 0
A201: =+A200+1 -> 195 | H201: 0
... 805 more rows

Sheet INVENT.Pieces Rech Importé - 10
C1: ='REFERENCES - 10'!D7 -> 0 | F1: ='REFERENCES - 10'!D9 -> 0
B2: INVENTAIRE DES MATERIELS EQUIPEMENTS IMPORTES
H3: (En F. Cfa)
B4: DESIGNATIONS DOUANIERES | C4: N° NOMENCLATURE DOUANIERE | D4: SPECIFICATIONS COMMERCIALES (1) | E4: UNITE DE MESURE | F4: QUAN. | G4: VALEUR UNITAIRE | H4: COÛT CAF
B6: Pièces de Rechange | F6: =SUM(F7:F306) -> 0 | H6: =SUM(H7:H306) -> 0
A7: 1 | H7: =G7*F7 -> 0
A8: =+A7+1 -> 2 | H8: 0
A9: =+A8+1 -> 3 | H9: 0
A10: 4 | H10: 0
A11: 5 | H11: 0
A12: 6 | H12: =G12*F12 -> 0
A13: 7 | H13: 0
A14: 8 | H14: 0
A15: 9 | H15: 0
A16: 10 | H16: 0
A17: 11 | H17: 0
A18: 12 | H18: 0
A19: 13 | H19: 0
A20: 14 | H20: 0
A21: 15 | H21: 0
A22: 16 | H22: 0
A23: 17 | H23: 0
A24: 18 | H24: 0
A25: 19 | H25: 0
A26: 20 | H26: 0
A27: 21 | H27: 0
A28: 22 | H28: 0
A29: 23 | H29: 0
A30: 24 | H30: 0
A31: 25 | H31: 0
A32: 26 | H32: 0
A33: 27 | H33: 0
A34: 28 | H34: 0
A35: 29 | H35: 0
A36: 30 | H36: 0
A37: 31 | H37: 0
A38: 32 | H38: 0
A39: 33 | H39: 0
A40: 34 | H40: 0
A41: 35 | H41: 0
A42: 36 | H42: 0
A43: 37 | H43: 0
A44: 38 | H44: 0
A45: 39 | H45: 0
A46: 40 | H46: 0
A47: 41 | H47: 0
A48: 42 | H48: 0
A49: 43 | H49: 0
A50: 44 | H50: 0
A51: 45 | H51: 0
A52: 46 | H52: 0
A53: 47 | H53: 0
A54: 48 | H54: 0
A55: 49 | H55: 0
A56: 50 | H56: 0
A57: 51 | H57: 0
A58: 52 | H58: 0
A59: 53 | H59: 0
A60: 54 | H60: 0
A61: 55 | H61: 0
A62: 56 | H62: 0
A63: 57 | H63: 0
A64: 58 | H64: 0
A65: 59 | H65: 0
A66: 60 | H66: 0
A67: 61 | H67: 0
A68: 62 | H68: 0
A69: 63 | H69: 0
A70: 64 | H70: 0
A71: 65 | H71: =G71*F71 -> 0
A72: 66 | H72: 0
A73: =+A72+1 -> 67 | H73: 0
A74: 68 | H74: 0
A75: 69 | H75: 0
A76: 70 | H76: 0
A77: 71 | H77: 0
A78: 72 | H78: 0
A79: 73 | H79: 0
A80: 74 | H80: 0
A81: 75 | H81: 0
A82: 76 | H82: 0
A83: 77 | H83: 0
A84: 78 | H84: 0
A85: 79 | H85: 0
A86: 80 | H86: 0
A87: 81 | H87: 0
A88: 82 | H88: 0
A89: 83 | H89: 0
A90: 84 | H90: 0
A91: 85 | H91: 0
A92: 86 | H92: 0
A93: 87 | H93: 0
A94: 88 | H94: 0
A95: 89 | H95: 0
A96: 90 | H96: 0
A97: 91 | H97: 0
A98: 92 | H98: 0
A99: 93 | H99: 0
A100: 94 | H100: 0
A101: 95 | H101: 0
A102: 96 | H102: 0
A103: 97 | H103: 0
A104: 98 | H104: 0
A105: 99 | H105: 0
A106: 100 | H106: 0
A107: 101 | H107: 0
A108: 102 | H108: 0
A109: 103 | H109: 0
A110: 104 | H110: 0
A111: 105 | H111: 0
A112: 106 | H112: 0
A113: 107 | H113: 0
A114: 108 | H114: 0
A115: 109 | H115: 0
A116: 110 | H116: 0
A117: 111 | H117: 0
A118: 112 | H118: 0
A119: 113 | H119: 0
A120: 114 | H120: 0
A121: 115 | H121: 0
A122: 116 | H122: 0
A123: 117 | H123: 0
A124: 118 | H124: 0
A125: 119 | H125: 0
A126: 120 | H126: 0
A127: 121 | H127: 0
A128: 122 | H128: 0
A129: 123 | H129: 0
A130: 124 | H130: 0
A131: 125 | H131: 0
A132: 126 | H132: 0
A133: 127 | H133: 0
A134: 128 | H134: 0
A135: 129 | H135: =G135*F135 -> 0
A136: 130 | H136: 0
A137: =+A136+1 -> 131 | H137: 0
A138: 132 | H138: 0
A139: 133 | H139: 0
A140: 134 | H140: 0
A141: 135 | H141: 0
A142: 136 | H142: 0
A143: 137 | H143: 0
A144: 138 | H144: 0
A145: 139 | H145: 0
A146: 140 | H146: 0
A147: 141 | H147: 0
A148: 142 | H148: 0
A149: 143 | H149: 0
A150: 144 | H150: 0
A151: 145 | H151: 0
A152: 146 | H152: 0
A153: 147 | H153: 0
A154: 148 | H154: 0
A155: 149 | H155: 0
A156: 150 | H156: 0
A157: 151 | H157: 0
A158: 152 | H158: 0
A159: 153 | H159: 0
A160: 154 | H160: 0
A161: 155 | H161: 0
A162: 156 | H162: 0
A163: 157 | H163: 0
A164: 158 | H164: 0
A165: 159 | H165: 0
A166: 160 | H166: 0
A167: 161 | H167: 0
A168: 162 | H168: 0
A169: 163 | H169: 0
A170: 164 | H170: 0
A171: 165 | H171: 0
A172: 166 | H172: 0
A173: 167 | H173: 0
A174: 168 | H174: 0
A175: 169 | H175: 0
A176: 170 | H176: 0
A177: 171 | H177: 0
A178: 172 | H178: 0
A179: 173 | H179: 0
A180: 174 | H180: 0
A181: 175 | H181: 0
A182: 176 | H182: 0
A183: 177 | H183: 0
A184: 178 | H184: 0
A185: 179 | H185: 0
A186: 180 | H186: 0
A187: 181 | H187: 0
A188: 182 | H188: 0
A189: 183 | H189: 0
A190: 184 | H190: 0
A191: 185 | H191: 0
A192: 186 | H192: 0
A193: 187 | H193: 0
A194: 188 | H194: 0
A195: 189 | H195: 0
A196: 190 | H196: 0
A197: 191 | H197: 0
A198: 192 | H198: 0
A199: 193 | H199: =G199*F199 -> 0
A200: 194 | H200: 0
A201: =+A200+1 -> 195 | H201: 0
... 105 more rows

Sheet SYNT.INVENT.MAT&EQUIP IMPOR -10
B1: ='REFERENCES - 10'!D7 -> 0 | D1: ='REFERENCES - 10'!D9 -> 0
B2: INVENTAIRE DES MATERIELS EQUIPEMENTS ET PIECES DE RECHANGE IMPORTES
F3: (En F. Cfa)
B4: NATURE | D4: QUANTITE | F4: COÛT CAF
B6: Total Logiciels | D6: ='INVENT.Logiciels Importés - 10'!F6 -> 0 | F6: ='INVENT.Logiciels Importés - 10'!H6 -> 0
B7: Total Autres Immo. Incorporelles | D7: ='INVENT.Autre Im Inco Importé-10'!F6 -> 0 | F7: ='INVENT.Autre Im Inco Importé-10'!H6 -> 0
B8: Total Constructions & Bâtiments | D8: ='INVENT.Construc&Bat Importé -10'!F6 -> 0 | F8: ='INVENT.Construc&Bat Importé -10'!H6 -> 0
B9: Total Instal., Agencements & Aménagements | D9: ='INVENT.Inst&Agen Importés -10'!F6 -> 0 | F9: ='INVENT.Inst&Agen Importés -10'!H6 -> 0
B10: Total Matériels & Outillages | D10: ='INVENT.Mat&Outillag Importé -10'!F6 -> 0 | F10: ='INVENT.Mat&Outillag Importé -10'!H6 -> 0
B11: Total Matériels de Transport | D11: ='INVENT.Mat Transp importés - 10'!F6 -> 0 | F11: ='INVENT.Mat Transp importés - 10'!H6 -> 0
B12: Total Mobiliers & Matériels de Bureau | D12: ='INVENT.Mob&Mat Bur Importé - 10'!F6 -> 0 | F12: ='INVENT.Mob&Mat Bur Importé - 10'!H6 -> 0
B13: Total Matériels Informatiques | D13: ='INVENT.Ma Informatiq Importé-10'!F6 -> 0 | F13: ='INVENT.Ma Informatiq Importé-10'!H6 -> 0
B14: Total Pièces Rechange | D14: ='INVENT.Pieces Rech Importé - 10'!F6 -> 0 | F14: ='INVENT.Pieces Rech Importé - 10'!H6 -> 0
B16: TOTAL | F16: =SUM(F6:F15) -> 0

Sheet ACHAT.LOCAL.Logiciels -10
B1: ='REFERENCES - 10'!D7 -> 0 | D1: ='REFERENCES - 10'!D9 -> 0
B2: ACHAT LOCAL DES MATERIELS EQUIPEMENTS
F3: (En F. Cfa)
B4: SPECIFICATIONS COMMERCIALES (1) | C4: UNITE DE MESURE | D4: QUAN. | E4: VALEUR UNITAIRE | F4: COÛT HTVA
B6: Logiciels | D6: =SUM(D7:D336) -> 0 | F6: =SUM(F7:F336) -> 0
A7: 1 | F7: =E7*D7 -> 0
A8: =+A7+1 -> 2 | F8: 0
A9: =+A8+1 -> 3 | F9: 0
A10: 4 | F10: 0
A11: 5 | F11: 0
A12: 6 | F12: 0
A13: 7 | F13: 0
A14: 8 | F14: 0
A15: 9 | F15: 0
A16: 10 | F16: 0
A17: 11 | F17: 0
A18: 12 | F18: 0
A19: 13 | F19: 0
A20: 14 | F20: 0
A21: 15 | F21: 0
A22: 16 | F22: 0
A23: 17 | F23: 0
A24: 18 | F24: 0
A25: 19 | F25: 0
A26: 20 | F26: 0
A27: 21 | F27: 0
A28: 22 | F28: 0
A29: 23 | F29: 0
A30: 24 | F30: 0
A31: 25 | F31: 0
A32: 26 | F32: 0
A33: 27 | F33: 0
A34: 28 | F34: 0
A35: 29 | F35: 0
A36: 30 | F36: 0

Sheet ACHAT.LOCAL.Autre Im Inco -10
B1: ='REFERENCES - 10'!D7 -> 0 | D1: ='REFERENCES - 10'!D9 -> 0
B2: ACHAT LOCAL DES MATERIELS EQUIPEMENTS
F3: (En F. Cfa)
B4: SPECIFICATIONS COMMERCIALES (1) | C4: UNITE DE MESURE | D4: QUAN. | E4: VALEUR UNITAIRE | F4: COÛT HTVA
B6: Autres Immobilisations Incorporelles | D6: =SUM(D7:D336) -> 0 | F6: =SUM(F7:F336) -> 0
A7: 1 | F7: =E7*D7 -> 0
A8: =+A7+1 -> 2 | F8: 0
A9: =+A8+1 -> 3 | F9: 0
A10: 4 | F10: 0
A11: 5 | F11: 0
A12: 6 | F12: 0
A13: 7 | F13: 0
A14: 8 | F14: 0
A15: 9 | F15: 0
A16: 10 | F16: 0
A17: 11 | F17: 0
A18: 12 | F18: 0
A19: 13 | F19: 0
A20: 14 | F20: 0
A21: 15 | F21: 0
A22: 16 | F22: 0
A23: 17 | F23: 0
A24: 18 | F24: 0
A25: 19 | F25: 0
A26: 20 | F26: 0
A27: 21 | F27: 0
A28: 22 | F28: 0
A29: 23 | F29: 0
A30: 24 | F30: 0
A31: 25 | F31: 0
A32: 26 | F32: 0
A33: 27 | F33: 0
A34: 28 | F34: 0
A35: 29 | F35: 0
A36: 30 | F36: 0

Sheet ACHAT.LOCAL.Construc&Bat -10
B1: ='REFERENCES - 10'!D7 -> 0 | D1: ='REFERENCES - 10'!D9 -> 0
B2: ACHAT LOCAL DES MATERIELS EQUIPEMENTS
F3: (En F. Cfa)
B4: SPECIFICATIONS COMMERCIALES (1) | C4: UNITE DE MESURE | D4: QUAN. | E4: VALEUR UNITAIRE | F4: COÛT HTVA
B6: Constructions & Bâtiments | D6: =SUM(D7:D336) -> 0 | F6: =SUM(F7:F336) -> 0
A7: 1 | F7: =E7*D7 -> 0
A8: =+A7+1 -> 2 | F8: 0
A9: =+A8+1 -> 3 | F9: 0
A10: 4 | F10: 0
A11: 5 | F11: 0
A12: 6 | F12: 0
A13: 7 | F13: 0
A14: 8 | F14: 0
A15: 9 | F15: 0
A16: 10 | F16: 0
A17: 11 | F17: 0
A18: 12 | F18: 0
A19: 13 | F19: 0
A20: 14 | F20: 0
A21: 15 | F21: 0
A22: 16 | F22: 0
A23: 17 | F23: 0
A24: 18 | F24: 0
A25: 19 | F25: 0
A26: 20 | F26: 0
A27: 21 | F27: 0
A28: 22 | F28: 0
A29: 23 | F29: 0
A30: 24 | F30: 0
A31: 25 | F31: 0
A32: 26 | F32: 0
A33: 27 | F33: 0
A34: 28 | F34: 0
A35: 29 | F35: 0
A36: 30 | F36: 0

Sheet ACHAT.LOCAL.Inst&Agen -10
B1: ='REFERENCES - 10'!D7 -> 0 | D1: ='REFERENCES - 10'!D9 -> 0
B2: ACHAT LOCAL DES MATERIELS EQUIPEMENTS
F3: (En F. Cfa)
B4: SPECIFICATIONS COMMERCIALES (1) | C4: UNITE DE MESURE | D4: QUAN. | E4: VALEUR UNITAIRE | F4: COÛT HTVA
B6: Installations, Agencements & Aménagements | D6: =SUM(D7:D336) -> 0 | F6: =SUM(F7:F336) -> 0
A7: 1 | F7: =E7*D7 -> 0
A8: =+A7+1 -> 2 | F8: 0
A9: =+A8+1 -> 3 | F9: 0
A10: 4 | F10: 0
A11: 5 | F11: 0
A12: 6 | F12: 0
A13: 7 | F13: 0
A14: 8 | F14: 0
A15: 9 | F15: 0
A16: 10 | F16: 0
A17: 11 | F17: 0
A18: 12 | F18: 0
A19: 13 | F19: 0
A20: 14 | F20: 0
A21: 15 | F21: 0
A22: 16 | F22: 0
A23: 17 | F23: 0
A24: 18 | F24: 0
A25: 19 | F25: 0
A26: 20 | F26: 0
A27: 21 | F27: 0
A28: 22 | F28: 0
A29: 23 | F29: 0
A30: 24 | F30: 0
A31: 25 | F31: 0
A32: 26 | F32: 0
A33: 27 | F33: 0
A34: 28 | F34: 0
A35: 29 | F35: 0
A36: 30 | F36: 0

Sheet ACHAT.LOCAL.Mat&Outillag -10
B1: ='REFERENCES - 10'!D7 -> 0 | D1: ='REFERENCES - 10'!D9 -> 0
B2: ACHAT LOCAL DES MATERIELS EQUIPEMENTS
F3: (En F. Cfa)
B4: SPECIFICATIONS COMMERCIALES (1) | C4: UNITE DE MESURE | D4: QUAN. | E4: VALEUR UNITAIRE | F4: COÛT HTVA
B6: Matériels & Outillages | D6: =SUM(D7:D336) -> 0 | F6: =SUM(F7:F336) -> 0
A7: 1 | F7: =E7*D7 -> 0
A8: =+A7+1 -> 2 | F8: 0
A9: =+A8+1 -> 3 | F9: 0
A10: 4 | F10: 0
A11: 5 | F11: 0
A12: 6 | F12: 0
A13: 7 | F13: 0
A14: 8 | F14: 0
A15: 9 | F15: 0
A16: 10 | F16: 0
A17: 11 | F17: 0
A18: 12 | F18: 0
A19: 13 | F19: 0
A20: 14 | F20: 0
A21: 15 | F21: 0
A22: 16 | F22: 0
A23: 17 | F23: 0
A24: 18 | F24: 0
A25: 19 | F25: 0
A26: 20 | F26: 0
A27: 21 | F27: 0
A28: 22 | F28: 0
A29: 23 | F29: 0
A30: 24 | F30: 0
A31: 25 | F31: 0
A32: 26 | F32: 0
A33: 27 | F33: 0
A34: 28 | F34: 0
A35: 29 | F35: 0
A36: 30 | F36: 0

Sheet ACHAT.LOCAL.Mat Transp -10
B1: ='REFERENCES - 10'!D7 -> 0 | D1: ='REFERENCES - 10'!D9 -> 0
B2: ACHAT LOCAL DES MATERIELS EQUIPEMENTS
F3: (En F. Cfa)
B4: SPECIFICATIONS COMMERCIALES (1) | C4: UNITE DE MESURE | D4: QUAN. | E4: VALEUR UNITAIRE | F4: COÛT HTVA
B6: Matériels de Transport | D6: =SUM(D7:D336) -> 0 | F6: =SUM(F7:F336) -> 0
A7: 1 | F7: =E7*D7 -> 0
A8: =+A7+1 -> 2 | F8: 0
A9: =+A8+1 -> 3 | F9: 0
A10: 4 | F10: 0
A11: 5 | F11: 0
A12: 6 | F12: 0
A13: 7 | F13: 0
A14: 8 | F14: 0
A15: 9 | F15: 0
A16: 10 | F16: 0
A17: 11 | F17: 0
A18: 12 | F18: 0
A19: 13 | F19: 0
A20: 14 | F20: 0
A21: 15 | F21: 0
A22: 16 | F22: 0
A23: 17 | F23: 0
A24: 18 | F24: 0
A25: 19 | F25: 0
A26: 20 | F26: 0
A27: 21 | F27: 0
A28: 22 | F28: 0
A29: 23 | F29: 0
A30: 24 | F30: 0
A31: 25 | F31: 0
A32: 26 | F32: 0
A33: 27 | F33: 0
A34: 28 | F34: 0
A35: 29 | F35: 0
A36: 30 | F36: 0

Sheet ACHAT.LOCAL.Mob&Mat Bur -10
B1: ='REFERENCES - 10'!D7 -> 0 | D1: ='REFERENCES - 10'!D9 -> 0
B2: ACHAT LOCAL DES MATERIELS EQUIPEMENTS
F3: (En F. Cfa)
B4: SPECIFICATIONS COMMERCIALES (1) | C4: UNITE DE MESURE | D4: QUAN. | E4: VALEUR UNITAIRE | F4: COÛT HTVA
B6: Mobiliers & Matériels de Bureau | D6: =SUM(D7:D366) -> 0 | F6: =SUM(F7:F366) -> 0
A7: 1 | F7: =E7*D7 -> 0
A8: =+A7+1 -> 2 | F8: 0
A9: =+A8+1 -> 3 | F9: 0
A10: 4 | F10: 0
A11: 5 | F11: 0
A12: 6 | F12: 0
A13: 7 | F13: 0
A14: 8 | F14: 0
A15: 9 | F15: 0
A16: 10 | F16: 0
A17: 11 | F17: 0
A18: 12 | F18: 0
A19: 13 | F19: 0
A20: 14 | F20: 0
A21: 15 | F21: 0
A22: 16 | F22: 0
A23: 17 | F23: 0
A24: 18 | F24: 0
A25: 19 | F25: 0
A26: 20 | F26: 0
A27: 21 | F27: 0
A28: 22 | F28: 0
A29: 23 | F29: 0
A30: 24 | F30: 0
A31: 25 | F31: 0
A32: 26 | F32: 0
A33: 27 | F33: 0
A34: 28 | F34: 0
A35: 29 | F35: 0
A36: 30 | F36: 0
A37: 31 | F37: =E37*D37 -> 0
A38: 32 | F38: 0
A39: 33 | F39: 0
A40: 34 | F40: 0
A41: 35 | F41: 0
A42: 36 | F42: 0
A43: 37 | F43: 0
A44: 38 | F44: 0
A45: 39 | F45: 0
A46: 40 | F46: 0
A47: 41 | F47: 0
A48: 42 | F48: 0
A49: 43 | F49: 0
A50: 44 | F50: 0
A51: 45 | F51: 0
A52: 46 | F52: 0
A53: 47 | F53: 0
A54: 48 | F54: 0
A55: 49 | F55: 0
A56: 50 | F56: 0
A57: 51 | F57: 0
A58: 52 | F58: 0
A59: 53 | F59: 0
A60: 54 | F60: 0
A61: 55 | F61: 0
A62: 56 | F62: 0
A63: 57 | F63: 0
A64: 58 | F64: 0
A65: 59 | F65: 0
A66: 60 | F66: 0

Sheet ACHAT.LOCAL.Ma Informatiq -10
B1: ='REFERENCES - 10'!D7 -> 0 | D1: ='REFERENCES - 10'!D9 -> 0
B2: ACHAT LOCAL DES MATERIELS EQUIPEMENTS
F3: (En F. Cfa)
B4: SPECIFICATIONS COMMERCIALES (1) | C4: UNITE DE MESURE | D4: QUAN. | E4: VALEUR UNITAIRE | F4: COÛT HTVA
B6: Matériels Informatiques | D6: =SUM(D7:D66) -> 0 | F6: =SUM(F7:F66) -> 0
A7: 1 | F7: =E7*D7 -> 0
A8: =+A7+1 -> 2 | F8: 0
A9: =+A8+1 -> 3 | F9: 0
A10: 4 | F10: 0
A11: 5 | F11: 0
A12: 6 | F12: 0
A13: 7 | F13: 0
A14: 8 | F14: 0
A15: 9 | F15: 0
A16: 10 | F16: 0
A17: 11 | F17: 0
A18: 12 | F18: 0
A19: 13 | F19: 0
A20: 14 | F20: 0
A21: 15 | F21: 0
A22: 16 | F22: 0
A23: 17 | F23: 0
A24: 18 | F24: 0
A25: 19 | F25: 0
A26: 20 | F26: 0
A27: 21 | F27: 0
A28: 22 | F28: 0
A29: 23 | F29: 0
A30: 24 | F30: 0
A31: 25 | F31: 0
A32: 26 | F32: 0
A33: 27 | F33: 0
A34: 28 | F34: 0
A35: 29 | F35: 0
A36: 30 | F36: 0
A37: 31 | F37: =E37*D37 -> 0
A38: 32 | F38: 0
A39: 33 | F39: 0
A40: 34 | F40: 0
A41: 35 | F41: 0
A42: 36 | F42: 0
A43: 37 | F43: 0
A44: 38 | F44: 0
A45: 39 | F45: 0
A46: 40 | F46: 0
A47: 41 | F47: 0
A48: 42 | F48: 0
A49: 43 | F49: 0
A50: 44 | F50: 0
A51: 45 | F51: 0
A52: 46 | F52: 0
A53: 47 | F53: 0
A54: 48 | F54: 0
A55: 49 | F55: 0
A56: 50 | F56: 0
A57: 51 | F57: 0
A58: 52 | F58: 0
A59: 53 | F59: 0
A60: 54 | F60: 0
A61: 55 | F61: 0
A62: 56 | F62: 0
A63: 57 | F63: 0
A64: 58 | F64: 0
A65: 59 | F65: 0
A66: 60 | F66: 0

Sheet ACHAT.LOCAL.Pieces Rech -10
B1: ='REFERENCES - 10'!D7 -> 0 | D1: ='REFERENCES - 10'!D9 -> 0
B2: ACHAT LOCAL DES MATERIELS EQUIPEMENTS
F3: (En F. Cfa)
B4: SPECIFICATIONS COMMERCIALES (1) | C4: UNITE DE MESURE | D4: QUAN. | E4: VALEUR UNITAIRE | F4: COÛT HTVA
B6: Pièces de Rechange | D6: =SUM(D7:D366) -> 0 | F6: =SUM(F7:F366) -> 0
A7: 1 | F7: =E7*D7 -> 0
A8: =+A7+1 -> 2 | F8: 0
A9: =+A8+1 -> 3 | F9: 0
A10: 4 | F10: 0
A11: 5 | F11: 0
A12: 6 | F12: 0
A13: 7 | F13: 0
A14: 8 | F14: 0
A15: 9 | F15: 0
A16: 10 | F16: 0
A17: 11 | F17: 0
A18: 12 | F18: 0
A19: 13 | F19: 0
A20: 14 | F20: 0
A21: 15 | F21: 0
A22: 16 | F22: 0
A23: 17 | F23: 0
A24: 18 | F24: 0
A25: 19 | F25: 0
A26: 20 | F26: 0
A27: 21 | F27: 0
A28: 22 | F28: 0
A29: 23 | F29: 0
A30: 24 | F30: 0
A31: 25 | F31: 0
A32: 26 | F32: 0
A33: 27 | F33: 0
A34: 28 | F34: 0
A35: 29 | F35: 0
A36: 30 | F36: 0
A37: 31 | F37: 0
A38: 32 | F38: 0
A39: 33 | F39: 0
A40: 34 | F40: 0
A41: 35 | F41: 0
A42: 36 | F42: 0
A43: 37 | F43: 0
A44: 38 | F44: 0
A45: 39 | F45: 0
A46: 40 | F46: 0
A47: 41 | F47: 0
A48: 42 | F48: 0
A49: 43 | F49: 0
A50: 44 | F50: 0
A51: 45 | F51: 0
A52: 46 | F52: 0
A53: 47 | F53: 0
A54: 48 | F54: 0
A55: 49 | F55: 0
A56: 50 | F56: 0
A57: 51 | F57: 0
A58: 52 | F58: 0
A59: 53 | F59: 0
A60: 54 | F60: 0
A61: 55 | F61: 0
A62: 56 | F62: 0
A63: 57 | F63: 0
A64: 58 | F64: 0
A65: 59 | F65: 0
A66: 60 | F66: 0

Sheet SYNT.ACHAT.LOCAL.MAT&EQUIP -10
B1: ='REFERENCES - 10'!D7 -> 0 | D1: ='REFERENCES - 10'!D9 -> 0
B2: ACHAT LOCAL DES MATERIELS EQUIPEMENTS ET PIECES DE RECHANGE
F3: (En F. Cfa)
B4: NATURE | D4: QUANTITE | F4: COÛT CAF
B6: Total Logiciels | D6: ='ACHAT.LOCAL.Logiciels -10'!D6 -> 0 | F6: ='ACHAT.LOCAL.Logiciels -10'!F6 -> 0
B7: Total Autres Immo. Incorporelles | D7: ='ACHAT.LOCAL.Autre Im Inco -10'!D6 -> 0 | F7: ='ACHAT.LOCAL.Autre Im Inco -10'!F6 -> 0
B8: Total Constructions & Bâtiments | D8: ='ACHAT.LOCAL.Construc&Bat -10'!D6 -> 0 | F8: ='ACHAT.LOCAL.Construc&Bat -10'!F6 -> 0
B9: Total Instal., Agencements & Aménagements | D9: ='ACHAT.LOCAL.Inst&Agen -10 '!D6 -> 0 | F9: ='ACHAT.LOCAL.Inst&Agen -10 '!F6 -> 0
B10: Total Matériels & Outillages | D10: ='ACHAT.LOCAL.Mat&Outillag -10 '!D6 -> 0 | F10: ='ACHAT.LOCAL.Mat&Outillag -10 '!F6 -> 0
B11: Total Matériels de Transport | D11: ='ACHAT.LOCAL.Mat Transp -10'!D6 -> 0 | F11: ='ACHAT.LOCAL.Mat Transp -10'!F6 -> 0
B12: Total Mobiliers & Matériels de Bureau | D12: ='ACHAT.LOCAL.Mob&Mat Bur -10'!D6 -> 0 | F12: ='ACHAT.LOCAL.Mob&Mat Bur -10'!F6 -> 0
B13: Total Matériels Informatiques | D13: ='ACHAT.LOCAL.Ma Informatiq -10'!D6 -> 0 | F13: ='ACHAT.LOCAL.Ma Informatiq -10'!F6 -> 0
B14: Total Pièces Rechange | D14: ='ACHAT.LOCAL.Pieces Rech -10'!D6 -> 0 | F14: ='ACHAT.LOCAL.Pieces Rech -10'!F6 -> 0
B16: TOTAL | F16: =SUM(F6:F15) -> 0

Sheet INVEST Frais d'établissment -10
C1: ='REFERENCES - 10'!D7 -> 0 | E1: ='REFERENCES - 10'!D9 -> 0
B2: INVESTISSEMENTS PREVUS SUR LA PERIODE DE REALISATION DU PROJET | P2: (En F. Cfa)
A3: N° | B3: Désignation | C3: ACHAT A L'ETRANGER (en F. Cfa) | L3: ACHAT EN COTE D'IVOIRE (en F. Cfa) | P3: Coût total des Investissements
C4: Position tarifaire | D4: Cout CAF | E4: Droit de douane / Droit fiscaux | G4: RSTAT (1%) | H4: PCS (1%) | I4: PCC (0,5%) | J4: TVA sur Droit de Douane | K4: Total Achat à l'étranger | L4: Achats HT | M4: Coûts locaux (Transport, montage,..) | N4: T.V.A | O4: Total Achat en RCI | P4: Coût total HT | Q4: Coût total TTC
E5: Taux | F5: Montant
B7: FRAIS D'ETABLISSEMENT | D7: =SUM(D8:D55) -> 0 | F7: =SUM(F8:F55) -> 0 | G7: 0 | H7: 0 | I7: 0 | J7: 0 | K7: 0 | L7: 0 | M7: 0 | N7: 0 | O7: 0 | P7: 0 | Q7: 0
A8: 1 | F8: =E8*D8 -> 0 | G8: =D8*1% -> 0 | H8: =D8*1% -> 0 | I8: =D8*0.5% -> 0 | J8: =(D8+F8+G8)*18% -> 0 | K8: =SUM(F8:J8)+D8 -> 0 | N8: =(L8+M8)*18% -> 0 | O8: =N8+M8+L8 -> 0 | P8: =+Q8-N8-J8 -> 0 | Q8: =O8+K8 -> 0
A9: =+A8+1 -> 2 | F9: 0 | G9: =D9*1% -> 0 | H9: =D9*1% -> 0 | I9: =D9*0.5% -> 0 | J9: 0 | K9: 0 | N9: 0 | O9: 0 | P9: 0 | Q9: 0
A10: =+A9+1 -> 3 | F10: 0 | G10: 0 | H10: 0 | I10: 0 | J10: 0 | K10: 0 | N10: 0 | O10: 0 | P10: 0 | Q10: 0
A11: 4 | F11: 0 | G11: 0 | H11: 0 | I11: 0 | J11: 0 | K11: 0 | N11: 0 | O11: 0 | P11: 0 | Q11: 0
A12: 5 | F12: 0 | G12: 0 | H12: 0 | I12: 0 | J12: 0 | K12: 0 | N12: 0 | O12: 0 | P12: 0 | Q12: 0
A13: 6 | F13: 0 | G13: 0 | H13: 0 | I13: 0 | J13: 0 | K13: 0 | N13: 0 | O13: 0 | P13: 0 | Q13: 0
A14: 7 | F14: 0 | G14: 0 | H14: 0 | I14: 0 | J14: 0 | K14: 0 | N14: 0 | O14: 0 | P14: 0 | Q14: 0
A15: 8 | F15: 0 | G15: 0 | H15: 0 | I15: 0 | J15: 0 | K15: 0 | N15: 0 | O15: 0 | P15: 0 | Q15: 0
A16: 9 | F16: 0 | G16: 0 | H16: 0 | I16: 0 | J16: 0 | K16: 0 | N16: 0 | O16: 0 | P16: 0 | Q16: 0
A17: 10 | F17: 0 | G17: 0 | H17: 0 | I17: 0 | J17: 0 | K17: 0 | N17: 0 | O17: 0 | P17: 0 | Q17: 0
A18: 11 | F18: 0 | G18: 0 | H18: 0 | I18: 0 | J18: 0 | K18: 0 | N18: 0 | O18: 0 | P18: 0 | Q18: 0
A19: 12 | F19: 0 | G19: 0 | H19: 0 | I19: 0 | J19: 0 | K19: 0 | N19: 0 | O19: 0 | P19: 0 | Q19: 0
A20: 13 | F20: 0 | G20: 0 | H20: 0 | I20: 0 | J20: 0 | K20: 0 | N20: 0 | O20: 0 | P20: 0 | Q20: 0
A21: 14 | F21: 0 | G21: 0 | H21: 0 | I21: 0 | J21: 0 | K21: 0 | N21: 0 | O21: 0 | P21: 0 | Q21: 0
A22: =+A21+1 -> 15 | F22: 0 | G22: 0 | H22: 0 | I22: 0 | J22: 0 | K22: 0 | N22: 0 | O22: 0 | P22: 0 | Q22: 0
A23: 16 | F23: 0 | G23: 0 | H23: 0 | I23: 0 | J23: 0 | K23: 0 | N23: 0 | O23: 0 | P23: 0 | Q23: 0
A24: 17 | F24: 0 | G24: 0 | H24: 0 | I24: 0 | J24: 0 | K24: 0 | N24: 0 | O24: 0 | P24: 0 | Q24: 0
A25: 18 | F25: 0 | G25: 0 | H25: 0 | I25: 0 | J25: 0 | K25: 0 | N25: 0 | O25: 0 | P25: 0 | Q25: 0
A26: 19 | F26: 0 | G26: 0 | H26: 0 | I26: 0 | J26: 0 | K26: 0 | N26: 0 | O26: 0 | P26: 0 | Q26: 0
A27: 20 | F27: 0 | G27: 0 | H27: 0 | I27: 0 | J27: 0 | K27: 0 | N27: 0 | O27: 0 | P27: 0 | Q27: 0
A28: 21 | F28: 0 | G28: 0 | H28: 0 | I28: 0 | J28: 0 | K28: 0 | N28: 0 | O28: 0 | P28: 0 | Q28: 0
A29: 22 | F29: 0 | G29: 0 | H29: 0 | I29: 0 | J29: 0 | K29: 0 | N29: 0 | O29: 0 | P29: 0 | Q29: 0
A30: 23 | F30: 0 | G30: 0 | H30: 0 | I30: 0 | J30: 0 | K30: 0 | N30: 0 | O30: 0 | P30: 0 | Q30: 0
A31: 24 | F31: 0 | G31: 0 | H31: 0 | I31: 0 | J31: 0 | K31: 0 | N31: 0 | O31: 0 | P31: 0 | Q31: 0
A32: 25 | F32: 0 | G32: 0 | H32: 0 | I32: 0 | J32: 0 | K32: 0 | N32: 0 | O32: 0 | P32: 0 | Q32: 0
A33: 26 | F33: 0 | G33: 0 | H33: 0 | I33: 0 | J33: 0 | K33: 0 | N33: 0 | O33: 0 | P33: 0 | Q33: 0
A34: 27 | F34: 0 | G34: 0 | H34: 0 | I34: 0 | J34: 0 | K34: 0 | N34: 0 | O34: 0 | P34: 0 | Q34: 0
A35: 28 | F35: 0 | G35: 0 | H35: 0 | I35: 0 | J35: 0 | K35: 0 | N35: 0 | O35: 0 | P35: 0 | Q35: 0
A36: 29 | F36: 0 | G36: 0 | H36: 0 | I36: 0 | J36: 0 | K36: 0 | N36: 0 | O36: 0 | P36: 0 | Q36: 0
A37: 30 | F37: 0 | G37: 0 | H37: 0 | I37: 0 | J37: 0 | K37: 0 | N37: 0 | O37: 0 | P37: 0 | Q37: 0
A38: 31 | F38: 0 | G38: 0 | H38: 0 | I38: 0 | J38: 0 | K38: 0 | N38: 0 | O38: 0 | P38: 0 | Q38: 0
A39: 32 | F39: 0 | G39: 0 | H39: 0 | I39: 0 | J39: 0 | K39: 0 | N39: 0 | O39: 0 | P39: 0 | Q39: 0
A40: 33 | F40: 0 | G40: 0 | H40: 0 | I40: 0 | J40: 0 | K40: 0 | N40: 0 | O40: 0 | P40: 0 | Q40: 0
A41: 34 | F41: 0 | G41: 0 | H41: 0 | I41: 0 | J41: 0 | K41: 0 | N41: 0 | O41: 0 | P41: 0 | Q41: 0
A42: 35 | F42: 0 | G42: 0 | H42: 0 | I42: 0 | J42: 0 | K42: 0 | N42: 0 | O42: 0 | P42: 0 | Q42: 0
A43: 36 | F43: 0 | G43: 0 | H43: 0 | I43: 0 | J43: 0 | K43: 0 | N43: 0 | O43: 0 | P43: 0 | Q43: 0
A44: 37 | F44: 0 | G44: 0 | H44: 0 | I44: 0 | J44: 0 | K44: 0 | N44: 0 | O44: 0 | P44: 0 | Q44: 0
A45: 38 | F45: 0 | G45: 0 | H45: 0 | I45: 0 | J45: 0 | K45: 0 | N45: 0 | O45: 0 | P45: 0 | Q45: 0
A46: 39 | F46: 0 | G46: 0 | H46: 0 | I46: 0 | J46: 0 | K46: 0 | N46: 0 | O46: 0 | P46: 0 | Q46: 0
A47: 40 | F47: 0 | G47: 0 | H47: 0 | I47: 0 | J47: 0 | K47: 0 | N47: 0 | O47: 0 | P47: 0 | Q47: 0
A48: 41 | F48: 0 | G48: 0 | H48: 0 | I48: 0 | J48: 0 | K48: 0 | N48: 0 | O48: 0 | P48: 0 | Q48: 0
A49: 42 | F49: 0 | G49: 0 | H49: 0 | I49: 0 | J49: 0 | K49: 0 | N49: 0 | O49: 0 | P49: 0 | Q49: 0
A50: 43 | F50: 0 | G50: 0 | H50: 0 | I50: 0 | J50: 0 | K50: 0 | N50: 0 | O50: 0 | P50: 0 | Q50: 0
A51: 44 | F51: 0 | G51: 0 | H51: 0 | I51: 0 | J51: 0 | K51: 0 | N51: 0 | O51: 0 | P51: 0 | Q51: 0
A52: 45 | F52: 0 | G52: 0 | H52: 0 | I52: 0 | J52: 0 | K52: 0 | N52: 0 | O52: 0 | P52: 0 | Q52: 0
A53: 46 | F53: 0 | G53: 0 | H53: 0 | I53: 0 | J53: 0 | K53: 0 | N53: 0 | O53: 0 | P53: 0 | Q53: 0
A54: 47 | F54: =E54*D54 -> 0 | G54: 0 | H54: 0 | I54: 0 | J54: =(D54+F54+G54)*18% -> 0 | K54: 0 | N54: =(L54+M54)*18% -> 0 | O54: =N54+M54+L54 -> 0 | P54: =+Q54-N54-J54 -> 0 | Q54: =O54+K54 -> 0
A55: 48 | F55: =E55*D55 -> 0 | G55: 0 | H55: 0 | I55: 0 | J55: =(D55+F55+G55)*18% -> 0 | K55: 0 | N55: =(L55+M55)*18% -> 0 | O55: =N55+M55+L55 -> 0 | P55: =+Q55-N55-J55 -> 0 | Q55: =O55+K55 -> 0

Sheet INVEST Logiciels - 10
D1: ='REFERENCES - 10'!D7 -> 0 | F1: ='REFERENCES - 10'!D9 -> 0
B2: INVESTISSEMENTS PREVUS SUR LA PERIODE DE REALISATION DU PROJET | R2: (En F. Cfa)
A3: N° | B3: Désignation | C3: Quantité | D3: ACHAT A L'ETRANGER (en F. Cfa) | M3: ACHAT EN COTE D'IVOIRE (en F. Cfa) | Q3: Coût total des Investissements
D4: Position tarifaire | E4: Cout CAF | F4: Droit de douane / Droit fiscaux | H4: RSTAT (1%) | I4: PCS (1%) | J4: PCC (0,5%) | K4: TVA sur Droit de Douane | L4: Total Achat à l'étranger | M4: Achats HT | N4: Coûts locaux (Transport, montage,..) | O4: T.V.A | P4: Total Achat en RCI | Q4: Coût total HT | R4: Coût total TTC
F5: Taux | G5: Montant
B7: LOGICIELS | E7: =SUM(E8:E55) -> 0 | G7: =SUM(G8:G55) -> 0 | H7: 0 | I7: 0 | J7: 0 | K7: 0 | L7: 0 | M7: 0 | N7: 0 | O7: 0 | P7: 0 | Q7: 0 | R7: 0
A8: 1 | B8: ='INVENT.Logiciels Importés - 10'!B7 -> 0 | C8: ='INVENT.Logiciels Importés - 10'!F7 -> 0 | D8: ='INVENT.Logiciels Importés - 10'!C7 -> 0 | E8: ='INVENT.Logiciels Importés - 10'!H7 -> 0 | G8: =F8*E8 -> 0 | H8: =E8*1% -> 0 | I8: =E8*1% -> 0 | J8: =E8*0.5% -> 0 | K8: =(E8+G8+H8)*18% -> 0 | L8: =SUM(G8:K8)+E8 -> 0 | O8: =(M8+N8)*18% -> 0 | P8: =O8+N8+M8 -> 0 | Q8: =+R8-O8-K8 -> 0 | R8: =P8+L8 -> 0
A9: =+A8+1 -> 2 | B9: ='INVENT.Logiciels Importés - 10'!B8 -> 0 | C9: ='INVENT.Logiciels Importés - 10'!F8 -> 0 | D9: ='INVENT.Logiciels Importés - 10'!C8 -> 0 | E9: ='INVENT.Logiciels Importés - 10'!H8 -> 0 | G9: 0 | H9: =E9*1% -> 0 | I9: =E9*1% -> 0 | J9: =E9*0.5% -> 0 | K9: 0 | L9: 0 | O9: 0 | P9: 0 | Q9: 0 | R9: 0
A10: 3 | B10: ='INVENT.Logiciels Importés - 10'!B9 -> 0 | C10: ='INVENT.Logiciels Importés - 10'!F9 -> 0 | D10: ='INVENT.Logiciels Importés - 10'!C9 -> 0 | E10: ='INVENT.Logiciels Importés - 10'!H9 -> 0 | G10: 0 | H10: 0 | I10: 0 | J10: 0 | K10: 0 | L10: 0 | O10: 0 | P10: 0 | Q10: 0 | R10: 0
A11: 4 | B11: ='INVENT.Logiciels Importés - 10'!B10 -> 0 | C11: ='INVENT.Logiciels Importés - 10'!F10 -> 0 | D11: ='INVENT.Logiciels Importés - 10'!C10 -> 0 | E11: ='INVENT.Logiciels Importés - 10'!H10 -> 0 | G11: 0 | H11: 0 | I11: 0 | J11: 0 | K11: 0 | L11: 0 | O11: 0 | P11: 0 | Q11: 0 | R11: 0
A12: 5 | B12: ='INVENT.Logiciels Importés - 10'!B11 -> 0 | C12: ='INVENT.Logiciels Importés - 10'!F11 -> 0 | D12: ='INVENT.Logiciels Importés - 10'!C11 -> 0 | E12: ='INVENT.Logiciels Importés - 10'!H11 -> 0 | G12: 0 | H12: 0 | I12: 0 | J12: 0 | K12: 0 | L12: 0 | O12: 0 | P12: 0 | Q12: 0 | R12: 0
A13: 6 | B13: ='INVENT.Logiciels Importés - 10'!B12 -> 0 | C13: ='INVENT.Logiciels Importés - 10'!F12 -> 0 | D13: ='INVENT.Logiciels Importés - 10'!C12 -> 0 | E13: ='INVENT.Logiciels Importés - 10'!H12 -> 0 | G13: 0 | H13: 0 | I13: 0 | J13: 0 | K13: 0 | L13: 0 | O13: 0 | P13: 0 | Q13: 0 | R13: 0
A14: 7 | B14: ='INVENT.Logiciels Importés - 10'!B13 -> 0 | C14: ='INVENT.Logiciels Importés - 10'!F13 -> 0 | D14: ='INVENT.Logiciels Importés - 10'!C13 -> 0 | E14: ='INVENT.Logiciels Importés - 10'!H13 -> 0 | G14: 0 | H14: 0 | I14: 0 | J14: 0 | K14: 0 | L14: 0 | O14: 0 | P14: 0 | Q14: 0 | R14: 0
A15: 8 | B15: ='INVENT.Logiciels Importés - 10'!B14 -> 0 | C15: ='INVENT.Logiciels Importés - 10'!F14 -> 0 | D15: ='INVENT.Logiciels Importés - 10'!C14 -> 0 | E15: ='INVENT.Logiciels Importés - 10'!H14 -> 0 | G15: 0 | H15: 0 | I15: 0 | J15: 0 | K15: 0 | L15: 0 | O15: 0 | P15: 0 | Q15: 0 | R15: 0
A16: 9 | B16: ='INVENT.Logiciels Importés - 10'!B15 -> 0 | C16: ='INVENT.Logiciels Importés - 10'!F15 -> 0 | D16: ='INVENT.Logiciels Importés - 10'!C15 -> 0 | E16: ='INVENT.Logiciels Importés - 10'!H15 -> 0 | G16: 0 | H16: 0 | I16: 0 | J16: 0 | K16: 0 | L16: 0 | O16: 0 | P16: 0 | Q16: 0 | R16: 0
A17: 10 | B17: ='INVENT.Logiciels Importés - 10'!B16 -> 0 | C17: ='INVENT.Logiciels Importés - 10'!F16 -> 0 | D17: ='INVENT.Logiciels Importés - 10'!C16 -> 0 | E17: ='INVENT.Logiciels Importés - 10'!H16 -> 0 | G17: 0 | H17: 0 | I17: 0 | J17: 0 | K17: 0 | L17: 0 | O17: 0 | P17: 0 | Q17: 0 | R17: 0
A18: 11 | B18: ='INVENT.Logiciels Importés - 10'!B17 -> 0 | C18: ='INVENT.Logiciels Importés - 10'!F17 -> 0 | D18: ='INVENT.Logiciels Importés - 10'!C17 -> 0 | E18: ='INVENT.Logiciels Importés - 10'!H17 -> 0 | G18: 0 | H18: 0 | I18: 0 | J18: 0 | K18: 0 | L18: 0 | O18: 0 | P18: 0 | Q18: 0 | R18: 0
A19: 12 | B19: ='INVENT.Logiciels Importés - 10'!B18 -> 0 | C19: ='INVENT.Logiciels Importés - 10'!F18 -> 0 | D19: ='INVENT.Logiciels Importés - 10'!C18 -> 0 | E19: ='INVENT.Logiciels Importés - 10'!H18 -> 0 | G19: 0 | H19: 0 | I19: 0 | J19: 0 | K19: 0 | L19: 0 | O19: 0 | P19: 0 | Q19: 0 | R19: 0
A20: 13 | B20: ='INVENT.Logiciels Importés - 10'!B19 -> 0 | C20: ='INVENT.Logiciels Importés - 10'!F19 -> 0 | D20: ='INVENT.Logiciels Importés - 10'!C19 -> 0 | E20: ='INVENT.Logiciels Importés - 10'!H19 -> 0 | G20: 0 | H20: 0 | I20: 0 | J20: 0 | K20: 0 | L20: 0 | O20: 0 | P20: 0 | Q20: 0 | R20: 0
A21: 14 | B21: ='INVENT.Logiciels Importés - 10'!B20 -> 0 | C21: ='INVENT.Logiciels Importés - 10'!F20 -> 0 | D21: ='INVENT.Logiciels Importés - 10'!C20 -> 0 | E21: ='INVENT.Logiciels Importés - 10'!H20 -> 0 | G21: 0 | H21: 0 | I21: 0 | J21: 0 | K21: 0 | L21: 0 | O21: 0 | P21: 0 | Q21: 0 | R21: 0
A22: 15 | B22: ='INVENT.Logiciels Importés - 10'!B21 -> 0 | C22: ='INVENT.Logiciels Importés - 10'!F21 -> 0 | D22: ='INVENT.Logiciels Importés - 10'!C21 -> 0 | E22: ='INVENT.Logiciels Importés - 10'!H21 -> 0 | G22: 0 | H22: 0 | I22: 0 | J22: 0 | K22: 0 | L22: 0 | O22: 0 | P22: 0 | Q22: 0 | R22: 0
A23: 16 | B23: ='INVENT.Logiciels Importés - 10'!B22 -> 0 | C23: ='INVENT.Logiciels Importés - 10'!F22 -> 0 | D23: ='INVENT.Logiciels Importés - 10'!C22 -> 0 | E23: ='INVENT.Logiciels Importés - 10'!H22 -> 0 | G23: 0 | H23: 0 | I23: 0 | J23: 0 | K23: 0 | L23: 0 | O23: 0 | P23: 0 | Q23: 0 | R23: 0
A24: 17 | B24: ='INVENT.Logiciels Importés - 10'!B23 -> 0 | C24: ='INVENT.Logiciels Importés - 10'!F23 -> 0 | D24: ='INVENT.Logiciels Importés - 10'!C23 -> 0 | E24: ='INVENT.Logiciels Importés - 10'!H23 -> 0 | G24: 0 | H24: 0 | I24: 0 | J24: 0 | K24: 0 | L24: 0 | O24: 0 | P24: 0 | Q24: 0 | R24: 0
A25: 18 | B25: ='INVENT.Logiciels Importés - 10'!B24 -> 0 | C25: ='INVENT.Logiciels Importés - 10'!F24 -> 0 | D25: ='INVENT.Logiciels Importés - 10'!C24 -> 0 | E25: ='INVENT.Logiciels Importés - 10'!H24 -> 0 | G25: =F25*E25 -> 0 | H25: 0 | I25: 0 | J25: 0 | K25: =(E25+G25+H25)*18% -> 0 | L25: 0 | O25: =(M25+N25)*18% -> 0 | P25: =O25+N25+M25 -> 0 | Q25: =+R25-O25-K25 -> 0 | R25: =P25+L25 -> 0
A26: 19 | B26: ='INVENT.Logiciels Importés - 10'!B25 -> 0 | C26: ='INVENT.Logiciels Importés - 10'!F25 -> 0 | D26: ='INVENT.Logiciels Importés - 10'!C25 -> 0 | E26: ='INVENT.Logiciels Importés - 10'!H25 -> 0 | G26: 0 | H26: 0 | I26: 0 | J26: 0 | K26: 0 | L26: 0 | O26: 0 | P26: 0 | Q26: 0 | R26: 0
A27: 20 | B27: ='INVENT.Logiciels Importés - 10'!B26 -> 0 | C27: ='INVENT.Logiciels Importés - 10'!F26 -> 0 | D27: ='INVENT.Logiciels Importés - 10'!C26 -> 0 | E27: ='INVENT.Logiciels Importés - 10'!H26 -> 0 | G27: 0 | H27: 0 | I27: 0 | J27: 0 | K27: 0 | L27: 0 | O27: 0 | P27: 0 | Q27: 0 | R27: 0
A28: 21 | B28: ='INVENT.Logiciels Importés - 10'!B27 -> 0 | C28: ='INVENT.Logiciels Importés - 10'!F27 -> 0 | D28: ='INVENT.Logiciels Importés - 10'!C27 -> 0 | E28: ='INVENT.Logiciels Importés - 10'!H27 -> 0 | G28: 0 | H28: 0 | I28: 0 | J28: 0 | K28: 0 | L28: 0 | O28: 0 | P28: 0 | Q28: 0 | R28: 0
A29: 22 | B29: ='INVENT.Logiciels Importés - 10'!B28 -> 0 | C29: ='INVENT.Logiciels Importés - 10'!F28 -> 0 | D29: ='INVENT.Logiciels Importés - 10'!C28 -> 0 | E29: ='INVENT.Logiciels Importés - 10'!H28 -> 0 | G29: 0 | H29: 0 | I29: 0 | J29: 0 | K29: 0 | L29: 0 | O29: 0 | P29: 0 | Q29: 0 | R29: 0
A30: 23 | B30: ='INVENT.Logiciels Importés - 10'!B29 -> 0 | C30: ='INVENT.Logiciels Importés - 10'!F29 -> 0 | D30: ='INVENT.Logiciels Importés - 10'!C29 -> 0 | E30: ='INVENT.Logiciels Importés - 10'!H29 -> 0 | G30: 0 | H30: 0 | I30: 0 | J30: 0 | K30: 0 | L30: 0 | O30: 0 | P30: 0 | Q30: 0 | R30: 0
A31: 24 | B31: ='INVENT.Logiciels Importés - 10'!B30 -> 0 | C31: ='INVENT.Logiciels Importés - 10'!F30 -> 0 | D31: ='INVENT.Logiciels Importés - 10'!C30 -> 0 | E31: ='INVENT.Logiciels Importés - 10'!H30 -> 0 | G31: 0 | H31: 0 | I31: 0 | J31: 0 | K31: 0 | L31: 0 | O31: 0 | P31: 0 | Q31: 0 | R31: 0
A32: 25 | B32: ='INVENT.Logiciels Importés - 10'!B31 -> 0 | C32: ='INVENT.Logiciels Importés - 10'!F31 -> 0 | D32: ='INVENT.Logiciels Importés - 10'!C31 -> 0 | E32: ='INVENT.Logiciels Importés - 10'!H31 -> 0 | G32: 0 | H32: 0 | I32: 0 | J32: 0 | K32: 0 | L32: 0 | O32: 0 | P32: 0 | Q32: 0 | R32: 0
A33: 26 | B33: ='INVENT.Logiciels Importés - 10'!B32 -> 0 | C33: ='INVENT.Logiciels Importés - 10'!F32 -> 0 | D33: ='INVENT.Logiciels Importés - 10'!C32 -> 0 | E33: ='INVENT.Logiciels Importés - 10'!H32 -> 0 | G33: 0 | H33: 0 | I33: 0 | J33: 0 | K33: 0 | L33: 0 | O33: 0 | P33: 0 | Q33: 0 | R33: 0
A34: 27 | B34: ='INVENT.Logiciels Importés - 10'!B33 -> 0 | C34: ='INVENT.Logiciels Importés - 10'!F33 -> 0 | D34: ='INVENT.Logiciels Importés - 10'!C33 -> 0 | E34: ='INVENT.Logiciels Importés - 10'!H33 -> 0 | G34: 0 | H34: 0 | I34: 0 | J34: 0 | K34: 0 | L34: 0 | O34: 0 | P34: 0 | Q34: 0 | R34: 0
A35: 28 | B35: ='INVENT.Logiciels Importés - 10'!B34 -> 0 | C35: ='INVENT.Logiciels Importés - 10'!F34 -> 0 | D35: ='INVENT.Logiciels Importés - 10'!C34 -> 0 | E35: ='INVENT.Logiciels Importés - 10'!H34 -> 0 | G35: 0 | H35: 0 | I35: 0 | J35: 0 | K35: 0 | L35: 0 | O35: 0 | P35: 0 | Q35: 0 | R35: 0
A36: 29 | B36: ='INVENT.Logiciels Importés - 10'!B35 -> 0 | C36: ='INVENT.Logiciels Importés - 10'!F35 -> 0 | D36: ='INVENT.Logiciels Importés - 10'!C35 -> 0 | E36: ='INVENT.Logiciels Importés - 10'!H35 -> 0 | G36: 0 | H36: 0 | I36: 0 | J36: 0 | K36: 0 | L36: 0 | O36: 0 | P36: 0 | Q36: 0 | R36: 0
A37: 30 | B37: ='INVENT.Logiciels Importés - 10'!B36 -> 0 | C37: ='INVENT.Logiciels Importés - 10'!F36 -> 0 | D37: ='INVENT.Logiciels Importés - 10'!C36 -> 0 | E37: ='INVENT.Logiciels Importés - 10'!H36 -> 0 | G37: 0 | H37: 0 | I37: 0 | J37: 0 | K37: 0 | L37: 0 | O37: 0 | P37: 0 | Q37: 0 | R37: 0
A38: 31 | G38: 0 | H38: 0 | I38: 0 | J38: 0 | K38: 0 | L38: 0 | O38: 0 | P38: 0 | Q38: 0 | R38: 0
A39: 32 | G39: 0 | H39: 0 | I39: 0 | J39: 0 | K39: 0 | L39: 0 | O39: 0 | P39: 0 | Q39: 0 | R39: 0
A40: 33 | G40: 0 | H40: 0 | I40: 0 | J40: 0 | K40: 0 | L40: 0 | O40: 0 | P40: 0 | Q40: 0 | R40: 0
A41: 34 | G41: 0 | H41: 0 | I41: 0 | J41: 0 | K41: 0 | L41: 0 | O41: 0 | P41: 0 | Q41: 0 | R41: 0
A42: 35 | G42: 0 | H42: 0 | I42: 0 | J42: 0 | K42: 0 | L42: 0 | O42: 0 | P42: 0 | Q42: 0 | R42: 0
A43: 36 | G43: 0 | H43: 0 | I43: 0 | J43: 0 | K43: 0 | L43: 0 | O43: 0 | P43: 0 | Q43: 0 | R43: 0
A44: 37 | G44: 0 | H44: 0 | I44: 0 | J44: 0 | K44: 0 | L44: 0 | O44: 0 | P44: 0 | Q44: 0 | R44: 0
A45: 38 | G45: 0 | H45: 0 | I45: 0 | J45: 0 | K45: 0 | L45: 0 | O45: 0 | P45: 0 | Q45: 0 | R45: 0
A46: 39 | G46: 0 | H46: 0 | I46: 0 | J46: 0 | K46: 0 | L46: 0 | O46: 0 | P46: 0 | Q46: 0 | R46: 0
A47: 40 | G47: =F47*E47 -> 0 | H47: 0 | I47: 0 | J47: 0 | K47: =(E47+G47+H47)*18% -> 0 | L47: 0 | O47: =(M47+N47)*18% -> 0 | P47: =O47+N47+M47 -> 0 | Q47: =+R47-O47-K47 -> 0 | R47: =P47+L47 -> 0
A48: 41 | G48: 0 | H48: 0 | I48: 0 | J48: 0 | K48: 0 | L48: 0 | O48: 0 | P48: 0 | Q48: 0 | R48: 0
A49: 42 | G49: 0 | H49: 0 | I49: 0 | J49: 0 | K49: 0 | L49: 0 | O49: 0 | P49: 0 | Q49: 0 | R49: 0
A50: 43 | G50: 0 | H50: 0 | I50: 0 | J50: 0 | K50: 0 | L50: 0 | O50: 0 | P50: 0 | Q50: 0 | R50: 0
A51: 44 | G51: 0 | H51: 0 | I51: 0 | J51: 0 | K51: 0 | L51: 0 | O51: 0 | P51: 0 | Q51: 0 | R51: 0
A52: 45 | G52: 0 | H52: 0 | I52: 0 | J52: 0 | K52: 0 | L52: 0 | O52: 0 | P52: 0 | Q52: 0 | R52: 0
A53: 46 | G53: 0 | H53: 0 | I53: 0 | J53: 0 | K53: 0 | L53: 0 | O53: 0 | P53: 0 | Q53: 0 | R53: 0
A54: 47 | G54: =F54*E54 -> 0 | H54: 0 | I54: 0 | J54: 0 | K54: =(E54+G54+H54)*18% -> 0 | L54: 0 | O54: =(M54+N54)*18% -> 0 | P54: =O54+N54+M54 -> 0 | Q54: =+R54-O54-K54 -> 0 | R54: =P54+L54 -> 0
A55: 48 | G55: =F55*E55 -> 0 | H55: 0 | I55: 0 | J55: 0 | K55: =(E55+G55+H55)*18% -> 0 | L55: 0 | O55: =(M55+N55)*18% -> 0 | P55: =O55+N55+M55 -> 0 | Q55: =+R55-O55-K55 -> 0 | R55: =P55+L55 -> 0
A56: 49 | G56: =F56*E56 -> 0 | H56: =E56*1% -> 0 | I56: =E56*1% -> 0 | J56: =E56*0.5% -> 0 | K56: =(E56+G56+H56)*18% -> 0 | L56: =SUM(G56:K56)+E56 -> 0 | O56: =(M56+N56)*18% -> 0 | P56: =O56+N56+M56 -> 0 | Q56: =+R56-O56-K56 -> 0 | R56: =P56+L56 -> 0
A57: 50 | G57: 0 | H57: 0 | I57: 0 | J57: 0 | K57: 0 | L57: 0 | O57: 0 | P57: 0 | Q57: 0 | R57: 0
A58: 51 | G58: 0 | H58: 0 | I58: 0 | J58: 0 | K58: 0 | L58: 0 | O58: 0 | P58: 0 | Q58: 0 | R58: 0
A59: 52 | G59: 0 | H59: 0 | I59: 0 | J59: 0 | K59: 0 | L59: 0 | O59: 0 | P59: 0 | Q59: 0 | R59: 0
A60: 53 | G60: 0 | H60: 0 | I60: 0 | J60: 0 | K60: 0 | L60: 0 | O60: 0 | P60: 0 | Q60: 0 | R60: 0
A61: 54 | G61: 0 | H61: 0 | I61: 0 | J61: 0 | K61: 0 | L61: 0 | O61: 0 | P61: 0 | Q61: 0 | R61: 0
A62: 55 | G62: 0 | H62: 0 | I62: 0 | J62: 0 | K62: 0 | L62: 0 | O62: 0 | P62: 0 | Q62: 0 | R62: 0
A63: 56 | G63: 0 | H63: 0 | I63: 0 | J63: 0 | K63: 0 | L63: 0 | O63: 0 | P63: 0 | Q63: 0 | R63: 0
A64: 57 | G64: 0 | H64: 0 | I64: 0 | J64: 0 | K64: 0 | L64: 0 | O64: 0 | P64: 0 | Q64: 0 | R64: 0
A65: 58 | G65: 0 | H65: 0 | I65: 0 | J65: 0 | K65: 0 | L65: 0 | O65: 0 | P65: 0 | Q65: 0 | R65: 0
A66: 59 | G66: 0 | H66: 0 | I66: 0 | J66: 0 | K66: 0 | L66: 0 | O66: 0 | P66: 0 | Q66: 0 | R66: 0
A67: 60 | G67: 0 | H67: 0 | I67: 0 | J67: 0 | K67: 0 | L67: 0 | O67: 0 | P67: 0 | Q67: 0 | R67: 0
A68: 61 | G68: 0 | H68: 0 | I68: 0 | J68: 0 | K68: 0 | L68: 0 | O68: 0 | P68: 0 | Q68: 0 | R68: 0
A69: 62 | G69: 0 | H69: 0 | I69: 0 | J69: 0 | K69: 0 | L69: 0 | O69: 0 | P69: 0 | Q69: 0 | R69: 0
A70: 63 | G70: 0 | H70: 0 | I70: 0 | J70: 0 | K70: 0 | L70: 0 | O70: 0 | P70: 0 | Q70: 0 | R70: 0
A71: 64 | G71: 0 | H71: 0 | I71: 0 | J71: 0 | K71: 0 | L71: 0 | O71: 0 | P71: 0 | Q71: 0 | R71: 0
A72: 65 | G72: 0 | H72: 0 | I72: 0 | J72: 0 | K72: 0 | L72: 0 | O72: 0 | P72: 0 | Q72: 0 | R72: 0
A73: =+A72+1 -> 66 | G73: 0 | H73: 0 | I73: 0 | J73: 0 | K73: 0 | L73: 0 | O73: 0 | P73: 0 | Q73: 0 | R73: 0

Sheet INVEST.Autres Immo Incorpo - 10
D1: ='REFERENCES - 10'!D7 -> 0 | F1: ='REFERENCES - 10'!D9 -> 0
B2: INVESTISSEMENTS PREVUS SUR LA PERIODE DE REALISATION DU PROJET | R2: (En F. Cfa)
A3: N° | B3: Désignation | C3: Quantité | D3: ACHAT A L'ETRANGER (en F. Cfa) | M3: ACHAT EN COTE D'IVOIRE (en F. Cfa) | Q3: Coût total des Investissements
D4: Position tarifaire | E4: Cout CAF | F4: Droit de douane / Droit fiscaux | H4: RSTAT (1%) | I4: PCS (1%) | J4: PCC (0,5%) | K4: TVA sur Droit de Douane | L4: Total Achat à l'étranger | M4: Achats HT | N4: Coûts locaux (Transport, montage,..) | O4: T.V.A | P4: Total Achat en RCI | Q4: Coût total HT | R4: Coût total TTC
F5: Taux | G5: Montant
B7: AUTRES IMMOB. INCORPORELLES | E7: =SUM(E8:E55) -> 0 | G7: =SUM(G8:G55) -> 0 | H7: 0 | J7: 0 | K7: 0 | L7: 0 | M7: 0 | N7: 0 | O7: 0 | P7: 0 | Q7: 0 | R7: 0
A8: 1 | B8: ='INVENT.Autre Im Inco Importé-10'!B7 -> 0 | C8: ='INVENT.Autre Im Inco Importé-10'!F7 -> 0 | D8: ='INVENT.Autre Im Inco Importé-10'!C7 -> 0 | E8: ='INVENT.Autre Im Inco Importé-10'!H7 -> 0 | G8: =F8*E8 -> 0 | H8: =E8*1% -> 0 | I8: =E8*1% -> 0 | J8: =E8*0.5% -> 0 | K8: =(E8+G8+H8)*18% -> 0 | L8: =SUM(G8:K8)+E8 -> 0 | O8: =(M8+N8)*18% -> 0 | P8: =O8+N8+M8 -> 0 | Q8: =+R8-O8-K8 -> 0 | R8: =P8+L8 -> 0
A9: =+A8+1 -> 2 | B9: ='INVENT.Autre Im Inco Importé-10'!B8 -> 0 | C9: ='INVENT.Autre Im Inco Importé-10'!F8 -> 0 | D9: ='INVENT.Autre Im Inco Importé-10'!C8 -> 0 | E9: ='INVENT.Autre Im Inco Importé-10'!H8 -> 0 | G9: =F9*E9 -> 0 | H9: =E9*1% -> 0 | I9: =E9*1% -> 0 | J9: =E9*0.5% -> 0 | K9: =(E9+G9+H9)*18% -> 0 | L9: 0 | O9: =(M9+N9)*18% -> 0 | P9: =O9+N9+M9 -> 0 | Q9: =+R9-O9-K9 -> 0 | R9: =P9+L9 -> 0
A10: =+A9+1 -> 3 | B10: ='INVENT.Autre Im Inco Importé-10'!B9 -> 0 | C10: ='INVENT.Autre Im Inco Importé-10'!F9 -> 0 | D10: ='INVENT.Autre Im Inco Importé-10'!C9 -> 0 | E10: ='INVENT.Autre Im Inco Importé-10'!H9 -> 0 | G10: =F10*E10 -> 0 | H10: 0 | I10: 0 | J10: 0 | K10: =(E10+G10+H10)*18% -> 0 | L10: 0 | O10: =(M10+N10)*18% -> 0 | P10: =O10+N10+M10 -> 0 | Q10: =+R10-O10-K10 -> 0 | R10: =P10+L10 -> 0
A11: 4 | B11: ='INVENT.Autre Im Inco Importé-10'!B10 -> 0 | C11: ='INVENT.Autre Im Inco Importé-10'!F10 -> 0 | D11: ='INVENT.Autre Im Inco Importé-10'!C10 -> 0 | E11: ='INVENT.Autre Im Inco Importé-10'!H10 -> 0 | G11: =F11*E11 -> 0 | H11: 0 | I11: 0 | J11: 0 | K11: =(E11+G11+H11)*18% -> 0 | L11: 0 | O11: =(M11+N11)*18% -> 0 | P11: =O11+N11+M11 -> 0 | Q11: =+R11-O11-K11 -> 0 | R11: =P11+L11 -> 0
A12: 5 | B12: ='INVENT.Autre Im Inco Importé-10'!B11 -> 0 | C12: ='INVENT.Autre Im Inco Importé-10'!F11 -> 0 | D12: ='INVENT.Autre Im Inco Importé-10'!C11 -> 0 | E12: ='INVENT.Autre Im Inco Importé-10'!H11 -> 0 | G12: 0 | H12: 0 | I12: 0 | J12: 0 | K12: 0 | L12: 0 | O12: 0 | P12: 0 | Q12: 0 | R12: 0
A13: 6 | B13: ='INVENT.Autre Im Inco Importé-10'!B12 -> 0 | C13: ='INVENT.Autre Im Inco Importé-10'!F12 -> 0 | D13: ='INVENT.Autre Im Inco Importé-10'!C12 -> 0 | E13: ='INVENT.Autre Im Inco Importé-10'!H12 -> 0 | G13: 0 | H13: 0 | I13: 0 | J13: 0 | K13: 0 | L13: 0 | O13: 0 | P13: 0 | Q13: 0 | R13: 0
A14: 7 | B14: ='INVENT.Autre Im Inco Importé-10'!B13 -> 0 | C14: ='INVENT.Autre Im Inco Importé-10'!F13 -> 0 | D14: ='INVENT.Autre Im Inco Importé-10'!C13 -> 0 | E14: ='INVENT.Autre Im Inco Importé-10'!H13 -> 0 | G14: 0 | H14: 0 | I14: 0 | J14: 0 | K14: 0 | L14: 0 | O14: 0 | P14: 0 | Q14: 0 | R14: 0
A15: 8 | B15: ='INVENT.Autre Im Inco Importé-10'!B14 -> 0 | C15: ='INVENT.Autre Im Inco Importé-10'!F14 -> 0 | D15: ='INVENT.Autre Im Inco Importé-10'!C14 -> 0 | E15: ='INVENT.Autre Im Inco Importé-10'!H14 -> 0 | G15: 0 | H15: 0 | I15: 0 | J15: 0 | K15: 0 | L15: 0 | O15: 0 | P15: 0 | Q15: 0 | R15: 0
A16: 9 | B16: ='INVENT.Autre Im Inco Importé-10'!B15 -> 0 | C16: ='INVENT.Autre Im Inco Importé-10'!F15 -> 0 | D16: ='INVENT.Autre Im Inco Importé-10'!C15 -> 0 | E16: ='INVENT.Autre Im Inco Importé-10'!H15 -> 0 | G16: 0 | H16: 0 | I16: 0 | J16: 0 | K16: 0 | L16: 0 | O16: 0 | P16: 0 | Q16: 0 | R16: 0
A17: 10 | B17: ='INVENT.Autre Im Inco Importé-10'!B16 -> 0 | C17: ='INVENT.Autre Im Inco Importé-10'!F16 -> 0 | D17: ='INVENT.Autre Im Inco Importé-10'!C16 -> 0 | E17: ='INVENT.Autre Im Inco Importé-10'!H16 -> 0 | G17: 0 | H17: 0 | I17: 0 | J17: 0 | K17: 0 | L17: 0 | O17: 0 | P17: 0 | Q17: 0 | R17: 0
A18: 11 | B18: ='INVENT.Autre Im Inco Importé-10'!B17 -> 0 | C18: ='INVENT.Autre Im Inco Importé-10'!F17 -> 0 | D18: ='INVENT.Autre Im Inco Importé-10'!C17 -> 0 | E18: ='INVENT.Autre Im Inco Importé-10'!H17 -> 0 | G18: 0 | H18: 0 | I18: 0 | J18: 0 | K18: 0 | L18: 0 | O18: 0 | P18: 0 | Q18: 0 | R18: 0
A19: 12 | B19: ='INVENT.Autre Im Inco Importé-10'!B18 -> 0 | C19: ='INVENT.Autre Im Inco Importé-10'!F18 -> 0 | D19: ='INVENT.Autre Im Inco Importé-10'!C18 -> 0 | E19: ='INVENT.Autre Im Inco Importé-10'!H18 -> 0 | G19: 0 | H19: 0 | I19: 0 | J19: 0 | K19: 0 | L19: 0 | O19: 0 | P19: 0 | Q19: 0 | R19: 0
A20: 13 | B20: ='INVENT.Autre Im Inco Importé-10'!B19 -> 0 | C20: ='INVENT.Autre Im Inco Importé-10'!F19 -> 0 | D20: ='INVENT.Autre Im Inco Importé-10'!C19 -> 0 | E20: ='INVENT.Autre Im Inco Importé-10'!H19 -> 0 | G20: 0 | H20: 0 | I20: 0 | J20: 0 | K20: 0 | L20: 0 | O20: 0 | P20: 0 | Q20: 0 | R20: 0
A21: 14 | B21: ='INVENT.Autre Im Inco Importé-10'!B20 -> 0 | C21: ='INVENT.Autre Im Inco Importé-10'!F20 -> 0 | D21: ='INVENT.Autre Im Inco Importé-10'!C20 -> 0 | E21: ='INVENT.Autre Im Inco Importé-10'!H20 -> 0 | G21: 0 | H21: 0 | I21: 0 | J21: 0 | K21: 0 | L21: 0 | O21: 0 | P21: 0 | Q21: 0 | R21: 0
A22: 15 | B22: ='INVENT.Autre Im Inco Importé-10'!B21 -> 0 | C22: ='INVENT.Autre Im Inco Importé-10'!F21 -> 0 | D22: ='INVENT.Autre Im Inco Importé-10'!C21 -> 0 | E22: ='INVENT.Autre Im Inco Importé-10'!H21 -> 0 | G22: 0 | H22: 0 | I22: 0 | J22: 0 | K22: 0 | L22: 0 | O22: 0 | P22: 0 | Q22: 0 | R22: 0
A23: 16 | B23: ='INVENT.Autre Im Inco Importé-10'!B22 -> 0 | C23: ='INVENT.Autre Im Inco Importé-10'!F22 -> 0 | D23: ='INVENT.Autre Im Inco Importé-10'!C22 -> 0 | E23: ='INVENT.Autre Im Inco Importé-10'!H22 -> 0 | G23: 0 | H23: 0 | I23: 0 | J23: 0 | K23: 0 | L23: 0 | O23: 0 | P23: 0 | Q23: 0 | R23: 0
A24: 17 | B24: ='INVENT.Autre Im Inco Importé-10'!B23 -> 0 | C24: ='INVENT.Autre Im Inco Importé-10'!F23 -> 0 | D24: ='INVENT.Autre Im Inco Importé-10'!C23 -> 0 | E24: ='INVENT.Autre Im Inco Importé-10'!H23 -> 0 | G24: 0 | H24: 0 | I24: 0 | J24: 0 | K24: 0 | L24: 0 | O24: 0 | P24: 0 | Q24: 0 | R24: 0
A25: 18 | B25: ='INVENT.Autre Im Inco Importé-10'!B24 -> 0 | C25: ='INVENT.Autre Im Inco Importé-10'!F24 -> 0 | D25: ='INVENT.Autre Im Inco Importé-10'!C24 -> 0 | E25: ='INVENT.Autre Im Inco Importé-10'!H24 -> 0 | G25: 0 | H25: 0 | I25: 0 | J25: 0 | K25: 0 | L25: 0 | O25: 0 | P25: 0 | Q25: 0 | R25: 0
A26: 19 | B26: ='INVENT.Autre Im Inco Importé-10'!B25 -> 0 | C26: ='INVENT.Autre Im Inco Importé-10'!F25 -> 0 | D26: ='INVENT.Autre Im Inco Importé-10'!C25 -> 0 | E26: ='INVENT.Autre Im Inco Importé-10'!H25 -> 0 | G26: 0 | H26: 0 | I26: 0 | J26: 0 | K26: 0 | L26: 0 | O26: 0 | P26: 0 | Q26: 0 | R26: 0
A27: 20 | B27: ='INVENT.Autre Im Inco Importé-10'!B26 -> 0 | C27: ='INVENT.Autre Im Inco Importé-10'!F26 -> 0 | D27: ='INVENT.Autre Im Inco Importé-10'!C26 -> 0 | E27: ='INVENT.Autre Im Inco Importé-10'!H26 -> 0 | G27: 0 | H27: 0 | I27: 0 | J27: 0 | K27: 0 | L27: 0 | O27: 0 | P27: 0 | Q27: 0 | R27: 0
A28: 21 | B28: ='INVENT.Autre Im Inco Importé-10'!B27 -> 0 | C28: ='INVENT.Autre Im Inco Importé-10'!F27 -> 0 | D28: ='INVENT.Autre Im Inco Importé-10'!C27 -> 0 | E28: ='INVENT.Autre Im Inco Importé-10'!H27 -> 0 | G28: 0 | H28: 0 | I28: 0 | J28: 0 | K28: 0 | L28: 0 | O28: 0 | P28: 0 | Q28: 0 | R28: 0
A29: 22 | B29: ='INVENT.Autre Im Inco Importé-10'!B28 -> 0 | C29: ='INVENT.Autre Im Inco Importé-10'!F28 -> 0 | D29: ='INVENT.Autre Im Inco Importé-10'!C28 -> 0 | E29: ='INVENT.Autre Im Inco Importé-10'!H28 -> 0 | G29: 0 | H29: 0 | I29: 0 | J29: 0 | K29: 0 | L29: 0 | O29: 0 | P29: 0 | Q29: 0 | R29: 0
A30: 23 | B30: ='INVENT.Autre Im Inco Importé-10'!B29 -> 0 | C30: ='INVENT.Autre Im Inco Importé-10'!F29 -> 0 | D30: ='INVENT.Autre Im Inco Importé-10'!C29 -> 0 | E30: ='INVENT.Autre Im Inco Importé-10'!H29 -> 0 | G30: 0 | H30: 0 | I30: 0 | J30: 0 | K30: 0 | L30: 0 | O30: 0 | P30: 0 | Q30: 0 | R30: 0
A31: 24 | B31: ='INVENT.Autre Im Inco Importé-10'!B30 -> 0 | C31: ='INVENT.Autre Im Inco Importé-10'!F30 -> 0 | D31: ='INVENT.Autre Im Inco Importé-10'!C30 -> 0 | E31: ='INVENT.Autre Im Inco Importé-10'!H30 -> 0 | G31: 0 | H31: 0 | I31: 0 | J31: 0 | K31: 0 | L31: 0 | O31: 0 | P31: 0 | Q31: 0 | R31: 0
A32: 25 | B32: ='INVENT.Autre Im Inco Importé-10'!B31 -> 0 | C32: ='INVENT.Autre Im Inco Importé-10'!F31 -> 0 | D32: ='INVENT.Autre Im Inco Importé-10'!C31 -> 0 | E32: ='INVENT.Autre Im Inco Importé-10'!H31 -> 0 | G32: 0 | H32: 0 | I32: 0 | J32: 0 | K32: 0 | L32: 0 | O32: 0 | P32: 0 | Q32: 0 | R32: 0
A33: 26 | B33: ='INVENT.Autre Im Inco Importé-10'!B32 -> 0 | C33: ='INVENT.Autre Im Inco Importé-10'!F32 -> 0 | D33: ='INVENT.Autre Im Inco Importé-10'!C32 -> 0 | E33: ='INVENT.Autre Im Inco Importé-10'!H32 -> 0 | G33: 0 | H33: 0 | I33: 0 | J33: 0 | K33: 0 | L33: 0 | O33: 0 | P33: 0 | Q33: 0 | R33: 0
A34: 27 | B34: ='INVENT.Autre Im Inco Importé-10'!B33 -> 0 | C34: ='INVENT.Autre Im Inco Importé-10'!F33 -> 0 | D34: ='INVENT.Autre Im Inco Importé-10'!C33 -> 0 | E34: ='INVENT.Autre Im Inco Importé-10'!H33 -> 0 | G34: 0 | H34: 0 | I34: 0 | J34: 0 | K34: 0 | L34: 0 | O34: 0 | P34: 0 | Q34: 0 | R34: 0
A35: 28 | B35: ='INVENT.Autre Im Inco Importé-10'!B34 -> 0 | C35: ='INVENT.Autre Im Inco Importé-10'!F34 -> 0 | D35: ='INVENT.Autre Im Inco Importé-10'!C34 -> 0 | E35: ='INVENT.Autre Im Inco Importé-10'!H34 -> 0 | G35: 0 | H35: 0 | I35: 0 | J35: 0 | K35: 0 | L35: 0 | O35: 0 | P35: 0 | Q35: 0 | R35: 0
A36: 29 | B36: ='INVENT.Autre Im Inco Importé-10'!B35 -> 0 | C36: ='INVENT.Autre Im Inco Importé-10'!F35 -> 0 | D36: ='INVENT.Autre Im Inco Importé-10'!C35 -> 0 | E36: ='INVENT.Autre Im Inco Importé-10'!H35 -> 0 | G36: 0 | H36: 0 | I36: 0 | J36: 0 | K36: 0 | L36: 0 | O36: 0 | P36: 0 | Q36: 0 | R36: 0
A37: 30 | B37: ='INVENT.Autre Im Inco Importé-10'!B36 -> 0 | C37: ='INVENT.Autre Im Inco Importé-10'!F36 -> 0 | D37: ='INVENT.Autre Im Inco Importé-10'!C36 -> 0 | E37: ='INVENT.Autre Im Inco Importé-10'!H36 -> 0 | G37: 0 | H37: 0 | I37: 0 | J37: 0 | K37: 0 | L37: 0 | O37: 0 | P37: 0 | Q37: 0 | R37: 0
A38: 31 | B38: ='INVENT.Autre Im Inco Importé-10'!B37 -> 0 | C38: ='INVENT.Autre Im Inco Importé-10'!F37 -> 0 | D38: ='INVENT.Autre Im Inco Importé-10'!C37 -> 0 | E38: ='INVENT.Autre Im Inco Importé-10'!H37 -> 0 | G38: 0 | H38: 0 | I38: 0 | J38: 0 | K38: 0 | L38: 0 | O38: 0 | P38: 0 | Q38: 0 | R38: 0
A39: 32 | B39: ='INVENT.Autre Im Inco Importé-10'!B38 -> 0 | C39: ='INVENT.Autre Im Inco Importé-10'!F38 -> 0 | D39: ='INVENT.Autre Im Inco Importé-10'!C38 -> 0 | E39: ='INVENT.Autre Im Inco Importé-10'!H38 -> 0 | G39: 0 | H39: 0 | I39: 0 | J39: 0 | K39: 0 | L39: 0 | O39: 0 | P39: 0 | Q39: 0 | R39: 0
A40: 33 | B40: ='INVENT.Autre Im Inco Importé-10'!B39 -> 0 | C40: ='INVENT.Autre Im Inco Importé-10'!F39 -> 0 | D40: ='INVENT.Autre Im Inco Importé-10'!C39 -> 0 | E40: ='INVENT.Autre Im Inco Importé-10'!H39 -> 0 | G40: 0 | H40: 0 | I40: 0 | J40: 0 | K40: 0 | L40: 0 | O40: 0 | P40: 0 | Q40: 0 | R40: 0
A41: 34 | B41: ='INVENT.Autre Im Inco Importé-10'!B40 -> 0 | C41: ='INVENT.Autre Im Inco Importé-10'!F40 -> 0 | D41: ='INVENT.Autre Im Inco Importé-10'!C40 -> 0 | E41: ='INVENT.Autre Im Inco Importé-10'!H40 -> 0 | G41: 0 | H41: 0 | I41: 0 | J41: 0 | K41: 0 | L41: 0 | O41: 0 | P41: 0 | Q41: 0 | R41: 0
A42: 35 | B42: ='INVENT.Autre Im Inco Importé-10'!B41 -> 0 | C42: ='INVENT.Autre Im Inco Importé-10'!F41 -> 0 | D42: ='INVENT.Autre Im Inco Importé-10'!C41 -> 0 | E42: ='INVENT.Autre Im Inco Importé-10'!H41 -> 0 | G42: 0 | H42: 0 | I42: 0 | J42: 0 | K42: 0 | L42: 0 | O42: 0 | P42: 0 | Q42: 0 | R42: 0
A43: 36 | B43: ='INVENT.Autre Im Inco Importé-10'!B42 -> 0 | C43: ='INVENT.Autre Im Inco Importé-10'!F42 -> 0 | D43: ='INVENT.Autre Im Inco Importé-10'!C42 -> 0 | E43: ='INVENT.Autre Im Inco Importé-10'!H42 -> 0 | G43: 0 | H43: 0 | I43: 0 | J43: 0 | K43: 0 | L43: 0 | O43: 0 | P43: 0 | Q43: 0 | R43: 0
A44: 37 | B44: ='INVENT.Autre Im Inco Importé-10'!B43 -> 0 | C44: ='INVENT.Autre Im Inco Importé-10'!F43 -> 0 | D44: ='INVENT.Autre Im Inco Importé-10'!C43 -> 0 | E44: ='INVENT.Autre Im Inco Importé-10'!H43 -> 0 | G44: 0 | H44: 0 | I44: 0 | J44: 0 | K44: 0 | L44: 0 | O44: 0 | P44: 0 | Q44: 0 | R44: 0
A45: 38 | B45: ='INVENT.Autre Im Inco Importé-10'!B44 -> 0 | C45: ='INVENT.Autre Im Inco Importé-10'!F44 -> 0 | D45: ='INVENT.Autre Im Inco Importé-10'!C44 -> 0 | E45: ='INVENT.Autre Im Inco Importé-10'!H44 -> 0 | G45: 0 | H45: 0 | I45: 0 | J45: 0 | K45: 0 | L45: 0 | O45: 0 | P45: 0 | Q45: 0 | R45: 0
A46: 39 | B46: ='INVENT.Autre Im Inco Importé-10'!B45 -> 0 | C46: ='INVENT.Autre Im Inco Importé-10'!F45 -> 0 | D46: ='INVENT.Autre Im Inco Importé-10'!C45 -> 0 | E46: ='INVENT.Autre Im Inco Importé-10'!H45 -> 0 | G46: 0 | H46: 0 | I46: 0 | J46: 0 | K46: 0 | L46: 0 | O46: 0 | P46: 0 | Q46: 0 | R46: 0
A47: =+A46+1 -> 40 | B47: ='INVENT.Autre Im Inco Importé-10'!B46 -> 0 | C47: ='INVENT.Autre Im Inco Importé-10'!F46 -> 0 | D47: ='INVENT.Autre Im Inco Importé-10'!C46 -> 0 | E47: ='INVENT.Autre Im Inco Importé-10'!H46 -> 0 | G47: =F47*E47 -> 0 | H47: 0 | I47: 0 | J47: 0 | K47: =(E47+G47+H47)*18% -> 0 | L47: 0 | O47: =(M47+N47)*18% -> 0 | P47: =O47+N47+M47 -> 0 | Q47: =+R47-O47-K47 -> 0 | R47: =P47+L47 -> 0
A48: 41 | B48: ='INVENT.Autre Im Inco Importé-10'!B47 -> 0 | C48: ='INVENT.Autre Im Inco Importé-10'!F47 -> 0 | D48: ='INVENT.Autre Im Inco Importé-10'!C47 -> 0 | E48: ='INVENT.Autre Im Inco Importé-10'!H47 -> 0 | G48: 0 | H48: 0 | I48: 0 | J48: 0 | K48: 0 | L48: 0 | O48: 0 | P48: 0 | Q48: 0 | R48: 0
A49: 42 | B49: ='INVENT.Autre Im Inco Importé-10'!B48 -> 0 | C49: ='INVENT.Autre Im Inco Importé-10'!F48 -> 0 | D49: ='INVENT.Autre Im Inco Importé-10'!C48 -> 0 | E49: ='INVENT.Autre Im Inco Importé-10'!H48 -> 0 | G49: 0 | H49: 0 | I49: 0 | J49: 0 | K49: 0 | L49: 0 | O49: 0 | P49: 0 | Q49: 0 | R49: 0
A50: 43 | B50: ='INVENT.Autre Im Inco Importé-10'!B49 -> 0 | C50: ='INVENT.Autre Im Inco Importé-10'!F49 -> 0 | D50: ='INVENT.Autre Im Inco Importé-10'!C49 -> 0 | E50: ='INVENT.Autre Im Inco Importé-10'!H49 -> 0 | G50: 0 | H50: 0 | I50: 0 | J50: 0 | K50: 0 | L50: 0 | O50: 0 | P50: 0 | Q50: 0 | R50: 0
A51: 44 | B51: ='INVENT.Autre Im Inco Importé-10'!B50 -> 0 | C51: ='INVENT.Autre Im Inco Importé-10'!F50 -> 0 | D51: ='INVENT.Autre Im Inco Importé-10'!C50 -> 0 | E51: ='INVENT.Autre Im Inco Importé-10'!H50 -> 0 | G51: 0 | H51: 0 | I51: 0 | J51: 0 | K51: 0 | L51: 0 | O51: 0 | P51: 0 | Q51: 0 | R51: 0
A52: 45 | B52: ='INVENT.Autre Im Inco Importé-10'!B51 -> 0 | C52: ='INVENT.Autre Im Inco Importé-10'!F51 -> 0 | D52: ='INVENT.Autre Im Inco Importé-10'!C51 -> 0 | E52: ='INVENT.Autre Im Inco Importé-10'!H51 -> 0 | G52: 0 | H52: 0 | I52: 0 | J52: 0 | K52: 0 | L52: 0 | O52: 0 | P52: 0 | Q52: 0 | R52: 0
A53: 46 | B53: ='INVENT.Autre Im Inco Importé-10'!B52 -> 0 | C53: ='INVENT.Autre Im Inco Importé-10'!F52 -> 0 | D53: ='INVENT.Autre Im Inco Importé-10'!C52 -> 0 | E53: ='INVENT.Autre Im Inco Importé-10'!H52 -> 0 | G53: 0 | H53: 0 | I53: 0 | J53: 0 | K53: 0 | L53: 0 | O53: 0 | P53: 0 | Q53: 0 | R53: 0
A54: 47 | B54: ='INVENT.Autre Im Inco Importé-10'!B53 -> 0 | C54: ='INVENT.Autre Im Inco Importé-10'!F53 -> 0 | D54: ='INVENT.Autre Im Inco Importé-10'!C53 -> 0 | E54: ='INVENT.Autre Im Inco Importé-10'!H53 -> 0 | G54: 0 | H54: 0 | I54: 0 | J54: 0 | K54: 0 | L54: 0 | O54: 0 | P54: 0 | Q54: 0 | R54: 0
A55: 48 | B55: ='INVENT.Autre Im Inco Importé-10'!B54 -> 0 | C55: ='INVENT.Autre Im Inco Importé-10'!F54 -> 0 | D55: ='INVENT.Autre Im Inco Importé-10'!C54 -> 0 | E55: ='INVENT.Autre Im Inco Importé-10'!H54 -> 0 | G55: 0 | H55: 0 | I55: 0 | J55: 0 | K55: 0 | L55: 0 | O55: 0 | P55: 0 | Q55: 0 | R55: 0

Sheet INVEST Terrains - 10
C1: ='REFERENCES - 10'!D7 -> 0 | E1: ='REFERENCES - 10'!D9 -> 0
B2: INVESTISSEMENTS PREVUS SUR LA PERIODE DE REALISATION DU PROJET | Q2: (En F. Cfa)
A3: N° | B3: Désignation | C3: ACHAT A L'ETRANGER (en F. Cfa) | L3: ACHAT EN COTE D'IVOIRE (en F. Cfa) | P3: Coût total des Investissements
C4: Position tarifaire | D4: Cout CAF | E4: Droit de douane / Droit fiscaux | G4: RSTAT (1%) | H4: PCS (1%) | I4: PCC (0,5%) | J4: TVA sur Droit de Douane | K4: Total Achat à l'étranger | L4: Achats HT | M4: Coûts locaux (Transport, montage,..) | N4: T.V.A | O4: Total Achat en RCI | P4: Coût total HT | Q4: Coût total TTC
E5: Taux | F5: Montant
B7: TERRAINS | D7: =SUM(D8:D55) -> 0 | F7: =SUM(F8:F55) -> 0 | G7: 0 | H7: 0 | I7: 0 | J7: 0 | K7: 0 | L7: 0 | M7: 0 | N7: 0 | O7: 0 | P7: 0 | Q7: 0
A8: 1 | F8: =E8*D8 -> 0 | G8: =D8*1% -> 0 | H8: =D8*1% -> 0 | I8: =D8*0.5% -> 0 | J8: =(D8+F8+G8)*18% -> 0 | K8: =SUM(F8:J8)+D8 -> 0 | N8: =(L8+M8)*0% -> 0 | O8: =N8+M8+L8 -> 0 | P8: =+Q8-N8-J8 -> 0 | Q8: =O8+K8 -> 0
A9: =+A8+1 -> 2 | F9: =E9*D9 -> 0 | G9: =D9*1% -> 0 | H9: =D9*1% -> 0 | I9: =D9*0.5% -> 0 | J9: =(D9+F9+G9)*18% -> 0 | K9: 0 | N9: =(L9+M9)*0% -> 0 | O9: =N9+M9+L9 -> 0 | P9: =+Q9-N9-J9 -> 0 | Q9: =O9+K9 -> 0
A10: =+A9+1 -> 3 | F10: =E10*D10 -> 0 | G10: 0 | H10: 0 | I10: 0 | J10: =(D10+F10+G10)*18% -> 0 | K10: 0 | N10: 0 | O10: =N10+M10+L10 -> 0 | P10: =+Q10-N10-J10 -> 0 | Q10: =O10+K10 -> 0
A11: 4 | F11: 0 | G11: 0 | H11: 0 | I11: 0 | J11: 0 | K11: 0 | N11: 0 | O11: 0 | P11: 0 | Q11: 0
A12: 5 | F12: 0 | G12: 0 | H12: 0 | I12: 0 | J12: 0 | K12: 0 | N12: 0 | O12: 0 | P12: 0 | Q12: 0
A13: 6 | F13: =E13*D13 -> 0 | G13: 0 | H13: 0 | I13: 0 | J13: =(D13+F13+G13)*18% -> 0 | K13: 0 | N13: 0 | O13: =N13+M13+L13 -> 0 | P13: =+Q13-N13-J13 -> 0 | Q13: =O13+K13 -> 0
A14: 7 | F14: 0 | G14: 0 | H14: 0 | I14: 0 | J14: 0 | K14: =SUM(F14:J14)+D14 -> 0 | N14: 0 | O14: 0 | P14: 0 | Q14: 0
A15: 8 | F15: 0 | G15: 0 | H15: 0 | I15: 0 | J15: 0 | K15: 0 | N15: 0 | O15: 0 | P15: 0 | Q15: 0
A16: 9 | F16: 0 | G16: 0 | H16: 0 | I16: 0 | J16: 0 | K16: 0 | N16: 0 | O16: 0 | P16: 0 | Q16: 0
A17: 10 | F17: 0 | G17: 0 | H17: 0 | I17: 0 | J17: 0 | K17: 0 | N17: 0 | O17: 0 | P17: 0 | Q17: 0
A18: 11 | F18: 0 | G18: 0 | H18: 0 | I18: 0 | J18: 0 | K18: 0 | N18: 0 | O18: 0 | P18: 0 | Q18: 0
A19: 12 | F19: 0 | G19: 0 | H19: 0 | I19: 0 | J19: 0 | K19: 0 | N19: 0 | O19: 0 | P19: 0 | Q19: 0
A20: 13 | F20: 0 | G20: 0 | H20: 0 | I20: 0 | J20: 0 | K20: 0 | N20: 0 | O20: 0 | P20: 0 | Q20: 0
A21: 14 | F21: 0 | G21: 0 | H21: 0 | I21: 0 | J21: 0 | K21: 0 | N21: 0 | O21: 0 | P21: 0 | Q21: 0
A22: 15 | F22: 0 | G22: 0 | H22: 0 | I22: 0 | J22: 0 | K22: 0 | N22: 0 | O22: 0 | P22: 0 | Q22: 0
A23: 16 | F23: 0 | G23: 0 | H23: 0 | I23: 0 | J23: 0 | K23: 0 | N23: 0 | O23: 0 | P23: 0 | Q23: 0
A24: 17 | F24: 0 | G24: 0 | H24: 0 | I24: 0 | J24: 0 | K24: 0 | N24: 0 | O24: 0 | P24: 0 | Q24: 0
A25: 18 | F25: 0 | G25: 0 | H25: 0 | I25: 0 | J25: 0 | K25: 0 | N25: 0 | O25: 0 | P25: 0 | Q25: 0
A26: 19 | F26: 0 | G26: 0 | H26: 0 | I26: 0 | J26: 0 | K26: 0 | N26: 0 | O26: 0 | P26: 0 | Q26: 0
A27: 20 | F27: 0 | G27: 0 | H27: 0 | I27: 0 | J27: 0 | K27: 0 | N27: 0 | O27: 0 | P27: 0 | Q27: 0
A28: 21 | F28: 0 | G28: 0 | H28: 0 | I28: 0 | J28: 0 | K28: 0 | N28: 0 | O28: 0 | P28: 0 | Q28: 0
A29: 22 | F29: 0 | G29: 0 | H29: 0 | I29: 0 | J29: 0 | K29: 0 | N29: 0 | O29: 0 | P29: 0 | Q29: 0
A30: 23 | F30: 0 | G30: 0 | H30: 0 | I30: 0 | J30: 0 | K30: 0 | N30: 0 | O30: 0 | P30: 0 | Q30: 0
A31: 24 | F31: 0 | G31: 0 | H31: 0 | I31: 0 | J31: 0 | K31: 0 | N31: 0 | O31: 0 | P31: 0 | Q31: 0
A32: 25 | F32: 0 | G32: 0 | H32: 0 | I32: 0 | J32: 0 | K32: 0 | N32: 0 | O32: 0 | P32: 0 | Q32: 0
A33: 26 | F33: 0 | G33: 0 | H33: 0 | I33: 0 | J33: 0 | K33: 0 | N33: 0 | O33: 0 | P33: 0 | Q33: 0
A34: 27 | F34: 0 | G34: 0 | H34: 0 | I34: 0 | J34: 0 | K34: 0 | N34: 0 | O34: 0 | P34: 0 | Q34: 0
A35: 28 | F35: 0 | G35: 0 | H35: 0 | I35: 0 | J35: 0 | K35: 0 | N35: 0 | O35: 0 | P35: 0 | Q35: 0
A36: 29 | F36: 0 | G36: 0 | H36: 0 | I36: 0 | J36: 0 | K36: 0 | N36: 0 | O36: 0 | P36: 0 | Q36: 0
A37: 30 | F37: 0 | G37: 0 | H37: 0 | I37: 0 | J37: 0 | K37: 0 | N37: 0 | O37: 0 | P37: 0 | Q37: 0
A38: 31 | F38: 0 | G38: 0 | H38: 0 | I38: 0 | J38: 0 | K38: 0 | N38: 0 | O38: 0 | P38: 0 | Q38: 0
A39: 32 | F39: 0 | G39: 0 | H39: 0 | I39: 0 | J39: 0 | K39: 0 | N39: 0 | O39: 0 | P39: 0 | Q39: 0
A40: 33 | F40: 0 | G40: 0 | H40: 0 | I40: 0 | J40: 0 | K40: 0 | N40: 0 | O40: 0 | P40: 0 | Q40: 0
A41: 34 | F41: 0 | G41: 0 | H41: 0 | I41: 0 | J41: 0 | K41: 0 | N41: 0 | O41: 0 | P41: 0 | Q41: 0
A42: 35 | F42: 0 | G42: 0 | H42: 0 | I42: 0 | J42: 0 | K42: 0 | N42: 0 | O42: 0 | P42: 0 | Q42: 0
A43: 36 | F43: 0 | G43: 0 | H43: 0 | I43: 0 | J43: 0 | K43: 0 | N43: 0 | O43: 0 | P43: 0 | Q43: 0
A44: 37 | F44: 0 | G44: 0 | H44: 0 | I44: 0 | J44: 0 | K44: 0 | N44: 0 | O44: 0 | P44: 0 | Q44: 0
A45: 38 | F45: 0 | G45: 0 | H45: 0 | I45: 0 | J45: 0 | K45: 0 | N45: 0 | O45: 0 | P45: 0 | Q45: 0
A46: 39 | F46: 0 | G46: 0 | H46: 0 | I46: 0 | J46: 0 | K46: 0 | N46: 0 | O46: 0 | P46: 0 | Q46: 0
A47: =+A46+1 -> 40 | F47: =E47*D47 -> 0 | G47: 0 | H47: 0 | I47: 0 | J47: =(D47+F47+G47)*18% -> 0 | K47: 0 | N47: 0 | O47: =N47+M47+L47 -> 0 | P47: =+Q47-N47-J47 -> 0 | Q47: =O47+K47 -> 0
A48: 41 | F48: 0 | G48: 0 | H48: 0 | I48: 0 | J48: 0 | K48: 0 | N48: 0 | O48: 0 | P48: 0 | Q48: 0
A49: 42 | F49: 0 | G49: 0 | H49: 0 | I49: 0 | J49: 0 | K49: 0 | N49: 0 | O49: 0 | P49: 0 | Q49: 0
A50: 43 | F50: 0 | G50: 0 | H50: 0 | I50: 0 | J50: 0 | K50: 0 | N50: 0 | O50: 0 | P50: 0 | Q50: 0
A51: 44 | F51: 0 | G51: 0 | H51: 0 | I51: 0 | J51: 0 | K51: 0 | N51: 0 | O51: 0 | P51: 0 | Q51: 0
A52: 45 | F52: 0 | G52: 0 | H52: 0 | I52: 0 | J52: 0 | K52: 0 | N52: 0 | O52: 0 | P52: 0 | Q52: 0
A53: 46 | F53: 0 | G53: 0 | H53: 0 | I53: 0 | J53: 0 | K53: 0 | N53: 0 | O53: 0 | P53: 0 | Q53: 0
A54: 47 | F54: 0 | G54: 0 | H54: 0 | I54: 0 | J54: 0 | K54: 0 | N54: 0 | O54: 0 | P54: 0 | Q54: 0
A55: =+A54+1 -> 48 | F55: =E55*D55 -> 0 | G55: 0 | H55: 0 | I55: 0 | J55: =(D55+F55+G55)*18% -> 0 | K55: 0 | N55: 0 | O55: =N55+M55+L55 -> 0 | P55: =+Q55-N55-J55 -> 0 | Q55: =O55+K55 -> 0

Sheet INVEST.Constructions & Bât - 10
D1: ='REFERENCES - 10'!D7 -> 0 | F1: ='REFERENCES - 10'!D9 -> 0
B2: INVESTISSEMENTS PREVUS SUR LA PERIODE DE REALISATION DU PROJET | R2: (En F. Cfa)
A3: N° | B3: Désignation | C3: Quantité | D3: ACHAT A L'ETRANGER (en F. Cfa) | M3: ACHAT EN COTE D'IVOIRE (en F. Cfa) | Q3: Coût total des Investissements
D4: Position tarifaire | E4: Cout CAF | F4: Droit de douane / Droit fiscaux | H4: RSTAT (1%) | I4: PCS (1%) | J4: PCC (0,5%) | K4: TVA sur Droit de Douane | L4: Total Achat à l'étranger | M4: Achats HT | N4: Coûts locaux (Transport, montage,..) | O4: T.V.A | P4: Total Achat en RCI | Q4: Coût total HT | R4: Coût total TTC
F5: Taux | G5: Montant
B7: CONSTRUCTIONS & BÂTIMENTS | E7: =SUM(E8:E507) -> 0 | G7: =SUM(G8:G507) -> 0 | H7: 0 | I7: 0 | J7: 0 | K7: 0 | L7: 0 | M7: 0 | N7: 0 | O7: 0 | P7: 0 | Q7: 0 | R7: 0
A8: 1 | B8: ='INVENT.Construc&Bat Importé -10'!B7 -> 0 | C8: ='INVENT.Construc&Bat Importé -10'!F7 -> 0 | D8: ='INVENT.Construc&Bat Importé -10'!C7 -> 0 | E8: ='INVENT.Construc&Bat Importé -10'!H7 -> 0 | G8: =F8*E8 -> 0 | H8: =E8*1% -> 0 | I8: =E8*1% -> 0 | J8: =E8*0.5% -> 0 | K8: =(E8+G8+H8)*18% -> 0 | L8: =SUM(G8:K8)+E8 -> 0 | O8: =(M8+N8)*18% -> 0 | P8: =O8+N8+M8 -> 0 | Q8: =+R8-O8-K8 -> 0 | R8: =P8+L8 -> 0
A9: =+A8+1 -> 2 | B9: ='INVENT.Construc&Bat Importé -10'!B8 -> 0 | C9: ='INVENT.Construc&Bat Importé -10'!F8 -> 0 | D9: ='INVENT.Construc&Bat Importé -10'!C8 -> 0 | E9: ='INVENT.Construc&Bat Importé -10'!H8 -> 0 | G9: =F9*E9 -> 0 | H9: =E9*1% -> 0 | I9: =E9*1% -> 0 | J9: =E9*0.5% -> 0 | K9: =(E9+G9+H9)*18% -> 0 | L9: 0 | O9: =(M9+N9)*18% -> 0 | P9: =O9+N9+M9 -> 0 | Q9: =+R9-O9-K9 -> 0 | R9: =P9+L9 -> 0
A10: =+A9+1 -> 3 | B10: ='INVENT.Construc&Bat Importé -10'!B9 -> 0 | C10: ='INVENT.Construc&Bat Importé -10'!F9 -> 0 | D10: ='INVENT.Construc&Bat Importé -10'!C9 -> 0 | E10: ='INVENT.Construc&Bat Importé -10'!H9 -> 0 | G10: =F10*E10 -> 0 | H10: 0 | I10: 0 | J10: 0 | K10: =(E10+G10+H10)*18% -> 0 | L10: 0 | O10: =(M10+N10)*18% -> 0 | P10: =O10+N10+M10 -> 0 | Q10: =+R10-O10-K10 -> 0 | R10: =P10+L10 -> 0
A11: 4 | B11: ='INVENT.Construc&Bat Importé -10'!B10 -> 0 | C11: ='INVENT.Construc&Bat Importé -10'!F10 -> 0 | D11: ='INVENT.Construc&Bat Importé -10'!C10 -> 0 | E11: ='INVENT.Construc&Bat Importé -10'!H10 -> 0 | G11: 0 | H11: 0 | I11: 0 | J11: 0 | K11: 0 | L11: 0 | O11: 0 | P11: 0 | Q11: 0 | R11: 0
A12: 5 | B12: ='INVENT.Construc&Bat Importé -10'!B11 -> 0 | C12: ='INVENT.Construc&Bat Importé -10'!F11 -> 0 | D12: ='INVENT.Construc&Bat Importé -10'!C11 -> 0 | E12: ='INVENT.Construc&Bat Importé -10'!H11 -> 0 | G12: 0 | H12: 0 | I12: 0 | J12: 0 | K12: 0 | L12: 0 | O12: 0 | P12: 0 | Q12: 0 | R12: 0
A13: 6 | B13: ='INVENT.Construc&Bat Importé -10'!B12 -> 0 | C13: ='INVENT.Construc&Bat Importé -10'!F12 -> 0 | D13: ='INVENT.Construc&Bat Importé -10'!C12 -> 0 | E13: ='INVENT.Construc&Bat Importé -10'!H12 -> 0 | G13: 0 | H13: 0 | I13: 0 | J13: 0 | K13: 0 | L13: 0 | O13: 0 | P13: 0 | Q13: 0 | R13: 0
A14: 7 | B14: ='INVENT.Construc&Bat Importé -10'!B13 -> 0 | C14: ='INVENT.Construc&Bat Importé -10'!F13 -> 0 | D14: ='INVENT.Construc&Bat Importé -10'!C13 -> 0 | E14: ='INVENT.Construc&Bat Importé -10'!H13 -> 0 | G14: 0 | H14: 0 | I14: 0 | J14: 0 | K14: 0 | L14: 0 | O14: 0 | P14: 0 | Q14: 0 | R14: 0
A15: 8 | B15: ='INVENT.Construc&Bat Importé -10'!B14 -> 0 | C15: ='INVENT.Construc&Bat Importé -10'!F14 -> 0 | D15: ='INVENT.Construc&Bat Importé -10'!C14 -> 0 | E15: ='INVENT.Construc&Bat Importé -10'!H14 -> 0 | G15: 0 | H15: 0 | I15: 0 | J15: 0 | K15: 0 | L15: 0 | O15: 0 | P15: 0 | Q15: 0 | R15: 0
A16: 9 | B16: ='INVENT.Construc&Bat Importé -10'!B15 -> 0 | C16: ='INVENT.Construc&Bat Importé -10'!F15 -> 0 | D16: ='INVENT.Construc&Bat Importé -10'!C15 -> 0 | E16: ='INVENT.Construc&Bat Importé -10'!H15 -> 0 | G16: 0 | H16: 0 | I16: 0 | J16: 0 | K16: 0 | L16: 0 | O16: 0 | P16: 0 | Q16: 0 | R16: 0
A17: 10 | B17: ='INVENT.Construc&Bat Importé -10'!B16 -> 0 | C17: ='INVENT.Construc&Bat Importé -10'!F16 -> 0 | D17: ='INVENT.Construc&Bat Importé -10'!C16 -> 0 | E17: ='INVENT.Construc&Bat Importé -10'!H16 -> 0 | G17: 0 | H17: 0 | I17: 0 | J17: 0 | K17: 0 | L17: 0 | O17: 0 | P17: 0 | Q17: 0 | R17: 0
A18: 11 | B18: ='INVENT.Construc&Bat Importé -10'!B17 -> 0 | C18: ='INVENT.Construc&Bat Importé -10'!F17 -> 0 | D18: ='INVENT.Construc&Bat Importé -10'!C17 -> 0 | E18: ='INVENT.Construc&Bat Importé -10'!H17 -> 0 | G18: =F18*E18 -> 0 | H18: 0 | I18: 0 | J18: 0 | K18: =(E18+G18+H18)*18% -> 0 | L18: 0 | O18: =(M18+N18)*18% -> 0 | P18: =O18+N18+M18 -> 0 | Q18: =+R18-O18-K18 -> 0 | R18: =P18+L18 -> 0
A19: 12 | B19: ='INVENT.Construc&Bat Importé -10'!B18 -> 0 | C19: ='INVENT.Construc&Bat Importé -10'!F18 -> 0 | D19: ='INVENT.Construc&Bat Importé -10'!C18 -> 0 | E19: ='INVENT.Construc&Bat Importé -10'!H18 -> 0 | G19: 0 | H19: 0 | I19: 0 | J19: 0 | K19: 0 | L19: 0 | O19: 0 | P19: 0 | Q19: 0 | R19: 0
A20: 13 | B20: ='INVENT.Construc&Bat Importé -10'!B19 -> 0 | C20: ='INVENT.Construc&Bat Importé -10'!F19 -> 0 | D20: ='INVENT.Construc&Bat Importé -10'!C19 -> 0 | E20: ='INVENT.Construc&Bat Importé -10'!H19 -> 0 | G20: 0 | H20: 0 | I20: 0 | J20: 0 | K20: 0 | L20: 0 | O20: 0 | P20: 0 | Q20: 0 | R20: 0
A21: 14 | B21: ='INVENT.Construc&Bat Importé -10'!B20 -> 0 | C21: ='INVENT.Construc&Bat Importé -10'!F20 -> 0 | D21: ='INVENT.Construc&Bat Importé -10'!C20 -> 0 | E21: ='INVENT.Construc&Bat Importé -10'!H20 -> 0 | G21: 0 | H21: 0 | I21: 0 | J21: 0 | K21: 0 | L21: 0 | O21: 0 | P21: 0 | Q21: 0 | R21: 0
A22: 15 | B22: ='INVENT.Construc&Bat Importé -10'!B21 -> 0 | C22: ='INVENT.Construc&Bat Importé -10'!F21 -> 0 | D22: ='INVENT.Construc&Bat Importé -10'!C21 -> 0 | E22: ='INVENT.Construc&Bat Importé -10'!H21 -> 0 | G22: 0 | H22: 0 | I22: 0 | J22: 0 | K22: 0 | L22: 0 | O22: 0 | P22: 0 | Q22: 0 | R22: 0
A23: 16 | B23: ='INVENT.Construc&Bat Importé -10'!B22 -> 0 | C23: ='INVENT.Construc&Bat Importé -10'!F22 -> 0 | D23: ='INVENT.Construc&Bat Importé -10'!C22 -> 0 | E23: ='INVENT.Construc&Bat Importé -10'!H22 -> 0 | G23: 0 | H23: 0 | I23: 0 | J23: 0 | K23: 0 | L23: 0 | O23: 0 | P23: 0 | Q23: 0 | R23: 0
A24: 17 | B24: ='INVENT.Construc&Bat Importé -10'!B23 -> 0 | C24: ='INVENT.Construc&Bat Importé -10'!F23 -> 0 | D24: ='INVENT.Construc&Bat Importé -10'!C23 -> 0 | E24: ='INVENT.Construc&Bat Importé -10'!H23 -> 0 | G24: 0 | H24: 0 | I24: 0 | J24: 0 | K24: 0 | L24: 0 | O24: 0 | P24: 0 | Q24: 0 | R24: 0
A25: 18 | B25: ='INVENT.Construc&Bat Importé -10'!B24 -> 0 | C25: ='INVENT.Construc&Bat Importé -10'!F24 -> 0 | D25: ='INVENT.Construc&Bat Importé -10'!C24 -> 0 | E25: ='INVENT.Construc&Bat Importé -10'!H24 -> 0 | G25: 0 | H25: 0 | I25: 0 | J25: 0 | K25: 0 | L25: 0 | O25: 0 | P25: 0 | Q25: 0 | R25: 0
A26: 19 | B26: ='INVENT.Construc&Bat Importé -10'!B25 -> 0 | C26: ='INVENT.Construc&Bat Importé -10'!F25 -> 0 | D26: ='INVENT.Construc&Bat Importé -10'!C25 -> 0 | E26: ='INVENT.Construc&Bat Importé -10'!H25 -> 0 | G26: 0 | H26: 0 | I26: 0 | J26: 0 | K26: 0 | L26: 0 | O26: 0 | P26: 0 | Q26: 0 | R26: 0
A27: 20 | B27: ='INVENT.Construc&Bat Importé -10'!B26 -> 0 | C27: ='INVENT.Construc&Bat Importé -10'!F26 -> 0 | D27: ='INVENT.Construc&Bat Importé -10'!C26 -> 0 | E27: ='INVENT.Construc&Bat Importé -10'!H26 -> 0 | G27: 0 | H27: 0 | I27: 0 | J27: 0 | K27: 0 | L27: 0 | O27: 0 | P27: 0 | Q27: 0 | R27: 0
A28: 21 | B28: ='INVENT.Construc&Bat Importé -10'!B27 -> 0 | C28: ='INVENT.Construc&Bat Importé -10'!F27 -> 0 | D28: ='INVENT.Construc&Bat Importé -10'!C27 -> 0 | E28: ='INVENT.Construc&Bat Importé -10'!H27 -> 0 | G28: 0 | H28: 0 | I28: 0 | J28: 0 | K28: 0 | L28: 0 | O28: 0 | P28: 0 | Q28: 0 | R28: 0
A29: 22 | B29: ='INVENT.Construc&Bat Importé -10'!B28 -> 0 | C29: ='INVENT.Construc&Bat Importé -10'!F28 -> 0 | D29: ='INVENT.Construc&Bat Importé -10'!C28 -> 0 | E29: ='INVENT.Construc&Bat Importé -10'!H28 -> 0 | G29: 0 | H29: 0 | I29: 0 | J29: 0 | K29: 0 | L29: 0 | O29: 0 | P29: 0 | Q29: 0 | R29: 0
A30: 23 | B30: ='INVENT.Construc&Bat Importé -10'!B29 -> 0 | C30: ='INVENT.Construc&Bat Importé -10'!F29 -> 0 | D30: ='INVENT.Construc&Bat Importé -10'!C29 -> 0 | E30: ='INVENT.Construc&Bat Importé -10'!H29 -> 0 | G30: 0 | H30: 0 | I30: 0 | J30: 0 | K30: 0 | L30: 0 | O30: 0 | P30: 0 | Q30: 0 | R30: 0
A31: 24 | B31: ='INVENT.Construc&Bat Importé -10'!B30 -> 0 | C31: ='INVENT.Construc&Bat Importé -10'!F30 -> 0 | D31: ='INVENT.Construc&Bat Importé -10'!C30 -> 0 | E31: ='INVENT.Construc&Bat Importé -10'!H30 -> 0 | G31: 0 | H31: 0 | I31: 0 | J31: 0 | K31: 0 | L31: 0 | O31: 0 | P31: 0 | Q31: 0 | R31: 0
A32: 25 | B32: ='INVENT.Construc&Bat Importé -10'!B31 -> 0 | C32: ='INVENT.Construc&Bat Importé -10'!F31 -> 0 | D32: ='INVENT.Construc&Bat Importé -10'!C31 -> 0 | E32: ='INVENT.Construc&Bat Importé -10'!H31 -> 0 | G32: 0 | H32: 0 | I32: 0 | J32: 0 | K32: 0 | L32: 0 | O32: 0 | P32: 0 | Q32: 0 | R32: 0
A33: 26 | B33: ='INVENT.Construc&Bat Importé -10'!B32 -> 0 | C33: ='INVENT.Construc&Bat Importé -10'!F32 -> 0 | D33: ='INVENT.Construc&Bat Importé -10'!C32 -> 0 | E33: ='INVENT.Construc&Bat Importé -10'!H32 -> 0 | G33: 0 | H33: 0 | I33: 0 | J33: 0 | K33: 0 | L33: 0 | O33: 0 | P33: 0 | Q33: 0 | R33: 0
A34: 27 | B34: ='INVENT.Construc&Bat Importé -10'!B33 -> 0 | C34: ='INVENT.Construc&Bat Importé -10'!F33 -> 0 | D34: ='INVENT.Construc&Bat Importé -10'!C33 -> 0 | E34: ='INVENT.Construc&Bat Importé -10'!H33 -> 0 | G34: 0 | H34: 0 | I34: 0 | J34: 0 | K34: 0 | L34: 0 | O34: 0 | P34: 0 | Q34: 0 | R34: 0
A35: 28 | B35: ='INVENT.Construc&Bat Importé -10'!B34 -> 0 | C35: ='INVENT.Construc&Bat Importé -10'!F34 -> 0 | D35: ='INVENT.Construc&Bat Importé -10'!C34 -> 0 | E35: ='INVENT.Construc&Bat Importé -10'!H34 -> 0 | G35: 0 | H35: 0 | I35: 0 | J35: 0 | K35: 0 | L35: 0 | O35: 0 | P35: 0 | Q35: 0 | R35: 0
A36: 29 | B36: ='INVENT.Construc&Bat Importé -10'!B35 -> 0 | C36: ='INVENT.Construc&Bat Importé -10'!F35 -> 0 | D36: ='INVENT.Construc&Bat Importé -10'!C35 -> 0 | E36: ='INVENT.Construc&Bat Importé -10'!H35 -> 0 | G36: 0 | H36: 0 | I36: 0 | J36: 0 | K36: 0 | L36: 0 | O36: 0 | P36: 0 | Q36: 0 | R36: 0
A37: 30 | B37: ='INVENT.Construc&Bat Importé -10'!B36 -> 0 | C37: ='INVENT.Construc&Bat Importé -10'!F36 -> 0 | D37: ='INVENT.Construc&Bat Importé -10'!C36 -> 0 | E37: ='INVENT.Construc&Bat Importé -10'!H36 -> 0 | G37: 0 | H37: 0 | I37: 0 | J37: 0 | K37: 0 | L37: 0 | O37: 0 | P37: 0 | Q37: 0 | R37: 0
A38: 31 | B38: ='INVENT.Construc&Bat Importé -10'!B37 -> 0 | C38: ='INVENT.Construc&Bat Importé -10'!F37 -> 0 | D38: ='INVENT.Construc&Bat Importé -10'!C37 -> 0 | E38: ='INVENT.Construc&Bat Importé -10'!H37 -> 0 | G38: 0 | H38: 0 | I38: 0 | J38: 0 | K38: 0 | L38: 0 | O38: 0 | P38: 0 | Q38: 0 | R38: 0
A39: 32 | B39: ='INVENT.Construc&Bat Importé -10'!B38 -> 0 | C39: ='INVENT.Construc&Bat Importé -10'!F38 -> 0 | D39: ='INVENT.Construc&Bat Importé -10'!C38 -> 0 | E39: ='INVENT.Construc&Bat Importé -10'!H38 -> 0 | G39: 0 | H39: 0 | I39: 0 | J39: 0 | K39: 0 | L39: 0 | O39: 0 | P39: 0 | Q39: 0 | R39: 0
A40: 33 | B40: ='INVENT.Construc&Bat Importé -10'!B39 -> 0 | C40: ='INVENT.Construc&Bat Importé -10'!F39 -> 0 | D40: ='INVENT.Construc&Bat Importé -10'!C39 -> 0 | E40: ='INVENT.Construc&Bat Importé -10'!H39 -> 0 | G40: 0 | H40: 0 | I40: 0 | J40: 0 | K40: 0 | L40: 0 | O40: 0 | P40: 0 | Q40: 0 | R40: 0
A41: 34 | B41: ='INVENT.Construc&Bat Importé -10'!B40 -> 0 | C41: ='INVENT.Construc&Bat Importé -10'!F40 -> 0 | D41: ='INVENT.Construc&Bat Importé -10'!C40 -> 0 | E41: ='INVENT.Construc&Bat Importé -10'!H40 -> 0 | G41: 0 | H41: 0 | I41: 0 | J41: 0 | K41: 0 | L41: 0 | O41: 0 | P41: 0 | Q41: 0 | R41: 0
A42: 35 | B42: ='INVENT.Construc&Bat Importé -10'!B41 -> 0 | C42: ='INVENT.Construc&Bat Importé -10'!F41 -> 0 | D42: ='INVENT.Construc&Bat Importé -10'!C41 -> 0 | E42: ='INVENT.Construc&Bat Importé -10'!H41 -> 0 | G42: 0 | H42: 0 | I42: 0 | J42: 0 | K42: 0 | L42: 0 | O42: 0 | P42: 0 | Q42: 0 | R42: 0
A43: 36 | B43: ='INVENT.Construc&Bat Importé -10'!B42 -> 0 | C43: ='INVENT.Construc&Bat Importé -10'!F42 -> 0 | D43: ='INVENT.Construc&Bat Importé -10'!C42 -> 0 | E43: ='INVENT.Construc&Bat Importé -10'!H42 -> 0 | G43: 0 | H43: 0 | I43: 0 | J43: 0 | K43: 0 | L43: 0 | O43: 0 | P43: 0 | Q43: 0 | R43: 0
A44: 37 | B44: ='INVENT.Construc&Bat Importé -10'!B43 -> 0 | C44: ='INVENT.Construc&Bat Importé -10'!F43 -> 0 | D44: ='INVENT.Construc&Bat Importé -10'!C43 -> 0 | E44: ='INVENT.Construc&Bat Importé -10'!H43 -> 0 | G44: 0 | H44: 0 | I44: 0 | J44: 0 | K44: 0 | L44: 0 | O44: 0 | P44: 0 | Q44: 0 | R44: 0
A45: 38 | B45: ='INVENT.Construc&Bat Importé -10'!B44 -> 0 | C45: ='INVENT.Construc&Bat Importé -10'!F44 -> 0 | D45: ='INVENT.Construc&Bat Importé -10'!C44 -> 0 | E45: ='INVENT.Construc&Bat Importé -10'!H44 -> 0 | G45: 0 | H45: 0 | I45: 0 | J45: 0 | K45: 0 | L45: 0 | O45: 0 | P45: 0 | Q45: 0 | R45: 0
A46: 39 | B46: ='INVENT.Construc&Bat Importé -10'!B45 -> 0 | C46: ='INVENT.Construc&Bat Importé -10'!F45 -> 0 | D46: ='INVENT.Construc&Bat Importé -10'!C45 -> 0 | E46: ='INVENT.Construc&Bat Importé -10'!H45 -> 0 | G46: 0 | H46: 0 | I46: 0 | J46: 0 | K46: 0 | L46: 0 | O46: 0 | P46: 0 | Q46: 0 | R46: 0
A47: =+A46+1 -> 40 | B47: ='INVENT.Construc&Bat Importé -10'!B46 -> 0 | C47: ='INVENT.Construc&Bat Importé -10'!F46 -> 0 | D47: ='INVENT.Construc&Bat Importé -10'!C46 -> 0 | E47: ='INVENT.Construc&Bat Importé -10'!H46 -> 0 | G47: =F47*E47 -> 0 | H47: 0 | I47: 0 | J47: 0 | K47: =(E47+G47+H47)*18% -> 0 | L47: 0 | O47: =(M47+N47)*18% -> 0 | P47: =O47+N47+M47 -> 0 | Q47: =+R47-O47-K47 -> 0 | R47: =P47+L47 -> 0
A48: 41 | B48: ='INVENT.Construc&Bat Importé -10'!B47 -> 0 | C48: ='INVENT.Construc&Bat Importé -10'!F47 -> 0 | D48: ='INVENT.Construc&Bat Importé -10'!C47 -> 0 | E48: ='INVENT.Construc&Bat Importé -10'!H47 -> 0 | G48: 0 | H48: 0 | I48: 0 | J48: 0 | K48: 0 | L48: 0 | O48: 0 | P48: 0 | Q48: 0 | R48: 0
A49: 42 | B49: ='INVENT.Construc&Bat Importé -10'!B48 -> 0 | C49: ='INVENT.Construc&Bat Importé -10'!F48 -> 0 | D49: ='INVENT.Construc&Bat Importé -10'!C48 -> 0 | E49: ='INVENT.Construc&Bat Importé -10'!H48 -> 0 | G49: 0 | H49: 0 | I49: 0 | J49: 0 | K49: 0 | L49: 0 | O49: 0 | P49: 0 | Q49: 0 | R49: 0
A50: 43 | B50: ='INVENT.Construc&Bat Importé -10'!B49 -> 0 | C50: ='INVENT.Construc&Bat Importé -10'!F49 -> 0 | D50: ='INVENT.Construc&Bat Importé -10'!C49 -> 0 | E50: ='INVENT.Construc&Bat Importé -10'!H49 -> 0 | G50: 0 | H50: 0 | I50: 0 | J50: 0 | K50: 0 | L50: 0 | O50: 0 | P50: 0 | Q50: 0 | R50: 0
A51: 44 | B51: ='INVENT.Construc&Bat Importé -10'!B50 -> 0 | C51: ='INVENT.Construc&Bat Importé -10'!F50 -> 0 | D51: ='INVENT.Construc&Bat Importé -10'!C50 -> 0 | E51: ='INVENT.Construc&Bat Importé -10'!H50 -> 0 | G51: 0 | H51: 0 | I51: 0 | J51: 0 | K51: 0 | L51: 0 | O51: 0 | P51: 0 | Q51: 0 | R51: 0
A52: 45 | B52: ='INVENT.Construc&Bat Importé -10'!B51 -> 0 | C52: ='INVENT.Construc&Bat Importé -10'!F51 -> 0 | D52: ='INVENT.Construc&Bat Importé -10'!C51 -> 0 | E52: ='INVENT.Construc&Bat Importé -10'!H51 -> 0 | G52: 0 | H52: 0 | I52: 0 | J52: 0 | K52: 0 | L52: 0 | O52: 0 | P52: 0 | Q52: 0 | R52: 0
A53: 46 | B53: ='INVENT.Construc&Bat Importé -10'!B52 -> 0 | C53: ='INVENT.Construc&Bat Importé -10'!F52 -> 0 | D53: ='INVENT.Construc&Bat Importé -10'!C52 -> 0 | E53: ='INVENT.Construc&Bat Importé -10'!H52 -> 0 | G53: 0 | H53: 0 | I53: 0 | J53: 0 | K53: 0 | L53: 0 | O53: 0 | P53: 0 | Q53: 0 | R53: 0
A54: 47 | B54: ='INVENT.Construc&Bat Importé -10'!B53 -> 0 | C54: ='INVENT.Construc&Bat Importé -10'!F53 -> 0 | D54: ='INVENT.Construc&Bat Importé -10'!C53 -> 0 | E54: ='INVENT.Construc&Bat Importé -10'!H53 -> 0 | G54: 0 | H54: 0 | I54: 0 | J54: 0 | K54: 0 | L54: 0 | O54: 0 | P54: 0 | Q54: 0 | R54: 0
A55: 48 | B55: ='INVENT.Construc&Bat Importé -10'!B54 -> 0 | C55: ='INVENT.Construc&Bat Importé -10'!F54 -> 0 | D55: ='INVENT.Construc&Bat Importé -10'!C54 -> 0 | E55: ='INVENT.Construc&Bat Importé -10'!H54 -> 0 | G55: =F55*E55 -> 0 | H55: 0 | I55: 0 | J55: 0 | K55: =(E55+G55+H55)*18% -> 0 | L55: =SUM(G55:K55)+E55 -> 0 | O55: =(M55+N55)*18% -> 0 | P55: =O55+N55+M55 -> 0 | Q55: =+R55-O55-K55 -> 0 | R55: =P55+L55 -> 0
A56: 49 | B56: ='INVENT.Construc&Bat Importé -10'!B55 -> 0 | C56: ='INVENT.Construc&Bat Importé -10'!F55 -> 0 | D56: ='INVENT.Construc&Bat Importé -10'!C55 -> 0 | E56: ='INVENT.Construc&Bat Importé -10'!H55 -> 0 | G56: 0 | H56: 0 | I56: 0 | J56: 0 | K56: 0 | L56: 0 | O56: 0 | P56: 0 | Q56: 0 | R56: 0
A57: 50 | B57: ='INVENT.Construc&Bat Importé -10'!B56 -> 0 | C57: ='INVENT.Construc&Bat Importé -10'!F56 -> 0 | D57: ='INVENT.Construc&Bat Importé -10'!C56 -> 0 | E57: ='INVENT.Construc&Bat Importé -10'!H56 -> 0 | G57: 0 | H57: 0 | I57: 0 | J57: 0 | K57: 0 | L57: 0 | O57: 0 | P57: 0 | Q57: 0 | R57: 0
A58: 51 | B58: ='INVENT.Construc&Bat Importé -10'!B57 -> 0 | C58: ='INVENT.Construc&Bat Importé -10'!F57 -> 0 | D58: ='INVENT.Construc&Bat Importé -10'!C57 -> 0 | E58: ='INVENT.Construc&Bat Importé -10'!H57 -> 0 | G58: 0 | H58: 0 | I58: 0 | J58: 0 | K58: 0 | L58: 0 | O58: 0 | P58: 0 | Q58: 0 | R58: 0
A59: 52 | B59: ='INVENT.Construc&Bat Importé -10'!B58 -> 0 | C59: ='INVENT.Construc&Bat Importé -10'!F58 -> 0 | D59: ='INVENT.Construc&Bat Importé -10'!C58 -> 0 | E59: ='INVENT.Construc&Bat Importé -10'!H58 -> 0 | G59: 0 | H59: 0 | I59: 0 | J59: 0 | K59: 0 | L59: 0 | O59: 0 | P59: 0 | Q59: 0 | R59: 0
A60: 53 | B60: ='INVENT.Construc&Bat Importé -10'!B59 -> 0 | C60: ='INVENT.Construc&Bat Importé -10'!F59 -> 0 | D60: ='INVENT.Construc&Bat Importé -10'!C59 -> 0 | E60: ='INVENT.Construc&Bat Importé -10'!H59 -> 0 | G60: 0 | H60: 0 | I60: 0 | J60: 0 | K60: 0 | L60: 0 | O60: 0 | P60: 0 | Q60: 0 | R60: 0
A61: 54 | B61: ='INVENT.Construc&Bat Importé -10'!B60 -> 0 | C61: ='INVENT.Construc&Bat Importé -10'!F60 -> 0 | D61: ='INVENT.Construc&Bat Importé -10'!C60 -> 0 | E61: ='INVENT.Construc&Bat Importé -10'!H60 -> 0 | G61: 0 | H61: 0 | I61: 0 | J61: 0 | K61: 0 | L61: 0 | O61: 0 | P61: 0 | Q61: 0 | R61: 0
A62: 55 | B62: ='INVENT.Construc&Bat Importé -10'!B61 -> 0 | C62: ='INVENT.Construc&Bat Importé -10'!F61 -> 0 | D62: ='INVENT.Construc&Bat Importé -10'!C61 -> 0 | E62: ='INVENT.Construc&Bat Importé -10'!H61 -> 0 | G62: 0 | H62: 0 | I62: 0 | J62: 0 | K62: 0 | L62: 0 | O62: 0 | P62: 0 | Q62: 0 | R62: 0
A63: 56 | B63: ='INVENT.Construc&Bat Importé -10'!B62 -> 0 | C63: ='INVENT.Construc&Bat Importé -10'!F62 -> 0 | D63: ='INVENT.Construc&Bat Importé -10'!C62 -> 0 | E63: ='INVENT.Construc&Bat Importé -10'!H62 -> 0 | G63: 0 | H63: 0 | I63: 0 | J63: 0 | K63: 0 | L63: 0 | O63: 0 | P63: 0 | Q63: 0 | R63: 0
A64: 57 | B64: ='INVENT.Construc&Bat Importé -10'!B63 -> 0 | C64: ='INVENT.Construc&Bat Importé -10'!F63 -> 0 | D64: ='INVENT.Construc&Bat Importé -10'!C63 -> 0 | E64: ='INVENT.Construc&Bat Importé -10'!H63 -> 0 | G64: 0 | H64: 0 | I64: 0 | J64: 0 | K64: 0 | L64: 0 | O64: 0 | P64: 0 | Q64: 0 | R64: 0
A65: 58 | B65: ='INVENT.Construc&Bat Importé -10'!B64 -> 0 | C65: ='INVENT.Construc&Bat Importé -10'!F64 -> 0 | D65: ='INVENT.Construc&Bat Importé -10'!C64 -> 0 | E65: ='INVENT.Construc&Bat Importé -10'!H64 -> 0 | G65: 0 | H65: 0 | I65: 0 | J65: 0 | K65: 0 | L65: 0 | O65: 0 | P65: 0 | Q65: 0 | R65: 0
A66: 59 | B66: ='INVENT.Construc&Bat Importé -10'!B65 -> 0 | C66: ='INVENT.Construc&Bat Importé -10'!F65 -> 0 | D66: ='INVENT.Construc&Bat Importé -10'!C65 -> 0 | E66: ='INVENT.Construc&Bat Importé -10'!H65 -> 0 | G66: 0 | H66: 0 | I66: 0 | J66: 0 | K66: 0 | L66: 0 | O66: 0 | P66: 0 | Q66: 0 | R66: 0
A67: 60 | B67: ='INVENT.Construc&Bat Importé -10'!B66 -> 0 | C67: ='INVENT.Construc&Bat Importé -10'!F66 -> 0 | D67: ='INVENT.Construc&Bat Importé -10'!C66 -> 0 | E67: ='INVENT.Construc&Bat Importé -10'!H66 -> 0 | G67: 0 | H67: 0 | I67: 0 | J67: 0 | K67: 0 | L67: 0 | O67: 0 | P67: 0 | Q67: 0 | R67: 0
A68: 61 | B68: ='INVENT.Construc&Bat Importé -10'!B67 -> 0 | C68: ='INVENT.Construc&Bat Importé -10'!F67 -> 0 | D68: ='INVENT.Construc&Bat Importé -10'!C67 -> 0 | E68: ='INVENT.Construc&Bat Importé -10'!H67 -> 0 | G68: 0 | H68: 0 | I68: 0 | J68: 0 | K68: 0 | L68: 0 | O68: 0 | P68: 0 | Q68: 0 | R68: 0
A69: 62 | B69: ='INVENT.Construc&Bat Importé -10'!B68 -> 0 | C69: ='INVENT.Construc&Bat Importé -10'!F68 -> 0 | D69: ='INVENT.Construc&Bat Importé -10'!C68 -> 0 | E69: ='INVENT.Construc&Bat Importé -10'!H68 -> 0 | G69: 0 | H69: 0 | I69: 0 | J69: 0 | K69: 0 | L69: 0 | O69: 0 | P69: 0 | Q69: 0 | R69: 0
A70: 63 | B70: ='INVENT.Construc&Bat Importé -10'!B69 -> 0 | C70: ='INVENT.Construc&Bat Importé -10'!F69 -> 0 | D70: ='INVENT.Construc&Bat Importé -10'!C69 -> 0 | E70: ='INVENT.Construc&Bat Importé -10'!H69 -> 0 | G70: 0 | H70: 0 | I70: 0 | J70: 0 | K70: 0 | L70: 0 | O70: 0 | P70: 0 | Q70: 0 | R70: 0
A71: 64 | B71: ='INVENT.Construc&Bat Importé -10'!B70 -> 0 | C71: ='INVENT.Construc&Bat Importé -10'!F70 -> 0 | D71: ='INVENT.Construc&Bat Importé -10'!C70 -> 0 | E71: ='INVENT.Construc&Bat Importé -10'!H70 -> 0 | G71: 0 | H71: 0 | I71: 0 | J71: 0 | K71: 0 | L71: 0 | O71: 0 | P71: 0 | Q71: 0 | R71: 0
A72: 65 | B72: ='INVENT.Construc&Bat Importé -10'!B71 -> 0 | C72: ='INVENT.Construc&Bat Importé -10'!F71 -> 0 | D72: ='INVENT.Construc&Bat Importé -10'!C71 -> 0 | E72: ='INVENT.Construc&Bat Importé -10'!H71 -> 0 | G72: 0 | H72: 0 | I72: 0 | J72: 0 | K72: 0 | L72: 0 | O72: 0 | P72: 0 | Q72: 0 | R72: 0
A73: 66 | B73: ='INVENT.Construc&Bat Importé -10'!B72 -> 0 | C73: ='INVENT.Construc&Bat Importé -10'!F72 -> 0 | D73: ='INVENT.Construc&Bat Importé -10'!C72 -> 0 | E73: ='INVENT.Construc&Bat Importé -10'!H72 -> 0 | G73: 0 | H73: =E73*1% -> 0 | I73: =E73*1% -> 0 | J73: =E73*0.5% -> 0 | K73: 0 | L73: 0 | O73: 0 | P73: 0 | Q73: 0 | R73: 0
A74: 67 | B74: ='INVENT.Construc&Bat Importé -10'!B73 -> 0 | C74: ='INVENT.Construc&Bat Importé -10'!F73 -> 0 | D74: ='INVENT.Construc&Bat Importé -10'!C73 -> 0 | E74: ='INVENT.Construc&Bat Importé -10'!H73 -> 0 | G74: 0 | H74: 0 | I74: 0 | J74: 0 | K74: 0 | L74: 0 | O74: 0 | P74: 0 | Q74: 0 | R74: 0
A75: 68 | B75: ='INVENT.Construc&Bat Importé -10'!B74 -> 0 | C75: ='INVENT.Construc&Bat Importé -10'!F74 -> 0 | D75: ='INVENT.Construc&Bat Importé -10'!C74 -> 0 | E75: ='INVENT.Construc&Bat Importé -10'!H74 -> 0 | G75: 0 | H75: 0 | I75: 0 | J75: 0 | K75: 0 | L75: 0 | O75: 0 | P75: 0 | Q75: 0 | R75: 0
A76: 69 | B76: ='INVENT.Construc&Bat Importé -10'!B75 -> 0 | C76: ='INVENT.Construc&Bat Importé -10'!F75 -> 0 | D76: ='INVENT.Construc&Bat Importé -10'!C75 -> 0 | E76: ='INVENT.Construc&Bat Importé -10'!H75 -> 0 | G76: 0 | H76: 0 | I76: 0 | J76: 0 | K76: 0 | L76: 0 | O76: 0 | P76: 0 | Q76: 0 | R76: 0
A77: 70 | B77: ='INVENT.Construc&Bat Importé -10'!B76 -> 0 | C77: ='INVENT.Construc&Bat Importé -10'!F76 -> 0 | D77: ='INVENT.Construc&Bat Importé -10'!C76 -> 0 | E77: ='INVENT.Construc&Bat Importé -10'!H76 -> 0 | G77: 0 | H77: 0 | I77: 0 | J77: 0 | K77: 0 | L77: 0 | O77: 0 | P77: 0 | Q77: 0 | R77: 0
A78: 71 | B78: ='INVENT.Construc&Bat Importé -10'!B77 -> 0 | C78: ='INVENT.Construc&Bat Importé -10'!F77 -> 0 | D78: ='INVENT.Construc&Bat Importé -10'!C77 -> 0 | E78: ='INVENT.Construc&Bat Importé -10'!H77 -> 0 | G78: 0 | H78: 0 | I78: 0 | J78: 0 | K78: 0 | L78: 0 | O78: 0 | P78: 0 | Q78: 0 | R78: 0
A79: 72 | B79: ='INVENT.Construc&Bat Importé -10'!B78 -> 0 | C79: ='INVENT.Construc&Bat Importé -10'!F78 -> 0 | D79: ='INVENT.Construc&Bat Importé -10'!C78 -> 0 | E79: ='INVENT.Construc&Bat Importé -10'!H78 -> 0 | G79: 0 | H79: 0 | I79: 0 | J79: 0 | K79: 0 | L79: 0 | O79: 0 | P79: 0 | Q79: 0 | R79: 0
A80: 73 | B80: ='INVENT.Construc&Bat Importé -10'!B79 -> 0 | C80: ='INVENT.Construc&Bat Importé -10'!F79 -> 0 | D80: ='INVENT.Construc&Bat Importé -10'!C79 -> 0 | E80: ='INVENT.Construc&Bat Importé -10'!H79 -> 0 | G80: 0 | H80: 0 | I80: 0 | J80: 0 | K80: 0 | L80: 0 | O80: 0 | P80: 0 | Q80: 0 | R80: 0
A81: 74 | B81: ='INVENT.Construc&Bat Importé -10'!B80 -> 0 | C81: ='INVENT.Construc&Bat Importé -10'!F80 -> 0 | D81: ='INVENT.Construc&Bat Importé -10'!C80 -> 0 | E81: ='INVENT.Construc&Bat Importé -10'!H80 -> 0 | G81: 0 | H81: 0 | I81: 0 | J81: 0 | K81: 0 | L81: 0 | O81: 0 | P81: 0 | Q81: 0 | R81: 0
A82: 75 | B82: ='INVENT.Construc&Bat Importé -10'!B81 -> 0 | C82: ='INVENT.Construc&Bat Importé -10'!F81 -> 0 | D82: ='INVENT.Construc&Bat Importé -10'!C81 -> 0 | E82: ='INVENT.Construc&Bat Importé -10'!H81 -> 0 | G82: 0 | H82: 0 | I82: 0 | J82: 0 | K82: 0 | L82: 0 | O82: 0 | P82: 0 | Q82: 0 | R82: 0
A83: 76 | B83: ='INVENT.Construc&Bat Importé -10'!B82 -> 0 | C83: ='INVENT.Construc&Bat Importé -10'!F82 -> 0 | D83: ='INVENT.Construc&Bat Importé -10'!C82 -> 0 | E83: ='INVENT.Construc&Bat Importé -10'!H82 -> 0 | G83: 0 | H83: 0 | I83: 0 | J83: 0 | K83: 0 | L83: 0 | O83: 0 | P83: 0 | Q83: 0 | R83: 0
A84: 77 | B84: ='INVENT.Construc&Bat Importé -10'!B83 -> 0 | C84: ='INVENT.Construc&Bat Importé -10'!F83 -> 0 | D84: ='INVENT.Construc&Bat Importé -10'!C83 -> 0 | E84: ='INVENT.Construc&Bat Importé -10'!H83 -> 0 | G84: 0 | H84: 0 | I84: 0 | J84: 0 | K84: 0 | L84: 0 | O84: 0 | P84: 0 | Q84: 0 | R84: 0
A85: 78 | B85: ='INVENT.Construc&Bat Importé -10'!B84 -> 0 | C85: ='INVENT.Construc&Bat Importé -10'!F84 -> 0 | D85: ='INVENT.Construc&Bat Importé -10'!C84 -> 0 | E85: ='INVENT.Construc&Bat Importé -10'!H84 -> 0 | G85: 0 | H85: 0 | I85: 0 | J85: 0 | K85: 0 | L85: 0 | O85: 0 | P85: 0 | Q85: 0 | R85: 0
A86: 79 | B86: ='INVENT.Construc&Bat Importé -10'!B85 -> 0 | C86: ='INVENT.Construc&Bat Importé -10'!F85 -> 0 | D86: ='INVENT.Construc&Bat Importé -10'!C85 -> 0 | E86: ='INVENT.Construc&Bat Importé -10'!H85 -> 0 | G86: 0 | H86: 0 | I86: 0 | J86: 0 | K86: 0 | L86: 0 | O86: 0 | P86: 0 | Q86: 0 | R86: 0
A87: 80 | B87: ='INVENT.Construc&Bat Importé -10'!B86 -> 0 | C87: ='INVENT.Construc&Bat Importé -10'!F86 -> 0 | D87: ='INVENT.Construc&Bat Importé -10'!C86 -> 0 | E87: ='INVENT.Construc&Bat Importé -10'!H86 -> 0 | G87: 0 | H87: 0 | I87: 0 | J87: 0 | K87: 0 | L87: 0 | O87: 0 | P87: 0 | Q87: 0 | R87: 0
A88: 81 | B88: ='INVENT.Construc&Bat Importé -10'!B87 -> 0 | C88: ='INVENT.Construc&Bat Importé -10'!F87 -> 0 | D88: ='INVENT.Construc&Bat Importé -10'!C87 -> 0 | E88: ='INVENT.Construc&Bat Importé -10'!H87 -> 0 | G88: 0 | H88: 0 | I88: 0 | J88: 0 | K88: 0 | L88: 0 | O88: 0 | P88: 0 | Q88: 0 | R88: 0
A89: 82 | B89: ='INVENT.Construc&Bat Importé -10'!B88 -> 0 | C89: ='INVENT.Construc&Bat Importé -10'!F88 -> 0 | D89: ='INVENT.Construc&Bat Importé -10'!C88 -> 0 | E89: ='INVENT.Construc&Bat Importé -10'!H88 -> 0 | G89: 0 | H89: 0 | I89: 0 | J89: 0 | K89: 0 | L89: 0 | O89: 0 | P89: 0 | Q89: 0 | R89: 0
A90: 83 | B90: ='INVENT.Construc&Bat Importé -10'!B89 -> 0 | C90: ='INVENT.Construc&Bat Importé -10'!F89 -> 0 | D90: ='INVENT.Construc&Bat Importé -10'!C89 -> 0 | E90: ='INVENT.Construc&Bat Importé -10'!H89 -> 0 | G90: 0 | H90: 0 | I90: 0 | J90: 0 | K90: 0 | L90: 0 | O90: 0 | P90: 0 | Q90: 0 | R90: 0
A91: 84 | B91: ='INVENT.Construc&Bat Importé -10'!B90 -> 0 | C91: ='INVENT.Construc&Bat Importé -10'!F90 -> 0 | D91: ='INVENT.Construc&Bat Importé -10'!C90 -> 0 | E91: ='INVENT.Construc&Bat Importé -10'!H90 -> 0 | G91: 0 | H91: 0 | I91: 0 | J91: 0 | K91: 0 | L91: 0 | O91: 0 | P91: 0 | Q91: 0 | R91: 0
A92: 85 | B92: ='INVENT.Construc&Bat Importé -10'!B91 -> 0 | C92: ='INVENT.Construc&Bat Importé -10'!F91 -> 0 | D92: ='INVENT.Construc&Bat Importé -10'!C91 -> 0 | E92: ='INVENT.Construc&Bat Importé -10'!H91 -> 0 | G92: 0 | H92: 0 | I92: 0 | J92: 0 | K92: 0 | L92: 0 | O92: 0 | P92: 0 | Q92: 0 | R92: 0
A93: 86 | B93: ='INVENT.Construc&Bat Importé -10'!B92 -> 0 | C93: ='INVENT.Construc&Bat Importé -10'!F92 -> 0 | D93: ='INVENT.Construc&Bat Importé -10'!C92 -> 0 | E93: ='INVENT.Construc&Bat Importé -10'!H92 -> 0 | G93: 0 | H93: 0 | I93: 0 | J93: 0 | K93: 0 | L93: 0 | O93: 0 | P93: 0 | Q93: 0 | R93: 0
A94: 87 | B94: ='INVENT.Construc&Bat Importé -10'!B93 -> 0 | C94: ='INVENT.Construc&Bat Importé -10'!F93 -> 0 | D94: ='INVENT.Construc&Bat Importé -10'!C93 -> 0 | E94: ='INVENT.Construc&Bat Importé -10'!H93 -> 0 | G94: 0 | H94: 0 | I94: 0 | J94: 0 | K94: 0 | L94: 0 | O94: 0 | P94: 0 | Q94: 0 | R94: 0
A95: 88 | B95: ='INVENT.Construc&Bat Importé -10'!B94 -> 0 | C95: ='INVENT.Construc&Bat Importé -10'!F94 -> 0 | D95: ='INVENT.Construc&Bat Importé -10'!C94 -> 0 | E95: ='INVENT.Construc&Bat Importé -10'!H94 -> 0 | G95: 0 | H95: 0 | I95: 0 | J95: 0 | K95: 0 | L95: 0 | O95: 0 | P95: 0 | Q95: 0 | R95: 0
A96: 89 | B96: ='INVENT.Construc&Bat Importé -10'!B95 -> 0 | C96: ='INVENT.Construc&Bat Importé -10'!F95 -> 0 | D96: ='INVENT.Construc&Bat Importé -10'!C95 -> 0 | E96: ='INVENT.Construc&Bat Importé -10'!H95 -> 0 | G96: 0 | H96: 0 | I96: 0 | J96: 0 | K96: 0 | L96: 0 | O96: 0 | P96: 0 | Q96: 0 | R96: 0
A97: 90 | B97: ='INVENT.Construc&Bat Importé -10'!B96 -> 0 | C97: ='INVENT.Construc&Bat Importé -10'!F96 -> 0 | D97: ='INVENT.Construc&Bat Importé -10'!C96 -> 0 | E97: ='INVENT.Construc&Bat Importé -10'!H96 -> 0 | G97: 0 | H97: 0 | I97: 0 | J97: 0 | K97: 0 | L97: 0 | O97: 0 | P97: 0 | Q97: 0 | R97: 0
A98: 91 | B98: ='INVENT.Construc&Bat Importé -10'!B97 -> 0 | C98: ='INVENT.Construc&Bat Importé -10'!F97 -> 0 | D98: ='INVENT.Construc&Bat Importé -10'!C97 -> 0 | E98: ='INVENT.Construc&Bat Importé -10'!H97 -> 0 | G98: 0 | H98: 0 | I98: 0 | J98: 0 | K98: 0 | L98: 0 | O98: 0 | P98: 0 | Q98: 0 | R98: 0
A99: 92 | B99: ='INVENT.Construc&Bat Importé -10'!B98 -> 0 | C99: ='INVENT.Construc&Bat Importé -10'!F98 -> 0 | D99: ='INVENT.Construc&Bat Importé -10'!C98 -> 0 | E99: ='INVENT.Construc&Bat Importé -10'!H98 -> 0 | G99: 0 | H99: 0 | I99: 0 | J99: 0 | K99: 0 | L99: 0 | O99: 0 | P99: 0 | Q99: 0 | R99: 0
A100: 93 | B100: ='INVENT.Construc&Bat Importé -10'!B99 -> 0 | C100: ='INVENT.Construc&Bat Importé -10'!F99 -> 0 | D100: ='INVENT.Construc&Bat Importé -10'!C99 -> 0 | E100: ='INVENT.Construc&Bat Importé -10'!H99 -> 0 | G100: 0 | H100: 0 | I100: 0 | J100: 0 | K100: 0 | L100: 0 | O100: 0 | P100: 0 | Q100: 0 | R100: 0
A101: 94 | B101: ='INVENT.Construc&Bat Importé -10'!B100 -> 0 | C101: ='INVENT.Construc&Bat Importé -10'!F100 -> 0 | D101: ='INVENT.Construc&Bat Importé -10'!C100 -> 0 | E101: ='INVENT.Construc&Bat Importé -10'!H100 -> 0 | G101: 0 | H101: 0 | I101: 0 | J101: 0 | K101: 0 | L101: 0 | O101: 0 | P101: 0 | Q101: 0 | R101: 0
A102: 95 | B102: ='INVENT.Construc&Bat Importé -10'!B101 -> 0 | C102: ='INVENT.Construc&Bat Importé -10'!F101 -> 0 | D102: ='INVENT.Construc&Bat Importé -10'!C101 -> 0 | E102: ='INVENT.Construc&Bat Importé -10'!H101 -> 0 | G102: 0 | H102: 0 | I102: 0 | J102: 0 | K102: 0 | L102: 0 | O102: 0 | P102: 0 | Q102: 0 | R102: 0
A103: 96 | B103: ='INVENT.Construc&Bat Importé -10'!B102 -> 0 | C103: ='INVENT.Construc&Bat Importé -10'!F102 -> 0 | D103: ='INVENT.Construc&Bat Importé -10'!C102 -> 0 | E103: ='INVENT.Construc&Bat Importé -10'!H102 -> 0 | G103: 0 | H103: 0 | I103: 0 | J103: 0 | K103: 0 | L103: 0 | O103: 0 | P103: 0 | Q103: 0 | R103: 0
A104: 97 | B104: ='INVENT.Construc&Bat Importé -10'!B103 -> 0 | C104: ='INVENT.Construc&Bat Importé -10'!F103 -> 0 | D104: ='INVENT.Construc&Bat Importé -10'!C103 -> 0 | E104: ='INVENT.Construc&Bat Importé -10'!H103 -> 0 | G104: 0 | H104: 0 | I104: 0 | J104: 0 | K104: 0 | L104: 0 | O104: 0 | P104: 0 | Q104: 0 | R104: 0
A105: 98 | B105: ='INVENT.Construc&Bat Importé -10'!B104 -> 0 | C105: ='INVENT.Construc&Bat Importé -10'!F104 -> 0 | D105: ='INVENT.Construc&Bat Importé -10'!C104 -> 0 | E105: ='INVENT.Construc&Bat Importé -10'!H104 -> 0 | G105: 0 | H105: 0 | I105: 0 | J105: 0 | K105: 0 | L105: 0 | O105: 0 | P105: 0 | Q105: 0 | R105: 0
A106: 99 | B106: ='INVENT.Construc&Bat Importé -10'!B105 -> 0 | C106: ='INVENT.Construc&Bat Importé -10'!F105 -> 0 | D106: ='INVENT.Construc&Bat Importé -10'!C105 -> 0 | E106: ='INVENT.Construc&Bat Importé -10'!H105 -> 0 | G106: 0 | H106: 0 | I106: 0 | J106: 0 | K106: 0 | L106: 0 | O106: 0 | P106: 0 | Q106: 0 | R106: 0
A107: 100 | B107: ='INVENT.Construc&Bat Importé -10'!B106 -> 0 | C107: ='INVENT.Construc&Bat Importé -10'!F106 -> 0 | D107: ='INVENT.Construc&Bat Importé -10'!C106 -> 0 | E107: ='INVENT.Construc&Bat Importé -10'!H106 -> 0 | G107: 0 | H107: 0 | I107: 0 | J107: 0 | K107: 0 | L107: 0 | O107: 0 | P107: 0 | Q107: 0 | R107: 0
A108: 101 | B108: ='INVENT.Construc&Bat Importé -10'!B107 -> 0 | C108: ='INVENT.Construc&Bat Importé -10'!F107 -> 0 | D108: ='INVENT.Construc&Bat Importé -10'!C107 -> 0 | E108: ='INVENT.Construc&Bat Importé -10'!H107 -> 0 | G108: 0 | H108: 0 | I108: 0 | J108: 0 | K108: 0 | L108: 0 | O108: 0 | P108: 0 | Q108: 0 | R108: 0
A109: 102 | B109: ='INVENT.Construc&Bat Importé -10'!B108 -> 0 | C109: ='INVENT.Construc&Bat Importé -10'!F108 -> 0 | D109: ='INVENT.Construc&Bat Importé -10'!C108 -> 0 | E109: ='INVENT.Construc&Bat Importé -10'!H108 -> 0 | G109: 0 | H109: 0 | I109: 0 | J109: 0 | K109: 0 | L109: 0 | O109: 0 | P109: 0 | Q109: 0 | R109: 0
A110: 103 | B110: ='INVENT.Construc&Bat Importé -10'!B109 -> 0 | C110: ='INVENT.Construc&Bat Importé -10'!F109 -> 0 | D110: ='INVENT.Construc&Bat Importé -10'!C109 -> 0 | E110: ='INVENT.Construc&Bat Importé -10'!H109 -> 0 | G110: 0 | H110: 0 | I110: 0 | J110: 0 | K110: 0 | L110: 0 | O110: 0 | P110: 0 | Q110: 0 | R110: 0
A111: =+A110+1 -> 104 | B111: ='INVENT.Construc&Bat Importé -10'!B110 -> 0 | C111: ='INVENT.Construc&Bat Importé -10'!F110 -> 0 | D111: ='INVENT.Construc&Bat Importé -10'!C110 -> 0 | E111: ='INVENT.Construc&Bat Importé -10'!H110 -> 0 | G111: 0 | H111: 0 | I111: 0 | J111: 0 | K111: 0 | L111: 0 | O111: 0 | P111: 0 | Q111: 0 | R111: 0
A112: 105 | B112: ='INVENT.Construc&Bat Importé -10'!B111 -> 0 | C112: ='INVENT.Construc&Bat Importé -10'!F111 -> 0 | D112: ='INVENT.Construc&Bat Importé -10'!C111 -> 0 | E112: ='INVENT.Construc&Bat Importé -10'!H111 -> 0 | G112: 0 | H112: 0 | I112: 0 | J112: 0 | K112: 0 | L112: 0 | O112: 0 | P112: 0 | Q112: 0 | R112: 0
A113: 106 | B113: ='INVENT.Construc&Bat Importé -10'!B112 -> 0 | C113: ='INVENT.Construc&Bat Importé -10'!F112 -> 0 | D113: ='INVENT.Construc&Bat Importé -10'!C112 -> 0 | E113: ='INVENT.Construc&Bat Importé -10'!H112 -> 0 | G113: 0 | H113: 0 | I113: 0 | J113: 0 | K113: 0 | L113: 0 | O113: 0 | P113: 0 | Q113: 0 | R113: 0
A114: 107 | B114: ='INVENT.Construc&Bat Importé -10'!B113 -> 0 | C114: ='INVENT.Construc&Bat Importé -10'!F113 -> 0 | D114: ='INVENT.Construc&Bat Importé -10'!C113 -> 0 | E114: ='INVENT.Construc&Bat Importé -10'!H113 -> 0 | G114: 0 | H114: 0 | I114: 0 | J114: 0 | K114: 0 | L114: 0 | O114: 0 | P114: 0 | Q114: 0 | R114: 0
A115: 108 | B115: ='INVENT.Construc&Bat Importé -10'!B114 -> 0 | C115: ='INVENT.Construc&Bat Importé -10'!F114 -> 0 | D115: ='INVENT.Construc&Bat Importé -10'!C114 -> 0 | E115: ='INVENT.Construc&Bat Importé -10'!H114 -> 0 | G115: 0 | H115: 0 | I115: 0 | J115: 0 | K115: 0 | L115: 0 | O115: 0 | P115: 0 | Q115: 0 | R115: 0
A116: 109 | B116: ='INVENT.Construc&Bat Importé -10'!B115 -> 0 | C116: ='INVENT.Construc&Bat Importé -10'!F115 -> 0 | D116: ='INVENT.Construc&Bat Importé -10'!C115 -> 0 | E116: ='INVENT.Construc&Bat Importé -10'!H115 -> 0 | G116: 0 | H116: 0 | I116: 0 | J116: 0 | K116: 0 | L116: 0 | O116: 0 | P116: 0 | Q116: 0 | R116: 0
A117: 110 | B117: ='INVENT.Construc&Bat Importé -10'!B116 -> 0 | C117: ='INVENT.Construc&Bat Importé -10'!F116 -> 0 | D117: ='INVENT.Construc&Bat Importé -10'!C116 -> 0 | E117: ='INVENT.Construc&Bat Importé -10'!H116 -> 0 | G117: 0 | H117: 0 | I117: 0 | J117: 0 | K117: 0 | L117: 0 | O117: 0 | P117: 0 | Q117: 0 | R117: 0
A118: 111 | B118: ='INVENT.Construc&Bat Importé -10'!B117 -> 0 | C118: ='INVENT.Construc&Bat Importé -10'!F117 -> 0 | D118: ='INVENT.Construc&Bat Importé -10'!C117 -> 0 | E118: ='INVENT.Construc&Bat Importé -10'!H117 -> 0 | G118: 0 | H118: 0 | I118: 0 | J118: 0 | K118: 0 | L118: 0 | O118: 0 | P118: 0 | Q118: 0 | R118: 0
A119: 112 | B119: ='INVENT.Construc&Bat Importé -10'!B118 -> 0 | C119: ='INVENT.Construc&Bat Importé -10'!F118 -> 0 | D119: ='INVENT.Construc&Bat Importé -10'!C118 -> 0 | E119: ='INVENT.Construc&Bat Importé -10'!H118 -> 0 | G119: =F119*E119 -> 0 | H119: 0 | I119: 0 | J119: 0 | K119: =(E119+G119+H119)*18% -> 0 | L119: =SUM(G119:K119)+E119 -> 0 | O119: =(M119+N119)*18% -> 0 | P119: =O119+N119+M119 -> 0 | Q119: =+R119-O119-K119 -> 0 | R119: =P119+L119 -> 0
A120: 113 | B120: ='INVENT.Construc&Bat Importé -10'!B119 -> 0 | C120: ='INVENT.Construc&Bat Importé -10'!F119 -> 0 | D120: ='INVENT.Construc&Bat Importé -10'!C119 -> 0 | E120: ='INVENT.Construc&Bat Importé -10'!H119 -> 0 | G120: 0 | H120: 0 | I120: 0 | J120: 0 | K120: 0 | L120: 0 | O120: 0 | P120: 0 | Q120: 0 | R120: 0
A121: 114 | B121: ='INVENT.Construc&Bat Importé -10'!B120 -> 0 | C121: ='INVENT.Construc&Bat Importé -10'!F120 -> 0 | D121: ='INVENT.Construc&Bat Importé -10'!C120 -> 0 | E121: ='INVENT.Construc&Bat Importé -10'!H120 -> 0 | G121: 0 | H121: 0 | I121: 0 | J121: 0 | K121: 0 | L121: 0 | O121: 0 | P121: 0 | Q121: 0 | R121: 0
A122: 115 | B122: ='INVENT.Construc&Bat Importé -10'!B121 -> 0 | C122: ='INVENT.Construc&Bat Importé -10'!F121 -> 0 | D122: ='INVENT.Construc&Bat Importé -10'!C121 -> 0 | E122: ='INVENT.Construc&Bat Importé -10'!H121 -> 0 | G122: 0 | H122: 0 | I122: 0 | J122: 0 | K122: 0 | L122: 0 | O122: 0 | P122: 0 | Q122: 0 | R122: 0
A123: 116 | B123: ='INVENT.Construc&Bat Importé -10'!B122 -> 0 | C123: ='INVENT.Construc&Bat Importé -10'!F122 -> 0 | D123: ='INVENT.Construc&Bat Importé -10'!C122 -> 0 | E123: ='INVENT.Construc&Bat Importé -10'!H122 -> 0 | G123: 0 | H123: 0 | I123: 0 | J123: 0 | K123: 0 | L123: 0 | O123: 0 | P123: 0 | Q123: 0 | R123: 0
A124: 117 | B124: ='INVENT.Construc&Bat Importé -10'!B123 -> 0 | C124: ='INVENT.Construc&Bat Importé -10'!F123 -> 0 | D124: ='INVENT.Construc&Bat Importé -10'!C123 -> 0 | E124: ='INVENT.Construc&Bat Importé -10'!H123 -> 0 | G124: 0 | H124: 0 | I124: 0 | J124: 0 | K124: 0 | L124: 0 | O124: 0 | P124: 0 | Q124: 0 | R124: 0
A125: 118 | B125: ='INVENT.Construc&Bat Importé -10'!B124 -> 0 | C125: ='INVENT.Construc&Bat Importé -10'!F124 -> 0 | D125: ='INVENT.Construc&Bat Importé -10'!C124 -> 0 | E125: ='INVENT.Construc&Bat Importé -10'!H124 -> 0 | G125: 0 | H125: 0 | I125: 0 | J125: 0 | K125: 0 | L125: 0 | O125: 0 | P125: 0 | Q125: 0 | R125: 0
A126: 119 | B126: ='INVENT.Construc&Bat Importé -10'!B125 -> 0 | C126: ='INVENT.Construc&Bat Importé -10'!F125 -> 0 | D126: ='INVENT.Construc&Bat Importé -10'!C125 -> 0 | E126: ='INVENT.Construc&Bat Importé -10'!H125 -> 0 | G126: 0 | H126: 0 | I126: 0 | J126: 0 | K126: 0 | L126: 0 | O126: 0 | P126: 0 | Q126: 0 | R126: 0
A127: 120 | B127: ='INVENT.Construc&Bat Importé -10'!B126 -> 0 | C127: ='INVENT.Construc&Bat Importé -10'!F126 -> 0 | D127: ='INVENT.Construc&Bat Importé -10'!C126 -> 0 | E127: ='INVENT.Construc&Bat Importé -10'!H126 -> 0 | G127: 0 | H127: 0 | I127: 0 | J127: 0 | K127: 0 | L127: 0 | O127: 0 | P127: 0 | Q127: 0 | R127: 0
A128: 121 | B128: ='INVENT.Construc&Bat Importé -10'!B127 -> 0 | C128: ='INVENT.Construc&Bat Importé -10'!F127 -> 0 | D128: ='INVENT.Construc&Bat Importé -10'!C127 -> 0 | E128: ='INVENT.Construc&Bat Importé -10'!H127 -> 0 | G128: 0 | H128: 0 | I128: 0 | J128: 0 | K128: 0 | L128: 0 | O128: 0 | P128: 0 | Q128: 0 | R128: 0
A129: 122 | B129: ='INVENT.Construc&Bat Importé -10'!B128 -> 0 | C129: ='INVENT.Construc&Bat Importé -10'!F128 -> 0 | D129: ='INVENT.Construc&Bat Importé -10'!C128 -> 0 | E129: ='INVENT.Construc&Bat Importé -10'!H128 -> 0 | G129: 0 | H129: 0 | I129: 0 | J129: 0 | K129: 0 | L129: 0 | O129: 0 | P129: 0 | Q129: 0 | R129: 0
A130: 123 | B130: ='INVENT.Construc&Bat Importé -10'!B129 -> 0 | C130: ='INVENT.Construc&Bat Importé -10'!F129 -> 0 | D130: ='INVENT.Construc&Bat Importé -10'!C129 -> 0 | E130: ='INVENT.Construc&Bat Importé -10'!H129 -> 0 | G130: 0 | H130: 0 | I130: 0 | J130: 0 | K130: 0 | L130: 0 | O130: 0 | P130: 0 | Q130: 0 | R130: 0
A131: 124 | B131: ='INVENT.Construc&Bat Importé -10'!B130 -> 0 | C131: ='INVENT.Construc&Bat Importé -10'!F130 -> 0 | D131: ='INVENT.Construc&Bat Importé -10'!C130 -> 0 | E131: ='INVENT.Construc&Bat Importé -10'!H130 -> 0 | G131: 0 | H131: 0 | I131: 0 | J131: 0 | K131: 0 | L131: 0 | O131: 0 | P131: 0 | Q131: 0 | R131: 0
A132: 125 | B132: ='INVENT.Construc&Bat Importé -10'!B131 -> 0 | C132: ='INVENT.Construc&Bat Importé -10'!F131 -> 0 | D132: ='INVENT.Construc&Bat Importé -10'!C131 -> 0 | E132: ='INVENT.Construc&Bat Importé -10'!H131 -> 0 | G132: 0 | H132: 0 | I132: 0 | J132: 0 | K132: 0 | L132: 0 | O132: 0 | P132: 0 | Q132: 0 | R132: 0
A133: 126 | B133: ='INVENT.Construc&Bat Importé -10'!B132 -> 0 | C133: ='INVENT.Construc&Bat Importé -10'!F132 -> 0 | D133: ='INVENT.Construc&Bat Importé -10'!C132 -> 0 | E133: ='INVENT.Construc&Bat Importé -10'!H132 -> 0 | G133: 0 | H133: 0 | I133: 0 | J133: 0 | K133: 0 | L133: 0 | O133: 0 | P133: 0 | Q133: 0 | R133: 0
A134: 127 | B134: ='INVENT.Construc&Bat Importé -10'!B133 -> 0 | C134: ='INVENT.Construc&Bat Importé -10'!F133 -> 0 | D134: ='INVENT.Construc&Bat Importé -10'!C133 -> 0 | E134: ='INVENT.Construc&Bat Importé -10'!H133 -> 0 | G134: 0 | H134: 0 | I134: 0 | J134: 0 | K134: 0 | L134: 0 | O134: 0 | P134: 0 | Q134: 0 | R134: 0
A135: 128 | B135: ='INVENT.Construc&Bat Importé -10'!B134 -> 0 | C135: ='INVENT.Construc&Bat Importé -10'!F134 -> 0 | D135: ='INVENT.Construc&Bat Importé -10'!C134 -> 0 | E135: ='INVENT.Construc&Bat Importé -10'!H134 -> 0 | G135: 0 | H135: 0 | I135: 0 | J135: 0 | K135: 0 | L135: 0 | O135: 0 | P135: 0 | Q135: 0 | R135: 0
A136: 129 | B136: ='INVENT.Construc&Bat Importé -10'!B135 -> 0 | C136: ='INVENT.Construc&Bat Importé -10'!F135 -> 0 | D136: ='INVENT.Construc&Bat Importé -10'!C135 -> 0 | E136: ='INVENT.Construc&Bat Importé -10'!H135 -> 0 | G136: 0 | H136: 0 | I136: 0 | J136: 0 | K136: 0 | L136: 0 | O136: 0 | P136: 0 | Q136: 0 | R136: 0
A137: 130 | B137: ='INVENT.Construc&Bat Importé -10'!B136 -> 0 | C137: ='INVENT.Construc&Bat Importé -10'!F136 -> 0 | D137: ='INVENT.Construc&Bat Importé -10'!C136 -> 0 | E137: ='INVENT.Construc&Bat Importé -10'!H136 -> 0 | G137: 0 | H137: =E137*1% -> 0 | I137: =E137*1% -> 0 | J137: =E137*0.5% -> 0 | K137: 0 | L137: 0 | O137: 0 | P137: 0 | Q137: 0 | R137: 0
A138: 131 | B138: ='INVENT.Construc&Bat Importé -10'!B137 -> 0 | C138: ='INVENT.Construc&Bat Importé -10'!F137 -> 0 | D138: ='INVENT.Construc&Bat Importé -10'!C137 -> 0 | E138: ='INVENT.Construc&Bat Importé -10'!H137 -> 0 | G138: 0 | H138: 0 | I138: 0 | J138: 0 | K138: 0 | L138: 0 | O138: 0 | P138: 0 | Q138: 0 | R138: 0
A139: 132 | B139: ='INVENT.Construc&Bat Importé -10'!B138 -> 0 | C139: ='INVENT.Construc&Bat Importé -10'!F138 -> 0 | D139: ='INVENT.Construc&Bat Importé -10'!C138 -> 0 | E139: ='INVENT.Construc&Bat Importé -10'!H138 -> 0 | G139: 0 | H139: 0 | I139: 0 | J139: 0 | K139: 0 | L139: 0 | O139: 0 | P139: 0 | Q139: 0 | R139: 0
A140: 133 | B140: ='INVENT.Construc&Bat Importé -10'!B139 -> 0 | C140: ='INVENT.Construc&Bat Importé -10'!F139 -> 0 | D140: ='INVENT.Construc&Bat Importé -10'!C139 -> 0 | E140: ='INVENT.Construc&Bat Importé -10'!H139 -> 0 | G140: 0 | H140: 0 | I140: 0 | J140: 0 | K140: 0 | L140: 0 | O140: 0 | P140: 0 | Q140: 0 | R140: 0
A141: 134 | B141: ='INVENT.Construc&Bat Importé -10'!B140 -> 0 | C141: ='INVENT.Construc&Bat Importé -10'!F140 -> 0 | D141: ='INVENT.Construc&Bat Importé -10'!C140 -> 0 | E141: ='INVENT.Construc&Bat Importé -10'!H140 -> 0 | G141: 0 | H141: 0 | I141: 0 | J141: 0 | K141: 0 | L141: 0 | O141: 0 | P141: 0 | Q141: 0 | R141: 0
A142: 135 | B142: ='INVENT.Construc&Bat Importé -10'!B141 -> 0 | C142: ='INVENT.Construc&Bat Importé -10'!F141 -> 0 | D142: ='INVENT.Construc&Bat Importé -10'!C141 -> 0 | E142: ='INVENT.Construc&Bat Importé -10'!H141 -> 0 | G142: 0 | H142: 0 | I142: 0 | J142: 0 | K142: 0 | L142: 0 | O142: 0 | P142: 0 | Q142: 0 | R142: 0
A143: 136 | B143: ='INVENT.Construc&Bat Importé -10'!B142 -> 0 | C143: ='INVENT.Construc&Bat Importé -10'!F142 -> 0 | D143: ='INVENT.Construc&Bat Importé -10'!C142 -> 0 | E143: ='INVENT.Construc&Bat Importé -10'!H142 -> 0 | G143: 0 | H143: 0 | I143: 0 | J143: 0 | K143: 0 | L143: 0 | O143: 0 | P143: 0 | Q143: 0 | R143: 0
A144: 137 | B144: ='INVENT.Construc&Bat Importé -10'!B143 -> 0 | C144: ='INVENT.Construc&Bat Importé -10'!F143 -> 0 | D144: ='INVENT.Construc&Bat Importé -10'!C143 -> 0 | E144: ='INVENT.Construc&Bat Importé -10'!H143 -> 0 | G144: 0 | H144: 0 | I144: 0 | J144: 0 | K144: 0 | L144: 0 | O144: 0 | P144: 0 | Q144: 0 | R144: 0
A145: 138 | B145: ='INVENT.Construc&Bat Importé -10'!B144 -> 0 | C145: ='INVENT.Construc&Bat Importé -10'!F144 -> 0 | D145: ='INVENT.Construc&Bat Importé -10'!C144 -> 0 | E145: ='INVENT.Construc&Bat Importé -10'!H144 -> 0 | G145: 0 | H145: 0 | I145: 0 | J145: 0 | K145: 0 | L145: 0 | O145: 0 | P145: 0 | Q145: 0 | R145: 0
A146: 139 | B146: ='INVENT.Construc&Bat Importé -10'!B145 -> 0 | C146: ='INVENT.Construc&Bat Importé -10'!F145 -> 0 | D146: ='INVENT.Construc&Bat Importé -10'!C145 -> 0 | E146: ='INVENT.Construc&Bat Importé -10'!H145 -> 0 | G146: 0 | H146: 0 | I146: 0 | J146: 0 | K146: 0 | L146: 0 | O146: 0 | P146: 0 | Q146: 0 | R146: 0
A147: 140 | B147: ='INVENT.Construc&Bat Importé -10'!B146 -> 0 | C147: ='INVENT.Construc&Bat Importé -10'!F146 -> 0 | D147: ='INVENT.Construc&Bat Importé -10'!C146 -> 0 | E147: ='INVENT.Construc&Bat Importé -10'!H146 -> 0 | G147: 0 | H147: 0 | I147: 0 | J147: 0 | K147: 0 | L147: 0 | O147: 0 | P147: 0 | Q147: 0 | R147: 0
A148: 141 | B148: ='INVENT.Construc&Bat Importé -10'!B147 -> 0 | C148: ='INVENT.Construc&Bat Importé -10'!F147 -> 0 | D148: ='INVENT.Construc&Bat Importé -10'!C147 -> 0 | E148: ='INVENT.Construc&Bat Importé -10'!H147 -> 0 | G148: 0 | H148: 0 | I148: 0 | J148: 0 | K148: 0 | L148: 0 | O148: 0 | P148: 0 | Q148: 0 | R148: 0
A149: 142 | B149: ='INVENT.Construc&Bat Importé -10'!B148 -> 0 | C149: ='INVENT.Construc&Bat Importé -10'!F148 -> 0 | D149: ='INVENT.Construc&Bat Importé -10'!C148 -> 0 | E149: ='INVENT.Construc&Bat Importé -10'!H148 -> 0 | G149: 0 | H149: 0 | I149: 0 | J149: 0 | K149: 0 | L149: 0 | O149: 0 | P149: 0 | Q149: 0 | R149: 0
A150: 143 | B150: ='INVENT.Construc&Bat Importé -10'!B149 -> 0 | C150: ='INVENT.Construc&Bat Importé -10'!F149 -> 0 | D150: ='INVENT.Construc&Bat Importé -10'!C149 -> 0 | E150: ='INVENT.Construc&Bat Importé -10'!H149 -> 0 | G150: 0 | H150: 0 | I150: 0 | J150: 0 | K150: 0 | L150: 0 | O150: 0 | P150: 0 | Q150: 0 | R150: 0
A151: 144 | B151: ='INVENT.Construc&Bat Importé -10'!B150 -> 0 | C151: ='INVENT.Construc&Bat Importé -10'!F150 -> 0 | D151: ='INVENT.Construc&Bat Importé -10'!C150 -> 0 | E151: ='INVENT.Construc&Bat Importé -10'!H150 -> 0 | G151: 0 | H151: 0 | I151: 0 | J151: 0 | K151: 0 | L151: 0 | O151: 0 | P151: 0 | Q151: 0 | R151: 0
A152: 145 | B152: ='INVENT.Construc&Bat Importé -10'!B151 -> 0 | C152: ='INVENT.Construc&Bat Importé -10'!F151 -> 0 | D152: ='INVENT.Construc&Bat Importé -10'!C151 -> 0 | E152: ='INVENT.Construc&Bat Importé -10'!H151 -> 0 | G152: 0 | H152: 0 | I152: 0 | J152: 0 | K152: 0 | L152: 0 | O152: 0 | P152: 0 | Q152: 0 | R152: 0
A153: 146 | B153: ='INVENT.Construc&Bat Importé -10'!B152 -> 0 | C153: ='INVENT.Construc&Bat Importé -10'!F152 -> 0 | D153: ='INVENT.Construc&Bat Importé -10'!C152 -> 0 | E153: ='INVENT.Construc&Bat Importé -10'!H152 -> 0 | G153: 0 | H153: 0 | I153: 0 | J153: 0 | K153: 0 | L153: 0 | O153: 0 | P153: 0 | Q153: 0 | R153: 0
A154: 147 | B154: ='INVENT.Construc&Bat Importé -10'!B153 -> 0 | C154: ='INVENT.Construc&Bat Importé -10'!F153 -> 0 | D154: ='INVENT.Construc&Bat Importé -10'!C153 -> 0 | E154: ='INVENT.Construc&Bat Importé -10'!H153 -> 0 | G154: 0 | H154: 0 | I154: 0 | J154: 0 | K154: 0 | L154: 0 | O154: 0 | P154: 0 | Q154: 0 | R154: 0
A155: 148 | B155: ='INVENT.Construc&Bat Importé -10'!B154 -> 0 | C155: ='INVENT.Construc&Bat Importé -10'!F154 -> 0 | D155: ='INVENT.Construc&Bat Importé -10'!C154 -> 0 | E155: ='INVENT.Construc&Bat Importé -10'!H154 -> 0 | G155: 0 | H155: 0 | I155: 0 | J155: 0 | K155: 0 | L155: 0 | O155: 0 | P155: 0 | Q155: 0 | R155: 0
A156: 149 | B156: ='INVENT.Construc&Bat Importé -10'!B155 -> 0 | C156: ='INVENT.Construc&Bat Importé -10'!F155 -> 0 | D156: ='INVENT.Construc&Bat Importé -10'!C155 -> 0 | E156: ='INVENT.Construc&Bat Importé -10'!H155 -> 0 | G156: 0 | H156: 0 | I156: 0 | J156: 0 | K156: 0 | L156: 0 | O156: 0 | P156: 0 | Q156: 0 | R156: 0
A157: 150 | B157: ='INVENT.Construc&Bat Importé -10'!B156 -> 0 | C157: ='INVENT.Construc&Bat Importé -10'!F156 -> 0 | D157: ='INVENT.Construc&Bat Importé -10'!C156 -> 0 | E157: ='INVENT.Construc&Bat Importé -10'!H156 -> 0 | G157: 0 | H157: 0 | I157: 0 | J157: 0 | K157: 0 | L157: 0 | O157: 0 | P157: 0 | Q157: 0 | R157: 0
A158: 151 | B158: ='INVENT.Construc&Bat Importé -10'!B157 -> 0 | C158: ='INVENT.Construc&Bat Importé -10'!F157 -> 0 | D158: ='INVENT.Construc&Bat Importé -10'!C157 -> 0 | E158: ='INVENT.Construc&Bat Importé -10'!H157 -> 0 | G158: 0 | H158: 0 | I158: 0 | J158: 0 | K158: 0 | L158: 0 | O158: 0 | P158: 0 | Q158: 0 | R158: 0
A159: 152 | B159: ='INVENT.Construc&Bat Importé -10'!B158 -> 0 | C159: ='INVENT.Construc&Bat Importé -10'!F158 -> 0 | D159: ='INVENT.Construc&Bat Importé -10'!C158 -> 0 | E159: ='INVENT.Construc&Bat Importé -10'!H158 -> 0 | G159: 0 | H159: 0 | I159: 0 | J159: 0 | K159: 0 | L159: 0 | O159: 0 | P159: 0 | Q159: 0 | R159: 0
A160: 153 | B160: ='INVENT.Construc&Bat Importé -10'!B159 -> 0 | C160: ='INVENT.Construc&Bat Importé -10'!F159 -> 0 | D160: ='INVENT.Construc&Bat Importé -10'!C159 -> 0 | E160: ='INVENT.Construc&Bat Importé -10'!H159 -> 0 | G160: 0 | H160: 0 | I160: 0 | J160: 0 | K160: 0 | L160: 0 | O160: 0 | P160: 0 | Q160: 0 | R160: 0
A161: 154 | B161: ='INVENT.Construc&Bat Importé -10'!B160 -> 0 | C161: ='INVENT.Construc&Bat Importé -10'!F160 -> 0 | D161: ='INVENT.Construc&Bat Importé -10'!C160 -> 0 | E161: ='INVENT.Construc&Bat Importé -10'!H160 -> 0 | G161: 0 | H161: 0 | I161: 0 | J161: 0 | K161: 0 | L161: 0 | O161: 0 | P161: 0 | Q161: 0 | R161: 0
A162: 155 | B162: ='INVENT.Construc&Bat Importé -10'!B161 -> 0 | C162: ='INVENT.Construc&Bat Importé -10'!F161 -> 0 | D162: ='INVENT.Construc&Bat Importé -10'!C161 -> 0 | E162: ='INVENT.Construc&Bat Importé -10'!H161 -> 0 | G162: 0 | H162: 0 | I162: 0 | J162: 0 | K162: 0 | L162: 0 | O162: 0 | P162: 0 | Q162: 0 | R162: 0
A163: 156 | B163: ='INVENT.Construc&Bat Importé -10'!B162 -> 0 | C163: ='INVENT.Construc&Bat Importé -10'!F162 -> 0 | D163: ='INVENT.Construc&Bat Importé -10'!C162 -> 0 | E163: ='INVENT.Construc&Bat Importé -10'!H162 -> 0 | G163: 0 | H163: 0 | I163: 0 | J163: 0 | K163: 0 | L163: 0 | O163: 0 | P163: 0 | Q163: 0 | R163: 0
A164: 157 | B164: ='INVENT.Construc&Bat Importé -10'!B163 -> 0 | C164: ='INVENT.Construc&Bat Importé -10'!F163 -> 0 | D164: ='INVENT.Construc&Bat Importé -10'!C163 -> 0 | E164: ='INVENT.Construc&Bat Importé -10'!H163 -> 0 | G164: 0 | H164: 0 | I164: 0 | J164: 0 | K164: 0 | L164: 0 | O164: 0 | P164: 0 | Q164: 0 | R164: 0
A165: 158 | B165: ='INVENT.Construc&Bat Importé -10'!B164 -> 0 | C165: ='INVENT.Construc&Bat Importé -10'!F164 -> 0 | D165: ='INVENT.Construc&Bat Importé -10'!C164 -> 0 | E165: ='INVENT.Construc&Bat Importé -10'!H164 -> 0 | G165: 0 | H165: 0 | I165: 0 | J165: 0 | K165: 0 | L165: 0 | O165: 0 | P165: 0 | Q165: 0 | R165: 0
A166: 159 | B166: ='INVENT.Construc&Bat Importé -10'!B165 -> 0 | C166: ='INVENT.Construc&Bat Importé -10'!F165 -> 0 | D166: ='INVENT.Construc&Bat Importé -10'!C165 -> 0 | E166: ='INVENT.Construc&Bat Importé -10'!H165 -> 0 | G166: 0 | H166: 0 | I166: 0 | J166: 0 | K166: 0 | L166: 0 | O166: 0 | P166: 0 | Q166: 0 | R166: 0
A167: 160 | B167: ='INVENT.Construc&Bat Importé -10'!B166 -> 0 | C167: ='INVENT.Construc&Bat Importé -10'!F166 -> 0 | D167: ='INVENT.Construc&Bat Importé -10'!C166 -> 0 | E167: ='INVENT.Construc&Bat Importé -10'!H166 -> 0 | G167: 0 | H167: 0 | I167: 0 | J167: 0 | K167: 0 | L167: 0 | O167: 0 | P167: 0 | Q167: 0 | R167: 0
A168: 161 | B168: ='INVENT.Construc&Bat Importé -10'!B167 -> 0 | C168: ='INVENT.Construc&Bat Importé -10'!F167 -> 0 | D168: ='INVENT.Construc&Bat Importé -10'!C167 -> 0 | E168: ='INVENT.Construc&Bat Importé -10'!H167 -> 0 | G168: 0 | H168: 0 | I168: 0 | J168: 0 | K168: 0 | L168: 0 | O168: 0 | P168: 0 | Q168: 0 | R168: 0
A169: 162 | B169: ='INVENT.Construc&Bat Importé -10'!B168 -> 0 | C169: ='INVENT.Construc&Bat Importé -10'!F168 -> 0 | D169: ='INVENT.Construc&Bat Importé -10'!C168 -> 0 | E169: ='INVENT.Construc&Bat Importé -10'!H168 -> 0 | G169: 0 | H169: 0 | I169: 0 | J169: 0 | K169: 0 | L169: 0 | O169: 0 | P169: 0 | Q169: 0 | R169: 0
A170: 163 | B170: ='INVENT.Construc&Bat Importé -10'!B169 -> 0 | C170: ='INVENT.Construc&Bat Importé -10'!F169 -> 0 | D170: ='INVENT.Construc&Bat Importé -10'!C169 -> 0 | E170: ='INVENT.Construc&Bat Importé -10'!H169 -> 0 | G170: 0 | H170: 0 | I170: 0 | J170: 0 | K170: 0 | L170: 0 | O170: 0 | P170: 0 | Q170: 0 | R170: 0
A171: 164 | B171: ='INVENT.Construc&Bat Importé -10'!B170 -> 0 | C171: ='INVENT.Construc&Bat Importé -10'!F170 -> 0 | D171: ='INVENT.Construc&Bat Importé -10'!C170 -> 0 | E171: ='INVENT.Construc&Bat Importé -10'!H170 -> 0 | G171: 0 | H171: 0 | I171: 0 | J171: 0 | K171: 0 | L171: 0 | O171: 0 | P171: 0 | Q171: 0 | R171: 0
A172: 165 | B172: ='INVENT.Construc&Bat Importé -10'!B171 -> 0 | C172: ='INVENT.Construc&Bat Importé -10'!F171 -> 0 | D172: ='INVENT.Construc&Bat Importé -10'!C171 -> 0 | E172: ='INVENT.Construc&Bat Importé -10'!H171 -> 0 | G172: 0 | H172: 0 | I172: 0 | J172: 0 | K172: 0 | L172: 0 | O172: 0 | P172: 0 | Q172: 0 | R172: 0
A173: 166 | B173: ='INVENT.Construc&Bat Importé -10'!B172 -> 0 | C173: ='INVENT.Construc&Bat Importé -10'!F172 -> 0 | D173: ='INVENT.Construc&Bat Importé -10'!C172 -> 0 | E173: ='INVENT.Construc&Bat Importé -10'!H172 -> 0 | G173: 0 | H173: 0 | I173: 0 | J173: 0 | K173: 0 | L173: 0 | O173: 0 | P173: 0 | Q173: 0 | R173: 0
A174: 167 | B174: ='INVENT.Construc&Bat Importé -10'!B173 -> 0 | C174: ='INVENT.Construc&Bat Importé -10'!F173 -> 0 | D174: ='INVENT.Construc&Bat Importé -10'!C173 -> 0 | E174: ='INVENT.Construc&Bat Importé -10'!H173 -> 0 | G174: 0 | H174: 0 | I174: 0 | J174: 0 | K174: 0 | L174: 0 | O174: 0 | P174: 0 | Q174: 0 | R174: 0
A175: =+A174+1 -> 168 | B175: ='INVENT.Construc&Bat Importé -10'!B174 -> 0 | C175: ='INVENT.Construc&Bat Importé -10'!F174 -> 0 | D175: ='INVENT.Construc&Bat Importé -10'!C174 -> 0 | E175: ='INVENT.Construc&Bat Importé -10'!H174 -> 0 | G175: 0 | H175: 0 | I175: 0 | J175: 0 | K175: 0 | L175: 0 | O175: 0 | P175: 0 | Q175: 0 | R175: 0
A176: 169 | B176: ='INVENT.Construc&Bat Importé -10'!B175 -> 0 | C176: ='INVENT.Construc&Bat Importé -10'!F175 -> 0 | D176: ='INVENT.Construc&Bat Importé -10'!C175 -> 0 | E176: ='INVENT.Construc&Bat Importé -10'!H175 -> 0 | G176: 0 | H176: 0 | I176: 0 | J176: 0 | K176: 0 | L176: 0 | O176: 0 | P176: 0 | Q176: 0 | R176: 0
A177: 170 | B177: ='INVENT.Construc&Bat Importé -10'!B176 -> 0 | C177: ='INVENT.Construc&Bat Importé -10'!F176 -> 0 | D177: ='INVENT.Construc&Bat Importé -10'!C176 -> 0 | E177: ='INVENT.Construc&Bat Importé -10'!H176 -> 0 | G177: 0 | H177: 0 | I177: 0 | J177: 0 | K177: 0 | L177: 0 | O177: 0 | P177: 0 | Q177: 0 | R177: 0
A178: 171 | B178: ='INVENT.Construc&Bat Importé -10'!B177 -> 0 | C178: ='INVENT.Construc&Bat Importé -10'!F177 -> 0 | D178: ='INVENT.Construc&Bat Importé -10'!C177 -> 0 | E178: ='INVENT.Construc&Bat Importé -10'!H177 -> 0 | G178: 0 | H178: 0 | I178: 0 | J178: 0 | K178: 0 | L178: 0 | O178: 0 | P178: 0 | Q178: 0 | R178: 0
A179: 172 | B179: ='INVENT.Construc&Bat Importé -10'!B178 -> 0 | C179: ='INVENT.Construc&Bat Importé -10'!F178 -> 0 | D179: ='INVENT.Construc&Bat Importé -10'!C178 -> 0 | E179: ='INVENT.Construc&Bat Importé -10'!H178 -> 0 | G179: 0 | H179: 0 | I179: 0 | J179: 0 | K179: 0 | L179: 0 | O179: 0 | P179: 0 | Q179: 0 | R179: 0
A180: 173 | B180: ='INVENT.Construc&Bat Importé -10'!B179 -> 0 | C180: ='INVENT.Construc&Bat Importé -10'!F179 -> 0 | D180: ='INVENT.Construc&Bat Importé -10'!C179 -> 0 | E180: ='INVENT.Construc&Bat Importé -10'!H179 -> 0 | G180: 0 | H180: 0 | I180: 0 | J180: 0 | K180: 0 | L180: 0 | O180: 0 | P180: 0 | Q180: 0 | R180: 0
A181: 174 | B181: ='INVENT.Construc&Bat Importé -10'!B180 -> 0 | C181: ='INVENT.Construc&Bat Importé -10'!F180 -> 0 | D181: ='INVENT.Construc&Bat Importé -10'!C180 -> 0 | E181: ='INVENT.Construc&Bat Importé -10'!H180 -> 0 | G181: 0 | H181: 0 | I181: 0 | J181: 0 | K181: 0 | L181: 0 | O181: 0 | P181: 0 | Q181: 0 | R181: 0
A182: 175 | B182: ='INVENT.Construc&Bat Importé -10'!B181 -> 0 | C182: ='INVENT.Construc&Bat Importé -10'!F181 -> 0 | D182: ='INVENT.Construc&Bat Importé -10'!C181 -> 0 | E182: ='INVENT.Construc&Bat Importé -10'!H181 -> 0 | G182: 0 | H182: 0 | I182: 0 | J182: 0 | K182: 0 | L182: 0 | O182: 0 | P182: 0 | Q182: 0 | R182: 0
A183: 176 | B183: ='INVENT.Construc&Bat Importé -10'!B182 -> 0 | C183: ='INVENT.Construc&Bat Importé -10'!F182 -> 0 | D183: ='INVENT.Construc&Bat Importé -10'!C182 -> 0 | E183: ='INVENT.Construc&Bat Importé -10'!H182 -> 0 | G183: =F183*E183 -> 0 | H183: 0 | I183: 0 | J183: 0 | K183: =(E183+G183+H183)*18% -> 0 | L183: =SUM(G183:K183)+E183 -> 0 | O183: =(M183+N183)*18% -> 0 | P183: =O183+N183+M183 -> 0 | Q183: =+R183-O183-K183 -> 0 | R183: =P183+L183 -> 0
A184: 177 | B184: ='INVENT.Construc&Bat Importé -10'!B183 -> 0 | C184: ='INVENT.Construc&Bat Importé -10'!F183 -> 0 | D184: ='INVENT.Construc&Bat Importé -10'!C183 -> 0 | E184: ='INVENT.Construc&Bat Importé -10'!H183 -> 0 | G184: 0 | H184: 0 | I184: 0 | J184: 0 | K184: 0 | L184: 0 | O184: 0 | P184: 0 | Q184: 0 | R184: 0
A185: 178 | B185: ='INVENT.Construc&Bat Importé -10'!B184 -> 0 | C185: ='INVENT.Construc&Bat Importé -10'!F184 -> 0 | D185: ='INVENT.Construc&Bat Importé -10'!C184 -> 0 | E185: ='INVENT.Construc&Bat Importé -10'!H184 -> 0 | G185: 0 | H185: 0 | I185: 0 | J185: 0 | K185: 0 | L185: 0 | O185: 0 | P185: 0 | Q185: 0 | R185: 0
A186: 179 | B186: ='INVENT.Construc&Bat Importé -10'!B185 -> 0 | C186: ='INVENT.Construc&Bat Importé -10'!F185 -> 0 | D186: ='INVENT.Construc&Bat Importé -10'!C185 -> 0 | E186: ='INVENT.Construc&Bat Importé -10'!H185 -> 0 | G186: 0 | H186: 0 | I186: 0 | J186: 0 | K186: 0 | L186: 0 | O186: 0 | P186: 0 | Q186: 0 | R186: 0
A187: 180 | B187: ='INVENT.Construc&Bat Importé -10'!B186 -> 0 | C187: ='INVENT.Construc&Bat Importé -10'!F186 -> 0 | D187: ='INVENT.Construc&Bat Importé -10'!C186 -> 0 | E187: ='INVENT.Construc&Bat Importé -10'!H186 -> 0 | G187: 0 | H187: 0 | I187: 0 | J187: 0 | K187: 0 | L187: 0 | O187: 0 | P187: 0 | Q187: 0 | R187: 0
A188: 181 | B188: ='INVENT.Construc&Bat Importé -10'!B187 -> 0 | C188: ='INVENT.Construc&Bat Importé -10'!F187 -> 0 | D188: ='INVENT.Construc&Bat Importé -10'!C187 -> 0 | E188: ='INVENT.Construc&Bat Importé -10'!H187 -> 0 | G188: 0 | H188: 0 | I188: 0 | J188: 0 | K188: 0 | L188: 0 | O188: 0 | P188: 0 | Q188: 0 | R188: 0
A189: 182 | B189: ='INVENT.Construc&Bat Importé -10'!B188 -> 0 | C189: ='INVENT.Construc&Bat Importé -10'!F188 -> 0 | D189: ='INVENT.Construc&Bat Importé -10'!C188 -> 0 | E189: ='INVENT.Construc&Bat Importé -10'!H188 -> 0 | G189: 0 | H189: 0 | I189: 0 | J189: 0 | K189: 0 | L189: 0 | O189: 0 | P189: 0 | Q189: 0 | R189: 0
A190: 183 | B190: ='INVENT.Construc&Bat Importé -10'!B189 -> 0 | C190: ='INVENT.Construc&Bat Importé -10'!F189 -> 0 | D190: ='INVENT.Construc&Bat Importé -10'!C189 -> 0 | E190: ='INVENT.Construc&Bat Importé -10'!H189 -> 0 | G190: 0 | H190: 0 | I190: 0 | J190: 0 | K190: 0 | L190: 0 | O190: 0 | P190: 0 | Q190: 0 | R190: 0
A191: 184 | B191: ='INVENT.Construc&Bat Importé -10'!B190 -> 0 | C191: ='INVENT.Construc&Bat Importé -10'!F190 -> 0 | D191: ='INVENT.Construc&Bat Importé -10'!C190 -> 0 | E191: ='INVENT.Construc&Bat Importé -10'!H190 -> 0 | G191: 0 | H191: 0 | I191: 0 | J191: 0 | K191: 0 | L191: 0 | O191: 0 | P191: 0 | Q191: 0 | R191: 0
A192: 185 | B192: ='INVENT.Construc&Bat Importé -10'!B191 -> 0 | C192: ='INVENT.Construc&Bat Importé -10'!F191 -> 0 | D192: ='INVENT.Construc&Bat Importé -10'!C191 -> 0 | E192: ='INVENT.Construc&Bat Importé -10'!H191 -> 0 | G192: 0 | H192: 0 | I192: 0 | J192: 0 | K192: 0 | L192: 0 | O192: 0 | P192: 0 | Q192: 0 | R192: 0
A193: 186 | B193: ='INVENT.Construc&Bat Importé -10'!B192 -> 0 | C193: ='INVENT.Construc&Bat Importé -10'!F192 -> 0 | D193: ='INVENT.Construc&Bat Importé -10'!C192 -> 0 | E193: ='INVENT.Construc&Bat Importé -10'!H192 -> 0 | G193: 0 | H193: 0 | I193: 0 | J193: 0 | K193: 0 | L193: 0 | O193: 0 | P193: 0 | Q193: 0 | R193: 0
A194: 187 | B194: ='INVENT.Construc&Bat Importé -10'!B193 -> 0 | C194: ='INVENT.Construc&Bat Importé -10'!F193 -> 0 | D194: ='INVENT.Construc&Bat Importé -10'!C193 -> 0 | E194: ='INVENT.Construc&Bat Importé -10'!H193 -> 0 | G194: 0 | H194: 0 | I194: 0 | J194: 0 | K194: 0 | L194: 0 | O194: 0 | P194: 0 | Q194: 0 | R194: 0
A195: 188 | B195: ='INVENT.Construc&Bat Importé -10'!B194 -> 0 | C195: ='INVENT.Construc&Bat Importé -10'!F194 -> 0 | D195: ='INVENT.Construc&Bat Importé -10'!C194 -> 0 | E195: ='INVENT.Construc&Bat Importé -10'!H194 -> 0 | G195: 0 | H195: 0 | I195: 0 | J195: 0 | K195: 0 | L195: 0 | O195: 0 | P195: 0 | Q195: 0 | R195: 0
A196: 189 | B196: ='INVENT.Construc&Bat Importé -10'!B195 -> 0 | C196: ='INVENT.Construc&Bat Importé -10'!F195 -> 0 | D196: ='INVENT.Construc&Bat Importé -10'!C195 -> 0 | E196: ='INVENT.Construc&Bat Importé -10'!H195 -> 0 | G196: 0 | H196: 0 | I196: 0 | J196: 0 | K196: 0 | L196: 0 | O196: 0 | P196: 0 | Q196: 0 | R196: 0
A197: 190 | B197: ='INVENT.Construc&Bat Importé -10'!B196 -> 0 | C197: ='INVENT.Construc&Bat Importé -10'!F196 -> 0 | D197: ='INVENT.Construc&Bat Importé -10'!C196 -> 0 | E197: ='INVENT.Construc&Bat Importé -10'!H196 -> 0 | G197: 0 | H197: 0 | I197: 0 | J197: 0 | K197: 0 | L197: 0 | O197: 0 | P197: 0 | Q197: 0 | R197: 0
A198: 191 | B198: ='INVENT.Construc&Bat Importé -10'!B197 -> 0 | C198: ='INVENT.Construc&Bat Importé -10'!F197 -> 0 | D198: ='INVENT.Construc&Bat Importé -10'!C197 -> 0 | E198: ='INVENT.Construc&Bat Importé -10'!H197 -> 0 | G198: 0 | H198: 0 | I198: 0 | J198: 0 | K198: 0 | L198: 0 | O198: 0 | P198: 0 | Q198: 0 | R198: 0
A199: 192 | B199: ='INVENT.Construc&Bat Importé -10'!B198 -> 0 | C199: ='INVENT.Construc&Bat Importé -10'!F198 -> 0 | D199: ='INVENT.Construc&Bat Importé -10'!C198 -> 0 | E199: ='INVENT.Construc&Bat Importé -10'!H198 -> 0 | G199: 0 | H199: 0 | I199: 0 | J199: 0 | K199: 0 | L199: 0 | O199: 0 | P199: 0 | Q199: 0 | R199: 0
A200: 193 | B200: ='INVENT.Construc&Bat Importé -10'!B199 -> 0 | C200: ='INVENT.Construc&Bat Importé -10'!F199 -> 0 | D200: ='INVENT.Construc&Bat Importé -10'!C199 -> 0 | E200: ='INVENT.Construc&Bat Importé -10'!H199 -> 0 | G200: 0 | H200: 0 | I200: 0 | J200: 0 | K200: 0 | L200: 0 | O200: 0 | P200: 0 | Q200: 0 | R200: 0
A201: 194 | B201: ='INVENT.Construc&Bat Importé -10'!B200 -> 0 | C201: ='INVENT.Construc&Bat Importé -10'!F200 -> 0 | D201: ='INVENT.Construc&Bat Importé -10'!C200 -> 0 | E201: ='INVENT.Construc&Bat Importé -10'!H200 -> 0 | G201: 0 | H201: =E201*1% -> 0 | I201: =E201*1% -> 0 | J201: =E201*0.5% -> 0 | K201: 0 | L201: 0 | O201: 0 | P201: 0 | Q201: 0 | R201: 0
... 306 more rows

Sheet INVEST - Installations & Agenc
D1: ='REFERENCES - 10'!D7 -> 0 | F1: ='REFERENCES - 10'!D9 -> 0
B2: INVESTISSEMENTS PREVUS SUR LA PERIODE DE REALISATION DU PROJET | R2: (En F. Cfa)
A3: N° | B3: Désignation | C3: Quantité | D3: ACHAT A L'ETRANGER (en F. Cfa) | M3: ACHAT EN COTE D'IVOIRE (en F. Cfa) | Q3: Coût total des Investissements
D4: Position tarifaire | E4: Cout CAF | F4: Droit de douane / Droit fiscaux | H4: RSTAT (1%) | I4: PCS (1%) | J4: PCC (0,5%) | K4: TVA sur Droit de Douane | L4: Total Achat à l'étranger | M4: Achats HT | N4: Coûts locaux (Transport, montage,..) | O4: T.V.A | P4: Total Achat en RCI | Q4: Coût total HT | R4: Coût total TTC
F5: Taux | G5: Montant
B7: INSTALLATIONS ET AGENCEMENTS | E7: =SUM(E8:E507) -> 0 | G7: =SUM(G8:G507) -> 0 | H7: 0 | I7: 0 | J7: 0 | K7: 0 | L7: 0 | M7: 0 | N7: 0 | O7: 0 | P7: 0 | Q7: 0 | R7: 0
A8: 1 | B8: ='INVENT.Inst&Agen Importés -10'!B7 -> 0 | C8: ='INVENT.Inst&Agen Importés -10'!F7 -> 0 | D8: ='INVENT.Inst&Agen Importés -10'!C7 -> 0 | E8: ='INVENT.Inst&Agen Importés -10'!H7 -> 0 | G8: =F8*E8 -> 0 | H8: =E8*1% -> 0 | I8: =E8*1% -> 0 | J8: =E8*0.5% -> 0 | K8: =(E8+G8+H8)*18% -> 0 | L8: =SUM(G8:K8)+E8 -> 0 | O8: =(M8+N8)*18% -> 0 | P8: =O8+N8+M8 -> 0 | Q8: =+R8-O8-K8 -> 0 | R8: =P8+L8 -> 0
A9: =+A8+1 -> 2 | B9: ='INVENT.Inst&Agen Importés -10'!B8 -> 0 | C9: ='INVENT.Inst&Agen Importés -10'!F8 -> 0 | D9: ='INVENT.Inst&Agen Importés -10'!C8 -> 0 | E9: ='INVENT.Inst&Agen Importés -10'!H8 -> 0 | G9: =F9*E9 -> 0 | H9: =E9*1% -> 0 | I9: =E9*1% -> 0 | J9: =E9*0.5% -> 0 | K9: =(E9+G9+H9)*18% -> 0 | L9: 0 | O9: =(M9+N9)*18% -> 0 | P9: =O9+N9+M9 -> 0 | Q9: =+R9-O9-K9 -> 0 | R9: =P9+L9 -> 0
A10: =+A9+1 -> 3 | B10: ='INVENT.Inst&Agen Importés -10'!B9 -> 0 | C10: ='INVENT.Inst&Agen Importés -10'!F9 -> 0 | D10: ='INVENT.Inst&Agen Importés -10'!C9 -> 0 | E10: ='INVENT.Inst&Agen Importés -10'!H9 -> 0 | G10: =F10*E10 -> 0 | H10: 0 | I10: 0 | J10: 0 | K10: =(E10+G10+H10)*18% -> 0 | L10: 0 | O10: =(M10+N10)*18% -> 0 | P10: =O10+N10+M10 -> 0 | Q10: =+R10-O10-K10 -> 0 | R10: =P10+L10 -> 0
A11: 4 | B11: ='INVENT.Inst&Agen Importés -10'!B10 -> 0 | C11: ='INVENT.Inst&Agen Importés -10'!F10 -> 0 | D11: ='INVENT.Inst&Agen Importés -10'!C10 -> 0 | E11: ='INVENT.Inst&Agen Importés -10'!H10 -> 0 | G11: 0 | H11: 0 | I11: 0 | J11: 0 | K11: 0 | L11: 0 | O11: =(M11+N11)*18% -> 0 | P11: =O11+N11+M11 -> 0 | Q11: =+R11-O11-K11 -> 0 | R11: =P11+L11 -> 0
A12: 5 | B12: ='INVENT.Inst&Agen Importés -10'!B11 -> 0 | C12: ='INVENT.Inst&Agen Importés -10'!F11 -> 0 | D12: ='INVENT.Inst&Agen Importés -10'!C11 -> 0 | E12: ='INVENT.Inst&Agen Importés -10'!H11 -> 0 | G12: 0 | H12: 0 | I12: 0 | J12: 0 | K12: 0 | L12: 0 | O12: 0 | P12: 0 | Q12: 0 | R12: 0
A13: 6 | B13: ='INVENT.Inst&Agen Importés -10'!B12 -> 0 | C13: ='INVENT.Inst&Agen Importés -10'!F12 -> 0 | D13: ='INVENT.Inst&Agen Importés -10'!C12 -> 0 | E13: ='INVENT.Inst&Agen Importés -10'!H12 -> 0 | G13: 0 | H13: 0 | I13: 0 | J13: 0 | K13: 0 | L13: 0 | O13: 0 | P13: 0 | Q13: 0 | R13: 0
A14: 7 | B14: ='INVENT.Inst&Agen Importés -10'!B13 -> 0 | C14: ='INVENT.Inst&Agen Importés -10'!F13 -> 0 | D14: ='INVENT.Inst&Agen Importés -10'!C13 -> 0 | E14: ='INVENT.Inst&Agen Importés -10'!H13 -> 0 | G14: 0 | H14: 0 | I14: 0 | J14: 0 | K14: 0 | L14: 0 | O14: 0 | P14: 0 | Q14: 0 | R14: 0
A15: 8 | B15: ='INVENT.Inst&Agen Importés -10'!B14 -> 0 | C15: ='INVENT.Inst&Agen Importés -10'!F14 -> 0 | D15: ='INVENT.Inst&Agen Importés -10'!C14 -> 0 | E15: ='INVENT.Inst&Agen Importés -10'!H14 -> 0 | G15: 0 | H15: 0 | I15: 0 | J15: 0 | K15: 0 | L15: 0 | O15: 0 | P15: 0 | Q15: 0 | R15: 0
A16: 9 | B16: ='INVENT.Inst&Agen Importés -10'!B15 -> 0 | C16: ='INVENT.Inst&Agen Importés -10'!F15 -> 0 | D16: ='INVENT.Inst&Agen Importés -10'!C15 -> 0 | E16: ='INVENT.Inst&Agen Importés -10'!H15 -> 0 | G16: 0 | H16: 0 | I16: 0 | J16: 0 | K16: 0 | L16: 0 | O16: 0 | P16: 0 | Q16: 0 | R16: 0
A17: 10 | B17: ='INVENT.Inst&Agen Importés -10'!B16 -> 0 | C17: ='INVENT.Inst&Agen Importés -10'!F16 -> 0 | D17: ='INVENT.Inst&Agen Importés -10'!C16 -> 0 | E17: ='INVENT.Inst&Agen Importés -10'!H16 -> 0 | G17: 0 | H17: 0 | I17: 0 | J17: 0 | K17: 0 | L17: 0 | O17: 0 | P17: 0 | Q17: 0 | R17: 0
A18: 11 | B18: ='INVENT.Inst&Agen Importés -10'!B17 -> 0 | C18: ='INVENT.Inst&Agen Importés -10'!F17 -> 0 | D18: ='INVENT.Inst&Agen Importés -10'!C17 -> 0 | E18: ='INVENT.Inst&Agen Importés -10'!H17 -> 0 | G18: 0 | H18: 0 | I18: 0 | J18: 0 | K18: 0 | L18: 0 | O18: 0 | P18: 0 | Q18: 0 | R18: 0
A19: 12 | B19: ='INVENT.Inst&Agen Importés -10'!B18 -> 0 | C19: ='INVENT.Inst&Agen Importés -10'!F18 -> 0 | D19: ='INVENT.Inst&Agen Importés -10'!C18 -> 0 | E19: ='INVENT.Inst&Agen Importés -10'!H18 -> 0 | G19: 0 | H19: 0 | I19: 0 | J19: 0 | K19: 0 | L19: 0 | O19: 0 | P19: 0 | Q19: 0 | R19: 0
A20: 13 | B20: ='INVENT.Inst&Agen Importés -10'!B19 -> 0 | C20: ='INVENT.Inst&Agen Importés -10'!F19 -> 0 | D20: ='INVENT.Inst&Agen Importés -10'!C19 -> 0 | E20: ='INVENT.Inst&Agen Importés -10'!H19 -> 0 | G20: 0 | H20: 0 | I20: 0 | J20: 0 | K20: 0 | L20: 0 | O20: 0 | P20: 0 | Q20: 0 | R20: 0
A21: 14 | B21: ='INVENT.Inst&Agen Importés -10'!B20 -> 0 | C21: ='INVENT.Inst&Agen Importés -10'!F20 -> 0 | D21: ='INVENT.Inst&Agen Importés -10'!C20 -> 0 | E21: ='INVENT.Inst&Agen Importés -10'!H20 -> 0 | G21: 0 | H21: 0 | I21: 0 | J21: 0 | K21: 0 | L21: 0 | O21: 0 | P21: 0 | Q21: 0 | R21: 0
A22: 15 | B22: ='INVENT.Inst&Agen Importés -10'!B21 -> 0 | C22: ='INVENT.Inst&Agen Importés -10'!F21 -> 0 | D22: ='INVENT.Inst&Agen Importés -10'!C21 -> 0 | E22: ='INVENT.Inst&Agen Importés -10'!H21 -> 0 | G22: 0 | H22: 0 | I22: 0 | J22: 0 | K22: 0 | L22: 0 | O22: 0 | P22: 0 | Q22: 0 | R22: 0
A23: 16 | B23: ='INVENT.Inst&Agen Importés -10'!B22 -> 0 | C23: ='INVENT.Inst&Agen Importés -10'!F22 -> 0 | D23: ='INVENT.Inst&Agen Importés -10'!C22 -> 0 | E23: ='INVENT.Inst&Agen Importés -10'!H22 -> 0 | G23: 0 | H23: 0 | I23: 0 | J23: 0 | K23: 0 | L23: 0 | O23: 0 | P23: 0 | Q23: 0 | R23: 0
A24: 17 | B24: ='INVENT.Inst&Agen Importés -10'!B23 -> 0 | C24: ='INVENT.Inst&Agen Importés -10'!F23 -> 0 | D24: ='INVENT.Inst&Agen Importés -10'!C23 -> 0 | E24: ='INVENT.Inst&Agen Importés -10'!H23 -> 0 | G24: 0 | H24: 0 | I24: 0 | J24: 0 | K24: 0 | L24: 0 | O24: 0 | P24: 0 | Q24: 0 | R24: 0
A25: 18 | B25: ='INVENT.Inst&Agen Importés -10'!B24 -> 0 | C25: ='INVENT.Inst&Agen Importés -10'!F24 -> 0 | D25: ='INVENT.Inst&Agen Importés -10'!C24 -> 0 | E25: ='INVENT.Inst&Agen Importés -10'!H24 -> 0 | G25: 0 | H25: 0 | I25: 0 | J25: 0 | K25: 0 | L25: 0 | O25: 0 | P25: 0 | Q25: 0 | R25: 0
A26: 19 | B26: ='INVENT.Inst&Agen Importés -10'!B25 -> 0 | C26: ='INVENT.Inst&Agen Importés -10'!F25 -> 0 | D26: ='INVENT.Inst&Agen Importés -10'!C25 -> 0 | E26: ='INVENT.Inst&Agen Importés -10'!H25 -> 0 | G26: 0 | H26: 0 | I26: 0 | J26: 0 | K26: 0 | L26: 0 | O26: 0 | P26: 0 | Q26: 0 | R26: 0
A27: 20 | B27: ='INVENT.Inst&Agen Importés -10'!B26 -> 0 | C27: ='INVENT.Inst&Agen Importés -10'!F26 -> 0 | D27: ='INVENT.Inst&Agen Importés -10'!C26 -> 0 | E27: ='INVENT.Inst&Agen Importés -10'!H26 -> 0 | G27: 0 | H27: 0 | I27: 0 | J27: 0 | K27: 0 | L27: 0 | O27: 0 | P27: 0 | Q27: 0 | R27: 0
A28: 21 | B28: ='INVENT.Inst&Agen Importés -10'!B27 -> 0 | C28: ='INVENT.Inst&Agen Importés -10'!F27 -> 0 | D28: ='INVENT.Inst&Agen Importés -10'!C27 -> 0 | E28: ='INVENT.Inst&Agen Importés -10'!H27 -> 0 | G28: 0 | H28: 0 | I28: 0 | J28: 0 | K28: 0 | L28: 0 | O28: 0 | P28: 0 | Q28: 0 | R28: 0
A29: 22 | B29: ='INVENT.Inst&Agen Importés -10'!B28 -> 0 | C29: ='INVENT.Inst&Agen Importés -10'!F28 -> 0 | D29: ='INVENT.Inst&Agen Importés -10'!C28 -> 0 | E29: ='INVENT.Inst&Agen Importés -10'!H28 -> 0 | G29: 0 | H29: 0 | I29: 0 | J29: 0 | K29: 0 | L29: 0 | O29: 0 | P29: 0 | Q29: 0 | R29: 0
A30: 23 | B30: ='INVENT.Inst&Agen Importés -10'!B29 -> 0 | C30: ='INVENT.Inst&Agen Importés -10'!F29 -> 0 | D30: ='INVENT.Inst&Agen Importés -10'!C29 -> 0 | E30: ='INVENT.Inst&Agen Importés -10'!H29 -> 0 | G30: 0 | H30: 0 | I30: 0 | J30: 0 | K30: 0 | L30: 0 | O30: 0 | P30: 0 | Q30: 0 | R30: 0
A31: 24 | B31: ='INVENT.Inst&Agen Importés -10'!B30 -> 0 | C31: ='INVENT.Inst&Agen Importés -10'!F30 -> 0 | D31: ='INVENT.Inst&Agen Importés -10'!C30 -> 0 | E31: ='INVENT.Inst&Agen Importés -10'!H30 -> 0 | G31: 0 | H31: 0 | I31: 0 | J31: 0 | K31: 0 | L31: 0 | O31: 0 | P31: 0 | Q31: 0 | R31: 0
A32: 25 | B32: ='INVENT.Inst&Agen Importés -10'!B31 -> 0 | C32: ='INVENT.Inst&Agen Importés -10'!F31 -> 0 | D32: ='INVENT.Inst&Agen Importés -10'!C31 -> 0 | E32: ='INVENT.Inst&Agen Importés -10'!H31 -> 0 | G32: 0 | H32: 0 | I32: 0 | J32: 0 | K32: 0 | L32: 0 | O32: 0 | P32: 0 | Q32: 0 | R32: 0
A33: 26 | B33: ='INVENT.Inst&Agen Importés -10'!B32 -> 0 | C33: ='INVENT.Inst&Agen Importés -10'!F32 -> 0 | D33: ='INVENT.Inst&Agen Importés -10'!C32 -> 0 | E33: ='INVENT.Inst&Agen Importés -10'!H32 -> 0 | G33: 0 | H33: 0 | I33: 0 | J33: 0 | K33: 0 | L33: 0 | O33: 0 | P33: 0 | Q33: 0 | R33: 0
A34: 27 | B34: ='INVENT.Inst&Agen Importés -10'!B33 -> 0 | C34: ='INVENT.Inst&Agen Importés -10'!F33 -> 0 | D34: ='INVENT.Inst&Agen Importés -10'!C33 -> 0 | E34: ='INVENT.Inst&Agen Importés -10'!H33 -> 0 | G34: 0 | H34: 0 | I34: 0 | J34: 0 | K34: 0 | L34: 0 | O34: 0 | P34: 0 | Q34: 0 | R34: 0
A35: 28 | B35: ='INVENT.Inst&Agen Importés -10'!B34 -> 0 | C35: ='INVENT.Inst&Agen Importés -10'!F34 -> 0 | D35: ='INVENT.Inst&Agen Importés -10'!C34 -> 0 | E35: ='INVENT.Inst&Agen Importés -10'!H34 -> 0 | G35: 0 | H35: 0 | I35: 0 | J35: 0 | K35: 0 | L35: 0 | O35: 0 | P35: 0 | Q35: 0 | R35: 0
A36: 29 | B36: ='INVENT.Inst&Agen Importés -10'!B35 -> 0 | C36: ='INVENT.Inst&Agen Importés -10'!F35 -> 0 | D36: ='INVENT.Inst&Agen Importés -10'!C35 -> 0 | E36: ='INVENT.Inst&Agen Importés -10'!H35 -> 0 | G36: 0 | H36: 0 | I36: 0 | J36: 0 | K36: 0 | L36: 0 | O36: 0 | P36: 0 | Q36: 0 | R36: 0
A37: 30 | B37: ='INVENT.Inst&Agen Importés -10'!B36 -> 0 | C37: ='INVENT.Inst&Agen Importés -10'!F36 -> 0 | D37: ='INVENT.Inst&Agen Importés -10'!C36 -> 0 | E37: ='INVENT.Inst&Agen Importés -10'!H36 -> 0 | G37: 0 | H37: 0 | I37: 0 | J37: 0 | K37: 0 | L37: 0 | O37: 0 | P37: 0 | Q37: 0 | R37: 0
A38: 31 | B38: ='INVENT.Inst&Agen Importés -10'!B37 -> 0 | C38: ='INVENT.Inst&Agen Importés -10'!F37 -> 0 | D38: ='INVENT.Inst&Agen Importés -10'!C37 -> 0 | E38: ='INVENT.Inst&Agen Importés -10'!H37 -> 0 | G38: 0 | H38: 0 | I38: 0 | J38: 0 | K38: 0 | L38: 0 | O38: 0 | P38: 0 | Q38: 0 | R38: 0
A39: 32 | B39: ='INVENT.Inst&Agen Importés -10'!B38 -> 0 | C39: ='INVENT.Inst&Agen Importés -10'!F38 -> 0 | D39: ='INVENT.Inst&Agen Importés -10'!C38 -> 0 | E39: ='INVENT.Inst&Agen Importés -10'!H38 -> 0 | G39: 0 | H39: 0 | I39: 0 | J39: 0 | K39: 0 | L39: 0 | O39: 0 | P39: 0 | Q39: 0 | R39: 0
A40: 33 | B40: ='INVENT.Inst&Agen Importés -10'!B39 -> 0 | C40: ='INVENT.Inst&Agen Importés -10'!F39 -> 0 | D40: ='INVENT.Inst&Agen Importés -10'!C39 -> 0 | E40: ='INVENT.Inst&Agen Importés -10'!H39 -> 0 | G40: 0 | H40: 0 | I40: 0 | J40: 0 | K40: 0 | L40: 0 | O40: 0 | P40: 0 | Q40: 0 | R40: 0
A41: 34 | B41: ='INVENT.Inst&Agen Importés -10'!B40 -> 0 | C41: ='INVENT.Inst&Agen Importés -10'!F40 -> 0 | D41: ='INVENT.Inst&Agen Importés -10'!C40 -> 0 | E41: ='INVENT.Inst&Agen Importés -10'!H40 -> 0 | G41: 0 | H41: 0 | I41: 0 | J41: 0 | K41: 0 | L41: 0 | O41: 0 | P41: 0 | Q41: 0 | R41: 0
A42: 35 | B42: ='INVENT.Inst&Agen Importés -10'!B41 -> 0 | C42: ='INVENT.Inst&Agen Importés -10'!F41 -> 0 | D42: ='INVENT.Inst&Agen Importés -10'!C41 -> 0 | E42: ='INVENT.Inst&Agen Importés -10'!H41 -> 0 | G42: 0 | H42: 0 | I42: 0 | J42: 0 | K42: 0 | L42: 0 | O42: 0 | P42: 0 | Q42: 0 | R42: 0
A43: 36 | B43: ='INVENT.Inst&Agen Importés -10'!B42 -> 0 | C43: ='INVENT.Inst&Agen Importés -10'!F42 -> 0 | D43: ='INVENT.Inst&Agen Importés -10'!C42 -> 0 | E43: ='INVENT.Inst&Agen Importés -10'!H42 -> 0 | G43: 0 | H43: 0 | I43: 0 | J43: 0 | K43: 0 | L43: 0 | O43: 0 | P43: 0 | Q43: 0 | R43: 0
A44: 37 | B44: ='INVENT.Inst&Agen Importés -10'!B43 -> 0 | C44: ='INVENT.Inst&Agen Importés -10'!F43 -> 0 | D44: ='INVENT.Inst&Agen Importés -10'!C43 -> 0 | E44: ='INVENT.Inst&Agen Importés -10'!H43 -> 0 | G44: 0 | H44: 0 | I44: 0 | J44: 0 | K44: 0 | L44: 0 | O44: 0 | P44: 0 | Q44: 0 | R44: 0
A45: 38 | B45: ='INVENT.Inst&Agen Importés -10'!B44 -> 0 | C45: ='INVENT.Inst&Agen Importés -10'!F44 -> 0 | D45: ='INVENT.Inst&Agen Importés -10'!C44 -> 0 | E45: ='INVENT.Inst&Agen Importés -10'!H44 -> 0 | G45: 0 | H45: 0 | I45: 0 | J45: 0 | K45: 0 | L45: 0 | O45: 0 | P45: 0 | Q45: 0 | R45: 0
A46: 39 | B46: ='INVENT.Inst&Agen Importés -10'!B45 -> 0 | C46: ='INVENT.Inst&Agen Importés -10'!F45 -> 0 | D46: ='INVENT.Inst&Agen Importés -10'!C45 -> 0 | E46: ='INVENT.Inst&Agen Importés -10'!H45 -> 0 | G46: 0 | H46: 0 | I46: 0 | J46: 0 | K46: 0 | L46: 0 | O46: 0 | P46: 0 | Q46: 0 | R46: 0
A47: =+A46+1 -> 40 | B47: ='INVENT.Inst&Agen Importés -10'!B46 -> 0 | C47: ='INVENT.Inst&Agen Importés -10'!F46 -> 0 | D47: ='INVENT.Inst&Agen Importés -10'!C46 -> 0 | E47: ='INVENT.Inst&Agen Importés -10'!H46 -> 0 | G47: =F47*E47 -> 0 | H47: 0 | I47: 0 | J47: 0 | K47: =(E47+G47+H47)*18% -> 0 | L47: 0 | O47: 0 | P47: 0 | Q47: 0 | R47: 0
A48: 41 | B48: ='INVENT.Inst&Agen Importés -10'!B47 -> 0 | C48: ='INVENT.Inst&Agen Importés -10'!F47 -> 0 | D48: ='INVENT.Inst&Agen Importés -10'!C47 -> 0 | E48: ='INVENT.Inst&Agen Importés -10'!H47 -> 0 | G48: 0 | H48: 0 | I48: 0 | J48: 0 | K48: 0 | L48: 0 | O48: 0 | P48: 0 | Q48: 0 | R48: 0
A49: 42 | B49: ='INVENT.Inst&Agen Importés -10'!B48 -> 0 | C49: ='INVENT.Inst&Agen Importés -10'!F48 -> 0 | D49: ='INVENT.Inst&Agen Importés -10'!C48 -> 0 | E49: ='INVENT.Inst&Agen Importés -10'!H48 -> 0 | G49: 0 | H49: 0 | I49: 0 | J49: 0 | K49: 0 | L49: 0 | O49: 0 | P49: 0 | Q49: 0 | R49: 0
A50: 43 | B50: ='INVENT.Inst&Agen Importés -10'!B49 -> 0 | C50: ='INVENT.Inst&Agen Importés -10'!F49 -> 0 | D50: ='INVENT.Inst&Agen Importés -10'!C49 -> 0 | E50: ='INVENT.Inst&Agen Importés -10'!H49 -> 0 | G50: 0 | H50: 0 | I50: 0 | J50: 0 | K50: 0 | L50: 0 | O50: 0 | P50: 0 | Q50: 0 | R50: 0
A51: 44 | B51: ='INVENT.Inst&Agen Importés -10'!B50 -> 0 | C51: ='INVENT.Inst&Agen Importés -10'!F50 -> 0 | D51: ='INVENT.Inst&Agen Importés -10'!C50 -> 0 | E51: ='INVENT.Inst&Agen Importés -10'!H50 -> 0 | G51: 0 | H51: 0 | I51: 0 | J51: 0 | K51: 0 | L51: 0 | O51: 0 | P51: 0 | Q51: 0 | R51: 0
A52: 45 | B52: ='INVENT.Inst&Agen Importés -10'!B51 -> 0 | C52: ='INVENT.Inst&Agen Importés -10'!F51 -> 0 | D52: ='INVENT.Inst&Agen Importés -10'!C51 -> 0 | E52: ='INVENT.Inst&Agen Importés -10'!H51 -> 0 | G52: 0 | H52: 0 | I52: 0 | J52: 0 | K52: 0 | L52: 0 | O52: 0 | P52: 0 | Q52: 0 | R52: 0
A53: 46 | B53: ='INVENT.Inst&Agen Importés -10'!B52 -> 0 | C53: ='INVENT.Inst&Agen Importés -10'!F52 -> 0 | D53: ='INVENT.Inst&Agen Importés -10'!C52 -> 0 | E53: ='INVENT.Inst&Agen Importés -10'!H52 -> 0 | G53: 0 | H53: 0 | I53: 0 | J53: 0 | K53: 0 | L53: 0 | O53: 0 | P53: 0 | Q53: 0 | R53: 0
A54: 47 | B54: ='INVENT.Inst&Agen Importés -10'!B53 -> 0 | C54: ='INVENT.Inst&Agen Importés -10'!F53 -> 0 | D54: ='INVENT.Inst&Agen Importés -10'!C53 -> 0 | E54: ='INVENT.Inst&Agen Importés -10'!H53 -> 0 | G54: 0 | H54: 0 | I54: 0 | J54: 0 | K54: 0 | L54: 0 | O54: 0 | P54: 0 | Q54: 0 | R54: 0
A55: 48 | B55: ='INVENT.Inst&Agen Importés -10'!B54 -> 0 | C55: ='INVENT.Inst&Agen Importés -10'!F54 -> 0 | D55: ='INVENT.Inst&Agen Importés -10'!C54 -> 0 | E55: ='INVENT.Inst&Agen Importés -10'!H54 -> 0 | G55: =F55*E55 -> 0 | H55: 0 | I55: 0 | J55: 0 | K55: =(E55+G55+H55)*18% -> 0 | L55: =SUM(G55:K55)+E55 -> 0 | O55: =(M55+N55)*18% -> 0 | P55: =O55+N55+M55 -> 0 | Q55: =+R55-O55-K55 -> 0 | R55: =P55+L55 -> 0
A56: 49 | B56: ='INVENT.Inst&Agen Importés -10'!B55 -> 0 | C56: ='INVENT.Inst&Agen Importés -10'!F55 -> 0 | D56: ='INVENT.Inst&Agen Importés -10'!C55 -> 0 | E56: ='INVENT.Inst&Agen Importés -10'!H55 -> 0 | G56: 0 | H56: 0 | I56: 0 | J56: 0 | K56: 0 | L56: 0 | O56: 0 | P56: 0 | Q56: 0 | R56: 0
A57: 50 | B57: ='INVENT.Inst&Agen Importés -10'!B56 -> 0 | C57: ='INVENT.Inst&Agen Importés -10'!F56 -> 0 | D57: ='INVENT.Inst&Agen Importés -10'!C56 -> 0 | E57: ='INVENT.Inst&Agen Importés -10'!H56 -> 0 | G57: 0 | H57: 0 | I57: 0 | J57: 0 | K57: 0 | L57: 0 | O57: 0 | P57: 0 | Q57: 0 | R57: 0
A58: 51 | B58: ='INVENT.Inst&Agen Importés -10'!B57 -> 0 | C58: ='INVENT.Inst&Agen Importés -10'!F57 -> 0 | D58: ='INVENT.Inst&Agen Importés -10'!C57 -> 0 | E58: ='INVENT.Inst&Agen Importés -10'!H57 -> 0 | G58: 0 | H58: 0 | I58: 0 | J58: 0 | K58: 0 | L58: 0 | O58: 0 | P58: 0 | Q58: 0 | R58: 0
A59: 52 | B59: ='INVENT.Inst&Agen Importés -10'!B58 -> 0 | C59: ='INVENT.Inst&Agen Importés -10'!F58 -> 0 | D59: ='INVENT.Inst&Agen Importés -10'!C58 -> 0 | E59: ='INVENT.Inst&Agen Importés -10'!H58 -> 0 | G59: 0 | H59: 0 | I59: 0 | J59: 0 | K59: 0 | L59: 0 | O59: 0 | P59: 0 | Q59: 0 | R59: 0
A60: 53 | B60: ='INVENT.Inst&Agen Importés -10'!B59 -> 0 | C60: ='INVENT.Inst&Agen Importés -10'!F59 -> 0 | D60: ='INVENT.Inst&Agen Importés -10'!C59 -> 0 | E60: ='INVENT.Inst&Agen Importés -10'!H59 -> 0 | G60: 0 | H60: 0 | I60: 0 | J60: 0 | K60: 0 | L60: 0 | O60: 0 | P60: 0 | Q60: 0 | R60: 0
A61: 54 | B61: ='INVENT.Inst&Agen Importés -10'!B60 -> 0 | C61: ='INVENT.Inst&Agen Importés -10'!F60 -> 0 | D61: ='INVENT.Inst&Agen Importés -10'!C60 -> 0 | E61: ='INVENT.Inst&Agen Importés -10'!H60 -> 0 | G61: 0 | H61: 0 | I61: 0 | J61: 0 | K61: 0 | L61: 0 | O61: 0 | P61: 0 | Q61: 0 | R61: 0
A62: 55 | B62: ='INVENT.Inst&Agen Importés -10'!B61 -> 0 | C62: ='INVENT.Inst&Agen Importés -10'!F61 -> 0 | D62: ='INVENT.Inst&Agen Importés -10'!C61 -> 0 | E62: ='INVENT.Inst&Agen Importés -10'!H61 -> 0 | G62: 0 | H62: 0 | I62: 0 | J62: 0 | K62: 0 | L62: 0 | O62: 0 | P62: 0 | Q62: 0 | R62: 0
A63: 56 | B63: ='INVENT.Inst&Agen Importés -10'!B62 -> 0 | C63: ='INVENT.Inst&Agen Importés -10'!F62 -> 0 | D63: ='INVENT.Inst&Agen Importés -10'!C62 -> 0 | E63: ='INVENT.Inst&Agen Importés -10'!H62 -> 0 | G63: 0 | H63: 0 | I63: 0 | J63: 0 | K63: 0 | L63: 0 | O63: 0 | P63: 0 | Q63: 0 | R63: 0
A64: 57 | B64: ='INVENT.Inst&Agen Importés -10'!B63 -> 0 | C64: ='INVENT.Inst&Agen Importés -10'!F63 -> 0 | D64: ='INVENT.Inst&Agen Importés -10'!C63 -> 0 | E64: ='INVENT.Inst&Agen Importés -10'!H63 -> 0 | G64: 0 | H64: 0 | I64: 0 | J64: 0 | K64: 0 | L64: 0 | O64: 0 | P64: 0 | Q64: 0 | R64: 0
A65: 58 | B65: ='INVENT.Inst&Agen Importés -10'!B64 -> 0 | C65: ='INVENT.Inst&Agen Importés -10'!F64 -> 0 | D65: ='INVENT.Inst&Agen Importés -10'!C64 -> 0 | E65: ='INVENT.Inst&Agen Importés -10'!H64 -> 0 | G65: 0 | H65: 0 | I65: 0 | J65: 0 | K65: 0 | L65: 0 | O65: 0 | P65: 0 | Q65: 0 | R65: 0
A66: 59 | B66: ='INVENT.Inst&Agen Importés -10'!B65 -> 0 | C66: ='INVENT.Inst&Agen Importés -10'!F65 -> 0 | D66: ='INVENT.Inst&Agen Importés -10'!C65 -> 0 | E66: ='INVENT.Inst&Agen Importés -10'!H65 -> 0 | G66: 0 | H66: 0 | I66: 0 | J66: 0 | K66: 0 | L66: 0 | O66: 0 | P66: 0 | Q66: 0 | R66: 0
A67: 60 | B67: ='INVENT.Inst&Agen Importés -10'!B66 -> 0 | C67: ='INVENT.Inst&Agen Importés -10'!F66 -> 0 | D67: ='INVENT.Inst&Agen Importés -10'!C66 -> 0 | E67: ='INVENT.Inst&Agen Importés -10'!H66 -> 0 | G67: 0 | H67: 0 | I67: 0 | J67: 0 | K67: 0 | L67: 0 | O67: 0 | P67: 0 | Q67: 0 | R67: 0
A68: 61 | B68: ='INVENT.Inst&Agen Importés -10'!B67 -> 0 | C68: ='INVENT.Inst&Agen Importés -10'!F67 -> 0 | D68: ='INVENT.Inst&Agen Importés -10'!C67 -> 0 | E68: ='INVENT.Inst&Agen Importés -10'!H67 -> 0 | G68: 0 | H68: 0 | I68: 0 | J68: 0 | K68: 0 | L68: 0 | O68: 0 | P68: 0 | Q68: 0 | R68: 0
A69: 62 | B69: ='INVENT.Inst&Agen Importés -10'!B68 -> 0 | C69: ='INVENT.Inst&Agen Importés -10'!F68 -> 0 | D69: ='INVENT.Inst&Agen Importés -10'!C68 -> 0 | E69: ='INVENT.Inst&Agen Importés -10'!H68 -> 0 | G69: 0 | H69: 0 | I69: 0 | J69: 0 | K69: 0 | L69: 0 | O69: 0 | P69: 0 | Q69: 0 | R69: 0
A70: 63 | B70: ='INVENT.Inst&Agen Importés -10'!B69 -> 0 | C70: ='INVENT.Inst&Agen Importés -10'!F69 -> 0 | D70: ='INVENT.Inst&Agen Importés -10'!C69 -> 0 | E70: ='INVENT.Inst&Agen Importés -10'!H69 -> 0 | G70: 0 | H70: 0 | I70: 0 | J70: 0 | K70: 0 | L70: 0 | O70: 0 | P70: 0 | Q70: 0 | R70: 0
A71: 64 | B71: ='INVENT.Inst&Agen Importés -10'!B70 -> 0 | C71: ='INVENT.Inst&Agen Importés -10'!F70 -> 0 | D71: ='INVENT.Inst&Agen Importés -10'!C70 -> 0 | E71: ='INVENT.Inst&Agen Importés -10'!H70 -> 0 | G71: 0 | H71: 0 | I71: 0 | J71: 0 | K71: 0 | L71: 0 | O71: 0 | P71: 0 | Q71: 0 | R71: 0
A72: 65 | B72: ='INVENT.Inst&Agen Importés -10'!B71 -> 0 | C72: ='INVENT.Inst&Agen Importés -10'!F71 -> 0 | D72: ='INVENT.Inst&Agen Importés -10'!C71 -> 0 | E72: ='INVENT.Inst&Agen Importés -10'!H71 -> 0 | G72: 0 | H72: 0 | I72: 0 | J72: 0 | K72: 0 | L72: 0 | O72: 0 | P72: 0 | Q72: 0 | R72: 0
A73: 66 | B73: ='INVENT.Inst&Agen Importés -10'!B72 -> 0 | C73: ='INVENT.Inst&Agen Importés -10'!F72 -> 0 | D73: ='INVENT.Inst&Agen Importés -10'!C72 -> 0 | E73: ='INVENT.Inst&Agen Importés -10'!H72 -> 0 | G73: 0 | H73: =E73*1% -> 0 | I73: =E73*1% -> 0 | J73: =E73*0.5% -> 0 | K73: 0 | L73: 0 | O73: 0 | P73: 0 | Q73: 0 | R73: 0
A74: 67 | B74: ='INVENT.Inst&Agen Importés -10'!B73 -> 0 | C74: ='INVENT.Inst&Agen Importés -10'!F73 -> 0 | D74: ='INVENT.Inst&Agen Importés -10'!C73 -> 0 | E74: ='INVENT.Inst&Agen Importés -10'!H73 -> 0 | G74: 0 | H74: 0 | I74: 0 | J74: 0 | K74: 0 | L74: 0 | O74: 0 | P74: 0 | Q74: 0 | R74: 0
A75: 68 | B75: ='INVENT.Inst&Agen Importés -10'!B74 -> 0 | C75: ='INVENT.Inst&Agen Importés -10'!F74 -> 0 | D75: ='INVENT.Inst&Agen Importés -10'!C74 -> 0 | E75: ='INVENT.Inst&Agen Importés -10'!H74 -> 0 | G75: 0 | H75: 0 | I75: 0 | J75: 0 | K75: 0 | L75: 0 | O75: 0 | P75: 0 | Q75: 0 | R75: 0
A76: 69 | B76: ='INVENT.Inst&Agen Importés -10'!B75 -> 0 | C76: ='INVENT.Inst&Agen Importés -10'!F75 -> 0 | D76: ='INVENT.Inst&Agen Importés -10'!C75 -> 0 | E76: ='INVENT.Inst&Agen Importés -10'!H75 -> 0 | G76: 0 | H76: 0 | I76: 0 | J76: 0 | K76: 0 | L76: 0 | O76: 0 | P76: 0 | Q76: 0 | R76: 0
A77: 70 | B77: ='INVENT.Inst&Agen Importés -10'!B76 -> 0 | C77: ='INVENT.Inst&Agen Importés -10'!F76 -> 0 | D77: ='INVENT.Inst&Agen Importés -10'!C76 -> 0 | E77: ='INVENT.Inst&Agen Importés -10'!H76 -> 0 | G77: 0 | H77: 0 | I77: 0 | J77: 0 | K77: 0 | L77: 0 | O77: 0 | P77: 0 | Q77: 0 | R77: 0
A78: 71 | B78: ='INVENT.Inst&Agen Importés -10'!B77 -> 0 | C78: ='INVENT.Inst&Agen Importés -10'!F77 -> 0 | D78: ='INVENT.Inst&Agen Importés -10'!C77 -> 0 | E78: ='INVENT.Inst&Agen Importés -10'!H77 -> 0 | G78: 0 | H78: 0 | I78: 0 | J78: 0 | K78: 0 | L78: 0 | O78: 0 | P78: 0 | Q78: 0 | R78: 0
A79: 72 | B79: ='INVENT.Inst&Agen Importés -10'!B78 -> 0 | C79: ='INVENT.Inst&Agen Importés -10'!F78 -> 0 | D79: ='INVENT.Inst&Agen Importés -10'!C78 -> 0 | E79: ='INVENT.Inst&Agen Importés -10'!H78 -> 0 | G79: 0 | H79: 0 | I79: 0 | J79: 0 | K79: 0 | L79: 0 | O79: 0 | P79: 0 | Q79: 0 | R79: 0
A80: 73 | B80: ='INVENT.Inst&Agen Importés -10'!B79 -> 0 | C80: ='INVENT.Inst&Agen Importés -10'!F79 -> 0 | D80: ='INVENT.Inst&Agen Importés -10'!C79 -> 0 | E80: ='INVENT.Inst&Agen Importés -10'!H79 -> 0 | G80: 0 | H80: 0 | I80: 0 | J80: 0 | K80: 0 | L80: 0 | O80: 0 | P80: 0 | Q80: 0 | R80: 0
A81: 74 | B81: ='INVENT.Inst&Agen Importés -10'!B80 -> 0 | C81: ='INVENT.Inst&Agen Importés -10'!F80 -> 0 | D81: ='INVENT.Inst&Agen Importés -10'!C80 -> 0 | E81: ='INVENT.Inst&Agen Importés -10'!H80 -> 0 | G81: 0 | H81: 0 | I81: 0 | J81: 0 | K81: 0 | L81: 0 | O81: 0 | P81: 0 | Q81: 0 | R81: 0
A82: 75 | B82: ='INVENT.Inst&Agen Importés -10'!B81 -> 0 | C82: ='INVENT.Inst&Agen Importés -10'!F81 -> 0 | D82: ='INVENT.Inst&Agen Importés -10'!C81 -> 0 | E82: ='INVENT.Inst&Agen Importés -10'!H81 -> 0 | G82: 0 | H82: 0 | I82: 0 | J82: 0 | K82: 0 | L82: 0 | O82: 0 | P82: 0 | Q82: 0 | R82: 0
A83: 76 | B83: ='INVENT.Inst&Agen Importés -10'!B82 -> 0 | C83: ='INVENT.Inst&Agen Importés -10'!F82 -> 0 | D83: ='INVENT.Inst&Agen Importés -10'!C82 -> 0 | E83: ='INVENT.Inst&Agen Importés -10'!H82 -> 0 | G83: 0 | H83: 0 | I83: 0 | J83: 0 | K83: 0 | L83: 0 | O83: 0 | P83: 0 | Q83: 0 | R83: 0
A84: 77 | B84: ='INVENT.Inst&Agen Importés -10'!B83 -> 0 | C84: ='INVENT.Inst&Agen Importés -10'!F83 -> 0 | D84: ='INVENT.Inst&Agen Importés -10'!C83 -> 0 | E84: ='INVENT.Inst&Agen Importés -10'!H83 -> 0 | G84: 0 | H84: 0 | I84: 0 | J84: 0 | K84: 0 | L84: 0 | O84: 0 | P84: 0 | Q84: 0 | R84: 0
A85: 78 | B85: ='INVENT.Inst&Agen Importés -10'!B84 -> 0 | C85: ='INVENT.Inst&Agen Importés -10'!F84 -> 0 | D85: ='INVENT.Inst&Agen Importés -10'!C84 -> 0 | E85: ='INVENT.Inst&Agen Importés -10'!H84 -> 0 | G85: 0 | H85: 0 | I85: 0 | J85: 0 | K85: 0 | L85: 0 | O85: 0 | P85: 0 | Q85: 0 | R85: 0
A86: 79 | B86: ='INVENT.Inst&Agen Importés -10'!B85 -> 0 | C86: ='INVENT.Inst&Agen Importés -10'!F85 -> 0 | D86: ='INVENT.Inst&Agen Importés -10'!C85 -> 0 | E86: ='INVENT.Inst&Agen Importés -10'!H85 -> 0 | G86: 0 | H86: 0 | I86: 0 | J86: 0 | K86: 0 | L86: 0 | O86: 0 | P86: 0 | Q86: 0 | R86: 0
A87: 80 | B87: ='INVENT.Inst&Agen Importés -10'!B86 -> 0 | C87: ='INVENT.Inst&Agen Importés -10'!F86 -> 0 | D87: ='INVENT.Inst&Agen Importés -10'!C86 -> 0 | E87: ='INVENT.Inst&Agen Importés -10'!H86 -> 0 | G87: 0 | H87: 0 | I87: 0 | J87: 0 | K87: 0 | L87: 0 | O87: 0 | P87: 0 | Q87: 0 | R87: 0
A88: 81 | B88: ='INVENT.Inst&Agen Importés -10'!B87 -> 0 | C88: ='INVENT.Inst&Agen Importés -10'!F87 -> 0 | D88: ='INVENT.Inst&Agen Importés -10'!C87 -> 0 | E88: ='INVENT.Inst&Agen Importés -10'!H87 -> 0 | G88: 0 | H88: 0 | I88: 0 | J88: 0 | K88: 0 | L88: 0 | O88: 0 | P88: 0 | Q88: 0 | R88: 0
A89: 82 | B89: ='INVENT.Inst&Agen Importés -10'!B88 -> 0 | C89: ='INVENT.Inst&Agen Importés -10'!F88 -> 0 | D89: ='INVENT.Inst&Agen Importés -10'!C88 -> 0 | E89: ='INVENT.Inst&Agen Importés -10'!H88 -> 0 | G89: 0 | H89: 0 | I89: 0 | J89: 0 | K89: 0 | L89: 0 | O89: 0 | P89: 0 | Q89: 0 | R89: 0
A90: 83 | B90: ='INVENT.Inst&Agen Importés -10'!B89 -> 0 | C90: ='INVENT.Inst&Agen Importés -10'!F89 -> 0 | D90: ='INVENT.Inst&Agen Importés -10'!C89 -> 0 | E90: ='INVENT.Inst&Agen Importés -10'!H89 -> 0 | G90: 0 | H90: 0 | I90: 0 | J90: 0 | K90: 0 | L90: 0 | O90: 0 | P90: 0 | Q90: 0 | R90: 0
A91: 84 | B91: ='INVENT.Inst&Agen Importés -10'!B90 -> 0 | C91: ='INVENT.Inst&Agen Importés -10'!F90 -> 0 | D91: ='INVENT.Inst&Agen Importés -10'!C90 -> 0 | E91: ='INVENT.Inst&Agen Importés -10'!H90 -> 0 | G91: 0 | H91: 0 | I91: 0 | J91: 0 | K91: 0 | L91: 0 | O91: 0 | P91: 0 | Q91: 0 | R91: 0
A92: 85 | B92: ='INVENT.Inst&Agen Importés -10'!B91 -> 0 | C92: ='INVENT.Inst&Agen Importés -10'!F91 -> 0 | D92: ='INVENT.Inst&Agen Importés -10'!C91 -> 0 | E92: ='INVENT.Inst&Agen Importés -10'!H91 -> 0 | G92: 0 | H92: 0 | I92: 0 | J92: 0 | K92: 0 | L92: 0 | O92: 0 | P92: 0 | Q92: 0 | R92: 0
A93: 86 | B93: ='INVENT.Inst&Agen Importés -10'!B92 -> 0 | C93: ='INVENT.Inst&Agen Importés -10'!F92 -> 0 | D93: ='INVENT.Inst&Agen Importés -10'!C92 -> 0 | E93: ='INVENT.Inst&Agen Importés -10'!H92 -> 0 | G93: 0 | H93: 0 | I93: 0 | J93: 0 | K93: 0 | L93: 0 | O93: 0 | P93: 0 | Q93: 0 | R93: 0
A94: 87 | B94: ='INVENT.Inst&Agen Importés -10'!B93 -> 0 | C94: ='INVENT.Inst&Agen Importés -10'!F93 -> 0 | D94: ='INVENT.Inst&Agen Importés -10'!C93 -> 0 | E94: ='INVENT.Inst&Agen Importés -10'!H93 -> 0 | G94: 0 | H94: 0 | I94: 0 | J94: 0 | K94: 0 | L94: 0 | O94: 0 | P94: 0 | Q94: 0 | R94: 0
A95: 88 | B95: ='INVENT.Inst&Agen Importés -10'!B94 -> 0 | C95: ='INVENT.Inst&Agen Importés -10'!F94 -> 0 | D95: ='INVENT.Inst&Agen Importés -10'!C94 -> 0 | E95: ='INVENT.Inst&Agen Importés -10'!H94 -> 0 | G95: 0 | H95: 0 | I95: 0 | J95: 0 | K95: 0 | L95: 0 | O95: 0 | P95: 0 | Q95: 0 | R95: 0
A96: 89 | B96: ='INVENT.Inst&Agen Importés -10'!B95 -> 0 | C96: ='INVENT.Inst&Agen Importés -10'!F95 -> 0 | D96: ='INVENT.Inst&Agen Importés -10'!C95 -> 0 | E96: ='INVENT.Inst&Agen Importés -10'!H95 -> 0 | G96: 0 | H96: 0 | I96: 0 | J96: 0 | K96: 0 | L96: 0 | O96: 0 | P96: 0 | Q96: 0 | R96: 0
A97: 90 | B97: ='INVENT.Inst&Agen Importés -10'!B96 -> 0 | C97: ='INVENT.Inst&Agen Importés -10'!F96 -> 0 | D97: ='INVENT.Inst&Agen Importés -10'!C96 -> 0 | E97: ='INVENT.Inst&Agen Importés -10'!H96 -> 0 | G97: 0 | H97: 0 | I97: 0 | J97: 0 | K97: 0 | L97: 0 | O97: 0 | P97: 0 | Q97: 0 | R97: 0
A98: 91 | B98: ='INVENT.Inst&Agen Importés -10'!B97 -> 0 | C98: ='INVENT.Inst&Agen Importés -10'!F97 -> 0 | D98: ='INVENT.Inst&Agen Importés -10'!C97 -> 0 | E98: ='INVENT.Inst&Agen Importés -10'!H97 -> 0 | G98: 0 | H98: 0 | I98: 0 | J98: 0 | K98: 0 | L98: 0 | O98: 0 | P98: 0 | Q98: 0 | R98: 0
A99: 92 | B99: ='INVENT.Inst&Agen Importés -10'!B98 -> 0 | C99: ='INVENT.Inst&Agen Importés -10'!F98 -> 0 | D99: ='INVENT.Inst&Agen Importés -10'!C98 -> 0 | E99: ='INVENT.Inst&Agen Importés -10'!H98 -> 0 | G99: 0 | H99: 0 | I99: 0 | J99: 0 | K99: 0 | L99: 0 | O99: 0 | P99: 0 | Q99: 0 | R99: 0
A100: 93 | B100: ='INVENT.Inst&Agen Importés -10'!B99 -> 0 | C100: ='INVENT.Inst&Agen Importés -10'!F99 -> 0 | D100: ='INVENT.Inst&Agen Importés -10'!C99 -> 0 | E100: ='INVENT.Inst&Agen Importés -10'!H99 -> 0 | G100: 0 | H100: 0 | I100: 0 | J100: 0 | K100: 0 | L100: 0 | O100: 0 | P100: 0 | Q100: 0 | R100: 0
A101: 94 | B101: ='INVENT.Inst&Agen Importés -10'!B100 -> 0 | C101: ='INVENT.Inst&Agen Importés -10'!F100 -> 0 | D101: ='INVENT.Inst&Agen Importés -10'!C100 -> 0 | E101: ='INVENT.Inst&Agen Importés -10'!H100 -> 0 | G101: 0 | H101: 0 | I101: 0 | J101: 0 | K101: 0 | L101: 0 | O101: 0 | P101: 0 | Q101: 0 | R101: 0
A102: 95 | B102: ='INVENT.Inst&Agen Importés -10'!B101 -> 0 | C102: ='INVENT.Inst&Agen Importés -10'!F101 -> 0 | D102: ='INVENT.Inst&Agen Importés -10'!C101 -> 0 | E102: ='INVENT.Inst&Agen Importés -10'!H101 -> 0 | G102: 0 | H102: 0 | I102: 0 | J102: 0 | K102: 0 | L102: 0 | O102: 0 | P102: 0 | Q102: 0 | R102: 0
A103: 96 | B103: ='INVENT.Inst&Agen Importés -10'!B102 -> 0 | C103: ='INVENT.Inst&Agen Importés -10'!F102 -> 0 | D103: ='INVENT.Inst&Agen Importés -10'!C102 -> 0 | E103: ='INVENT.Inst&Agen Importés -10'!H102 -> 0 | G103: 0 | H103: 0 | I103: 0 | J103: 0 | K103: 0 | L103: 0 | O103: 0 | P103: 0 | Q103: 0 | R103: 0
A104: 97 | B104: ='INVENT.Inst&Agen Importés -10'!B103 -> 0 | C104: ='INVENT.Inst&Agen Importés -10'!F103 -> 0 | D104: ='INVENT.Inst&Agen Importés -10'!C103 -> 0 | E104: ='INVENT.Inst&Agen Importés -10'!H103 -> 0 | G104: 0 | H104: 0 | I104: 0 | J104: 0 | K104: 0 | L104: 0 | O104: 0 | P104: 0 | Q104: 0 | R104: 0
A105: 98 | B105: ='INVENT.Inst&Agen Importés -10'!B104 -> 0 | C105: ='INVENT.Inst&Agen Importés -10'!F104 -> 0 | D105: ='INVENT.Inst&Agen Importés -10'!C104 -> 0 | E105: ='INVENT.Inst&Agen Importés -10'!H104 -> 0 | G105: 0 | H105: 0 | I105: 0 | J105: 0 | K105: 0 | L105: 0 | O105: 0 | P105: 0 | Q105: 0 | R105: 0
A106: 99 | B106: ='INVENT.Inst&Agen Importés -10'!B105 -> 0 | C106: ='INVENT.Inst&Agen Importés -10'!F105 -> 0 | D106: ='INVENT.Inst&Agen Importés -10'!C105 -> 0 | E106: ='INVENT.Inst&Agen Importés -10'!H105 -> 0 | G106: 0 | H106: 0 | I106: 0 | J106: 0 | K106: 0 | L106: 0 | O106: 0 | P106: 0 | Q106: 0 | R106: 0
A107: =+A106+1 -> 100 | B107: ='INVENT.Inst&Agen Importés -10'!B106 -> 0 | C107: ='INVENT.Inst&Agen Importés -10'!F106 -> 0 | D107: ='INVENT.Inst&Agen Importés -10'!C106 -> 0 | E107: ='INVENT.Inst&Agen Importés -10'!H106 -> 0 | G107: 0 | H107: 0 | I107: 0 | J107: 0 | K107: 0 | L107: 0 | O107: 0 | P107: 0 | Q107: 0 | R107: 0
A108: =+A107+1 -> 101 | B108: ='INVENT.Inst&Agen Importés -10'!B107 -> 0 | C108: ='INVENT.Inst&Agen Importés -10'!F107 -> 0 | D108: ='INVENT.Inst&Agen Importés -10'!C107 -> 0 | E108: ='INVENT.Inst&Agen Importés -10'!H107 -> 0 | G108: 0 | H108: 0 | I108: 0 | J108: 0 | K108: 0 | L108: 0 | O108: 0 | P108: 0 | Q108: 0 | R108: 0
A109: 102 | B109: ='INVENT.Inst&Agen Importés -10'!B108 -> 0 | C109: ='INVENT.Inst&Agen Importés -10'!F108 -> 0 | D109: ='INVENT.Inst&Agen Importés -10'!C108 -> 0 | E109: ='INVENT.Inst&Agen Importés -10'!H108 -> 0 | G109: 0 | H109: 0 | I109: 0 | J109: 0 | K109: 0 | L109: 0 | O109: 0 | P109: 0 | Q109: 0 | R109: 0
A110: 103 | B110: ='INVENT.Inst&Agen Importés -10'!B109 -> 0 | C110: ='INVENT.Inst&Agen Importés -10'!F109 -> 0 | D110: ='INVENT.Inst&Agen Importés -10'!C109 -> 0 | E110: ='INVENT.Inst&Agen Importés -10'!H109 -> 0 | G110: 0 | H110: 0 | I110: 0 | J110: 0 | K110: 0 | L110: 0 | O110: 0 | P110: 0 | Q110: 0 | R110: 0
A111: 104 | B111: ='INVENT.Inst&Agen Importés -10'!B110 -> 0 | C111: ='INVENT.Inst&Agen Importés -10'!F110 -> 0 | D111: ='INVENT.Inst&Agen Importés -10'!C110 -> 0 | E111: ='INVENT.Inst&Agen Importés -10'!H110 -> 0 | G111: 0 | H111: 0 | I111: 0 | J111: 0 | K111: 0 | L111: 0 | O111: 0 | P111: 0 | Q111: 0 | R111: 0
A112: 105 | B112: ='INVENT.Inst&Agen Importés -10'!B111 -> 0 | C112: ='INVENT.Inst&Agen Importés -10'!F111 -> 0 | D112: ='INVENT.Inst&Agen Importés -10'!C111 -> 0 | E112: ='INVENT.Inst&Agen Importés -10'!H111 -> 0 | G112: 0 | H112: 0 | I112: 0 | J112: 0 | K112: 0 | L112: 0 | O112: 0 | P112: 0 | Q112: 0 | R112: 0
A113: 106 | B113: ='INVENT.Inst&Agen Importés -10'!B112 -> 0 | C113: ='INVENT.Inst&Agen Importés -10'!F112 -> 0 | D113: ='INVENT.Inst&Agen Importés -10'!C112 -> 0 | E113: ='INVENT.Inst&Agen Importés -10'!H112 -> 0 | G113: 0 | H113: 0 | I113: 0 | J113: 0 | K113: 0 | L113: 0 | O113: 0 | P113: 0 | Q113: 0 | R113: 0
A114: 107 | B114: ='INVENT.Inst&Agen Importés -10'!B113 -> 0 | C114: ='INVENT.Inst&Agen Importés -10'!F113 -> 0 | D114: ='INVENT.Inst&Agen Importés -10'!C113 -> 0 | E114: ='INVENT.Inst&Agen Importés -10'!H113 -> 0 | G114: 0 | H114: 0 | I114: 0 | J114: 0 | K114: 0 | L114: 0 | O114: 0 | P114: 0 | Q114: 0 | R114: 0
A115: 108 | B115: ='INVENT.Inst&Agen Importés -10'!B114 -> 0 | C115: ='INVENT.Inst&Agen Importés -10'!F114 -> 0 | D115: ='INVENT.Inst&Agen Importés -10'!C114 -> 0 | E115: ='INVENT.Inst&Agen Importés -10'!H114 -> 0 | G115: 0 | H115: 0 | I115: 0 | J115: 0 | K115: 0 | L115: 0 | O115: 0 | P115: 0 | Q115: 0 | R115: 0
A116: 109 | B116: ='INVENT.Inst&Agen Importés -10'!B115 -> 0 | C116: ='INVENT.Inst&Agen Importés -10'!F115 -> 0 | D116: ='INVENT.Inst&Agen Importés -10'!C115 -> 0 | E116: ='INVENT.Inst&Agen Importés -10'!H115 -> 0 | G116: 0 | H116: 0 | I116: 0 | J116: 0 | K116: 0 | L116: 0 | O116: 0 | P116: 0 | Q116: 0 | R116: 0
A117: 110 | B117: ='INVENT.Inst&Agen Importés -10'!B116 -> 0 | C117: ='INVENT.Inst&Agen Importés -10'!F116 -> 0 | D117: ='INVENT.Inst&Agen Importés -10'!C116 -> 0 | E117: ='INVENT.Inst&Agen Importés -10'!H116 -> 0 | G117: 0 | H117: 0 | I117: 0 | J117: 0 | K117: 0 | L117: 0 | O117: 0 | P117: 0 | Q117: 0 | R117: 0
A118: 111 | B118: ='INVENT.Inst&Agen Importés -10'!B117 -> 0 | C118: ='INVENT.Inst&Agen Importés -10'!F117 -> 0 | D118: ='INVENT.Inst&Agen Importés -10'!C117 -> 0 | E118: ='INVENT.Inst&Agen Importés -10'!H117 -> 0 | G118: 0 | H118: 0 | I118: 0 | J118: 0 | K118: 0 | L118: 0 | O118: 0 | P118: 0 | Q118: 0 | R118: 0
A119: 112 | B119: ='INVENT.Inst&Agen Importés -10'!B118 -> 0 | C119: ='INVENT.Inst&Agen Importés -10'!F118 -> 0 | D119: ='INVENT.Inst&Agen Importés -10'!C118 -> 0 | E119: ='INVENT.Inst&Agen Importés -10'!H118 -> 0 | G119: =F119*E119 -> 0 | H119: 0 | I119: 0 | J119: 0 | K119: =(E119+G119+H119)*18% -> 0 | L119: =SUM(G119:K119)+E119 -> 0 | O119: =(M119+N119)*18% -> 0 | P119: =O119+N119+M119 -> 0 | Q119: =+R119-O119-K119 -> 0 | R119: =P119+L119 -> 0
A120: 113 | B120: ='INVENT.Inst&Agen Importés -10'!B119 -> 0 | C120: ='INVENT.Inst&Agen Importés -10'!F119 -> 0 | D120: ='INVENT.Inst&Agen Importés -10'!C119 -> 0 | E120: ='INVENT.Inst&Agen Importés -10'!H119 -> 0 | G120: 0 | H120: 0 | I120: 0 | J120: 0 | K120: 0 | L120: 0 | O120: 0 | P120: 0 | Q120: 0 | R120: 0
A121: 114 | B121: ='INVENT.Inst&Agen Importés -10'!B120 -> 0 | C121: ='INVENT.Inst&Agen Importés -10'!F120 -> 0 | D121: ='INVENT.Inst&Agen Importés -10'!C120 -> 0 | E121: ='INVENT.Inst&Agen Importés -10'!H120 -> 0 | G121: 0 | H121: 0 | I121: 0 | J121: 0 | K121: 0 | L121: 0 | O121: 0 | P121: 0 | Q121: 0 | R121: 0
A122: 115 | B122: ='INVENT.Inst&Agen Importés -10'!B121 -> 0 | C122: ='INVENT.Inst&Agen Importés -10'!F121 -> 0 | D122: ='INVENT.Inst&Agen Importés -10'!C121 -> 0 | E122: ='INVENT.Inst&Agen Importés -10'!H121 -> 0 | G122: 0 | H122: 0 | I122: 0 | J122: 0 | K122: 0 | L122: 0 | O122: 0 | P122: 0 | Q122: 0 | R122: 0
A123: 116 | B123: ='INVENT.Inst&Agen Importés -10'!B122 -> 0 | C123: ='INVENT.Inst&Agen Importés -10'!F122 -> 0 | D123: ='INVENT.Inst&Agen Importés -10'!C122 -> 0 | E123: ='INVENT.Inst&Agen Importés -10'!H122 -> 0 | G123: 0 | H123: 0 | I123: 0 | J123: 0 | K123: 0 | L123: 0 | O123: 0 | P123: 0 | Q123: 0 | R123: 0
A124: 117 | B124: ='INVENT.Inst&Agen Importés -10'!B123 -> 0 | C124: ='INVENT.Inst&Agen Importés -10'!F123 -> 0 | D124: ='INVENT.Inst&Agen Importés -10'!C123 -> 0 | E124: ='INVENT.Inst&Agen Importés -10'!H123 -> 0 | G124: 0 | H124: 0 | I124: 0 | J124: 0 | K124: 0 | L124: 0 | O124: 0 | P124: 0 | Q124: 0 | R124: 0
A125: 118 | B125: ='INVENT.Inst&Agen Importés -10'!B124 -> 0 | C125: ='INVENT.Inst&Agen Importés -10'!F124 -> 0 | D125: ='INVENT.Inst&Agen Importés -10'!C124 -> 0 | E125: ='INVENT.Inst&Agen Importés -10'!H124 -> 0 | G125: 0 | H125: 0 | I125: 0 | J125: 0 | K125: 0 | L125: 0 | O125: 0 | P125: 0 | Q125: 0 | R125: 0
A126: 119 | B126: ='INVENT.Inst&Agen Importés -10'!B125 -> 0 | C126: ='INVENT.Inst&Agen Importés -10'!F125 -> 0 | D126: ='INVENT.Inst&Agen Importés -10'!C125 -> 0 | E126: ='INVENT.Inst&Agen Importés -10'!H125 -> 0 | G126: 0 | H126: 0 | I126: 0 | J126: 0 | K126: 0 | L126: 0 | O126: 0 | P126: 0 | Q126: 0 | R126: 0
A127: 120 | B127: ='INVENT.Inst&Agen Importés -10'!B126 -> 0 | C127: ='INVENT.Inst&Agen Importés -10'!F126 -> 0 | D127: ='INVENT.Inst&Agen Importés -10'!C126 -> 0 | E127: ='INVENT.Inst&Agen Importés -10'!H126 -> 0 | G127: 0 | H127: 0 | I127: 0 | J127: 0 | K127: 0 | L127: 0 | O127: 0 | P127: 0 | Q127: 0 | R127: 0
A128: 121 | B128: ='INVENT.Inst&Agen Importés -10'!B127 -> 0 | C128: ='INVENT.Inst&Agen Importés -10'!F127 -> 0 | D128: ='INVENT.Inst&Agen Importés -10'!C127 -> 0 | E128: ='INVENT.Inst&Agen Importés -10'!H127 -> 0 | G128: 0 | H128: 0 | I128: 0 | J128: 0 | K128: 0 | L128: 0 | O128: 0 | P128: 0 | Q128: 0 | R128: 0
A129: 122 | B129: ='INVENT.Inst&Agen Importés -10'!B128 -> 0 | C129: ='INVENT.Inst&Agen Importés -10'!F128 -> 0 | D129: ='INVENT.Inst&Agen Importés -10'!C128 -> 0 | E129: ='INVENT.Inst&Agen Importés -10'!H128 -> 0 | G129: 0 | H129: 0 | I129: 0 | J129: 0 | K129: 0 | L129: 0 | O129: 0 | P129: 0 | Q129: 0 | R129: 0
A130: 123 | B130: ='INVENT.Inst&Agen Importés -10'!B129 -> 0 | C130: ='INVENT.Inst&Agen Importés -10'!F129 -> 0 | D130: ='INVENT.Inst&Agen Importés -10'!C129 -> 0 | E130: ='INVENT.Inst&Agen Importés -10'!H129 -> 0 | G130: 0 | H130: 0 | I130: 0 | J130: 0 | K130: 0 | L130: 0 | O130: 0 | P130: 0 | Q130: 0 | R130: 0
A131: 124 | B131: ='INVENT.Inst&Agen Importés -10'!B130 -> 0 | C131: ='INVENT.Inst&Agen Importés -10'!F130 -> 0 | D131: ='INVENT.Inst&Agen Importés -10'!C130 -> 0 | E131: ='INVENT.Inst&Agen Importés -10'!H130 -> 0 | G131: 0 | H131: 0 | I131: 0 | J131: 0 | K131: 0 | L131: 0 | O131: 0 | P131: 0 | Q131: 0 | R131: 0
A132: 125 | B132: ='INVENT.Inst&Agen Importés -10'!B131 -> 0 | C132: ='INVENT.Inst&Agen Importés -10'!F131 -> 0 | D132: ='INVENT.Inst&Agen Importés -10'!C131 -> 0 | E132: ='INVENT.Inst&Agen Importés -10'!H131 -> 0 | G132: 0 | H132: 0 | I132: 0 | J132: 0 | K132: 0 | L132: 0 | O132: 0 | P132: 0 | Q132: 0 | R132: 0
A133: 126 | B133: ='INVENT.Inst&Agen Importés -10'!B132 -> 0 | C133: ='INVENT.Inst&Agen Importés -10'!F132 -> 0 | D133: ='INVENT.Inst&Agen Importés -10'!C132 -> 0 | E133: ='INVENT.Inst&Agen Importés -10'!H132 -> 0 | G133: 0 | H133: 0 | I133: 0 | J133: 0 | K133: 0 | L133: 0 | O133: 0 | P133: 0 | Q133: 0 | R133: 0
A134: 127 | B134: ='INVENT.Inst&Agen Importés -10'!B133 -> 0 | C134: ='INVENT.Inst&Agen Importés -10'!F133 -> 0 | D134: ='INVENT.Inst&Agen Importés -10'!C133 -> 0 | E134: ='INVENT.Inst&Agen Importés -10'!H133 -> 0 | G134: 0 | H134: 0 | I134: 0 | J134: 0 | K134: 0 | L134: 0 | O134: 0 | P134: 0 | Q134: 0 | R134: 0
A135: 128 | B135: ='INVENT.Inst&Agen Importés -10'!B134 -> 0 | C135: ='INVENT.Inst&Agen Importés -10'!F134 -> 0 | D135: ='INVENT.Inst&Agen Importés -10'!C134 -> 0 | E135: ='INVENT.Inst&Agen Importés -10'!H134 -> 0 | G135: 0 | H135: 0 | I135: 0 | J135: 0 | K135: 0 | L135: 0 | O135: 0 | P135: 0 | Q135: 0 | R135: 0
A136: 129 | B136: ='INVENT.Inst&Agen Importés -10'!B135 -> 0 | C136: ='INVENT.Inst&Agen Importés -10'!F135 -> 0 | D136: ='INVENT.Inst&Agen Importés -10'!C135 -> 0 | E136: ='INVENT.Inst&Agen Importés -10'!H135 -> 0 | G136: 0 | H136: 0 | I136: 0 | J136: 0 | K136: 0 | L136: 0 | O136: 0 | P136: 0 | Q136: 0 | R136: 0
A137: 130 | B137: ='INVENT.Inst&Agen Importés -10'!B136 -> 0 | C137: ='INVENT.Inst&Agen Importés -10'!F136 -> 0 | D137: ='INVENT.Inst&Agen Importés -10'!C136 -> 0 | E137: ='INVENT.Inst&Agen Importés -10'!H136 -> 0 | G137: 0 | H137: =E137*1% -> 0 | I137: =E137*1% -> 0 | J137: =E137*0.5% -> 0 | K137: 0 | L137: 0 | O137: 0 | P137: 0 | Q137: 0 | R137: 0
A138: 131 | B138: ='INVENT.Inst&Agen Importés -10'!B137 -> 0 | C138: ='INVENT.Inst&Agen Importés -10'!F137 -> 0 | D138: ='INVENT.Inst&Agen Importés -10'!C137 -> 0 | E138: ='INVENT.Inst&Agen Importés -10'!H137 -> 0 | G138: 0 | H138: 0 | I138: 0 | J138: 0 | K138: 0 | L138: 0 | O138: 0 | P138: 0 | Q138: 0 | R138: 0
A139: 132 | B139: ='INVENT.Inst&Agen Importés -10'!B138 -> 0 | C139: ='INVENT.Inst&Agen Importés -10'!F138 -> 0 | D139: ='INVENT.Inst&Agen Importés -10'!C138 -> 0 | E139: ='INVENT.Inst&Agen Importés -10'!H138 -> 0 | G139: 0 | H139: 0 | I139: 0 | J139: 0 | K139: 0 | L139: 0 | O139: 0 | P139: 0 | Q139: 0 | R139: 0
A140: 133 | B140: ='INVENT.Inst&Agen Importés -10'!B139 -> 0 | C140: ='INVENT.Inst&Agen Importés -10'!F139 -> 0 | D140: ='INVENT.Inst&Agen Importés -10'!C139 -> 0 | E140: ='INVENT.Inst&Agen Importés -10'!H139 -> 0 | G140: 0 | H140: 0 | I140: 0 | J140: 0 | K140: 0 | L140: 0 | O140: 0 | P140: 0 | Q140: 0 | R140: 0
A141: 134 | B141: ='INVENT.Inst&Agen Importés -10'!B140 -> 0 | C141: ='INVENT.Inst&Agen Importés -10'!F140 -> 0 | D141: ='INVENT.Inst&Agen Importés -10'!C140 -> 0 | E141: ='INVENT.Inst&Agen Importés -10'!H140 -> 0 | G141: 0 | H141: 0 | I141: 0 | J141: 0 | K141: 0 | L141: 0 | O141: 0 | P141: 0 | Q141: 0 | R141: 0
A142: 135 | B142: ='INVENT.Inst&Agen Importés -10'!B141 -> 0 | C142: ='INVENT.Inst&Agen Importés -10'!F141 -> 0 | D142: ='INVENT.Inst&Agen Importés -10'!C141 -> 0 | E142: ='INVENT.Inst&Agen Importés -10'!H141 -> 0 | G142: 0 | H142: 0 | I142: 0 | J142: 0 | K142: 0 | L142: 0 | O142: 0 | P142: 0 | Q142: 0 | R142: 0
A143: 136 | B143: ='INVENT.Inst&Agen Importés -10'!B142 -> 0 | C143: ='INVENT.Inst&Agen Importés -10'!F142 -> 0 | D143: ='INVENT.Inst&Agen Importés -10'!C142 -> 0 | E143: ='INVENT.Inst&Agen Importés -10'!H142 -> 0 | G143: 0 | H143: 0 | I143: 0 | J143: 0 | K143: 0 | L143: 0 | O143: 0 | P143: 0 | Q143: 0 | R143: 0
A144: 137 | B144: ='INVENT.Inst&Agen Importés -10'!B143 -> 0 | C144: ='INVENT.Inst&Agen Importés -10'!F143 -> 0 | D144: ='INVENT.Inst&Agen Importés -10'!C143 -> 0 | E144: ='INVENT.Inst&Agen Importés -10'!H143 -> 0 | G144: 0 | H144: 0 | I144: 0 | J144: 0 | K144: 0 | L144: 0 | O144: 0 | P144: 0 | Q144: 0 | R144: 0
A145: 138 | B145: ='INVENT.Inst&Agen Importés -10'!B144 -> 0 | C145: ='INVENT.Inst&Agen Importés -10'!F144 -> 0 | D145: ='INVENT.Inst&Agen Importés -10'!C144 -> 0 | E145: ='INVENT.Inst&Agen Importés -10'!H144 -> 0 | G145: 0 | H145: 0 | I145: 0 | J145: 0 | K145: 0 | L145: 0 | O145: 0 | P145: 0 | Q145: 0 | R145: 0
A146: 139 | B146: ='INVENT.Inst&Agen Importés -10'!B145 -> 0 | C146: ='INVENT.Inst&Agen Importés -10'!F145 -> 0 | D146: ='INVENT.Inst&Agen Importés -10'!C145 -> 0 | E146: ='INVENT.Inst&Agen Importés -10'!H145 -> 0 | G146: 0 | H146: 0 | I146: 0 | J146: 0 | K146: 0 | L146: 0 | O146: 0 | P146: 0 | Q146: 0 | R146: 0
A147: 140 | B147: ='INVENT.Inst&Agen Importés -10'!B146 -> 0 | C147: ='INVENT.Inst&Agen Importés -10'!F146 -> 0 | D147: ='INVENT.Inst&Agen Importés -10'!C146 -> 0 | E147: ='INVENT.Inst&Agen Importés -10'!H146 -> 0 | G147: 0 | H147: 0 | I147: 0 | J147: 0 | K147: 0 | L147: 0 | O147: 0 | P147: 0 | Q147: 0 | R147: 0
A148: 141 | B148: ='INVENT.Inst&Agen Importés -10'!B147 -> 0 | C148: ='INVENT.Inst&Agen Importés -10'!F147 -> 0 | D148: ='INVENT.Inst&Agen Importés -10'!C147 -> 0 | E148: ='INVENT.Inst&Agen Importés -10'!H147 -> 0 | G148: 0 | H148: 0 | I148: 0 | J148: 0 | K148: 0 | L148: 0 | O148: 0 | P148: 0 | Q148: 0 | R148: 0
A149: 142 | B149: ='INVENT.Inst&Agen Importés -10'!B148 -> 0 | C149: ='INVENT.Inst&Agen Importés -10'!F148 -> 0 | D149: ='INVENT.Inst&Agen Importés -10'!C148 -> 0 | E149: ='INVENT.Inst&Agen Importés -10'!H148 -> 0 | G149: 0 | H149: 0 | I149: 0 | J149: 0 | K149: 0 | L149: 0 | O149: 0 | P149: 0 | Q149: 0 | R149: 0
A150: 143 | B150: ='INVENT.Inst&Agen Importés -10'!B149 -> 0 | C150: ='INVENT.Inst&Agen Importés -10'!F149 -> 0 | D150: ='INVENT.Inst&Agen Importés -10'!C149 -> 0 | E150: ='INVENT.Inst&Agen Importés -10'!H149 -> 0 | G150: 0 | H150: 0 | I150: 0 | J150: 0 | K150: 0 | L150: 0 | O150: 0 | P150: 0 | Q150: 0 | R150: 0
A151: 144 | B151: ='INVENT.Inst&Agen Importés -10'!B150 -> 0 | C151: ='INVENT.Inst&Agen Importés -10'!F150 -> 0 | D151: ='INVENT.Inst&Agen Importés -10'!C150 -> 0 | E151: ='INVENT.Inst&Agen Importés -10'!H150 -> 0 | G151: 0 | H151: 0 | I151: 0 | J151: 0 | K151: 0 | L151: 0 | O151: 0 | P151: 0 | Q151: 0 | R151: 0
A152: 145 | B152: ='INVENT.Inst&Agen Importés -10'!B151 -> 0 | C152: ='INVENT.Inst&Agen Importés -10'!F151 -> 0 | D152: ='INVENT.Inst&Agen Importés -10'!C151 -> 0 | E152: ='INVENT.Inst&Agen Importés -10'!H151 -> 0 | G152: 0 | H152: 0 | I152: 0 | J152: 0 | K152: 0 | L152: 0 | O152: 0 | P152: 0 | Q152: 0 | R152: 0
A153: 146 | B153: ='INVENT.Inst&Agen Importés -10'!B152 -> 0 | C153: ='INVENT.Inst&Agen Importés -10'!F152 -> 0 | D153: ='INVENT.Inst&Agen Importés -10'!C152 -> 0 | E153: ='INVENT.Inst&Agen Importés -10'!H152 -> 0 | G153: 0 | H153: 0 | I153: 0 | J153: 0 | K153: 0 | L153: 0 | O153: 0 | P153: 0 | Q153: 0 | R153: 0
A154: 147 | B154: ='INVENT.Inst&Agen Importés -10'!B153 -> 0 | C154: ='INVENT.Inst&Agen Importés -10'!F153 -> 0 | D154: ='INVENT.Inst&Agen Importés -10'!C153 -> 0 | E154: ='INVENT.Inst&Agen Importés -10'!H153 -> 0 | G154: 0 | H154: 0 | I154: 0 | J154: 0 | K154: 0 | L154: 0 | O154: 0 | P154: 0 | Q154: 0 | R154: 0
A155: 148 | B155: ='INVENT.Inst&Agen Importés -10'!B154 -> 0 | C155: ='INVENT.Inst&Agen Importés -10'!F154 -> 0 | D155: ='INVENT.Inst&Agen Importés -10'!C154 -> 0 | E155: ='INVENT.Inst&Agen Importés -10'!H154 -> 0 | G155: 0 | H155: 0 | I155: 0 | J155: 0 | K155: 0 | L155: 0 | O155: 0 | P155: 0 | Q155: 0 | R155: 0
A156: 149 | B156: ='INVENT.Inst&Agen Importés -10'!B155 -> 0 | C156: ='INVENT.Inst&Agen Importés -10'!F155 -> 0 | D156: ='INVENT.Inst&Agen Importés -10'!C155 -> 0 | E156: ='INVENT.Inst&Agen Importés -10'!H155 -> 0 | G156: 0 | H156: 0 | I156: 0 | J156: 0 | K156: 0 | L156: 0 | O156: 0 | P156: 0 | Q156: 0 | R156: 0
A157: 150 | B157: ='INVENT.Inst&Agen Importés -10'!B156 -> 0 | C157: ='INVENT.Inst&Agen Importés -10'!F156 -> 0 | D157: ='INVENT.Inst&Agen Importés -10'!C156 -> 0 | E157: ='INVENT.Inst&Agen Importés -10'!H156 -> 0 | G157: 0 | H157: 0 | I157: 0 | J157: 0 | K157: 0 | L157: 0 | O157: 0 | P157: 0 | Q157: 0 | R157: 0
A158: 151 | B158: ='INVENT.Inst&Agen Importés -10'!B157 -> 0 | C158: ='INVENT.Inst&Agen Importés -10'!F157 -> 0 | D158: ='INVENT.Inst&Agen Importés -10'!C157 -> 0 | E158: ='INVENT.Inst&Agen Importés -10'!H157 -> 0 | G158: 0 | H158: 0 | I158: 0 | J158: 0 | K158: 0 | L158: 0 | O158: 0 | P158: 0 | Q158: 0 | R158: 0
A159: 152 | B159: ='INVENT.Inst&Agen Importés -10'!B158 -> 0 | C159: ='INVENT.Inst&Agen Importés -10'!F158 -> 0 | D159: ='INVENT.Inst&Agen Importés -10'!C158 -> 0 | E159: ='INVENT.Inst&Agen Importés -10'!H158 -> 0 | G159: 0 | H159: 0 | I159: 0 | J159: 0 | K159: 0 | L159: 0 | O159: 0 | P159: 0 | Q159: 0 | R159: 0
A160: 153 | B160: ='INVENT.Inst&Agen Importés -10'!B159 -> 0 | C160: ='INVENT.Inst&Agen Importés -10'!F159 -> 0 | D160: ='INVENT.Inst&Agen Importés -10'!C159 -> 0 | E160: ='INVENT.Inst&Agen Importés -10'!H159 -> 0 | G160: 0 | H160: 0 | I160: 0 | J160: 0 | K160: 0 | L160: 0 | O160: 0 | P160: 0 | Q160: 0 | R160: 0
A161: 154 | B161: ='INVENT.Inst&Agen Importés -10'!B160 -> 0 | C161: ='INVENT.Inst&Agen Importés -10'!F160 -> 0 | D161: ='INVENT.Inst&Agen Importés -10'!C160 -> 0 | E161: ='INVENT.Inst&Agen Importés -10'!H160 -> 0 | G161: 0 | H161: 0 | I161: 0 | J161: 0 | K161: 0 | L161: 0 | O161: 0 | P161: 0 | Q161: 0 | R161: 0
A162: 155 | B162: ='INVENT.Inst&Agen Importés -10'!B161 -> 0 | C162: ='INVENT.Inst&Agen Importés -10'!F161 -> 0 | D162: ='INVENT.Inst&Agen Importés -10'!C161 -> 0 | E162: ='INVENT.Inst&Agen Importés -10'!H161 -> 0 | G162: 0 | H162: 0 | I162: 0 | J162: 0 | K162: 0 | L162: 0 | O162: 0 | P162: 0 | Q162: 0 | R162: 0
A163: 156 | B163: ='INVENT.Inst&Agen Importés -10'!B162 -> 0 | C163: ='INVENT.Inst&Agen Importés -10'!F162 -> 0 | D163: ='INVENT.Inst&Agen Importés -10'!C162 -> 0 | E163: ='INVENT.Inst&Agen Importés -10'!H162 -> 0 | G163: 0 | H163: 0 | I163: 0 | J163: 0 | K163: 0 | L163: 0 | O163: 0 | P163: 0 | Q163: 0 | R163: 0
A164: 157 | B164: ='INVENT.Inst&Agen Importés -10'!B163 -> 0 | C164: ='INVENT.Inst&Agen Importés -10'!F163 -> 0 | D164: ='INVENT.Inst&Agen Importés -10'!C163 -> 0 | E164: ='INVENT.Inst&Agen Importés -10'!H163 -> 0 | G164: 0 | H164: 0 | I164: 0 | J164: 0 | K164: 0 | L164: 0 | O164: 0 | P164: 0 | Q164: 0 | R164: 0
A165: 158 | B165: ='INVENT.Inst&Agen Importés -10'!B164 -> 0 | C165: ='INVENT.Inst&Agen Importés -10'!F164 -> 0 | D165: ='INVENT.Inst&Agen Importés -10'!C164 -> 0 | E165: ='INVENT.Inst&Agen Importés -10'!H164 -> 0 | G165: 0 | H165: 0 | I165: 0 | J165: 0 | K165: 0 | L165: 0 | O165: 0 | P165: 0 | Q165: 0 | R165: 0
A166: 159 | B166: ='INVENT.Inst&Agen Importés -10'!B165 -> 0 | C166: ='INVENT.Inst&Agen Importés -10'!F165 -> 0 | D166: ='INVENT.Inst&Agen Importés -10'!C165 -> 0 | E166: ='INVENT.Inst&Agen Importés -10'!H165 -> 0 | G166: 0 | H166: 0 | I166: 0 | J166: 0 | K166: 0 | L166: 0 | O166: 0 | P166: 0 | Q166: 0 | R166: 0
A167: 160 | B167: ='INVENT.Inst&Agen Importés -10'!B166 -> 0 | C167: ='INVENT.Inst&Agen Importés -10'!F166 -> 0 | D167: ='INVENT.Inst&Agen Importés -10'!C166 -> 0 | E167: ='INVENT.Inst&Agen Importés -10'!H166 -> 0 | G167: 0 | H167: 0 | I167: 0 | J167: 0 | K167: 0 | L167: 0 | O167: 0 | P167: 0 | Q167: 0 | R167: 0
A168: 161 | B168: ='INVENT.Inst&Agen Importés -10'!B167 -> 0 | C168: ='INVENT.Inst&Agen Importés -10'!F167 -> 0 | D168: ='INVENT.Inst&Agen Importés -10'!C167 -> 0 | E168: ='INVENT.Inst&Agen Importés -10'!H167 -> 0 | G168: 0 | H168: 0 | I168: 0 | J168: 0 | K168: 0 | L168: 0 | O168: 0 | P168: 0 | Q168: 0 | R168: 0
A169: 162 | B169: ='INVENT.Inst&Agen Importés -10'!B168 -> 0 | C169: ='INVENT.Inst&Agen Importés -10'!F168 -> 0 | D169: ='INVENT.Inst&Agen Importés -10'!C168 -> 0 | E169: ='INVENT.Inst&Agen Importés -10'!H168 -> 0 | G169: 0 | H169: 0 | I169: 0 | J169: 0 | K169: 0 | L169: 0 | O169: 0 | P169: 0 | Q169: 0 | R169: 0
A170: 163 | B170: ='INVENT.Inst&Agen Importés -10'!B169 -> 0 | C170: ='INVENT.Inst&Agen Importés -10'!F169 -> 0 | D170: ='INVENT.Inst&Agen Importés -10'!C169 -> 0 | E170: ='INVENT.Inst&Agen Importés -10'!H169 -> 0 | G170: 0 | H170: 0 | I170: 0 | J170: 0 | K170: 0 | L170: 0 | O170: 0 | P170: 0 | Q170: 0 | R170: 0
A171: 164 | B171: ='INVENT.Inst&Agen Importés -10'!B170 -> 0 | C171: ='INVENT.Inst&Agen Importés -10'!F170 -> 0 | D171: ='INVENT.Inst&Agen Importés -10'!C170 -> 0 | E171: ='INVENT.Inst&Agen Importés -10'!H170 -> 0 | G171: 0 | H171: 0 | I171: 0 | J171: 0 | K171: 0 | L171: 0 | O171: 0 | P171: 0 | Q171: 0 | R171: 0
A172: =+A171+1 -> 165 | B172: ='INVENT.Inst&Agen Importés -10'!B171 -> 0 | C172: ='INVENT.Inst&Agen Importés -10'!F171 -> 0 | D172: ='INVENT.Inst&Agen Importés -10'!C171 -> 0 | E172: ='INVENT.Inst&Agen Importés -10'!H171 -> 0 | G172: 0 | H172: 0 | I172: 0 | J172: 0 | K172: 0 | L172: 0 | O172: 0 | P172: 0 | Q172: 0 | R172: 0
A173: 166 | B173: ='INVENT.Inst&Agen Importés -10'!B172 -> 0 | C173: ='INVENT.Inst&Agen Importés -10'!F172 -> 0 | D173: ='INVENT.Inst&Agen Importés -10'!C172 -> 0 | E173: ='INVENT.Inst&Agen Importés -10'!H172 -> 0 | G173: 0 | H173: 0 | I173: 0 | J173: 0 | K173: 0 | L173: 0 | O173: 0 | P173: 0 | Q173: 0 | R173: 0
A174: 167 | B174: ='INVENT.Inst&Agen Importés -10'!B173 -> 0 | C174: ='INVENT.Inst&Agen Importés -10'!F173 -> 0 | D174: ='INVENT.Inst&Agen Importés -10'!C173 -> 0 | E174: ='INVENT.Inst&Agen Importés -10'!H173 -> 0 | G174: 0 | H174: 0 | I174: 0 | J174: 0 | K174: 0 | L174: 0 | O174: 0 | P174: 0 | Q174: 0 | R174: 0
A175: 168 | B175: ='INVENT.Inst&Agen Importés -10'!B174 -> 0 | C175: ='INVENT.Inst&Agen Importés -10'!F174 -> 0 | D175: ='INVENT.Inst&Agen Importés -10'!C174 -> 0 | E175: ='INVENT.Inst&Agen Importés -10'!H174 -> 0 | G175: 0 | H175: 0 | I175: 0 | J175: 0 | K175: 0 | L175: 0 | O175: 0 | P175: 0 | Q175: 0 | R175: 0
A176: 169 | B176: ='INVENT.Inst&Agen Importés -10'!B175 -> 0 | C176: ='INVENT.Inst&Agen Importés -10'!F175 -> 0 | D176: ='INVENT.Inst&Agen Importés -10'!C175 -> 0 | E176: ='INVENT.Inst&Agen Importés -10'!H175 -> 0 | G176: 0 | H176: 0 | I176: 0 | J176: 0 | K176: 0 | L176: 0 | O176: 0 | P176: 0 | Q176: 0 | R176: 0
A177: 170 | B177: ='INVENT.Inst&Agen Importés -10'!B176 -> 0 | C177: ='INVENT.Inst&Agen Importés -10'!F176 -> 0 | D177: ='INVENT.Inst&Agen Importés -10'!C176 -> 0 | E177: ='INVENT.Inst&Agen Importés -10'!H176 -> 0 | G177: 0 | H177: 0 | I177: 0 | J177: 0 | K177: 0 | L177: 0 | O177: 0 | P177: 0 | Q177: 0 | R177: 0
A178: 171 | B178: ='INVENT.Inst&Agen Importés -10'!B177 -> 0 | C178: ='INVENT.Inst&Agen Importés -10'!F177 -> 0 | D178: ='INVENT.Inst&Agen Importés -10'!C177 -> 0 | E178: ='INVENT.Inst&Agen Importés -10'!H177 -> 0 | G178: 0 | H178: 0 | I178: 0 | J178: 0 | K178: 0 | L178: 0 | O178: 0 | P178: 0 | Q178: 0 | R178: 0
A179: 172 | B179: ='INVENT.Inst&Agen Importés -10'!B178 -> 0 | C179: ='INVENT.Inst&Agen Importés -10'!F178 -> 0 | D179: ='INVENT.Inst&Agen Importés -10'!C178 -> 0 | E179: ='INVENT.Inst&Agen Importés -10'!H178 -> 0 | G179: 0 | H179: 0 | I179: 0 | J179: 0 | K179: 0 | L179: 0 | O179: 0 | P179: 0 | Q179: 0 | R179: 0
A180: 173 | B180: ='INVENT.Inst&Agen Importés -10'!B179 -> 0 | C180: ='INVENT.Inst&Agen Importés -10'!F179 -> 0 | D180: ='INVENT.Inst&Agen Importés -10'!C179 -> 0 | E180: ='INVENT.Inst&Agen Importés -10'!H179 -> 0 | G180: 0 | H180: 0 | I180: 0 | J180: 0 | K180: 0 | L180: 0 | O180: 0 | P180: 0 | Q180: 0 | R180: 0
A181: 174 | B181: ='INVENT.Inst&Agen Importés -10'!B180 -> 0 | C181: ='INVENT.Inst&Agen Importés -10'!F180 -> 0 | D181: ='INVENT.Inst&Agen Importés -10'!C180 -> 0 | E181: ='INVENT.Inst&Agen Importés -10'!H180 -> 0 | G181: 0 | H181: 0 | I181: 0 | J181: 0 | K181: 0 | L181: 0 | O181: 0 | P181: 0 | Q181: 0 | R181: 0
A182: 175 | B182: ='INVENT.Inst&Agen Importés -10'!B181 -> 0 | C182: ='INVENT.Inst&Agen Importés -10'!F181 -> 0 | D182: ='INVENT.Inst&Agen Importés -10'!C181 -> 0 | E182: ='INVENT.Inst&Agen Importés -10'!H181 -> 0 | G182: 0 | H182: 0 | I182: 0 | J182: 0 | K182: 0 | L182: 0 | O182: 0 | P182: 0 | Q182: 0 | R182: 0
A183: 176 | B183: ='INVENT.Inst&Agen Importés -10'!B182 -> 0 | C183: ='INVENT.Inst&Agen Importés -10'!F182 -> 0 | D183: ='INVENT.Inst&Agen Importés -10'!C182 -> 0 | E183: ='INVENT.Inst&Agen Importés -10'!H182 -> 0 | G183: =F183*E183 -> 0 | H183: 0 | I183: 0 | J183: 0 | K183: =(E183+G183+H183)*18% -> 0 | L183: =SUM(G183:K183)+E183 -> 0 | O183: =(M183+N183)*18% -> 0 | P183: =O183+N183+M183 -> 0 | Q183: =+R183-O183-K183 -> 0 | R183: =P183+L183 -> 0
A184: 177 | B184: ='INVENT.Inst&Agen Importés -10'!B183 -> 0 | C184: ='INVENT.Inst&Agen Importés -10'!F183 -> 0 | D184: ='INVENT.Inst&Agen Importés -10'!C183 -> 0 | E184: ='INVENT.Inst&Agen Importés -10'!H183 -> 0 | G184: 0 | H184: 0 | I184: 0 | J184: 0 | K184: 0 | L184: 0 | O184: 0 | P184: 0 | Q184: 0 | R184: 0
A185: 178 | B185: ='INVENT.Inst&Agen Importés -10'!B184 -> 0 | C185: ='INVENT.Inst&Agen Importés -10'!F184 -> 0 | D185: ='INVENT.Inst&Agen Importés -10'!C184 -> 0 | E185: ='INVENT.Inst&Agen Importés -10'!H184 -> 0 | G185: 0 | H185: 0 | I185: 0 | J185: 0 | K185: 0 | L185: 0 | O185: 0 | P185: 0 | Q185: 0 | R185: 0
A186: 179 | B186: ='INVENT.Inst&Agen Importés -10'!B185 -> 0 | C186: ='INVENT.Inst&Agen Importés -10'!F185 -> 0 | D186: ='INVENT.Inst&Agen Importés -10'!C185 -> 0 | E186: ='INVENT.Inst&Agen Importés -10'!H185 -> 0 | G186: 0 | H186: 0 | I186: 0 | J186: 0 | K186: 0 | L186: 0 | O186: 0 | P186: 0 | Q186: 0 | R186: 0
A187: 180 | B187: ='INVENT.Inst&Agen Importés -10'!B186 -> 0 | C187: ='INVENT.Inst&Agen Importés -10'!F186 -> 0 | D187: ='INVENT.Inst&Agen Importés -10'!C186 -> 0 | E187: ='INVENT.Inst&Agen Importés -10'!H186 -> 0 | G187: 0 | H187: 0 | I187: 0 | J187: 0 | K187: 0 | L187: 0 | O187: 0 | P187: 0 | Q187: 0 | R187: 0
A188: 181 | B188: ='INVENT.Inst&Agen Importés -10'!B187 -> 0 | C188: ='INVENT.Inst&Agen Importés -10'!F187 -> 0 | D188: ='INVENT.Inst&Agen Importés -10'!C187 -> 0 | E188: ='INVENT.Inst&Agen Importés -10'!H187 -> 0 | G188: 0 | H188: 0 | I188: 0 | J188: 0 | K188: 0 | L188: 0 | O188: 0 | P188: 0 | Q188: 0 | R188: 0
A189: 182 | B189: ='INVENT.Inst&Agen Importés -10'!B188 -> 0 | C189: ='INVENT.Inst&Agen Importés -10'!F188 -> 0 | D189: ='INVENT.Inst&Agen Importés -10'!C188 -> 0 | E189: ='INVENT.Inst&Agen Importés -10'!H188 -> 0 | G189: 0 | H189: 0 | I189: 0 | J189: 0 | K189: 0 | L189: 0 | O189: 0 | P189: 0 | Q189: 0 | R189: 0
A190: 183 | B190: ='INVENT.Inst&Agen Importés -10'!B189 -> 0 | C190: ='INVENT.Inst&Agen Importés -10'!F189 -> 0 | D190: ='INVENT.Inst&Agen Importés -10'!C189 -> 0 | E190: ='INVENT.Inst&Agen Importés -10'!H189 -> 0 | G190: 0 | H190: 0 | I190: 0 | J190: 0 | K190: 0 | L190: 0 | O190: 0 | P190: 0 | Q190: 0 | R190: 0
A191: 184 | B191: ='INVENT.Inst&Agen Importés -10'!B190 -> 0 | C191: ='INVENT.Inst&Agen Importés -10'!F190 -> 0 | D191: ='INVENT.Inst&Agen Importés -10'!C190 -> 0 | E191: ='INVENT.Inst&Agen Importés -10'!H190 -> 0 | G191: 0 | H191: 0 | I191: 0 | J191: 0 | K191: 0 | L191: 0 | O191: 0 | P191: 0 | Q191: 0 | R191: 0
A192: 185 | B192: ='INVENT.Inst&Agen Importés -10'!B191 -> 0 | C192: ='INVENT.Inst&Agen Importés -10'!F191 -> 0 | D192: ='INVENT.Inst&Agen Importés -10'!C191 -> 0 | E192: ='INVENT.Inst&Agen Importés -10'!H191 -> 0 | G192: 0 | H192: 0 | I192: 0 | J192: 0 | K192: 0 | L192: 0 | O192: 0 | P192: 0 | Q192: 0 | R192: 0
A193: 186 | B193: ='INVENT.Inst&Agen Importés -10'!B192 -> 0 | C193: ='INVENT.Inst&Agen Importés -10'!F192 -> 0 | D193: ='INVENT.Inst&Agen Importés -10'!C192 -> 0 | E193: ='INVENT.Inst&Agen Importés -10'!H192 -> 0 | G193: 0 | H193: 0 | I193: 0 | J193: 0 | K193: 0 | L193: 0 | O193: 0 | P193: 0 | Q193: 0 | R193: 0
A194: 187 | B194: ='INVENT.Inst&Agen Importés -10'!B193 -> 0 | C194: ='INVENT.Inst&Agen Importés -10'!F193 -> 0 | D194: ='INVENT.Inst&Agen Importés -10'!C193 -> 0 | E194: ='INVENT.Inst&Agen Importés -10'!H193 -> 0 | G194: 0 | H194: 0 | I194: 0 | J194: 0 | K194: 0 | L194: 0 | O194: 0 | P194: 0 | Q194: 0 | R194: 0
A195: 188 | B195: ='INVENT.Inst&Agen Importés -10'!B194 -> 0 | C195: ='INVENT.Inst&Agen Importés -10'!F194 -> 0 | D195: ='INVENT.Inst&Agen Importés -10'!C194 -> 0 | E195: ='INVENT.Inst&Agen Importés -10'!H194 -> 0 | G195: 0 | H195: 0 | I195: 0 | J195: 0 | K195: 0 | L195: 0 | O195: 0 | P195: 0 | Q195: 0 | R195: 0
A196: 189 | B196: ='INVENT.Inst&Agen Importés -10'!B195 -> 0 | C196: ='INVENT.Inst&Agen Importés -10'!F195 -> 0 | D196: ='INVENT.Inst&Agen Importés -10'!C195 -> 0 | E196: ='INVENT.Inst&Agen Importés -10'!H195 -> 0 | G196: 0 | H196: 0 | I196: 0 | J196: 0 | K196: 0 | L196: 0 | O196: 0 | P196: 0 | Q196: 0 | R196: 0
A197: 190 | B197: ='INVENT.Inst&Agen Importés -10'!B196 -> 0 | C197: ='INVENT.Inst&Agen Importés -10'!F196 -> 0 | D197: ='INVENT.Inst&Agen Importés -10'!C196 -> 0 | E197: ='INVENT.Inst&Agen Importés -10'!H196 -> 0 | G197: 0 | H197: 0 | I197: 0 | J197: 0 | K197: 0 | L197: 0 | O197: 0 | P197: 0 | Q197: 0 | R197: 0
A198: 191 | B198: ='INVENT.Inst&Agen Importés -10'!B197 -> 0 | C198: ='INVENT.Inst&Agen Importés -10'!F197 -> 0 | D198: ='INVENT.Inst&Agen Importés -10'!C197 -> 0 | E198: ='INVENT.Inst&Agen Importés -10'!H197 -> 0 | G198: 0 | H198: 0 | I198: 0 | J198: 0 | K198: 0 | L198: 0 | O198: 0 | P198: 0 | Q198: 0 | R198: 0
A199: 192 | B199: ='INVENT.Inst&Agen Importés -10'!B198 -> 0 | C199: ='INVENT.Inst&Agen Importés -10'!F198 -> 0 | D199: ='INVENT.Inst&Agen Importés -10'!C198 -> 0 | E199: ='INVENT.Inst&Agen Importés -10'!H198 -> 0 | G199: 0 | H199: 0 | I199: 0 | J199: 0 | K199: 0 | L199: 0 | O199: 0 | P199: 0 | Q199: 0 | R199: 0
A200: 193 | B200: ='INVENT.Inst&Agen Importés -10'!B199 -> 0 | C200: ='INVENT.Inst&Agen Importés -10'!F199 -> 0 | D200: ='INVENT.Inst&Agen Importés -10'!C199 -> 0 | E200: ='INVENT.Inst&Agen Importés -10'!H199 -> 0 | G200: 0 | H200: 0 | I200: 0 | J200: 0 | K200: 0 | L200: 0 | O200: 0 | P200: 0 | Q200: 0 | R200: 0
A201: 194 | B201: ='INVENT.Inst&Agen Importés -10'!B200 -> 0 | C201: ='INVENT.Inst&Agen Importés -10'!F200 -> 0 | D201: ='INVENT.Inst&Agen Importés -10'!C200 -> 0 | E201: ='INVENT.Inst&Agen Importés -10'!H200 -> 0 | G201: 0 | H201: =E201*1% -> 0 | I201: =E201*1% -> 0 | J201: =E201*0.5% -> 0 | K201: 0 | L201: 0 | O201: 0 | P201: 0 | Q201: 0 | R201: 0
... 306 more rows

Sheet INVEST.Mat & Outillages - 10
D1: ='REFERENCES - 10'!D7 -> 0 | F1: ='REFERENCES - 10'!D9 -> 0
B2: INVESTISSEMENTS PREVUS SUR LA PERIODE DE REALISATION DU PROJET | R2: (En F. Cfa)
A3: N° | B3: Désignation | C3: Quantité | D3: ACHAT A L'ETRANGER (en F. Cfa) | M3: ACHAT EN COTE D'IVOIRE (en F. Cfa) | Q3: Coût total des Investissements
D4: Position tarifaire | E4: Cout CAF | F4: Droit de douane / Droit fiscaux | H4: RSTAT (1%) | I4: PCS (1%) | J4: PCC (0,5%) | K4: TVA sur Droit de Douane | L4: Total Achat à l'étranger | M4: Achats HT | N4: Coûts locaux (Transport, montage,..) | O4: T.V.A | P4: Total Achat en RCI | Q4: Coût total HT | R4: Coût total TTC
F5: Taux | G5: Montant
B7: MATERIELS & OUTILLAGES | E7: =SUM(E8:E507) -> 0 | G7: =SUM(G8:G507) -> 0 | H7: 0 | I7: 0 | J7: 0 | K7: 0 | L7: 0 | M7: 0 | N7: 0 | O7: 0 | P7: 0 | Q7: 0 | R7: 0
A8: 1 | B8: ='INVENT.Mat&Outillag Importé -10'!B7 -> 0 | C8: ='INVENT.Mat&Outillag Importé -10'!F7 -> 0 | D8: ='INVENT.Mat&Outillag Importé -10'!C7 -> 0 | E8: ='INVENT.Mat&Outillag Importé -10'!H7 -> 0 | G8: =F8*E8 -> 0 | H8: =E8*1% -> 0 | I8: =E8*1% -> 0 | J8: =E8*0.5% -> 0 | K8: =(E8+G8+H8)*18% -> 0 | L8: =SUM(G8:K8)+E8 -> 0 | O8: =(M8+N8)*18% -> 0 | P8: =O8+N8+M8 -> 0 | Q8: =+R8-O8-K8 -> 0 | R8: =P8+L8 -> 0
A9: =+A8+1 -> 2 | B9: ='INVENT.Mat&Outillag Importé -10'!B8 -> 0 | C9: ='INVENT.Mat&Outillag Importé -10'!F8 -> 0 | D9: ='INVENT.Mat&Outillag Importé -10'!C8 -> 0 | E9: ='INVENT.Mat&Outillag Importé -10'!H8 -> 0 | G9: =F9*E9 -> 0 | H9: =E9*1% -> 0 | I9: =E9*1% -> 0 | J9: =E9*0.5% -> 0 | K9: =(E9+G9+H9)*18% -> 0 | L9: 0 | O9: =(M9+N9)*18% -> 0 | P9: =O9+N9+M9 -> 0 | Q9: =+R9-O9-K9 -> 0 | R9: =P9+L9 -> 0
A10: =+A9+1 -> 3 | B10: ='INVENT.Mat&Outillag Importé -10'!B9 -> 0 | C10: ='INVENT.Mat&Outillag Importé -10'!F9 -> 0 | D10: ='INVENT.Mat&Outillag Importé -10'!C9 -> 0 | E10: ='INVENT.Mat&Outillag Importé -10'!H9 -> 0 | G10: =F10*E10 -> 0 | H10: 0 | I10: 0 | J10: 0 | K10: =(E10+G10+H10)*18% -> 0 | L10: 0 | O10: =(M10+N10)*18% -> 0 | P10: =O10+N10+M10 -> 0 | Q10: =+R10-O10-K10 -> 0 | R10: =P10+L10 -> 0
A11: 4 | B11: ='INVENT.Mat&Outillag Importé -10'!B10 -> 0 | C11: ='INVENT.Mat&Outillag Importé -10'!F10 -> 0 | D11: ='INVENT.Mat&Outillag Importé -10'!C10 -> 0 | E11: ='INVENT.Mat&Outillag Importé -10'!H10 -> 0 | G11: 0 | H11: 0 | I11: 0 | J11: 0 | K11: 0 | L11: 0 | O11: =(M11+N11)*18% -> 0 | P11: =O11+N11+M11 -> 0 | Q11: =+R11-O11-K11 -> 0 | R11: =P11+L11 -> 0
A12: 5 | B12: ='INVENT.Mat&Outillag Importé -10'!B11 -> 0 | C12: ='INVENT.Mat&Outillag Importé -10'!F11 -> 0 | D12: ='INVENT.Mat&Outillag Importé -10'!C11 -> 0 | E12: ='INVENT.Mat&Outillag Importé -10'!H11 -> 0 | G12: 0 | H12: 0 | I12: 0 | J12: 0 | K12: 0 | L12: 0 | O12: 0 | P12: 0 | Q12: 0 | R12: 0
A13: 6 | B13: ='INVENT.Mat&Outillag Importé -10'!B12 -> 0 | C13: ='INVENT.Mat&Outillag Importé -10'!F12 -> 0 | D13: ='INVENT.Mat&Outillag Importé -10'!C12 -> 0 | E13: ='INVENT.Mat&Outillag Importé -10'!H12 -> 0 | G13: 0 | H13: 0 | I13: 0 | J13: 0 | K13: 0 | L13: 0 | O13: 0 | P13: 0 | Q13: 0 | R13: 0
A14: 7 | B14: ='INVENT.Mat&Outillag Importé -10'!B13 -> 0 | C14: ='INVENT.Mat&Outillag Importé -10'!F13 -> 0 | D14: ='INVENT.Mat&Outillag Importé -10'!C13 -> 0 | E14: ='INVENT.Mat&Outillag Importé -10'!H13 -> 0 | G14: 0 | H14: 0 | I14: 0 | J14: 0 | K14: 0 | L14: 0 | O14: 0 | P14: 0 | Q14: 0 | R14: 0
A15: 8 | B15: ='INVENT.Mat&Outillag Importé -10'!B14 -> 0 | C15: ='INVENT.Mat&Outillag Importé -10'!F14 -> 0 | D15: ='INVENT.Mat&Outillag Importé -10'!C14 -> 0 | E15: ='INVENT.Mat&Outillag Importé -10'!H14 -> 0 | G15: 0 | H15: 0 | I15: 0 | J15: 0 | K15: 0 | L15: 0 | O15: 0 | P15: 0 | Q15: 0 | R15: 0
A16: 9 | B16: ='INVENT.Mat&Outillag Importé -10'!B15 -> 0 | C16: ='INVENT.Mat&Outillag Importé -10'!F15 -> 0 | D16: ='INVENT.Mat&Outillag Importé -10'!C15 -> 0 | E16: ='INVENT.Mat&Outillag Importé -10'!H15 -> 0 | G16: 0 | H16: 0 | I16: 0 | J16: 0 | K16: 0 | L16: 0 | O16: 0 | P16: 0 | Q16: 0 | R16: 0
A17: 10 | B17: ='INVENT.Mat&Outillag Importé -10'!B16 -> 0 | C17: ='INVENT.Mat&Outillag Importé -10'!F16 -> 0 | D17: ='INVENT.Mat&Outillag Importé -10'!C16 -> 0 | E17: ='INVENT.Mat&Outillag Importé -10'!H16 -> 0 | G17: 0 | H17: 0 | I17: 0 | J17: 0 | K17: 0 | L17: 0 | O17: 0 | P17: 0 | Q17: 0 | R17: 0
A18: 11 | B18: ='INVENT.Mat&Outillag Importé -10'!B17 -> 0 | C18: ='INVENT.Mat&Outillag Importé -10'!F17 -> 0 | D18: ='INVENT.Mat&Outillag Importé -10'!C17 -> 0 | E18: ='INVENT.Mat&Outillag Importé -10'!H17 -> 0 | G18: 0 | H18: 0 | I18: 0 | J18: 0 | K18: 0 | L18: 0 | O18: 0 | P18: 0 | Q18: 0 | R18: 0
A19: 12 | B19: ='INVENT.Mat&Outillag Importé -10'!B18 -> 0 | C19: ='INVENT.Mat&Outillag Importé -10'!F18 -> 0 | D19: ='INVENT.Mat&Outillag Importé -10'!C18 -> 0 | E19: ='INVENT.Mat&Outillag Importé -10'!H18 -> 0 | G19: 0 | H19: 0 | I19: 0 | J19: 0 | K19: 0 | L19: 0 | O19: 0 | P19: 0 | Q19: 0 | R19: 0
A20: 13 | B20: ='INVENT.Mat&Outillag Importé -10'!B19 -> 0 | C20: ='INVENT.Mat&Outillag Importé -10'!F19 -> 0 | D20: ='INVENT.Mat&Outillag Importé -10'!C19 -> 0 | E20: ='INVENT.Mat&Outillag Importé -10'!H19 -> 0 | G20: 0 | H20: 0 | I20: 0 | J20: 0 | K20: 0 | L20: 0 | O20: 0 | P20: 0 | Q20: 0 | R20: 0
A21: 14 | B21: ='INVENT.Mat&Outillag Importé -10'!B20 -> 0 | C21: ='INVENT.Mat&Outillag Importé -10'!F20 -> 0 | D21: ='INVENT.Mat&Outillag Importé -10'!C20 -> 0 | E21: ='INVENT.Mat&Outillag Importé -10'!H20 -> 0 | G21: 0 | H21: 0 | I21: 0 | J21: 0 | K21: 0 | L21: 0 | O21: 0 | P21: 0 | Q21: 0 | R21: 0
A22: 15 | B22: ='INVENT.Mat&Outillag Importé -10'!B21 -> 0 | C22: ='INVENT.Mat&Outillag Importé -10'!F21 -> 0 | D22: ='INVENT.Mat&Outillag Importé -10'!C21 -> 0 | E22: ='INVENT.Mat&Outillag Importé -10'!H21 -> 0 | G22: 0 | H22: 0 | I22: 0 | J22: 0 | K22: 0 | L22: 0 | O22: 0 | P22: 0 | Q22: 0 | R22: 0
A23: 16 | B23: ='INVENT.Mat&Outillag Importé -10'!B22 -> 0 | C23: ='INVENT.Mat&Outillag Importé -10'!F22 -> 0 | D23: ='INVENT.Mat&Outillag Importé -10'!C22 -> 0 | E23: ='INVENT.Mat&Outillag Importé -10'!H22 -> 0 | G23: 0 | H23: 0 | I23: 0 | J23: 0 | K23: 0 | L23: 0 | O23: 0 | P23: 0 | Q23: 0 | R23: 0
A24: 17 | B24: ='INVENT.Mat&Outillag Importé -10'!B23 -> 0 | C24: ='INVENT.Mat&Outillag Importé -10'!F23 -> 0 | D24: ='INVENT.Mat&Outillag Importé -10'!C23 -> 0 | E24: ='INVENT.Mat&Outillag Importé -10'!H23 -> 0 | G24: 0 | H24: 0 | I24: 0 | J24: 0 | K24: 0 | L24: 0 | O24: 0 | P24: 0 | Q24: 0 | R24: 0
A25: 18 | B25: ='INVENT.Mat&Outillag Importé -10'!B24 -> 0 | C25: ='INVENT.Mat&Outillag Importé -10'!F24 -> 0 | D25: ='INVENT.Mat&Outillag Importé -10'!C24 -> 0 | E25: ='INVENT.Mat&Outillag Importé -10'!H24 -> 0 | G25: 0 | H25: 0 | I25: 0 | J25: 0 | K25: 0 | L25: 0 | O25: 0 | P25: 0 | Q25: 0 | R25: 0
A26: 19 | B26: ='INVENT.Mat&Outillag Importé -10'!B25 -> 0 | C26: ='INVENT.Mat&Outillag Importé -10'!F25 -> 0 | D26: ='INVENT.Mat&Outillag Importé -10'!C25 -> 0 | E26: ='INVENT.Mat&Outillag Importé -10'!H25 -> 0 | G26: 0 | H26: 0 | I26: 0 | J26: 0 | K26: 0 | L26: 0 | O26: 0 | P26: 0 | Q26: 0 | R26: 0
A27: 20 | B27: ='INVENT.Mat&Outillag Importé -10'!B26 -> 0 | C27: ='INVENT.Mat&Outillag Importé -10'!F26 -> 0 | D27: ='INVENT.Mat&Outillag Importé -10'!C26 -> 0 | E27: ='INVENT.Mat&Outillag Importé -10'!H26 -> 0 | G27: 0 | H27: 0 | I27: 0 | J27: 0 | K27: 0 | L27: 0 | O27: 0 | P27: 0 | Q27: 0 | R27: 0
A28: 21 | B28: ='INVENT.Mat&Outillag Importé -10'!B27 -> 0 | C28: ='INVENT.Mat&Outillag Importé -10'!F27 -> 0 | D28: ='INVENT.Mat&Outillag Importé -10'!C27 -> 0 | E28: ='INVENT.Mat&Outillag Importé -10'!H27 -> 0 | G28: 0 | H28: 0 | I28: 0 | J28: 0 | K28: 0 | L28: 0 | O28: 0 | P28: 0 | Q28: 0 | R28: 0
A29: 22 | B29: ='INVENT.Mat&Outillag Importé -10'!B28 -> 0 | C29: ='INVENT.Mat&Outillag Importé -10'!F28 -> 0 | D29: ='INVENT.Mat&Outillag Importé -10'!C28 -> 0 | E29: ='INVENT.Mat&Outillag Importé -10'!H28 -> 0 | G29: 0 | H29: 0 | I29: 0 | J29: 0 | K29: 0 | L29: 0 | O29: 0 | P29: 0 | Q29: 0 | R29: 0
A30: 23 | B30: ='INVENT.Mat&Outillag Importé -10'!B29 -> 0 | C30: ='INVENT.Mat&Outillag Importé -10'!F29 -> 0 | D30: ='INVENT.Mat&Outillag Importé -10'!C29 -> 0 | E30: ='INVENT.Mat&Outillag Importé -10'!H29 -> 0 | G30: 0 | H30: 0 | I30: 0 | J30: 0 | K30: 0 | L30: 0 | O30: 0 | P30: 0 | Q30: 0 | R30: 0
A31: 24 | B31: ='INVENT.Mat&Outillag Importé -10'!B30 -> 0 | C31: ='INVENT.Mat&Outillag Importé -10'!F30 -> 0 | D31: ='INVENT.Mat&Outillag Importé -10'!C30 -> 0 | E31: ='INVENT.Mat&Outillag Importé -10'!H30 -> 0 | G31: 0 | H31: 0 | I31: 0 | J31: 0 | K31: 0 | L31: 0 | O31: 0 | P31: 0 | Q31: 0 | R31: 0
A32: 25 | B32: ='INVENT.Mat&Outillag Importé -10'!B31 -> 0 | C32: ='INVENT.Mat&Outillag Importé -10'!F31 -> 0 | D32: ='INVENT.Mat&Outillag Importé -10'!C31 -> 0 | E32: ='INVENT.Mat&Outillag Importé -10'!H31 -> 0 | G32: 0 | H32: 0 | I32: 0 | J32: 0 | K32: 0 | L32: 0 | O32: 0 | P32: 0 | Q32: 0 | R32: 0
A33: 26 | B33: ='INVENT.Mat&Outillag Importé -10'!B32 -> 0 | C33: ='INVENT.Mat&Outillag Importé -10'!F32 -> 0 | D33: ='INVENT.Mat&Outillag Importé -10'!C32 -> 0 | E33: ='INVENT.Mat&Outillag Importé -10'!H32 -> 0 | G33: 0 | H33: 0 | I33: 0 | J33: 0 | K33: 0 | L33: 0 | O33: 0 | P33: 0 | Q33: 0 | R33: 0
A34: 27 | B34: ='INVENT.Mat&Outillag Importé -10'!B33 -> 0 | C34: ='INVENT.Mat&Outillag Importé -10'!F33 -> 0 | D34: ='INVENT.Mat&Outillag Importé -10'!C33 -> 0 | E34: ='INVENT.Mat&Outillag Importé -10'!H33 -> 0 | G34: 0 | H34: 0 | I34: 0 | J34: 0 | K34: 0 | L34: 0 | O34: 0 | P34: 0 | Q34: 0 | R34: 0
A35: 28 | B35: ='INVENT.Mat&Outillag Importé -10'!B34 -> 0 | C35: ='INVENT.Mat&Outillag Importé -10'!F34 -> 0 | D35: ='INVENT.Mat&Outillag Importé -10'!C34 -> 0 | E35: ='INVENT.Mat&Outillag Importé -10'!H34 -> 0 | G35: 0 | H35: 0 | I35: 0 | J35: 0 | K35: 0 | L35: 0 | O35: 0 | P35: 0 | Q35: 0 | R35: 0
A36: 29 | B36: ='INVENT.Mat&Outillag Importé -10'!B35 -> 0 | C36: ='INVENT.Mat&Outillag Importé -10'!F35 -> 0 | D36: ='INVENT.Mat&Outillag Importé -10'!C35 -> 0 | E36: ='INVENT.Mat&Outillag Importé -10'!H35 -> 0 | G36: 0 | H36: 0 | I36: 0 | J36: 0 | K36: 0 | L36: 0 | O36: 0 | P36: 0 | Q36: 0 | R36: 0
A37: 30 | B37: ='INVENT.Mat&Outillag Importé -10'!B36 -> 0 | C37: ='INVENT.Mat&Outillag Importé -10'!F36 -> 0 | D37: ='INVENT.Mat&Outillag Importé -10'!C36 -> 0 | E37: ='INVENT.Mat&Outillag Importé -10'!H36 -> 0 | G37: 0 | H37: 0 | I37: 0 | J37: 0 | K37: 0 | L37: 0 | O37: 0 | P37: 0 | Q37: 0 | R37: 0
A38: 31 | B38: ='INVENT.Mat&Outillag Importé -10'!B37 -> 0 | C38: ='INVENT.Mat&Outillag Importé -10'!F37 -> 0 | D38: ='INVENT.Mat&Outillag Importé -10'!C37 -> 0 | E38: ='INVENT.Mat&Outillag Importé -10'!H37 -> 0 | G38: 0 | H38: 0 | I38: 0 | J38: 0 | K38: 0 | L38: 0 | O38: 0 | P38: 0 | Q38: 0 | R38: 0
A39: 32 | B39: ='INVENT.Mat&Outillag Importé -10'!B38 -> 0 | C39: ='INVENT.Mat&Outillag Importé -10'!F38 -> 0 | D39: ='INVENT.Mat&Outillag Importé -10'!C38 -> 0 | E39: ='INVENT.Mat&Outillag Importé -10'!H38 -> 0 | G39: 0 | H39: 0 | I39: 0 | J39: 0 | K39: 0 | L39: 0 | O39: 0 | P39: 0 | Q39: 0 | R39: 0
A40: 33 | B40: ='INVENT.Mat&Outillag Importé -10'!B39 -> 0 | C40: ='INVENT.Mat&Outillag Importé -10'!F39 -> 0 | D40: ='INVENT.Mat&Outillag Importé -10'!C39 -> 0 | E40: ='INVENT.Mat&Outillag Importé -10'!H39 -> 0 | G40: 0 | H40: 0 | I40: 0 | J40: 0 | K40: 0 | L40: 0 | O40: 0 | P40: 0 | Q40: 0 | R40: 0
A41: 34 | B41: ='INVENT.Mat&Outillag Importé -10'!B40 -> 0 | C41: ='INVENT.Mat&Outillag Importé -10'!F40 -> 0 | D41: ='INVENT.Mat&Outillag Importé -10'!C40 -> 0 | E41: ='INVENT.Mat&Outillag Importé -10'!H40 -> 0 | G41: 0 | H41: 0 | I41: 0 | J41: 0 | K41: 0 | L41: 0 | O41: 0 | P41: 0 | Q41: 0 | R41: 0
A42: 35 | B42: ='INVENT.Mat&Outillag Importé -10'!B41 -> 0 | C42: ='INVENT.Mat&Outillag Importé -10'!F41 -> 0 | D42: ='INVENT.Mat&Outillag Importé -10'!C41 -> 0 | E42: ='INVENT.Mat&Outillag Importé -10'!H41 -> 0 | G42: 0 | H42: 0 | I42: 0 | J42: 0 | K42: 0 | L42: 0 | O42: 0 | P42: 0 | Q42: 0 | R42: 0
A43: 36 | B43: ='INVENT.Mat&Outillag Importé -10'!B42 -> 0 | C43: ='INVENT.Mat&Outillag Importé -10'!F42 -> 0 | D43: ='INVENT.Mat&Outillag Importé -10'!C42 -> 0 | E43: ='INVENT.Mat&Outillag Importé -10'!H42 -> 0 | G43: 0 | H43: 0 | I43: 0 | J43: 0 | K43: 0 | L43: 0 | O43: 0 | P43: 0 | Q43: 0 | R43: 0
A44: 37 | B44: ='INVENT.Mat&Outillag Importé -10'!B43 -> 0 | C44: ='INVENT.Mat&Outillag Importé -10'!F43 -> 0 | D44: ='INVENT.Mat&Outillag Importé -10'!C43 -> 0 | E44: ='INVENT.Mat&Outillag Importé -10'!H43 -> 0 | G44: 0 | H44: 0 | I44: 0 | J44: 0 | K44: 0 | L44: 0 | O44: 0 | P44: 0 | Q44: 0 | R44: 0
A45: 38 | B45: ='INVENT.Mat&Outillag Importé -10'!B44 -> 0 | C45: ='INVENT.Mat&Outillag Importé -10'!F44 -> 0 | D45: ='INVENT.Mat&Outillag Importé -10'!C44 -> 0 | E45: ='INVENT.Mat&Outillag Importé -10'!H44 -> 0 | G45: =F45*E45 -> 0 | H45: 0 | I45: 0 | J45: 0 | K45: =(E45+G45+H45)*18% -> 0 | L45: 0 | O45: 0 | P45: 0 | Q45: 0 | R45: 0
A46: 39 | B46: ='INVENT.Mat&Outillag Importé -10'!B45 -> 0 | C46: ='INVENT.Mat&Outillag Importé -10'!F45 -> 0 | D46: ='INVENT.Mat&Outillag Importé -10'!C45 -> 0 | E46: ='INVENT.Mat&Outillag Importé -10'!H45 -> 0 | G46: 0 | H46: 0 | I46: 0 | J46: 0 | K46: 0 | L46: 0 | O46: 0 | P46: 0 | Q46: 0 | R46: 0
A47: =+A46+1 -> 40 | B47: ='INVENT.Mat&Outillag Importé -10'!B46 -> 0 | C47: ='INVENT.Mat&Outillag Importé -10'!F46 -> 0 | D47: ='INVENT.Mat&Outillag Importé -10'!C46 -> 0 | E47: ='INVENT.Mat&Outillag Importé -10'!H46 -> 0 | G47: =F47*E47 -> 0 | H47: 0 | I47: 0 | J47: 0 | K47: =(E47+G47+H47)*18% -> 0 | L47: 0 | O47: 0 | P47: 0 | Q47: 0 | R47: 0
A48: 41 | B48: ='INVENT.Mat&Outillag Importé -10'!B47 -> 0 | C48: ='INVENT.Mat&Outillag Importé -10'!F47 -> 0 | D48: ='INVENT.Mat&Outillag Importé -10'!C47 -> 0 | E48: ='INVENT.Mat&Outillag Importé -10'!H47 -> 0 | G48: 0 | H48: 0 | I48: 0 | J48: 0 | K48: 0 | L48: 0 | O48: 0 | P48: 0 | Q48: 0 | R48: 0
A49: 42 | B49: ='INVENT.Mat&Outillag Importé -10'!B48 -> 0 | C49: ='INVENT.Mat&Outillag Importé -10'!F48 -> 0 | D49: ='INVENT.Mat&Outillag Importé -10'!C48 -> 0 | E49: ='INVENT.Mat&Outillag Importé -10'!H48 -> 0 | G49: 0 | H49: 0 | I49: 0 | J49: 0 | K49: 0 | L49: 0 | O49: 0 | P49: 0 | Q49: 0 | R49: 0
A50: 43 | B50: ='INVENT.Mat&Outillag Importé -10'!B49 -> 0 | C50: ='INVENT.Mat&Outillag Importé -10'!F49 -> 0 | D50: ='INVENT.Mat&Outillag Importé -10'!C49 -> 0 | E50: ='INVENT.Mat&Outillag Importé -10'!H49 -> 0 | G50: 0 | H50: 0 | I50: 0 | J50: 0 | K50: 0 | L50: 0 | O50: 0 | P50: 0 | Q50: 0 | R50: 0
A51: 44 | B51: ='INVENT.Mat&Outillag Importé -10'!B50 -> 0 | C51: ='INVENT.Mat&Outillag Importé -10'!F50 -> 0 | D51: ='INVENT.Mat&Outillag Importé -10'!C50 -> 0 | E51: ='INVENT.Mat&Outillag Importé -10'!H50 -> 0 | G51: 0 | H51: 0 | I51: 0 | J51: 0 | K51: 0 | L51: 0 | O51: 0 | P51: 0 | Q51: 0 | R51: 0
A52: 45 | B52: ='INVENT.Mat&Outillag Importé -10'!B51 -> 0 | C52: ='INVENT.Mat&Outillag Importé -10'!F51 -> 0 | D52: ='INVENT.Mat&Outillag Importé -10'!C51 -> 0 | E52: ='INVENT.Mat&Outillag Importé -10'!H51 -> 0 | G52: 0 | H52: 0 | I52: 0 | J52: 0 | K52: 0 | L52: 0 | O52: 0 | P52: 0 | Q52: 0 | R52: 0
A53: 46 | B53: ='INVENT.Mat&Outillag Importé -10'!B52 -> 0 | C53: ='INVENT.Mat&Outillag Importé -10'!F52 -> 0 | D53: ='INVENT.Mat&Outillag Importé -10'!C52 -> 0 | E53: ='INVENT.Mat&Outillag Importé -10'!H52 -> 0 | G53: 0 | H53: 0 | I53: 0 | J53: 0 | K53: 0 | L53: 0 | O53: 0 | P53: 0 | Q53: 0 | R53: 0
A54: 47 | B54: ='INVENT.Mat&Outillag Importé -10'!B53 -> 0 | C54: ='INVENT.Mat&Outillag Importé -10'!F53 -> 0 | D54: ='INVENT.Mat&Outillag Importé -10'!C53 -> 0 | E54: ='INVENT.Mat&Outillag Importé -10'!H53 -> 0 | G54: 0 | H54: 0 | I54: 0 | J54: 0 | K54: 0 | L54: 0 | O54: 0 | P54: 0 | Q54: 0 | R54: 0
A55: 48 | B55: ='INVENT.Mat&Outillag Importé -10'!B54 -> 0 | C55: ='INVENT.Mat&Outillag Importé -10'!F54 -> 0 | D55: ='INVENT.Mat&Outillag Importé -10'!C54 -> 0 | E55: ='INVENT.Mat&Outillag Importé -10'!H54 -> 0 | G55: =F55*E55 -> 0 | H55: 0 | I55: 0 | J55: 0 | K55: =(E55+G55+H55)*18% -> 0 | L55: =SUM(G55:K55)+E55 -> 0 | O55: =(M55+N55)*18% -> 0 | P55: =O55+N55+M55 -> 0 | Q55: =+R55-O55-K55 -> 0 | R55: =P55+L55 -> 0
A56: 49 | B56: ='INVENT.Mat&Outillag Importé -10'!B55 -> 0 | C56: ='INVENT.Mat&Outillag Importé -10'!F55 -> 0 | D56: ='INVENT.Mat&Outillag Importé -10'!C55 -> 0 | E56: ='INVENT.Mat&Outillag Importé -10'!H55 -> 0 | G56: 0 | H56: 0 | I56: 0 | J56: 0 | K56: 0 | L56: 0 | O56: 0 | P56: 0 | Q56: 0 | R56: 0
A57: 50 | B57: ='INVENT.Mat&Outillag Importé -10'!B56 -> 0 | C57: ='INVENT.Mat&Outillag Importé -10'!F56 -> 0 | D57: ='INVENT.Mat&Outillag Importé -10'!C56 -> 0 | E57: ='INVENT.Mat&Outillag Importé -10'!H56 -> 0 | G57: 0 | H57: 0 | I57: 0 | J57: 0 | K57: 0 | L57: 0 | O57: 0 | P57: 0 | Q57: 0 | R57: 0
A58: 51 | B58: ='INVENT.Mat&Outillag Importé -10'!B57 -> 0 | C58: ='INVENT.Mat&Outillag Importé -10'!F57 -> 0 | D58: ='INVENT.Mat&Outillag Importé -10'!C57 -> 0 | E58: ='INVENT.Mat&Outillag Importé -10'!H57 -> 0 | G58: 0 | H58: 0 | I58: 0 | J58: 0 | K58: 0 | L58: 0 | O58: 0 | P58: 0 | Q58: 0 | R58: 0
A59: 52 | B59: ='INVENT.Mat&Outillag Importé -10'!B58 -> 0 | C59: ='INVENT.Mat&Outillag Importé -10'!F58 -> 0 | D59: ='INVENT.Mat&Outillag Importé -10'!C58 -> 0 | E59: ='INVENT.Mat&Outillag Importé -10'!H58 -> 0 | G59: 0 | H59: 0 | I59: 0 | J59: 0 | K59: 0 | L59: 0 | O59: 0 | P59: 0 | Q59: 0 | R59: 0
A60: 53 | B60: ='INVENT.Mat&Outillag Importé -10'!B59 -> 0 | C60: ='INVENT.Mat&Outillag Importé -10'!F59 -> 0 | D60: ='INVENT.Mat&Outillag Importé -10'!C59 -> 0 | E60: ='INVENT.Mat&Outillag Importé -10'!H59 -> 0 | G60: 0 | H60: 0 | I60: 0 | J60: 0 | K60: 0 | L60: 0 | O60: 0 | P60: 0 | Q60: 0 | R60: 0
A61: 54 | B61: ='INVENT.Mat&Outillag Importé -10'!B60 -> 0 | C61: ='INVENT.Mat&Outillag Importé -10'!F60 -> 0 | D61: ='INVENT.Mat&Outillag Importé -10'!C60 -> 0 | E61: ='INVENT.Mat&Outillag Importé -10'!H60 -> 0 | G61: 0 | H61: 0 | I61: 0 | J61: 0 | K61: 0 | L61: 0 | O61: 0 | P61: 0 | Q61: 0 | R61: 0
A62: 55 | B62: ='INVENT.Mat&Outillag Importé -10'!B61 -> 0 | C62: ='INVENT.Mat&Outillag Importé -10'!F61 -> 0 | D62: ='INVENT.Mat&Outillag Importé -10'!C61 -> 0 | E62: ='INVENT.Mat&Outillag Importé -10'!H61 -> 0 | G62: 0 | H62: 0 | I62: 0 | J62: 0 | K62: 0 | L62: 0 | O62: 0 | P62: 0 | Q62: 0 | R62: 0
A63: 56 | B63: ='INVENT.Mat&Outillag Importé -10'!B62 -> 0 | C63: ='INVENT.Mat&Outillag Importé -10'!F62 -> 0 | D63: ='INVENT.Mat&Outillag Importé -10'!C62 -> 0 | E63: ='INVENT.Mat&Outillag Importé -10'!H62 -> 0 | G63: 0 | H63: 0 | I63: 0 | J63: 0 | K63: 0 | L63: 0 | O63: 0 | P63: 0 | Q63: 0 | R63: 0
A64: 57 | B64: ='INVENT.Mat&Outillag Importé -10'!B63 -> 0 | C64: ='INVENT.Mat&Outillag Importé -10'!F63 -> 0 | D64: ='INVENT.Mat&Outillag Importé -10'!C63 -> 0 | E64: ='INVENT.Mat&Outillag Importé -10'!H63 -> 0 | G64: 0 | H64: 0 | I64: 0 | J64: 0 | K64: 0 | L64: 0 | O64: 0 | P64: 0 | Q64: 0 | R64: 0
A65: 58 | B65: ='INVENT.Mat&Outillag Importé -10'!B64 -> 0 | C65: ='INVENT.Mat&Outillag Importé -10'!F64 -> 0 | D65: ='INVENT.Mat&Outillag Importé -10'!C64 -> 0 | E65: ='INVENT.Mat&Outillag Importé -10'!H64 -> 0 | G65: 0 | H65: 0 | I65: 0 | J65: 0 | K65: 0 | L65: 0 | O65: 0 | P65: 0 | Q65: 0 | R65: 0
A66: 59 | B66: ='INVENT.Mat&Outillag Importé -10'!B65 -> 0 | C66: ='INVENT.Mat&Outillag Importé -10'!F65 -> 0 | D66: ='INVENT.Mat&Outillag Importé -10'!C65 -> 0 | E66: ='INVENT.Mat&Outillag Importé -10'!H65 -> 0 | G66: 0 | H66: 0 | I66: 0 | J66: 0 | K66: 0 | L66: 0 | O66: 0 | P66: 0 | Q66: 0 | R66: 0
A67: 60 | B67: ='INVENT.Mat&Outillag Importé -10'!B66 -> 0 | C67: ='INVENT.Mat&Outillag Importé -10'!F66 -> 0 | D67: ='INVENT.Mat&Outillag Importé -10'!C66 -> 0 | E67: ='INVENT.Mat&Outillag Importé -10'!H66 -> 0 | G67: 0 | H67: 0 | I67: 0 | J67: 0 | K67: 0 | L67: 0 | O67: 0 | P67: 0 | Q67: 0 | R67: 0
A68: 61 | B68: ='INVENT.Mat&Outillag Importé -10'!B67 -> 0 | C68: ='INVENT.Mat&Outillag Importé -10'!F67 -> 0 | D68: ='INVENT.Mat&Outillag Importé -10'!C67 -> 0 | E68: ='INVENT.Mat&Outillag Importé -10'!H67 -> 0 | G68: 0 | H68: 0 | I68: 0 | J68: 0 | K68: 0 | L68: 0 | O68: 0 | P68: 0 | Q68: 0 | R68: 0
A69: 62 | B69: ='INVENT.Mat&Outillag Importé -10'!B68 -> 0 | C69: ='INVENT.Mat&Outillag Importé -10'!F68 -> 0 | D69: ='INVENT.Mat&Outillag Importé -10'!C68 -> 0 | E69: ='INVENT.Mat&Outillag Importé -10'!H68 -> 0 | G69: 0 | H69: 0 | I69: 0 | J69: 0 | K69: 0 | L69: 0 | O69: 0 | P69: 0 | Q69: 0 | R69: 0
A70: 63 | B70: ='INVENT.Mat&Outillag Importé -10'!B69 -> 0 | C70: ='INVENT.Mat&Outillag Importé -10'!F69 -> 0 | D70: ='INVENT.Mat&Outillag Importé -10'!C69 -> 0 | E70: ='INVENT.Mat&Outillag Importé -10'!H69 -> 0 | G70: 0 | H70: 0 | I70: 0 | J70: 0 | K70: 0 | L70: 0 | O70: 0 | P70: 0 | Q70: 0 | R70: 0
A71: 64 | B71: ='INVENT.Mat&Outillag Importé -10'!B70 -> 0 | C71: ='INVENT.Mat&Outillag Importé -10'!F70 -> 0 | D71: ='INVENT.Mat&Outillag Importé -10'!C70 -> 0 | E71: ='INVENT.Mat&Outillag Importé -10'!H70 -> 0 | G71: 0 | H71: 0 | I71: 0 | J71: 0 | K71: 0 | L71: 0 | O71: 0 | P71: 0 | Q71: 0 | R71: 0
A72: 65 | B72: ='INVENT.Mat&Outillag Importé -10'!B71 -> 0 | C72: ='INVENT.Mat&Outillag Importé -10'!F71 -> 0 | D72: ='INVENT.Mat&Outillag Importé -10'!C71 -> 0 | E72: ='INVENT.Mat&Outillag Importé -10'!H71 -> 0 | G72: 0 | H72: 0 | I72: 0 | J72: 0 | K72: 0 | L72: 0 | O72: 0 | P72: 0 | Q72: 0 | R72: 0
A73: 66 | B73: ='INVENT.Mat&Outillag Importé -10'!B72 -> 0 | C73: ='INVENT.Mat&Outillag Importé -10'!F72 -> 0 | D73: ='INVENT.Mat&Outillag Importé -10'!C72 -> 0 | E73: ='INVENT.Mat&Outillag Importé -10'!H72 -> 0 | G73: 0 | H73: =E73*1% -> 0 | I73: =E73*1% -> 0 | J73: =E73*0.5% -> 0 | K73: 0 | L73: 0 | O73: 0 | P73: 0 | Q73: 0 | R73: 0
A74: 67 | B74: ='INVENT.Mat&Outillag Importé -10'!B73 -> 0 | C74: ='INVENT.Mat&Outillag Importé -10'!F73 -> 0 | D74: ='INVENT.Mat&Outillag Importé -10'!C73 -> 0 | E74: ='INVENT.Mat&Outillag Importé -10'!H73 -> 0 | G74: 0 | H74: 0 | I74: 0 | J74: 0 | K74: 0 | L74: 0 | O74: 0 | P74: 0 | Q74: 0 | R74: 0
A75: 68 | B75: ='INVENT.Mat&Outillag Importé -10'!B74 -> 0 | C75: ='INVENT.Mat&Outillag Importé -10'!F74 -> 0 | D75: ='INVENT.Mat&Outillag Importé -10'!C74 -> 0 | E75: ='INVENT.Mat&Outillag Importé -10'!H74 -> 0 | G75: 0 | H75: 0 | I75: 0 | J75: 0 | K75: 0 | L75: 0 | O75: 0 | P75: 0 | Q75: 0 | R75: 0
A76: 69 | B76: ='INVENT.Mat&Outillag Importé -10'!B75 -> 0 | C76: ='INVENT.Mat&Outillag Importé -10'!F75 -> 0 | D76: ='INVENT.Mat&Outillag Importé -10'!C75 -> 0 | E76: ='INVENT.Mat&Outillag Importé -10'!H75 -> 0 | G76: 0 | H76: 0 | I76: 0 | J76: 0 | K76: 0 | L76: 0 | O76: 0 | P76: 0 | Q76: 0 | R76: 0
A77: 70 | B77: ='INVENT.Mat&Outillag Importé -10'!B76 -> 0 | C77: ='INVENT.Mat&Outillag Importé -10'!F76 -> 0 | D77: ='INVENT.Mat&Outillag Importé -10'!C76 -> 0 | E77: ='INVENT.Mat&Outillag Importé -10'!H76 -> 0 | G77: 0 | H77: 0 | I77: 0 | J77: 0 | K77: 0 | L77: 0 | O77: 0 | P77: 0 | Q77: 0 | R77: 0
A78: 71 | B78: ='INVENT.Mat&Outillag Importé -10'!B77 -> 0 | C78: ='INVENT.Mat&Outillag Importé -10'!F77 -> 0 | D78: ='INVENT.Mat&Outillag Importé -10'!C77 -> 0 | E78: ='INVENT.Mat&Outillag Importé -10'!H77 -> 0 | G78: 0 | H78: 0 | I78: 0 | J78: 0 | K78: 0 | L78: 0 | O78: 0 | P78: 0 | Q78: 0 | R78: 0
A79: 72 | B79: ='INVENT.Mat&Outillag Importé -10'!B78 -> 0 | C79: ='INVENT.Mat&Outillag Importé -10'!F78 -> 0 | D79: ='INVENT.Mat&Outillag Importé -10'!C78 -> 0 | E79: ='INVENT.Mat&Outillag Importé -10'!H78 -> 0 | G79: 0 | H79: 0 | I79: 0 | J79: 0 | K79: 0 | L79: 0 | O79: 0 | P79: 0 | Q79: 0 | R79: 0
A80: 73 | B80: ='INVENT.Mat&Outillag Importé -10'!B79 -> 0 | C80: ='INVENT.Mat&Outillag Importé -10'!F79 -> 0 | D80: ='INVENT.Mat&Outillag Importé -10'!C79 -> 0 | E80: ='INVENT.Mat&Outillag Importé -10'!H79 -> 0 | G80: 0 | H80: 0 | I80: 0 | J80: 0 | K80: 0 | L80: 0 | O80: 0 | P80: 0 | Q80: 0 | R80: 0
A81: 74 | B81: ='INVENT.Mat&Outillag Importé -10'!B80 -> 0 | C81: ='INVENT.Mat&Outillag Importé -10'!F80 -> 0 | D81: ='INVENT.Mat&Outillag Importé -10'!C80 -> 0 | E81: ='INVENT.Mat&Outillag Importé -10'!H80 -> 0 | G81: 0 | H81: 0 | I81: 0 | J81: 0 | K81: 0 | L81: 0 | O81: 0 | P81: 0 | Q81: 0 | R81: 0
A82: 75 | B82: ='INVENT.Mat&Outillag Importé -10'!B81 -> 0 | C82: ='INVENT.Mat&Outillag Importé -10'!F81 -> 0 | D82: ='INVENT.Mat&Outillag Importé -10'!C81 -> 0 | E82: ='INVENT.Mat&Outillag Importé -10'!H81 -> 0 | G82: 0 | H82: 0 | I82: 0 | J82: 0 | K82: 0 | L82: 0 | O82: 0 | P82: 0 | Q82: 0 | R82: 0
A83: 76 | B83: ='INVENT.Mat&Outillag Importé -10'!B82 -> 0 | C83: ='INVENT.Mat&Outillag Importé -10'!F82 -> 0 | D83: ='INVENT.Mat&Outillag Importé -10'!C82 -> 0 | E83: ='INVENT.Mat&Outillag Importé -10'!H82 -> 0 | G83: 0 | H83: 0 | I83: 0 | J83: 0 | K83: 0 | L83: 0 | O83: 0 | P83: 0 | Q83: 0 | R83: 0
A84: 77 | B84: ='INVENT.Mat&Outillag Importé -10'!B83 -> 0 | C84: ='INVENT.Mat&Outillag Importé -10'!F83 -> 0 | D84: ='INVENT.Mat&Outillag Importé -10'!C83 -> 0 | E84: ='INVENT.Mat&Outillag Importé -10'!H83 -> 0 | G84: 0 | H84: 0 | I84: 0 | J84: 0 | K84: 0 | L84: 0 | O84: 0 | P84: 0 | Q84: 0 | R84: 0
A85: 78 | B85: ='INVENT.Mat&Outillag Importé -10'!B84 -> 0 | C85: ='INVENT.Mat&Outillag Importé -10'!F84 -> 0 | D85: ='INVENT.Mat&Outillag Importé -10'!C84 -> 0 | E85: ='INVENT.Mat&Outillag Importé -10'!H84 -> 0 | G85: 0 | H85: 0 | I85: 0 | J85: 0 | K85: 0 | L85: 0 | O85: 0 | P85: 0 | Q85: 0 | R85: 0
A86: 79 | B86: ='INVENT.Mat&Outillag Importé -10'!B85 -> 0 | C86: ='INVENT.Mat&Outillag Importé -10'!F85 -> 0 | D86: ='INVENT.Mat&Outillag Importé -10'!C85 -> 0 | E86: ='INVENT.Mat&Outillag Importé -10'!H85 -> 0 | G86: 0 | H86: 0 | I86: 0 | J86: 0 | K86: 0 | L86: 0 | O86: 0 | P86: 0 | Q86: 0 | R86: 0
A87: 80 | B87: ='INVENT.Mat&Outillag Importé -10'!B86 -> 0 | C87: ='INVENT.Mat&Outillag Importé -10'!F86 -> 0 | D87: ='INVENT.Mat&Outillag Importé -10'!C86 -> 0 | E87: ='INVENT.Mat&Outillag Importé -10'!H86 -> 0 | G87: 0 | H87: 0 | I87: 0 | J87: 0 | K87: 0 | L87: 0 | O87: 0 | P87: 0 | Q87: 0 | R87: 0
A88: 81 | B88: ='INVENT.Mat&Outillag Importé -10'!B87 -> 0 | C88: ='INVENT.Mat&Outillag Importé -10'!F87 -> 0 | D88: ='INVENT.Mat&Outillag Importé -10'!C87 -> 0 | E88: ='INVENT.Mat&Outillag Importé -10'!H87 -> 0 | G88: 0 | H88: 0 | I88: 0 | J88: 0 | K88: 0 | L88: 0 | O88: 0 | P88: 0 | Q88: 0 | R88: 0
A89: 82 | B89: ='INVENT.Mat&Outillag Importé -10'!B88 -> 0 | C89: ='INVENT.Mat&Outillag Importé -10'!F88 -> 0 | D89: ='INVENT.Mat&Outillag Importé -10'!C88 -> 0 | E89: ='INVENT.Mat&Outillag Importé -10'!H88 -> 0 | G89: 0 | H89: 0 | I89: 0 | J89: 0 | K89: 0 | L89: 0 | O89: 0 | P89: 0 | Q89: 0 | R89: 0
A90: 83 | B90: ='INVENT.Mat&Outillag Importé -10'!B89 -> 0 | C90: ='INVENT.Mat&Outillag Importé -10'!F89 -> 0 | D90: ='INVENT.Mat&Outillag Importé -10'!C89 -> 0 | E90: ='INVENT.Mat&Outillag Importé -10'!H89 -> 0 | G90: 0 | H90: 0 | I90: 0 | J90: 0 | K90: 0 | L90: 0 | O90: 0 | P90: 0 | Q90: 0 | R90: 0
A91: 84 | B91: ='INVENT.Mat&Outillag Importé -10'!B90 -> 0 | C91: ='INVENT.Mat&Outillag Importé -10'!F90 -> 0 | D91: ='INVENT.Mat&Outillag Importé -10'!C90 -> 0 | E91: ='INVENT.Mat&Outillag Importé -10'!H90 -> 0 | G91: 0 | H91: 0 | I91: 0 | J91: 0 | K91: 0 | L91: 0 | O91: 0 | P91: 0 | Q91: 0 | R91: 0
A92: 85 | B92: ='INVENT.Mat&Outillag Importé -10'!B91 -> 0 | C92: ='INVENT.Mat&Outillag Importé -10'!F91 -> 0 | D92: ='INVENT.Mat&Outillag Importé -10'!C91 -> 0 | E92: ='INVENT.Mat&Outillag Importé -10'!H91 -> 0 | G92: 0 | H92: 0 | I92: 0 | J92: 0 | K92: 0 | L92: 0 | O92: 0 | P92: 0 | Q92: 0 | R92: 0
A93: 86 | B93: ='INVENT.Mat&Outillag Importé -10'!B92 -> 0 | C93: ='INVENT.Mat&Outillag Importé -10'!F92 -> 0 | D93: ='INVENT.Mat&Outillag Importé -10'!C92 -> 0 | E93: ='INVENT.Mat&Outillag Importé -10'!H92 -> 0 | G93: 0 | H93: 0 | I93: 0 | J93: 0 | K93: 0 | L93: 0 | O93: 0 | P93: 0 | Q93: 0 | R93: 0
A94: 87 | B94: ='INVENT.Mat&Outillag Importé -10'!B93 -> 0 | C94: ='INVENT.Mat&Outillag Importé -10'!F93 -> 0 | D94: ='INVENT.Mat&Outillag Importé -10'!C93 -> 0 | E94: ='INVENT.Mat&Outillag Importé -10'!H93 -> 0 | G94: 0 | H94: 0 | I94: 0 | J94: 0 | K94: 0 | L94: 0 | O94: 0 | P94: 0 | Q94: 0 | R94: 0
A95: 88 | B95: ='INVENT.Mat&Outillag Importé -10'!B94 -> 0 | C95: ='INVENT.Mat&Outillag Importé -10'!F94 -> 0 | D95: ='INVENT.Mat&Outillag Importé -10'!C94 -> 0 | E95: ='INVENT.Mat&Outillag Importé -10'!H94 -> 0 | G95: 0 | H95: 0 | I95: 0 | J95: 0 | K95: 0 | L95: 0 | O95: 0 | P95: 0 | Q95: 0 | R95: 0
A96: 89 | B96: ='INVENT.Mat&Outillag Importé -10'!B95 -> 0 | C96: ='INVENT.Mat&Outillag Importé -10'!F95 -> 0 | D96: ='INVENT.Mat&Outillag Importé -10'!C95 -> 0 | E96: ='INVENT.Mat&Outillag Importé -10'!H95 -> 0 | G96: 0 | H96: 0 | I96: 0 | J96: 0 | K96: 0 | L96: 0 | O96: 0 | P96: 0 | Q96: 0 | R96: 0
A97: 90 | B97: ='INVENT.Mat&Outillag Importé -10'!B96 -> 0 | C97: ='INVENT.Mat&Outillag Importé -10'!F96 -> 0 | D97: ='INVENT.Mat&Outillag Importé -10'!C96 -> 0 | E97: ='INVENT.Mat&Outillag Importé -10'!H96 -> 0 | G97: 0 | H97: 0 | I97: 0 | J97: 0 | K97: 0 | L97: 0 | O97: 0 | P97: 0 | Q97: 0 | R97: 0
A98: 91 | B98: ='INVENT.Mat&Outillag Importé -10'!B97 -> 0 | C98: ='INVENT.Mat&Outillag Importé -10'!F97 -> 0 | D98: ='INVENT.Mat&Outillag Importé -10'!C97 -> 0 | E98: ='INVENT.Mat&Outillag Importé -10'!H97 -> 0 | G98: 0 | H98: 0 | I98: 0 | J98: 0 | K98: 0 | L98: 0 | O98: 0 | P98: 0 | Q98: 0 | R98: 0
A99: 92 | B99: ='INVENT.Mat&Outillag Importé -10'!B98 -> 0 | C99: ='INVENT.Mat&Outillag Importé -10'!F98 -> 0 | D99: ='INVENT.Mat&Outillag Importé -10'!C98 -> 0 | E99: ='INVENT.Mat&Outillag Importé -10'!H98 -> 0 | G99: 0 | H99: 0 | I99: 0 | J99: 0 | K99: 0 | L99: 0 | O99: 0 | P99: 0 | Q99: 0 | R99: 0
A100: 93 | B100: ='INVENT.Mat&Outillag Importé -10'!B99 -> 0 | C100: ='INVENT.Mat&Outillag Importé -10'!F99 -> 0 | D100: ='INVENT.Mat&Outillag Importé -10'!C99 -> 0 | E100: ='INVENT.Mat&Outillag Importé -10'!H99 -> 0 | G100: 0 | H100: 0 | I100: 0 | J100: 0 | K100: 0 | L100: 0 | O100: 0 | P100: 0 | Q100: 0 | R100: 0
A101: 94 | B101: ='INVENT.Mat&Outillag Importé -10'!B100 -> 0 | C101: ='INVENT.Mat&Outillag Importé -10'!F100 -> 0 | D101: ='INVENT.Mat&Outillag Importé -10'!C100 -> 0 | E101: ='INVENT.Mat&Outillag Importé -10'!H100 -> 0 | G101: 0 | H101: 0 | I101: 0 | J101: 0 | K101: 0 | L101: 0 | O101: 0 | P101: 0 | Q101: 0 | R101: 0
A102: 95 | B102: ='INVENT.Mat&Outillag Importé -10'!B101 -> 0 | C102: ='INVENT.Mat&Outillag Importé -10'!F101 -> 0 | D102: ='INVENT.Mat&Outillag Importé -10'!C101 -> 0 | E102: ='INVENT.Mat&Outillag Importé -10'!H101 -> 0 | G102: 0 | H102: 0 | I102: 0 | J102: 0 | K102: 0 | L102: 0 | O102: 0 | P102: 0 | Q102: 0 | R102: 0
A103: 96 | B103: ='INVENT.Mat&Outillag Importé -10'!B102 -> 0 | C103: ='INVENT.Mat&Outillag Importé -10'!F102 -> 0 | D103: ='INVENT.Mat&Outillag Importé -10'!C102 -> 0 | E103: ='INVENT.Mat&Outillag Importé -10'!H102 -> 0 | G103: 0 | H103: 0 | I103: 0 | J103: 0 | K103: 0 | L103: 0 | O103: 0 | P103: 0 | Q103: 0 | R103: 0
A104: 97 | B104: ='INVENT.Mat&Outillag Importé -10'!B103 -> 0 | C104: ='INVENT.Mat&Outillag Importé -10'!F103 -> 0 | D104: ='INVENT.Mat&Outillag Importé -10'!C103 -> 0 | E104: ='INVENT.Mat&Outillag Importé -10'!H103 -> 0 | G104: 0 | H104: 0 | I104: 0 | J104: 0 | K104: 0 | L104: 0 | O104: 0 | P104: 0 | Q104: 0 | R104: 0
A105: 98 | B105: ='INVENT.Mat&Outillag Importé -10'!B104 -> 0 | C105: ='INVENT.Mat&Outillag Importé -10'!F104 -> 0 | D105: ='INVENT.Mat&Outillag Importé -10'!C104 -> 0 | E105: ='INVENT.Mat&Outillag Importé -10'!H104 -> 0 | G105: 0 | H105: 0 | I105: 0 | J105: 0 | K105: 0 | L105: 0 | O105: 0 | P105: 0 | Q105: 0 | R105: 0
A106: 99 | B106: ='INVENT.Mat&Outillag Importé -10'!B105 -> 0 | C106: ='INVENT.Mat&Outillag Importé -10'!F105 -> 0 | D106: ='INVENT.Mat&Outillag Importé -10'!C105 -> 0 | E106: ='INVENT.Mat&Outillag Importé -10'!H105 -> 0 | G106: 0 | H106: 0 | I106: 0 | J106: 0 | K106: 0 | L106: 0 | O106: 0 | P106: 0 | Q106: 0 | R106: 0
A107: 100 | B107: ='INVENT.Mat&Outillag Importé -10'!B106 -> 0 | C107: ='INVENT.Mat&Outillag Importé -10'!F106 -> 0 | D107: ='INVENT.Mat&Outillag Importé -10'!C106 -> 0 | E107: ='INVENT.Mat&Outillag Importé -10'!H106 -> 0 | G107: 0 | H107: 0 | I107: 0 | J107: 0 | K107: 0 | L107: 0 | O107: 0 | P107: 0 | Q107: 0 | R107: 0
A108: 101 | B108: ='INVENT.Mat&Outillag Importé -10'!B107 -> 0 | C108: ='INVENT.Mat&Outillag Importé -10'!F107 -> 0 | D108: ='INVENT.Mat&Outillag Importé -10'!C107 -> 0 | E108: ='INVENT.Mat&Outillag Importé -10'!H107 -> 0 | G108: 0 | H108: 0 | I108: 0 | J108: 0 | K108: 0 | L108: 0 | O108: 0 | P108: 0 | Q108: 0 | R108: 0
A109: 102 | B109: ='INVENT.Mat&Outillag Importé -10'!B108 -> 0 | C109: ='INVENT.Mat&Outillag Importé -10'!F108 -> 0 | D109: ='INVENT.Mat&Outillag Importé -10'!C108 -> 0 | E109: ='INVENT.Mat&Outillag Importé -10'!H108 -> 0 | G109: 0 | H109: 0 | I109: 0 | J109: 0 | K109: 0 | L109: 0 | O109: 0 | P109: 0 | Q109: 0 | R109: 0
A110: 103 | B110: ='INVENT.Mat&Outillag Importé -10'!B109 -> 0 | C110: ='INVENT.Mat&Outillag Importé -10'!F109 -> 0 | D110: ='INVENT.Mat&Outillag Importé -10'!C109 -> 0 | E110: ='INVENT.Mat&Outillag Importé -10'!H109 -> 0 | G110: 0 | H110: 0 | I110: 0 | J110: 0 | K110: 0 | L110: 0 | O110: 0 | P110: 0 | Q110: 0 | R110: 0
A111: =+A110+1 -> 104 | B111: ='INVENT.Mat&Outillag Importé -10'!B110 -> 0 | C111: ='INVENT.Mat&Outillag Importé -10'!F110 -> 0 | D111: ='INVENT.Mat&Outillag Importé -10'!C110 -> 0 | E111: ='INVENT.Mat&Outillag Importé -10'!H110 -> 0 | G111: 0 | H111: 0 | I111: 0 | J111: 0 | K111: 0 | L111: 0 | O111: 0 | P111: 0 | Q111: 0 | R111: 0
A112: 105 | B112: ='INVENT.Mat&Outillag Importé -10'!B111 -> 0 | C112: ='INVENT.Mat&Outillag Importé -10'!F111 -> 0 | D112: ='INVENT.Mat&Outillag Importé -10'!C111 -> 0 | E112: ='INVENT.Mat&Outillag Importé -10'!H111 -> 0 | G112: 0 | H112: 0 | I112: 0 | J112: 0 | K112: 0 | L112: 0 | O112: 0 | P112: 0 | Q112: 0 | R112: 0
A113: 106 | B113: ='INVENT.Mat&Outillag Importé -10'!B112 -> 0 | C113: ='INVENT.Mat&Outillag Importé -10'!F112 -> 0 | D113: ='INVENT.Mat&Outillag Importé -10'!C112 -> 0 | E113: ='INVENT.Mat&Outillag Importé -10'!H112 -> 0 | G113: 0 | H113: 0 | I113: 0 | J113: 0 | K113: 0 | L113: 0 | O113: 0 | P113: 0 | Q113: 0 | R113: 0
A114: 107 | B114: ='INVENT.Mat&Outillag Importé -10'!B113 -> 0 | C114: ='INVENT.Mat&Outillag Importé -10'!F113 -> 0 | D114: ='INVENT.Mat&Outillag Importé -10'!C113 -> 0 | E114: ='INVENT.Mat&Outillag Importé -10'!H113 -> 0 | G114: 0 | H114: 0 | I114: 0 | J114: 0 | K114: 0 | L114: 0 | O114: 0 | P114: 0 | Q114: 0 | R114: 0
A115: 108 | B115: ='INVENT.Mat&Outillag Importé -10'!B114 -> 0 | C115: ='INVENT.Mat&Outillag Importé -10'!F114 -> 0 | D115: ='INVENT.Mat&Outillag Importé -10'!C114 -> 0 | E115: ='INVENT.Mat&Outillag Importé -10'!H114 -> 0 | G115: 0 | H115: 0 | I115: 0 | J115: 0 | K115: 0 | L115: 0 | O115: 0 | P115: 0 | Q115: 0 | R115: 0
A116: 109 | B116: ='INVENT.Mat&Outillag Importé -10'!B115 -> 0 | C116: ='INVENT.Mat&Outillag Importé -10'!F115 -> 0 | D116: ='INVENT.Mat&Outillag Importé -10'!C115 -> 0 | E116: ='INVENT.Mat&Outillag Importé -10'!H115 -> 0 | G116: 0 | H116: 0 | I116: 0 | J116: 0 | K116: 0 | L116: 0 | O116: 0 | P116: 0 | Q116: 0 | R116: 0
A117: 110 | B117: ='INVENT.Mat&Outillag Importé -10'!B116 -> 0 | C117: ='INVENT.Mat&Outillag Importé -10'!F116 -> 0 | D117: ='INVENT.Mat&Outillag Importé -10'!C116 -> 0 | E117: ='INVENT.Mat&Outillag Importé -10'!H116 -> 0 | G117: 0 | H117: 0 | I117: 0 | J117: 0 | K117: 0 | L117: 0 | O117: 0 | P117: 0 | Q117: 0 | R117: 0
A118: 111 | B118: ='INVENT.Mat&Outillag Importé -10'!B117 -> 0 | C118: ='INVENT.Mat&Outillag Importé -10'!F117 -> 0 | D118: ='INVENT.Mat&Outillag Importé -10'!C117 -> 0 | E118: ='INVENT.Mat&Outillag Importé -10'!H117 -> 0 | G118: 0 | H118: 0 | I118: 0 | J118: 0 | K118: 0 | L118: 0 | O118: 0 | P118: 0 | Q118: 0 | R118: 0
A119: 112 | B119: ='INVENT.Mat&Outillag Importé -10'!B118 -> 0 | C119: ='INVENT.Mat&Outillag Importé -10'!F118 -> 0 | D119: ='INVENT.Mat&Outillag Importé -10'!C118 -> 0 | E119: ='INVENT.Mat&Outillag Importé -10'!H118 -> 0 | G119: =F119*E119 -> 0 | H119: 0 | I119: 0 | J119: 0 | K119: =(E119+G119+H119)*18% -> 0 | L119: =SUM(G119:K119)+E119 -> 0 | O119: =(M119+N119)*18% -> 0 | P119: =O119+N119+M119 -> 0 | Q119: =+R119-O119-K119 -> 0 | R119: =P119+L119 -> 0
A120: 113 | B120: ='INVENT.Mat&Outillag Importé -10'!B119 -> 0 | C120: ='INVENT.Mat&Outillag Importé -10'!F119 -> 0 | D120: ='INVENT.Mat&Outillag Importé -10'!C119 -> 0 | E120: ='INVENT.Mat&Outillag Importé -10'!H119 -> 0 | G120: 0 | H120: 0 | I120: 0 | J120: 0 | K120: 0 | L120: 0 | O120: 0 | P120: 0 | Q120: 0 | R120: 0
A121: 114 | B121: ='INVENT.Mat&Outillag Importé -10'!B120 -> 0 | C121: ='INVENT.Mat&Outillag Importé -10'!F120 -> 0 | D121: ='INVENT.Mat&Outillag Importé -10'!C120 -> 0 | E121: ='INVENT.Mat&Outillag Importé -10'!H120 -> 0 | G121: 0 | H121: 0 | I121: 0 | J121: 0 | K121: 0 | L121: 0 | O121: 0 | P121: 0 | Q121: 0 | R121: 0
A122: 115 | B122: ='INVENT.Mat&Outillag Importé -10'!B121 -> 0 | C122: ='INVENT.Mat&Outillag Importé -10'!F121 -> 0 | D122: ='INVENT.Mat&Outillag Importé -10'!C121 -> 0 | E122: ='INVENT.Mat&Outillag Importé -10'!H121 -> 0 | G122: 0 | H122: 0 | I122: 0 | J122: 0 | K122: 0 | L122: 0 | O122: 0 | P122: 0 | Q122: 0 | R122: 0
A123: 116 | B123: ='INVENT.Mat&Outillag Importé -10'!B122 -> 0 | C123: ='INVENT.Mat&Outillag Importé -10'!F122 -> 0 | D123: ='INVENT.Mat&Outillag Importé -10'!C122 -> 0 | E123: ='INVENT.Mat&Outillag Importé -10'!H122 -> 0 | G123: 0 | H123: 0 | I123: 0 | J123: 0 | K123: 0 | L123: 0 | O123: 0 | P123: 0 | Q123: 0 | R123: 0
A124: 117 | B124: ='INVENT.Mat&Outillag Importé -10'!B123 -> 0 | C124: ='INVENT.Mat&Outillag Importé -10'!F123 -> 0 | D124: ='INVENT.Mat&Outillag Importé -10'!C123 -> 0 | E124: ='INVENT.Mat&Outillag Importé -10'!H123 -> 0 | G124: 0 | H124: 0 | I124: 0 | J124: 0 | K124: 0 | L124: 0 | O124: 0 | P124: 0 | Q124: 0 | R124: 0
A125: 118 | B125: ='INVENT.Mat&Outillag Importé -10'!B124 -> 0 | C125: ='INVENT.Mat&Outillag Importé -10'!F124 -> 0 | D125: ='INVENT.Mat&Outillag Importé -10'!C124 -> 0 | E125: ='INVENT.Mat&Outillag Importé -10'!H124 -> 0 | G125: 0 | H125: 0 | I125: 0 | J125: 0 | K125: 0 | L125: 0 | O125: 0 | P125: 0 | Q125: 0 | R125: 0
A126: 119 | B126: ='INVENT.Mat&Outillag Importé -10'!B125 -> 0 | C126: ='INVENT.Mat&Outillag Importé -10'!F125 -> 0 | D126: ='INVENT.Mat&Outillag Importé -10'!C125 -> 0 | E126: ='INVENT.Mat&Outillag Importé -10'!H125 -> 0 | G126: 0 | H126: 0 | I126: 0 | J126: 0 | K126: 0 | L126: 0 | O126: 0 | P126: 0 | Q126: 0 | R126: 0
A127: 120 | B127: ='INVENT.Mat&Outillag Importé -10'!B126 -> 0 | C127: ='INVENT.Mat&Outillag Importé -10'!F126 -> 0 | D127: ='INVENT.Mat&Outillag Importé -10'!C126 -> 0 | E127: ='INVENT.Mat&Outillag Importé -10'!H126 -> 0 | G127: 0 | H127: 0 | I127: 0 | J127: 0 | K127: 0 | L127: 0 | O127: 0 | P127: 0 | Q127: 0 | R127: 0
A128: 121 | B128: ='INVENT.Mat&Outillag Importé -10'!B127 -> 0 | C128: ='INVENT.Mat&Outillag Importé -10'!F127 -> 0 | D128: ='INVENT.Mat&Outillag Importé -10'!C127 -> 0 | E128: ='INVENT.Mat&Outillag Importé -10'!H127 -> 0 | G128: 0 | H128: 0 | I128: 0 | J128: 0 | K128: 0 | L128: 0 | O128: 0 | P128: 0 | Q128: 0 | R128: 0
A129: 122 | B129: ='INVENT.Mat&Outillag Importé -10'!B128 -> 0 | C129: ='INVENT.Mat&Outillag Importé -10'!F128 -> 0 | D129: ='INVENT.Mat&Outillag Importé -10'!C128 -> 0 | E129: ='INVENT.Mat&Outillag Importé -10'!H128 -> 0 | G129: 0 | H129: 0 | I129: 0 | J129: 0 | K129: 0 | L129: 0 | O129: 0 | P129: 0 | Q129: 0 | R129: 0
A130: 123 | B130: ='INVENT.Mat&Outillag Importé -10'!B129 -> 0 | C130: ='INVENT.Mat&Outillag Importé -10'!F129 -> 0 | D130: ='INVENT.Mat&Outillag Importé -10'!C129 -> 0 | E130: ='INVENT.Mat&Outillag Importé -10'!H129 -> 0 | G130: 0 | H130: 0 | I130: 0 | J130: 0 | K130: 0 | L130: 0 | O130: 0 | P130: 0 | Q130: 0 | R130: 0
A131: 124 | B131: ='INVENT.Mat&Outillag Importé -10'!B130 -> 0 | C131: ='INVENT.Mat&Outillag Importé -10'!F130 -> 0 | D131: ='INVENT.Mat&Outillag Importé -10'!C130 -> 0 | E131: ='INVENT.Mat&Outillag Importé -10'!H130 -> 0 | G131: 0 | H131: 0 | I131: 0 | J131: 0 | K131: 0 | L131: 0 | O131: 0 | P131: 0 | Q131: 0 | R131: 0
A132: 125 | B132: ='INVENT.Mat&Outillag Importé -10'!B131 -> 0 | C132: ='INVENT.Mat&Outillag Importé -10'!F131 -> 0 | D132: ='INVENT.Mat&Outillag Importé -10'!C131 -> 0 | E132: ='INVENT.Mat&Outillag Importé -10'!H131 -> 0 | G132: 0 | H132: 0 | I132: 0 | J132: 0 | K132: 0 | L132: 0 | O132: 0 | P132: 0 | Q132: 0 | R132: 0
A133: 126 | B133: ='INVENT.Mat&Outillag Importé -10'!B132 -> 0 | C133: ='INVENT.Mat&Outillag Importé -10'!F132 -> 0 | D133: ='INVENT.Mat&Outillag Importé -10'!C132 -> 0 | E133: ='INVENT.Mat&Outillag Importé -10'!H132 -> 0 | G133: 0 | H133: 0 | I133: 0 | J133: 0 | K133: 0 | L133: 0 | O133: 0 | P133: 0 | Q133: 0 | R133: 0
A134: 127 | B134: ='INVENT.Mat&Outillag Importé -10'!B133 -> 0 | C134: ='INVENT.Mat&Outillag Importé -10'!F133 -> 0 | D134: ='INVENT.Mat&Outillag Importé -10'!C133 -> 0 | E134: ='INVENT.Mat&Outillag Importé -10'!H133 -> 0 | G134: 0 | H134: 0 | I134: 0 | J134: 0 | K134: 0 | L134: 0 | O134: 0 | P134: 0 | Q134: 0 | R134: 0
A135: 128 | B135: ='INVENT.Mat&Outillag Importé -10'!B134 -> 0 | C135: ='INVENT.Mat&Outillag Importé -10'!F134 -> 0 | D135: ='INVENT.Mat&Outillag Importé -10'!C134 -> 0 | E135: ='INVENT.Mat&Outillag Importé -10'!H134 -> 0 | G135: 0 | H135: 0 | I135: 0 | J135: 0 | K135: 0 | L135: 0 | O135: 0 | P135: 0 | Q135: 0 | R135: 0
A136: 129 | B136: ='INVENT.Mat&Outillag Importé -10'!B135 -> 0 | C136: ='INVENT.Mat&Outillag Importé -10'!F135 -> 0 | D136: ='INVENT.Mat&Outillag Importé -10'!C135 -> 0 | E136: ='INVENT.Mat&Outillag Importé -10'!H135 -> 0 | G136: 0 | H136: 0 | I136: 0 | J136: 0 | K136: 0 | L136: 0 | O136: 0 | P136: 0 | Q136: 0 | R136: 0
A137: 130 | B137: ='INVENT.Mat&Outillag Importé -10'!B136 -> 0 | C137: ='INVENT.Mat&Outillag Importé -10'!F136 -> 0 | D137: ='INVENT.Mat&Outillag Importé -10'!C136 -> 0 | E137: ='INVENT.Mat&Outillag Importé -10'!H136 -> 0 | G137: 0 | H137: =E137*1% -> 0 | I137: =E137*1% -> 0 | J137: =E137*0.5% -> 0 | K137: 0 | L137: 0 | O137: 0 | P137: 0 | Q137: 0 | R137: 0
A138: 131 | B138: ='INVENT.Mat&Outillag Importé -10'!B137 -> 0 | C138: ='INVENT.Mat&Outillag Importé -10'!F137 -> 0 | D138: ='INVENT.Mat&Outillag Importé -10'!C137 -> 0 | E138: ='INVENT.Mat&Outillag Importé -10'!H137 -> 0 | G138: 0 | H138: 0 | I138: 0 | J138: 0 | K138: 0 | L138: 0 | O138: 0 | P138: 0 | Q138: 0 | R138: 0
A139: 132 | B139: ='INVENT.Mat&Outillag Importé -10'!B138 -> 0 | C139: ='INVENT.Mat&Outillag Importé -10'!F138 -> 0 | D139: ='INVENT.Mat&Outillag Importé -10'!C138 -> 0 | E139: ='INVENT.Mat&Outillag Importé -10'!H138 -> 0 | G139: 0 | H139: 0 | I139: 0 | J139: 0 | K139: 0 | L139: 0 | O139: 0 | P139: 0 | Q139: 0 | R139: 0
A140: 133 | B140: ='INVENT.Mat&Outillag Importé -10'!B139 -> 0 | C140: ='INVENT.Mat&Outillag Importé -10'!F139 -> 0 | D140: ='INVENT.Mat&Outillag Importé -10'!C139 -> 0 | E140: ='INVENT.Mat&Outillag Importé -10'!H139 -> 0 | G140: 0 | H140: 0 | I140: 0 | J140: 0 | K140: 0 | L140: 0 | O140: 0 | P140: 0 | Q140: 0 | R140: 0
A141: 134 | B141: ='INVENT.Mat&Outillag Importé -10'!B140 -> 0 | C141: ='INVENT.Mat&Outillag Importé -10'!F140 -> 0 | D141: ='INVENT.Mat&Outillag Importé -10'!C140 -> 0 | E141: ='INVENT.Mat&Outillag Importé -10'!H140 -> 0 | G141: 0 | H141: 0 | I141: 0 | J141: 0 | K141: 0 | L141: 0 | O141: 0 | P141: 0 | Q141: 0 | R141: 0
A142: 135 | B142: ='INVENT.Mat&Outillag Importé -10'!B141 -> 0 | C142: ='INVENT.Mat&Outillag Importé -10'!F141 -> 0 | D142: ='INVENT.Mat&Outillag Importé -10'!C141 -> 0 | E142: ='INVENT.Mat&Outillag Importé -10'!H141 -> 0 | G142: 0 | H142: 0 | I142: 0 | J142: 0 | K142: 0 | L142: 0 | O142: 0 | P142: 0 | Q142: 0 | R142: 0
A143: 136 | B143: ='INVENT.Mat&Outillag Importé -10'!B142 -> 0 | C143: ='INVENT.Mat&Outillag Importé -10'!F142 -> 0 | D143: ='INVENT.Mat&Outillag Importé -10'!C142 -> 0 | E143: ='INVENT.Mat&Outillag Importé -10'!H142 -> 0 | G143: 0 | H143: 0 | I143: 0 | J143: 0 | K143: 0 | L143: 0 | O143: 0 | P143: 0 | Q143: 0 | R143: 0
A144: 137 | B144: ='INVENT.Mat&Outillag Importé -10'!B143 -> 0 | C144: ='INVENT.Mat&Outillag Importé -10'!F143 -> 0 | D144: ='INVENT.Mat&Outillag Importé -10'!C143 -> 0 | E144: ='INVENT.Mat&Outillag Importé -10'!H143 -> 0 | G144: 0 | H144: 0 | I144: 0 | J144: 0 | K144: 0 | L144: 0 | O144: 0 | P144: 0 | Q144: 0 | R144: 0
A145: 138 | B145: ='INVENT.Mat&Outillag Importé -10'!B144 -> 0 | C145: ='INVENT.Mat&Outillag Importé -10'!F144 -> 0 | D145: ='INVENT.Mat&Outillag Importé -10'!C144 -> 0 | E145: ='INVENT.Mat&Outillag Importé -10'!H144 -> 0 | G145: 0 | H145: 0 | I145: 0 | J145: 0 | K145: 0 | L145: 0 | O145: 0 | P145: 0 | Q145: 0 | R145: 0
A146: 139 | B146: ='INVENT.Mat&Outillag Importé -10'!B145 -> 0 | C146: ='INVENT.Mat&Outillag Importé -10'!F145 -> 0 | D146: ='INVENT.Mat&Outillag Importé -10'!C145 -> 0 | E146: ='INVENT.Mat&Outillag Importé -10'!H145 -> 0 | G146: 0 | H146: 0 | I146: 0 | J146: 0 | K146: 0 | L146: 0 | O146: 0 | P146: 0 | Q146: 0 | R146: 0
A147: 140 | B147: ='INVENT.Mat&Outillag Importé -10'!B146 -> 0 | C147: ='INVENT.Mat&Outillag Importé -10'!F146 -> 0 | D147: ='INVENT.Mat&Outillag Importé -10'!C146 -> 0 | E147: ='INVENT.Mat&Outillag Importé -10'!H146 -> 0 | G147: 0 | H147: 0 | I147: 0 | J147: 0 | K147: 0 | L147: 0 | O147: 0 | P147: 0 | Q147: 0 | R147: 0
A148: 141 | B148: ='INVENT.Mat&Outillag Importé -10'!B147 -> 0 | C148: ='INVENT.Mat&Outillag Importé -10'!F147 -> 0 | D148: ='INVENT.Mat&Outillag Importé -10'!C147 -> 0 | E148: ='INVENT.Mat&Outillag Importé -10'!H147 -> 0 | G148: 0 | H148: 0 | I148: 0 | J148: 0 | K148: 0 | L148: 0 | O148: 0 | P148: 0 | Q148: 0 | R148: 0
A149: 142 | B149: ='INVENT.Mat&Outillag Importé -10'!B148 -> 0 | C149: ='INVENT.Mat&Outillag Importé -10'!F148 -> 0 | D149: ='INVENT.Mat&Outillag Importé -10'!C148 -> 0 | E149: ='INVENT.Mat&Outillag Importé -10'!H148 -> 0 | G149: 0 | H149: 0 | I149: 0 | J149: 0 | K149: 0 | L149: 0 | O149: 0 | P149: 0 | Q149: 0 | R149: 0
A150: 143 | B150: ='INVENT.Mat&Outillag Importé -10'!B149 -> 0 | C150: ='INVENT.Mat&Outillag Importé -10'!F149 -> 0 | D150: ='INVENT.Mat&Outillag Importé -10'!C149 -> 0 | E150: ='INVENT.Mat&Outillag Importé -10'!H149 -> 0 | G150: 0 | H150: 0 | I150: 0 | J150: 0 | K150: 0 | L150: 0 | O150: 0 | P150: 0 | Q150: 0 | R150: 0
A151: 144 | B151: ='INVENT.Mat&Outillag Importé -10'!B150 -> 0 | C151: ='INVENT.Mat&Outillag Importé -10'!F150 -> 0 | D151: ='INVENT.Mat&Outillag Importé -10'!C150 -> 0 | E151: ='INVENT.Mat&Outillag Importé -10'!H150 -> 0 | G151: 0 | H151: 0 | I151: 0 | J151: 0 | K151: 0 | L151: 0 | O151: 0 | P151: 0 | Q151: 0 | R151: 0
A152: 145 | B152: ='INVENT.Mat&Outillag Importé -10'!B151 -> 0 | C152: ='INVENT.Mat&Outillag Importé -10'!F151 -> 0 | D152: ='INVENT.Mat&Outillag Importé -10'!C151 -> 0 | E152: ='INVENT.Mat&Outillag Importé -10'!H151 -> 0 | G152: 0 | H152: 0 | I152: 0 | J152: 0 | K152: 0 | L152: 0 | O152: 0 | P152: 0 | Q152: 0 | R152: 0
A153: 146 | B153: ='INVENT.Mat&Outillag Importé -10'!B152 -> 0 | C153: ='INVENT.Mat&Outillag Importé -10'!F152 -> 0 | D153: ='INVENT.Mat&Outillag Importé -10'!C152 -> 0 | E153: ='INVENT.Mat&Outillag Importé -10'!H152 -> 0 | G153: 0 | H153: 0 | I153: 0 | J153: 0 | K153: 0 | L153: 0 | O153: 0 | P153: 0 | Q153: 0 | R153: 0
A154: 147 | B154: ='INVENT.Mat&Outillag Importé -10'!B153 -> 0 | C154: ='INVENT.Mat&Outillag Importé -10'!F153 -> 0 | D154: ='INVENT.Mat&Outillag Importé -10'!C153 -> 0 | E154: ='INVENT.Mat&Outillag Importé -10'!H153 -> 0 | G154: 0 | H154: 0 | I154: 0 | J154: 0 | K154: 0 | L154: 0 | O154: 0 | P154: 0 | Q154: 0 | R154: 0
A155: 148 | B155: ='INVENT.Mat&Outillag Importé -10'!B154 -> 0 | C155: ='INVENT.Mat&Outillag Importé -10'!F154 -> 0 | D155: ='INVENT.Mat&Outillag Importé -10'!C154 -> 0 | E155: ='INVENT.Mat&Outillag Importé -10'!H154 -> 0 | G155: 0 | H155: 0 | I155: 0 | J155: 0 | K155: 0 | L155: 0 | O155: 0 | P155: 0 | Q155: 0 | R155: 0
A156: 149 | B156: ='INVENT.Mat&Outillag Importé -10'!B155 -> 0 | C156: ='INVENT.Mat&Outillag Importé -10'!F155 -> 0 | D156: ='INVENT.Mat&Outillag Importé -10'!C155 -> 0 | E156: ='INVENT.Mat&Outillag Importé -10'!H155 -> 0 | G156: 0 | H156: 0 | I156: 0 | J156: 0 | K156: 0 | L156: 0 | O156: 0 | P156: 0 | Q156: 0 | R156: 0
A157: 150 | B157: ='INVENT.Mat&Outillag Importé -10'!B156 -> 0 | C157: ='INVENT.Mat&Outillag Importé -10'!F156 -> 0 | D157: ='INVENT.Mat&Outillag Importé -10'!C156 -> 0 | E157: ='INVENT.Mat&Outillag Importé -10'!H156 -> 0 | G157: 0 | H157: 0 | I157: 0 | J157: 0 | K157: 0 | L157: 0 | O157: 0 | P157: 0 | Q157: 0 | R157: 0
A158: 151 | B158: ='INVENT.Mat&Outillag Importé -10'!B157 -> 0 | C158: ='INVENT.Mat&Outillag Importé -10'!F157 -> 0 | D158: ='INVENT.Mat&Outillag Importé -10'!C157 -> 0 | E158: ='INVENT.Mat&Outillag Importé -10'!H157 -> 0 | G158: 0 | H158: 0 | I158: 0 | J158: 0 | K158: 0 | L158: 0 | O158: 0 | P158: 0 | Q158: 0 | R158: 0
A159: 152 | B159: ='INVENT.Mat&Outillag Importé -10'!B158 -> 0 | C159: ='INVENT.Mat&Outillag Importé -10'!F158 -> 0 | D159: ='INVENT.Mat&Outillag Importé -10'!C158 -> 0 | E159: ='INVENT.Mat&Outillag Importé -10'!H158 -> 0 | G159: 0 | H159: 0 | I159: 0 | J159: 0 | K159: 0 | L159: 0 | O159: 0 | P159: 0 | Q159: 0 | R159: 0
A160: 153 | B160: ='INVENT.Mat&Outillag Importé -10'!B159 -> 0 | C160: ='INVENT.Mat&Outillag Importé -10'!F159 -> 0 | D160: ='INVENT.Mat&Outillag Importé -10'!C159 -> 0 | E160: ='INVENT.Mat&Outillag Importé -10'!H159 -> 0 | G160: 0 | H160: 0 | I160: 0 | J160: 0 | K160: 0 | L160: 0 | O160: 0 | P160: 0 | Q160: 0 | R160: 0
A161: 154 | B161: ='INVENT.Mat&Outillag Importé -10'!B160 -> 0 | C161: ='INVENT.Mat&Outillag Importé -10'!F160 -> 0 | D161: ='INVENT.Mat&Outillag Importé -10'!C160 -> 0 | E161: ='INVENT.Mat&Outillag Importé -10'!H160 -> 0 | G161: 0 | H161: 0 | I161: 0 | J161: 0 | K161: 0 | L161: 0 | O161: 0 | P161: 0 | Q161: 0 | R161: 0
A162: 155 | B162: ='INVENT.Mat&Outillag Importé -10'!B161 -> 0 | C162: ='INVENT.Mat&Outillag Importé -10'!F161 -> 0 | D162: ='INVENT.Mat&Outillag Importé -10'!C161 -> 0 | E162: ='INVENT.Mat&Outillag Importé -10'!H161 -> 0 | G162: 0 | H162: 0 | I162: 0 | J162: 0 | K162: 0 | L162: 0 | O162: 0 | P162: 0 | Q162: 0 | R162: 0
A163: 156 | B163: ='INVENT.Mat&Outillag Importé -10'!B162 -> 0 | C163: ='INVENT.Mat&Outillag Importé -10'!F162 -> 0 | D163: ='INVENT.Mat&Outillag Importé -10'!C162 -> 0 | E163: ='INVENT.Mat&Outillag Importé -10'!H162 -> 0 | G163: 0 | H163: 0 | I163: 0 | J163: 0 | K163: 0 | L163: 0 | O163: 0 | P163: 0 | Q163: 0 | R163: 0
A164: 157 | B164: ='INVENT.Mat&Outillag Importé -10'!B163 -> 0 | C164: ='INVENT.Mat&Outillag Importé -10'!F163 -> 0 | D164: ='INVENT.Mat&Outillag Importé -10'!C163 -> 0 | E164: ='INVENT.Mat&Outillag Importé -10'!H163 -> 0 | G164: 0 | H164: 0 | I164: 0 | J164: 0 | K164: 0 | L164: 0 | O164: 0 | P164: 0 | Q164: 0 | R164: 0
A165: 158 | B165: ='INVENT.Mat&Outillag Importé -10'!B164 -> 0 | C165: ='INVENT.Mat&Outillag Importé -10'!F164 -> 0 | D165: ='INVENT.Mat&Outillag Importé -10'!C164 -> 0 | E165: ='INVENT.Mat&Outillag Importé -10'!H164 -> 0 | G165: 0 | H165: 0 | I165: 0 | J165: 0 | K165: 0 | L165: 0 | O165: 0 | P165: 0 | Q165: 0 | R165: 0
A166: 159 | B166: ='INVENT.Mat&Outillag Importé -10'!B165 -> 0 | C166: ='INVENT.Mat&Outillag Importé -10'!F165 -> 0 | D166: ='INVENT.Mat&Outillag Importé -10'!C165 -> 0 | E166: ='INVENT.Mat&Outillag Importé -10'!H165 -> 0 | G166: 0 | H166: 0 | I166: 0 | J166: 0 | K166: 0 | L166: 0 | O166: 0 | P166: 0 | Q166: 0 | R166: 0
A167: 160 | B167: ='INVENT.Mat&Outillag Importé -10'!B166 -> 0 | C167: ='INVENT.Mat&Outillag Importé -10'!F166 -> 0 | D167: ='INVENT.Mat&Outillag Importé -10'!C166 -> 0 | E167: ='INVENT.Mat&Outillag Importé -10'!H166 -> 0 | G167: 0 | H167: 0 | I167: 0 | J167: 0 | K167: 0 | L167: 0 | O167: 0 | P167: 0 | Q167: 0 | R167: 0
A168: 161 | B168: ='INVENT.Mat&Outillag Importé -10'!B167 -> 0 | C168: ='INVENT.Mat&Outillag Importé -10'!F167 -> 0 | D168: ='INVENT.Mat&Outillag Importé -10'!C167 -> 0 | E168: ='INVENT.Mat&Outillag Importé -10'!H167 -> 0 | G168: 0 | H168: 0 | I168: 0 | J168: 0 | K168: 0 | L168: 0 | O168: 0 | P168: 0 | Q168: 0 | R168: 0
A169: 162 | B169: ='INVENT.Mat&Outillag Importé -10'!B168 -> 0 | C169: ='INVENT.Mat&Outillag Importé -10'!F168 -> 0 | D169: ='INVENT.Mat&Outillag Importé -10'!C168 -> 0 | E169: ='INVENT.Mat&Outillag Importé -10'!H168 -> 0 | G169: 0 | H169: 0 | I169: 0 | J169: 0 | K169: 0 | L169: 0 | O169: 0 | P169: 0 | Q169: 0 | R169: 0
A170: 163 | B170: ='INVENT.Mat&Outillag Importé -10'!B169 -> 0 | C170: ='INVENT.Mat&Outillag Importé -10'!F169 -> 0 | D170: ='INVENT.Mat&Outillag Importé -10'!C169 -> 0 | E170: ='INVENT.Mat&Outillag Importé -10'!H169 -> 0 | G170: 0 | H170: 0 | I170: 0 | J170: 0 | K170: 0 | L170: 0 | O170: 0 | P170: 0 | Q170: 0 | R170: 0
A171: 164 | B171: ='INVENT.Mat&Outillag Importé -10'!B170 -> 0 | C171: ='INVENT.Mat&Outillag Importé -10'!F170 -> 0 | D171: ='INVENT.Mat&Outillag Importé -10'!C170 -> 0 | E171: ='INVENT.Mat&Outillag Importé -10'!H170 -> 0 | G171: 0 | H171: 0 | I171: 0 | J171: 0 | K171: 0 | L171: 0 | O171: 0 | P171: 0 | Q171: 0 | R171: 0
A172: 165 | B172: ='INVENT.Mat&Outillag Importé -10'!B171 -> 0 | C172: ='INVENT.Mat&Outillag Importé -10'!F171 -> 0 | D172: ='INVENT.Mat&Outillag Importé -10'!C171 -> 0 | E172: ='INVENT.Mat&Outillag Importé -10'!H171 -> 0 | G172: 0 | H172: 0 | I172: 0 | J172: 0 | K172: 0 | L172: 0 | O172: 0 | P172: 0 | Q172: 0 | R172: 0
A173: 166 | B173: ='INVENT.Mat&Outillag Importé -10'!B172 -> 0 | C173: ='INVENT.Mat&Outillag Importé -10'!F172 -> 0 | D173: ='INVENT.Mat&Outillag Importé -10'!C172 -> 0 | E173: ='INVENT.Mat&Outillag Importé -10'!H172 -> 0 | G173: 0 | H173: 0 | I173: 0 | J173: 0 | K173: 0 | L173: 0 | O173: 0 | P173: 0 | Q173: 0 | R173: 0
A174: 167 | B174: ='INVENT.Mat&Outillag Importé -10'!B173 -> 0 | C174: ='INVENT.Mat&Outillag Importé -10'!F173 -> 0 | D174: ='INVENT.Mat&Outillag Importé -10'!C173 -> 0 | E174: ='INVENT.Mat&Outillag Importé -10'!H173 -> 0 | G174: 0 | H174: 0 | I174: 0 | J174: 0 | K174: 0 | L174: 0 | O174: 0 | P174: 0 | Q174: 0 | R174: 0
A175: =+A174+1 -> 168 | B175: ='INVENT.Mat&Outillag Importé -10'!B174 -> 0 | C175: ='INVENT.Mat&Outillag Importé -10'!F174 -> 0 | D175: ='INVENT.Mat&Outillag Importé -10'!C174 -> 0 | E175: ='INVENT.Mat&Outillag Importé -10'!H174 -> 0 | G175: 0 | H175: 0 | I175: 0 | J175: 0 | K175: 0 | L175: 0 | O175: 0 | P175: 0 | Q175: 0 | R175: 0
A176: 169 | B176: ='INVENT.Mat&Outillag Importé -10'!B175 -> 0 | C176: ='INVENT.Mat&Outillag Importé -10'!F175 -> 0 | D176: ='INVENT.Mat&Outillag Importé -10'!C175 -> 0 | E176: ='INVENT.Mat&Outillag Importé -10'!H175 -> 0 | G176: 0 | H176: 0 | I176: 0 | J176: 0 | K176: 0 | L176: 0 | O176: 0 | P176: 0 | Q176: 0 | R176: 0
A177: 170 | B177: ='INVENT.Mat&Outillag Importé -10'!B176 -> 0 | C177: ='INVENT.Mat&Outillag Importé -10'!F176 -> 0 | D177: ='INVENT.Mat&Outillag Importé -10'!C176 -> 0 | E177: ='INVENT.Mat&Outillag Importé -10'!H176 -> 0 | G177: 0 | H177: 0 | I177: 0 | J177: 0 | K177: 0 | L177: 0 | O177: 0 | P177: 0 | Q177: 0 | R177: 0
A178: 171 | B178: ='INVENT.Mat&Outillag Importé -10'!B177 -> 0 | C178: ='INVENT.Mat&Outillag Importé -10'!F177 -> 0 | D178: ='INVENT.Mat&Outillag Importé -10'!C177 -> 0 | E178: ='INVENT.Mat&Outillag Importé -10'!H177 -> 0 | G178: 0 | H178: 0 | I178: 0 | J178: 0 | K178: 0 | L178: 0 | O178: 0 | P178: 0 | Q178: 0 | R178: 0
A179: 172 | B179: ='INVENT.Mat&Outillag Importé -10'!B178 -> 0 | C179: ='INVENT.Mat&Outillag Importé -10'!F178 -> 0 | D179: ='INVENT.Mat&Outillag Importé -10'!C178 -> 0 | E179: ='INVENT.Mat&Outillag Importé -10'!H178 -> 0 | G179: 0 | H179: 0 | I179: 0 | J179: 0 | K179: 0 | L179: 0 | O179: 0 | P179: 0 | Q179: 0 | R179: 0
A180: 173 | B180: ='INVENT.Mat&Outillag Importé -10'!B179 -> 0 | C180: ='INVENT.Mat&Outillag Importé -10'!F179 -> 0 | D180: ='INVENT.Mat&Outillag Importé -10'!C179 -> 0 | E180: ='INVENT.Mat&Outillag Importé -10'!H179 -> 0 | G180: 0 | H180: 0 | I180: 0 | J180: 0 | K180: 0 | L180: 0 | O180: 0 | P180: 0 | Q180: 0 | R180: 0
A181: 174 | B181: ='INVENT.Mat&Outillag Importé -10'!B180 -> 0 | C181: ='INVENT.Mat&Outillag Importé -10'!F180 -> 0 | D181: ='INVENT.Mat&Outillag Importé -10'!C180 -> 0 | E181: ='INVENT.Mat&Outillag Importé -10'!H180 -> 0 | G181: 0 | H181: 0 | I181: 0 | J181: 0 | K181: 0 | L181: 0 | O181: 0 | P181: 0 | Q181: 0 | R181: 0
A182: 175 | B182: ='INVENT.Mat&Outillag Importé -10'!B181 -> 0 | C182: ='INVENT.Mat&Outillag Importé -10'!F181 -> 0 | D182: ='INVENT.Mat&Outillag Importé -10'!C181 -> 0 | E182: ='INVENT.Mat&Outillag Importé -10'!H181 -> 0 | G182: 0 | H182: 0 | I182: 0 | J182: 0 | K182: 0 | L182: 0 | O182: 0 | P182: 0 | Q182: 0 | R182: 0
A183: 176 | B183: ='INVENT.Mat&Outillag Importé -10'!B182 -> 0 | C183: ='INVENT.Mat&Outillag Importé -10'!F182 -> 0 | D183: ='INVENT.Mat&Outillag Importé -10'!C182 -> 0 | E183: ='INVENT.Mat&Outillag Importé -10'!H182 -> 0 | G183: =F183*E183 -> 0 | H183: 0 | I183: 0 | J183: 0 | K183: =(E183+G183+H183)*18% -> 0 | L183: =SUM(G183:K183)+E183 -> 0 | O183: =(M183+N183)*18% -> 0 | P183: =O183+N183+M183 -> 0 | Q183: =+R183-O183-K183 -> 0 | R183: =P183+L183 -> 0
A184: 177 | B184: ='INVENT.Mat&Outillag Importé -10'!B183 -> 0 | C184: ='INVENT.Mat&Outillag Importé -10'!F183 -> 0 | D184: ='INVENT.Mat&Outillag Importé -10'!C183 -> 0 | E184: ='INVENT.Mat&Outillag Importé -10'!H183 -> 0 | G184: 0 | H184: 0 | I184: 0 | J184: 0 | K184: 0 | L184: 0 | O184: 0 | P184: 0 | Q184: 0 | R184: 0
A185: 178 | B185: ='INVENT.Mat&Outillag Importé -10'!B184 -> 0 | C185: ='INVENT.Mat&Outillag Importé -10'!F184 -> 0 | D185: ='INVENT.Mat&Outillag Importé -10'!C184 -> 0 | E185: ='INVENT.Mat&Outillag Importé -10'!H184 -> 0 | G185: 0 | H185: 0 | I185: 0 | J185: 0 | K185: 0 | L185: 0 | O185: 0 | P185: 0 | Q185: 0 | R185: 0
A186: 179 | B186: ='INVENT.Mat&Outillag Importé -10'!B185 -> 0 | C186: ='INVENT.Mat&Outillag Importé -10'!F185 -> 0 | D186: ='INVENT.Mat&Outillag Importé -10'!C185 -> 0 | E186: ='INVENT.Mat&Outillag Importé -10'!H185 -> 0 | G186: 0 | H186: 0 | I186: 0 | J186: 0 | K186: 0 | L186: 0 | O186: 0 | P186: 0 | Q186: 0 | R186: 0
A187: 180 | B187: ='INVENT.Mat&Outillag Importé -10'!B186 -> 0 | C187: ='INVENT.Mat&Outillag Importé -10'!F186 -> 0 | D187: ='INVENT.Mat&Outillag Importé -10'!C186 -> 0 | E187: ='INVENT.Mat&Outillag Importé -10'!H186 -> 0 | G187: 0 | H187: 0 | I187: 0 | J187: 0 | K187: 0 | L187: 0 | O187: 0 | P187: 0 | Q187: 0 | R187: 0
A188: 181 | B188: ='INVENT.Mat&Outillag Importé -10'!B187 -> 0 | C188: ='INVENT.Mat&Outillag Importé -10'!F187 -> 0 | D188: ='INVENT.Mat&Outillag Importé -10'!C187 -> 0 | E188: ='INVENT.Mat&Outillag Importé -10'!H187 -> 0 | G188: 0 | H188: 0 | I188: 0 | J188: 0 | K188: 0 | L188: 0 | O188: 0 | P188: 0 | Q188: 0 | R188: 0
A189: 182 | B189: ='INVENT.Mat&Outillag Importé -10'!B188 -> 0 | C189: ='INVENT.Mat&Outillag Importé -10'!F188 -> 0 | D189: ='INVENT.Mat&Outillag Importé -10'!C188 -> 0 | E189: ='INVENT.Mat&Outillag Importé -10'!H188 -> 0 | G189: 0 | H189: 0 | I189: 0 | J189: 0 | K189: 0 | L189: 0 | O189: 0 | P189: 0 | Q189: 0 | R189: 0
A190: 183 | B190: ='INVENT.Mat&Outillag Importé -10'!B189 -> 0 | C190: ='INVENT.Mat&Outillag Importé -10'!F189 -> 0 | D190: ='INVENT.Mat&Outillag Importé -10'!C189 -> 0 | E190: ='INVENT.Mat&Outillag Importé -10'!H189 -> 0 | G190: 0 | H190: 0 | I190: 0 | J190: 0 | K190: 0 | L190: 0 | O190: 0 | P190: 0 | Q190: 0 | R190: 0
A191: 184 | B191: ='INVENT.Mat&Outillag Importé -10'!B190 -> 0 | C191: ='INVENT.Mat&Outillag Importé -10'!F190 -> 0 | D191: ='INVENT.Mat&Outillag Importé -10'!C190 -> 0 | E191: ='INVENT.Mat&Outillag Importé -10'!H190 -> 0 | G191: 0 | H191: 0 | I191: 0 | J191: 0 | K191: 0 | L191: 0 | O191: 0 | P191: 0 | Q191: 0 | R191: 0
A192: 185 | B192: ='INVENT.Mat&Outillag Importé -10'!B191 -> 0 | C192: ='INVENT.Mat&Outillag Importé -10'!F191 -> 0 | D192: ='INVENT.Mat&Outillag Importé -10'!C191 -> 0 | E192: ='INVENT.Mat&Outillag Importé -10'!H191 -> 0 | G192: 0 | H192: 0 | I192: 0 | J192: 0 | K192: 0 | L192: 0 | O192: 0 | P192: 0 | Q192: 0 | R192: 0
A193: 186 | B193: ='INVENT.Mat&Outillag Importé -10'!B192 -> 0 | C193: ='INVENT.Mat&Outillag Importé -10'!F192 -> 0 | D193: ='INVENT.Mat&Outillag Importé -10'!C192 -> 0 | E193: ='INVENT.Mat&Outillag Importé -10'!H192 -> 0 | G193: 0 | H193: 0 | I193: 0 | J193: 0 | K193: 0 | L193: 0 | O193: 0 | P193: 0 | Q193: 0 | R193: 0
A194: 187 | B194: ='INVENT.Mat&Outillag Importé -10'!B193 -> 0 | C194: ='INVENT.Mat&Outillag Importé -10'!F193 -> 0 | D194: ='INVENT.Mat&Outillag Importé -10'!C193 -> 0 | E194: ='INVENT.Mat&Outillag Importé -10'!H193 -> 0 | G194: 0 | H194: 0 | I194: 0 | J194: 0 | K194: 0 | L194: 0 | O194: 0 | P194: 0 | Q194: 0 | R194: 0
A195: 188 | B195: ='INVENT.Mat&Outillag Importé -10'!B194 -> 0 | C195: ='INVENT.Mat&Outillag Importé -10'!F194 -> 0 | D195: ='INVENT.Mat&Outillag Importé -10'!C194 -> 0 | E195: ='INVENT.Mat&Outillag Importé -10'!H194 -> 0 | G195: 0 | H195: 0 | I195: 0 | J195: 0 | K195: 0 | L195: 0 | O195: 0 | P195: 0 | Q195: 0 | R195: 0
A196: 189 | B196: ='INVENT.Mat&Outillag Importé -10'!B195 -> 0 | C196: ='INVENT.Mat&Outillag Importé -10'!F195 -> 0 | D196: ='INVENT.Mat&Outillag Importé -10'!C195 -> 0 | E196: ='INVENT.Mat&Outillag Importé -10'!H195 -> 0 | G196: 0 | H196: 0 | I196: 0 | J196: 0 | K196: 0 | L196: 0 | O196: 0 | P196: 0 | Q196: 0 | R196: 0
A197: 190 | B197: ='INVENT.Mat&Outillag Importé -10'!B196 -> 0 | C197: ='INVENT.Mat&Outillag Importé -10'!F196 -> 0 | D197: ='INVENT.Mat&Outillag Importé -10'!C196 -> 0 | E197: ='INVENT.Mat&Outillag Importé -10'!H196 -> 0 | G197: 0 | H197: 0 | I197: 0 | J197: 0 | K197: 0 | L197: 0 | O197: 0 | P197: 0 | Q197: 0 | R197: 0
A198: 191 | B198: ='INVENT.Mat&Outillag Importé -10'!B197 -> 0 | C198: ='INVENT.Mat&Outillag Importé -10'!F197 -> 0 | D198: ='INVENT.Mat&Outillag Importé -10'!C197 -> 0 | E198: ='INVENT.Mat&Outillag Importé -10'!H197 -> 0 | G198: 0 | H198: 0 | I198: 0 | J198: 0 | K198: 0 | L198: 0 | O198: 0 | P198: 0 | Q198: 0 | R198: 0
A199: 192 | B199: ='INVENT.Mat&Outillag Importé -10'!B198 -> 0 | C199: ='INVENT.Mat&Outillag Importé -10'!F198 -> 0 | D199: ='INVENT.Mat&Outillag Importé -10'!C198 -> 0 | E199: ='INVENT.Mat&Outillag Importé -10'!H198 -> 0 | G199: 0 | H199: 0 | I199: 0 | J199: 0 | K199: 0 | L199: 0 | O199: 0 | P199: 0 | Q199: 0 | R199: 0
A200: 193 | B200: ='INVENT.Mat&Outillag Importé -10'!B199 -> 0 | C200: ='INVENT.Mat&Outillag Importé -10'!F199 -> 0 | D200: ='INVENT.Mat&Outillag Importé -10'!C199 -> 0 | E200: ='INVENT.Mat&Outillag Importé -10'!H199 -> 0 | G200: 0 | H200: 0 | I200: 0 | J200: 0 | K200: 0 | L200: 0 | O200: 0 | P200: 0 | Q200: 0 | R200: 0
A201: 194 | B201: ='INVENT.Mat&Outillag Importé -10'!B200 -> 0 | C201: ='INVENT.Mat&Outillag Importé -10'!F200 -> 0 | D201: ='INVENT.Mat&Outillag Importé -10'!C200 -> 0 | E201: ='INVENT.Mat&Outillag Importé -10'!H200 -> 0 | G201: 0 | H201: =E201*1% -> 0 | I201: =E201*1% -> 0 | J201: =E201*0.5% -> 0 | K201: 0 | L201: 0 | O201: 0 | P201: 0 | Q201: 0 | R201: 0
... 806 more rows

Sheet INVEST.Matériels Transport - 10
D1: ='REFERENCES - 10'!D7 -> 0 | F1: ='REFERENCES - 10'!D9 -> 0
B2: INVESTISSEMENTS PREVUS SUR LA PERIODE DE REALISATION DU PROJET | R2: (En F. Cfa)
A3: N° | B3: Désignation | C3: Quantité | D3: ACHAT A L'ETRANGER (en F. Cfa) | M3: ACHAT EN COTE D'IVOIRE (en F. Cfa) | Q3: Coût total des Investissements
D4: Position tarifaire | E4: Cout CAF | F4: Droit de douane / Droit fiscaux | H4: RSTAT (1%) | I4: PCS (1%) | J4: PCC (0,5%) | K4: TVA sur Droit de Douane | L4: Total Achat à l'étranger | M4: Achats HT | N4: Coûts locaux (Transport, montage,..) | O4: T.V.A | P4: Total Achat en RCI | Q4: Coût total HT | R4: Coût total TTC
F5: Taux | G5: Montant
B7: MATERIELS DE TRANSPORT | E7: =SUM(E8:E57) -> 0 | G7: =SUM(G8:G57) -> 0 | H7: 0 | I7: 0 | J7: 0 | K7: 0 | L7: 0 | M7: 0 | N7: 0 | O7: 0 | P7: 0 | Q7: 0 | R7: 0
A8: 1 | B8: ='INVENT.Mat Transp importés - 10'!B7 -> 0 | C8: ='INVENT.Mat Transp importés - 10'!F7 -> 0 | D8: ='INVENT.Mat Transp importés - 10'!C7 -> 0 | E8: ='INVENT.Mat Transp importés - 10'!H7 -> 0 | G8: =F8*E8 -> 0 | H8: =E8*1% -> 0 | I8: =E8*1% -> 0 | J8: =E8*0.5% -> 0 | K8: =(E8+G8+H8)*18% -> 0 | L8: =SUM(G8:K8)+E8 -> 0 | O8: =(M8+N8)*18% -> 0 | P8: =O8+N8+M8 -> 0 | Q8: =+R8-O8-K8 -> 0 | R8: =P8+L8 -> 0
A9: =+A8+1 -> 2 | B9: ='INVENT.Mat Transp importés - 10'!B8 -> 0 | C9: ='INVENT.Mat Transp importés - 10'!F8 -> 0 | D9: ='INVENT.Mat Transp importés - 10'!C8 -> 0 | E9: ='INVENT.Mat Transp importés - 10'!H8 -> 0 | G9: =F9*E9 -> 0 | H9: =E9*1% -> 0 | I9: =E9*1% -> 0 | J9: =E9*0.5% -> 0 | K9: =(E9+G9+H9)*18% -> 0 | L9: 0 | O9: =(M9+N9)*18% -> 0 | P9: =O9+N9+M9 -> 0 | Q9: =+R9-O9-K9 -> 0 | R9: =P9+L9 -> 0
A10: =+A9+1 -> 3 | B10: ='INVENT.Mat Transp importés - 10'!B9 -> 0 | C10: ='INVENT.Mat Transp importés - 10'!F9 -> 0 | D10: ='INVENT.Mat Transp importés - 10'!C9 -> 0 | E10: ='INVENT.Mat Transp importés - 10'!H9 -> 0 | G10: =F10*E10 -> 0 | H10: 0 | I10: 0 | J10: 0 | K10: =(E10+G10+H10)*18% -> 0 | L10: 0 | O10: =(M10+N10)*18% -> 0 | P10: =O10+N10+M10 -> 0 | Q10: =+R10-O10-K10 -> 0 | R10: =P10+L10 -> 0
A11: 4 | B11: ='INVENT.Mat Transp importés - 10'!B10 -> 0 | C11: ='INVENT.Mat Transp importés - 10'!F10 -> 0 | D11: ='INVENT.Mat Transp importés - 10'!C10 -> 0 | E11: ='INVENT.Mat Transp importés - 10'!H10 -> 0 | G11: 0 | H11: 0 | I11: 0 | J11: 0 | K11: 0 | L11: 0 | O11: =(M11+N11)*18% -> 0 | P11: =O11+N11+M11 -> 0 | Q11: =+R11-O11-K11 -> 0 | R11: =P11+L11 -> 0
A12: 5 | B12: ='INVENT.Mat Transp importés - 10'!B11 -> 0 | C12: ='INVENT.Mat Transp importés - 10'!F11 -> 0 | D12: ='INVENT.Mat Transp importés - 10'!C11 -> 0 | E12: ='INVENT.Mat Transp importés - 10'!H11 -> 0 | G12: 0 | H12: 0 | I12: 0 | J12: 0 | K12: 0 | L12: 0 | O12: 0 | P12: 0 | Q12: 0 | R12: 0
A13: 6 | B13: ='INVENT.Mat Transp importés - 10'!B12 -> 0 | C13: ='INVENT.Mat Transp importés - 10'!F12 -> 0 | D13: ='INVENT.Mat Transp importés - 10'!C12 -> 0 | E13: ='INVENT.Mat Transp importés - 10'!H12 -> 0 | G13: =F13*E13 -> 0 | H13: 0 | I13: 0 | J13: 0 | K13: =(E13+G13+H13)*18% -> 0 | L13: 0 | O13: 0 | P13: 0 | Q13: 0 | R13: 0
A14: 7 | B14: ='INVENT.Mat Transp importés - 10'!B13 -> 0 | C14: ='INVENT.Mat Transp importés - 10'!F13 -> 0 | D14: ='INVENT.Mat Transp importés - 10'!C13 -> 0 | E14: ='INVENT.Mat Transp importés - 10'!H13 -> 0 | G14: 0 | H14: 0 | I14: 0 | J14: 0 | K14: 0 | L14: 0 | O14: 0 | P14: 0 | Q14: 0 | R14: 0
A15: 8 | B15: ='INVENT.Mat Transp importés - 10'!B14 -> 0 | C15: ='INVENT.Mat Transp importés - 10'!F14 -> 0 | D15: ='INVENT.Mat Transp importés - 10'!C14 -> 0 | E15: ='INVENT.Mat Transp importés - 10'!H14 -> 0 | G15: 0 | H15: 0 | I15: 0 | J15: 0 | K15: 0 | L15: 0 | O15: 0 | P15: 0 | Q15: 0 | R15: 0
A16: 9 | B16: ='INVENT.Mat Transp importés - 10'!B15 -> 0 | C16: ='INVENT.Mat Transp importés - 10'!F15 -> 0 | D16: ='INVENT.Mat Transp importés - 10'!C15 -> 0 | E16: ='INVENT.Mat Transp importés - 10'!H15 -> 0 | G16: 0 | H16: 0 | I16: 0 | J16: 0 | K16: 0 | L16: 0 | O16: 0 | P16: 0 | Q16: 0 | R16: 0
A17: 10 | B17: ='INVENT.Mat Transp importés - 10'!B16 -> 0 | C17: ='INVENT.Mat Transp importés - 10'!F16 -> 0 | D17: ='INVENT.Mat Transp importés - 10'!C16 -> 0 | E17: ='INVENT.Mat Transp importés - 10'!H16 -> 0 | G17: 0 | H17: 0 | I17: 0 | J17: 0 | K17: 0 | L17: 0 | O17: 0 | P17: 0 | Q17: 0 | R17: 0
A18: 11 | B18: ='INVENT.Mat Transp importés - 10'!B17 -> 0 | C18: ='INVENT.Mat Transp importés - 10'!F17 -> 0 | D18: ='INVENT.Mat Transp importés - 10'!C17 -> 0 | E18: ='INVENT.Mat Transp importés - 10'!H17 -> 0 | G18: 0 | H18: 0 | I18: 0 | J18: 0 | K18: 0 | L18: 0 | O18: 0 | P18: 0 | Q18: 0 | R18: 0
A19: 12 | B19: ='INVENT.Mat Transp importés - 10'!B18 -> 0 | C19: ='INVENT.Mat Transp importés - 10'!F18 -> 0 | D19: ='INVENT.Mat Transp importés - 10'!C18 -> 0 | E19: ='INVENT.Mat Transp importés - 10'!H18 -> 0 | G19: 0 | H19: 0 | I19: 0 | J19: 0 | K19: 0 | L19: 0 | O19: 0 | P19: 0 | Q19: 0 | R19: 0
